Workbook

Sheet Budjetti
G1: =Asetukset!B2 -> 2022-11-01 | H1: =EDATE(G1,1) -> 2022-12-01 | I1: =EDATE(H1,1) -> 2023-01-01 | J1: 2023-02-01 | K1: 2023-03-01 | L1: 2023-04-01 | M1: 2023-05-01 | N1: 2023-06-01 | O1: 2023-07-01 | P1: 2023-08-01 | Q1: 2023-09-01 | R1: 2023-10-01
F2: Yhteensä | G2: kk | H2: kk | I2: kk | J2: kk | K2: kk | L2: kk | M2: kk | N2: kk | O2: kk | P2: kk | Q2: kk | R2: kk
A3: VARSINAINEN TOIMINTA | F3: =F4+F45+F67+F99 -> -1310 | G3: =G4+G45+G67+G99 -> -152 | H3: 128 | I3: 472 | J3: 48 | K3: -122 | L3: 348 | M3: -272 | N3: -272 | O3: -272 | P3: -272 | Q3: -272 | R3: -272
A4: Seuran urheilutoiminta | F4: =F5+F21 -> -1310 | G4: =G5+G21 -> -152 | H4: 128 | I4: 472 | J4: 48 | K4: -122 | L4: 348 | M4: -272 | N4: -272 | O4: -272 | P4: -272 | Q4: -272 | R4: -272
A5: Tuotot | F5: =SUM(F6:F20) -> 4320 | G5: =SUM(G6:G20) -> 720 | H5: 720 | I5: 720 | J5: 720 | K5: 720 | L5: 720 | M5: 0 | N5: 0 | O5: 0 | P5: 0 | Q5: 0 | R5: 0
A6: 3000 Saadut toimintamaksut | F6: =SUM(G6:R6) -> 4320 | G6: =SUMPRODUCT(SUMIF(INDIRECT("'"&Sheets&"'!"&"$B$1:$B$300"),$A6,INDIRECT("'"&Sheets&"'!"&"H$1:H$300"))) -> 720 | H6: =SUMPRODUCT(SUMIF(INDIRECT("'"&Sheets&"'!"&"$B$1:$B$300"),$A6,INDIRECT("'"&Sheets&"'!"&"I$1:I$300"))) -> 720 | I6: =SUMPRODUCT(SUMIF(INDIRECT("'"&Sheets&"'!"&"$B$1:$B$300"),$A6,INDIRECT("'"&Sheets&"'!"&"J$1:J$300"))) -> 720 | J6: =SUMPRODUCT(SUMIF(INDIRECT("'"&Sheets&"'!"&"$B$1:$B$300"),$A6,INDIRECT("'"&Sheets&"'!"&"K$1:K$300"))) -> 720 | K6: =SUMPRODUCT(SUMIF(INDIRECT("'"&Sheets&"'!"&"$B$1:$B$300"),$A6,INDIRECT("'"&Sheets&"'!"&"L$1:L$300"))) -> 720 | L6: =SUMPRODUCT(SUMIF(INDIRECT("'"&Sheets&"'!"&"$B$1:$B$300"),$A6,INDIRECT("'"&Sheets&"'!"&"M$1:M$300"))) -> 720 | M6: =SUMPRODUCT(SUMIF(INDIRECT("'"&Sheets&"'!"&"$B$1:$B$300"),$A6,INDIRECT("'"&Sheets&"'!"&"N$1:N$300"))) -> 0 | N6: =SUMPRODUCT(SUMIF(INDIRECT("'"&Sheets&"'!"&"$B$1:$B$300"),$A6,INDIRECT("'"&Sheets&"'!"&"O$1:O$300"))) -> 0 | O6: =SUMPRODUCT(SUMIF(INDIRECT("'"&Sheets&"'!"&"$B$1:$B$300"),$A6,INDIRECT("'"&Sheets&"'!"&"P$1:P$300"))) -> 0 | P6: =SUMPRODUCT(SUMIF(INDIRECT("'"&Sheets&"'!"&"$B$1:$B$300"),$A6,INDIRECT("'"&Sheets&"'!"&"Q$1:Q$300"))) -> 0 | Q6: =SUMPRODUCT(SUMIF(INDIRECT("'"&Sheets&"'!"&"$B$1:$B$300"),$A6,INDIRECT("'"&Sheets&"'!"&"R$1:R$300"))) -> 0 | R6: =SUMPRODUCT(SUMIF(INDIRECT("'"&Sheets&"'!"&"$B$1:$B$300"),$A6,INDIRECT("'"&Sheets&"'!"&"S$1:S$300"))) -> 0
A7: 3001 Saadut lisenssi- ja vakuutusmaksut | F7: =SUM(G7:R7) -> 0 | G7: 0 | H7: 0 | I7: 0 | J7: 0 | K7: 0 | L7: 0 | M7: 0 | N7: 0 | O7: 0 | P7: 0 | Q7: 0 | R7: 0
A8: 3002 Saadut valmennusmaksut | F8: 0 | G8: 0 | H8: 0 | I8: 0 | J8: 0 | K8: 0 | L8: 0 | M8: 0 | N8: 0 | O8: 0 | P8: 0 | Q8: 0 | R8: 0
A9: 3003 Saadut kenttävuoromaksut | F9: 0 | G9: 0 | H9: 0 | I9: 0 | J9: 0 | K9: 0 | L9: 0 | M9: 0 | N9: 0 | O9: 0 | P9: 0 | Q9: 0 | R9: 0
A10: 3004 Saadut koulutus- ja testaustoiminnan maksut | F10: 0 | G10: 0 | H10: 0 | I10: 0 | J10: 0 | K10: 0 | L10: 0 | M10: 0 | N10: 0 | O10: 0 | P10: 0 | Q10: 0 | R10: 0
A11: 3005 Saadut pelaajakehitystoiminnan maksut | F11: 0 | G11: 0 | H11: 0 | I11: 0 | J11: 0 | K11: 0 | L11: 0 | M11: 0 | N11: 0 | O11: 0 | P11: 0 | Q11: 0 | R11: 0
A12: 3006 Saadut kilpailutoiminnan maksut | F12: 0 | G12: 0 | H12: 0 | I12: 0 | J12: 0 | K12: 0 | L12: 0 | M12: 0 | N12: 0 | O12: 0 | P12: 0 | Q12: 0 | R12: 0
A13: 3007 Saadut turnausten osallistumismaksut | F13: 0 | G13: 0 | H13: 0 | I13: 0 | J13: 0 | K13: 0 | L13: 0 | M13: 0 | N13: 0 | O13: 0 | P13: 0 | Q13: 0 | R13: 0
A14: 3008 Saadut maksut muusta toiminnasta | F14: 0 | G14: 0 | H14: 0 | I14: 0 | J14: 0 | K14: 0 | L14: 0 | M14: 0 | N14: 0 | O14: 0 | P14: 0 | Q14: 0 | R14: 0
A15: 3009 Saadut varustemaksut | F15: 0 | G15: 0 | H15: 0 | I15: 0 | J15: 0 | K15: 0 | L15: 0 | M15: 0 | N15: 0 | O15: 0 | P15: 0 | Q15: 0 | R15: 0
A16: 3020 Kilpailutuotot | F16: 0 | G16: 0 | H16: 0 | I16: 0 | J16: 0 | K16: 0 | L16: 0 | M16: 0 | N16: 0 | O16: 0 | P16: 0 | Q16: 0 | R16: 0
A17: 3030 Saadut siirtomaksut ja kasvattajaraha | F17: 0 | G17: 0 | H17: 0 | I17: 0 | J17: 0 | K17: 0 | L17: 0 | M17: 0 | N17: 0 | O17: 0 | P17: 0 | Q17: 0 | R17: 0
A18: 3080 Saadut urheilutoiminnan tuet | F18: =SUM(G18:R18) -> 0 | G18: 0 | H18: 0 | I18: 0 | J18: 0 | K18: 0 | L18: 0 | M18: 0 | N18: 0 | O18: 0 | P18: 0 | Q18: 0 | R18: 0
A19: 3081 Saadut urheilutoiminnan palkkatuet | F19: 0 | G19: 0 | H19: 0 | I19: 0 | J19: 0 | K19: 0 | L19: 0 | M19: 0 | N19: 0 | O19: 0 | P19: 0 | Q19: 0 | R19: 0
A20: 3090 Muut seuran urheilutoiminnan tuotot | F20: 0 | G20: 0 | H20: 0 | I20: 0 | J20: 0 | K20: 0 | L20: 0 | M20: 0 | N20: 0 | O20: 0 | P20: 0 | Q20: 0 | R20: 0
A21: Kulut | F21: =SUM(F22:F44) -> -5630 | G21: =SUM(G22:G44) -> -872 | H21: -592 | I21: -248 | J21: -672 | K21: -842 | L21: -372 | M21: -272 | N21: -272 | O21: -272 | P21: -272 | Q21: -272 | R21: -272
A22: 4000 Lisenssi- ja vakuutusmaksut | F22: -120 | G22: =SUMPRODUCT(SUMIF(INDIRECT("'"&Sheets&"'!"&"$B$1:$B$300"),$A22,INDIRECT("'"&Sheets&"'!"&"H$1:H$300"))) -> 0 | H22: =SUMPRODUCT(SUMIF(INDIRECT("'"&Sheets&"'!"&"$B$1:$B$300"),$A22,INDIRECT("'"&Sheets&"'!"&"I$1:I$300"))) -> -120 | I22: =SUMPRODUCT(SUMIF(INDIRECT("'"&Sheets&"'!"&"$B$1:$B$300"),$A22,INDIRECT("'"&Sheets&"'!"&"J$1:J$300"))) -> 0 | J22: =SUMPRODUCT(SUMIF(INDIRECT("'"&Sheets&"'!"&"$B$1:$B$300"),$A22,INDIRECT("'"&Sheets&"'!"&"K$1:K$300"))) -> 0 | K22: =SUMPRODUCT(SUMIF(INDIRECT("'"&Sheets&"'!"&"$B$1:$B$300"),$A22,INDIRECT("'"&Sheets&"'!"&"L$1:L$300"))) -> 0 | L22: =SUMPRODUCT(SUMIF(INDIRECT("'"&Sheets&"'!"&"$B$1:$B$300"),$A22,INDIRECT("'"&Sheets&"'!"&"M$1:M$300"))) -> 0 | M22: =SUMPRODUCT(SUMIF(INDIRECT("'"&Sheets&"'!"&"$B$1:$B$300"),$A22,INDIRECT("'"&Sheets&"'!"&"N$1:N$300"))) -> 0 | N22: =SUMPRODUCT(SUMIF(INDIRECT("'"&Sheets&"'!"&"$B$1:$B$300"),$A22,INDIRECT("'"&Sheets&"'!"&"O$1:O$300"))) -> 0 | O22: =SUMPRODUCT(SUMIF(INDIRECT("'"&Sheets&"'!"&"$B$1:$B$300"),$A22,INDIRECT("'"&Sheets&"'!"&"P$1:P$300"))) -> 0 | P22: =SUMPRODUCT(SUMIF(INDIRECT("'"&Sheets&"'!"&"$B$1:$B$300"),$A22,INDIRECT("'"&Sheets&"'!"&"Q$1:Q$300"))) -> 0 | Q22: =SUMPRODUCT(SUMIF(INDIRECT("'"&Sheets&"'!"&"$B$1:$B$300"),$A22,INDIRECT("'"&Sheets&"'!"&"R$1:R$300"))) -> 0 | R22: =SUMPRODUCT(SUMIF(INDIRECT("'"&Sheets&"'!"&"$B$1:$B$300"),$A22,INDIRECT("'"&Sheets&"'!"&"S$1:S$300"))) -> 0
A23: 4001 Siirtomaksut | F23: 0 | G23: 0 | H23: 0 | I23: 0 | J23: 0 | K23: 0 | L23: 0 | M23: 0 | N23: 0 | O23: 0 | P23: 0 | Q23: 0 | R23: 0
A24: 4002 Pelaajien lääkärikulut | F24: 0 | G24: 0 | H24: 0 | I24: 0 | J24: 0 | K24: 0 | L24: 0 | M24: 0 | N24: 0 | O24: 0 | P24: 0 | Q24: 0 | R24: 0
A25: 4003 Pelaajien fysiikaalinen hoito ja hieronta | F25: 0 | G25: 0 | H25: 0 | I25: 0 | J25: 0 | K25: 0 | L25: 0 | M25: 0 | N25: 0 | O25: 0 | P25: 0 | Q25: 0 | R25: 0
A26: 4004 Kenttävuokrat | F26: -2350 | G26: -400 | H26: -400 | I26: -500 | J26: -400 | K26: -550 | L26: -100 | M26: 0 | N26: 0 | O26: 0 | P26: 0 | Q26: 0 | R26: 0
A27: 4005 Ostetut valmennuspalvelut | F27: -2720 | G27: -272 | H27: -272 | I27: =-SUMPRODUCT(SUMIF(INDIRECT("'"&Sheets&"'!"&"$B$1:$B$300"),$A27,INDIRECT("'"&Sheets&"'!"&"J$1:J$300"))) -> 272 | J27: -272 | K27: -272 | L27: -272 | M27: -272 | N27: -272 | O27: -272 | P27: -272 | Q27: -272 | R27: -272
A28: 4006 Valmennuksen päivärahat ja ateriakorvaukset | F28: 0 | G28: 0 | H28: 0 | I28: 0 | J28: 0 | K28: 0 | L28: 0 | M28: 0 | N28: 0 | O28: 0 | P28: 0 | Q28: 0 | R28: 0
A29: 4007 Valmennuksen km-korvaukset | F29: 0 | G29: 0 | H29: 0 | I29: 0 | J29: 0 | K29: 0 | L29: 0 | M29: 0 | N29: 0 | O29: 0 | P29: 0 | Q29: 0 | R29: 0
A30: 4008 Muut ostetut urheilutoiminnan palvelut | F30: 0 | G30: 0 | H30: 0 | I30: 0 | J30: 0 | K30: 0 | L30: 0 | M30: 0 | N30: 0 | O30: 0 | P30: 0 | Q30: 0 | R30: 0
A31: 4009 Koulutus- ja testaustoiminnan kulut | F31: 0 | G31: 0 | H31: 0 | I31: 0 | J31: 0 | K31: 0 | L31: 0 | M31: 0 | N31: 0 | O31: 0 | P31: 0 | Q31: 0 | R31: 0
A32: 4010 Ostetut koulutuspalvelut | F32: 0 | G32: 0 | H32: 0 | I32: 0 | J32: 0 | K32: 0 | L32: 0 | M32: 0 | N32: 0 | O32: 0 | P32: 0 | Q32: 0 | R32: 0
A33: 4011 Pelaajakehityskulut | F33: 0 | G33: 0 | H33: 0 | I33: 0 | J33: 0 | K33: 0 | L33: 0 | M33: 0 | N33: 0 | O33: 0 | P33: 0 | Q33: 0 | R33: 0
A34: 4012 Leirityskulut | F34: 0 | G34: 0 | H34: 0 | I34: 0 | J34: 0 | K34: 0 | L34: 0 | M34: 0 | N34: 0 | O34: 0 | P34: 0 | Q34: 0 | R34: 0
A35: 4013 Turnausten osallistumiskulut | F35: 0 | G35: 0 | H35: 0 | I35: 0 | J35: 0 | K35: 0 | L35: 0 | M35: 0 | N35: 0 | O35: 0 | P35: 0 | Q35: 0 | R35: 0
A36: 4014 Kilpailukulut | F36: =-SUM(G36:R36) -> -200 | G36: 0 | H36: 200 | I36: 0 | J36: 0 | K36: 0 | L36: 0 | M36: 0 | N36: 0 | O36: 0 | P36: 0 | Q36: 0 | R36: 0
A37: 4015 Erotuomarimaksut | F37: -40 | G37: 0 | H37: 0 | I37: -20 | J37: 0 | K37: -20 | L37: 0 | M37: 0 | N37: 0 | O37: 0 | P37: 0 | Q37: 0 | R37: 0
A38: 4016 Erotuomareiden päivärahat ja ateriakorvaukset | F38: 0 | G38: 0 | H38: 0 | I38: 0 | J38: 0 | K38: 0 | L38: 0 | M38: 0 | N38: 0 | O38: 0 | P38: 0 | Q38: 0 | R38: 0
A39: 4017 Erotuomareiden km-korvaukset | F39: 0 | G39: 0 | H39: 0 | I39: 0 | J39: 0 | K39: 0 | L39: 0 | M39: 0 | N39: 0 | O39: 0 | P39: 0 | Q39: 0 | R39: 0
A40: 4018 Matkaottelukulut | F40: 0 | G40: 0 | H40: 0 | I40: 0 | J40: 0 | K40: 0 | L40: 0 | M40: 0 | N40: 0 | O40: 0 | P40: 0 | Q40: 0 | R40: 0
A41: 4019 Muut matkakulut | F41: 0 | G41: 0 | H41: 0 | I41: 0 | J41: 0 | K41: 0 | L41: 0 | M41: 0 | N41: 0 | O41: 0 | P41: 0 | Q41: 0 | R41: 0
A42: 4020 Pelivarustehankinnat | F42: 0 | G42: 0 | H42: 0 | I42: 0 | J42: 0 | K42: 0 | L42: 0 | M42: 0 | N42: 0 | O42: 0 | P42: 0 | Q42: 0 | R42: 0
A43: 4021 Muut varuste- ja huoltotarvikehankinnat | F43: -200 | G43: =-SUMPRODUCT(SUMIF(INDIRECT("'"&Sheets&"'!"&"$B$1:$B$300"),$A43,INDIRECT("'"&Sheets&"'!"&"H$1:H$300"))) -> -200 | H43: =-SUMPRODUCT(SUMIF(INDIRECT("'"&Sheets&"'!"&"$B$1:$B$300"),$A43,INDIRECT("'"&Sheets&"'!"&"I$1:I$300"))) -> 0 | I43: =-SUMPRODUCT(SUMIF(INDIRECT("'"&Sheets&"'!"&"$B$1:$B$300"),$A43,INDIRECT("'"&Sheets&"'!"&"J$1:J$300"))) -> 0 | J43: =-SUMPRODUCT(SUMIF(INDIRECT("'"&Sheets&"'!"&"$B$1:$B$300"),$A43,INDIRECT("'"&Sheets&"'!"&"K$1:K$300"))) -> 0 | K43: =-SUMPRODUCT(SUMIF(INDIRECT("'"&Sheets&"'!"&"$B$1:$B$300"),$A43,INDIRECT("'"&Sheets&"'!"&"L$1:L$300"))) -> 0 | L43: =-SUMPRODUCT(SUMIF(INDIRECT("'"&Sheets&"'!"&"$B$1:$B$300"),$A43,INDIRECT("'"&Sheets&"'!"&"M$1:M$300"))) -> 0 | M43: =-SUMPRODUCT(SUMIF(INDIRECT("'"&Sheets&"'!"&"$B$1:$B$300"),$A43,INDIRECT("'"&Sheets&"'!"&"N$1:N$300"))) -> 0 | N43: =-SUMPRODUCT(SUMIF(INDIRECT("'"&Sheets&"'!"&"$B$1:$B$300"),$A43,INDIRECT("'"&Sheets&"'!"&"O$1:O$300"))) -> 0 | O43: =-SUMPRODUCT(SUMIF(INDIRECT("'"&Sheets&"'!"&"$B$1:$B$300"),$A43,INDIRECT("'"&Sheets&"'!"&"P$1:P$300"))) -> 0 | P43: =-SUMPRODUCT(SUMIF(INDIRECT("'"&Sheets&"'!"&"$B$1:$B$300"),$A43,INDIRECT("'"&Sheets&"'!"&"Q$1:Q$300"))) -> 0 | Q43: =-SUMPRODUCT(SUMIF(INDIRECT("'"&Sheets&"'!"&"$B$1:$B$300"),$A43,INDIRECT("'"&Sheets&"'!"&"R$1:R$300"))) -> 0 | R43: =-SUMPRODUCT(SUMIF(INDIRECT("'"&Sheets&"'!"&"$B$1:$B$300"),$A43,INDIRECT("'"&Sheets&"'!"&"S$1:S$300"))) -> 0
A44: 4050 Muut seuran urheilutoiminnan kulut | F44: 0 | G44: 0 | H44: 0 | I44: 0 | J44: 0 | K44: 0 | L44: 0 | M44: 0 | N44: 0 | O44: 0 | P44: 0 | Q44: 0 | R44: 0
A45: Urheilupalvelut | F45: =F46+F57 -> 0 | G45: =G46+G57 -> 0 | H45: 0 | I45: 0 | J45: 0 | K45: 0 | L45: 0 | M45: 0 | N45: 0 | O45: 0 | P45: 0 | Q45: 0 | R45: 0
A46: Tuotot | F46: =SUM(F47:F56) -> 0 | G46: =SUM(G47:G56) -> 0 | H46: 0 | I46: 0 | J46: 0 | K46: 0 | L46: 0 | M46: 0 | N46: 0 | O46: 0 | P46: 0 | Q46: 0 | R46: 0
A47: 3100 Valmennuspalveluiden tuotot | F47: =SUM(G47:R47) -> 0 | G47: =SUMPRODUCT(SUMIF(INDIRECT("'"&Sheets&"'!"&"$B$1:$B$300"),$A47,INDIRECT("'"&Sheets&"'!"&"H$1:H$300"))) -> 0 | H47: =SUMPRODUCT(SUMIF(INDIRECT("'"&Sheets&"'!"&"$B$1:$B$300"),$A47,INDIRECT("'"&Sheets&"'!"&"I$1:I$300"))) -> 0 | I47: =SUMPRODUCT(SUMIF(INDIRECT("'"&Sheets&"'!"&"$B$1:$B$300"),$A47,INDIRECT("'"&Sheets&"'!"&"J$1:J$300"))) -> 0 | J47: =SUMPRODUCT(SUMIF(INDIRECT("'"&Sheets&"'!"&"$B$1:$B$300"),$A47,INDIRECT("'"&Sheets&"'!"&"K$1:K$300"))) -> 0 | K47: =SUMPRODUCT(SUMIF(INDIRECT("'"&Sheets&"'!"&"$B$1:$B$300"),$A47,INDIRECT("'"&Sheets&"'!"&"L$1:L$300"))) -> 0 | L47: =SUMPRODUCT(SUMIF(INDIRECT("'"&Sheets&"'!"&"$B$1:$B$300"),$A47,INDIRECT("'"&Sheets&"'!"&"M$1:M$300"))) -> 0 | M47: =SUMPRODUCT(SUMIF(INDIRECT("'"&Sheets&"'!"&"$B$1:$B$300"),$A47,INDIRECT("'"&Sheets&"'!"&"N$1:N$300"))) -> 0 | N47: =SUMPRODUCT(SUMIF(INDIRECT("'"&Sheets&"'!"&"$B$1:$B$300"),$A47,INDIRECT("'"&Sheets&"'!"&"O$1:O$300"))) -> 0 | O47: =SUMPRODUCT(SUMIF(INDIRECT("'"&Sheets&"'!"&"$B$1:$B$300"),$A47,INDIRECT("'"&Sheets&"'!"&"P$1:P$300"))) -> 0 | P47: =SUMPRODUCT(SUMIF(INDIRECT("'"&Sheets&"'!"&"$B$1:$B$300"),$A47,INDIRECT("'"&Sheets&"'!"&"Q$1:Q$300"))) -> 0 | Q47: =SUMPRODUCT(SUMIF(INDIRECT("'"&Sheets&"'!"&"$B$1:$B$300"),$A47,INDIRECT("'"&Sheets&"'!"&"R$1:R$300"))) -> 0 | R47: =SUMPRODUCT(SUMIF(INDIRECT("'"&Sheets&"'!"&"$B$1:$B$300"),$A47,INDIRECT("'"&Sheets&"'!"&"S$1:S$300"))) -> 0
A48: 3101 Koulutus- ja testauspalveluiden tuotot | F48: 0 | G48: 0 | H48: 0 | I48: 0 | J48: 0 | K48: 0 | L48: 0 | M48: 0 | N48: 0 | O48: 0 | P48: 0 | Q48: 0 | R48: 0
A49: 3102 Turnausten osallistumismaksutuotot | F49: 0 | G49: 0 | H49: 0 | I49: 0 | J49: 0 | K49: 0 | L49: 0 | M49: 0 | N49: 0 | O49: 0 | P49: 0 | Q49: 0 | R49: 0
A50: 3103 Turnausten oheispalveluiden tuotot | F50: 0 | G50: 0 | H50: 0 | I50: 0 | J50: 0 | K50: 0 | L50: 0 | M50: 0 | N50: 0 | O50: 0 | P50: 0 | Q50: 0 | R50: 0
A51: 3104 Leiritoiminnan tuotot | F51: 0 | G51: 0 | H51: 0 | I51: 0 | J51: 0 | K51: 0 | L51: 0 | M51: 0 | N51: 0 | O51: 0 | P51: 0 | Q51: 0 | R51: 0
A52: 3105 Kerhotoiminnan tuotot | F52: 0 | G52: 0 | H52: 0 | I52: 0 | J52: 0 | K52: 0 | L52: 0 | M52: 0 | N52: 0 | O52: 0 | P52: 0 | Q52: 0 | R52: 0
A53: 3106 Harrastetapahtumien tuotot | F53: 0 | G53: 0 | H53: 0 | I53: 0 | J53: 0 | K53: 0 | L53: 0 | M53: 0 | N53: 0 | O53: 0 | P53: 0 | Q53: 0 | R53: 0
A54: 3107 Kuntosalin tuotot | F54: =SUM(G54:R54) -> 0 | G54: 0 | H54: 0 | I54: 0 | J54: 0 | K54: 0 | L54: 0 | M54: 0 | N54: 0 | O54: 0 | P54: 0 | Q54: 0 | R54: 0
A55: 3180 Saadut palvelutoiminnan tuet | F55: 0 | G55: 0 | H55: 0 | I55: 0 | J55: 0 | K55: 0 | L55: 0 | M55: 0 | N55: 0 | O55: 0 | P55: 0 | Q55: 0 | R55: 0
A56: 3190 Muut urheilupalveluiden tuotot | F56: 0 | G56: 0 | H56: 0 | I56: 0 | J56: 0 | K56: 0 | L56: 0 | M56: 0 | N56: 0 | O56: 0 | P56: 0 | Q56: 0 | R56: 0
A57: Kulut | F57: =SUM(F58:F66) -> 0 | G57: =SUM(G58:G66) -> 0 | H57: 0 | I57: 0 | J57: 0 | K57: 0 | L57: 0 | M57: 0 | N57: 0 | O57: 0 | P57: 0 | Q57: 0 | R57: 0
A58: 4051 Koulutus- ja testauspalveluiden kulut | F58: 0 | G58: =SUMPRODUCT(SUMIF(INDIRECT("'"&Sheets&"'!"&"$B$1:$B$300"),$A58,INDIRECT("'"&Sheets&"'!"&"H$1:H$300"))) -> 0 | H58: =SUMPRODUCT(SUMIF(INDIRECT("'"&Sheets&"'!"&"$B$1:$B$300"),$A58,INDIRECT("'"&Sheets&"'!"&"I$1:I$300"))) -> 0 | I58: =SUMPRODUCT(SUMIF(INDIRECT("'"&Sheets&"'!"&"$B$1:$B$300"),$A58,INDIRECT("'"&Sheets&"'!"&"J$1:J$300"))) -> 0 | J58: =SUMPRODUCT(SUMIF(INDIRECT("'"&Sheets&"'!"&"$B$1:$B$300"),$A58,INDIRECT("'"&Sheets&"'!"&"K$1:K$300"))) -> 0 | K58: =SUMPRODUCT(SUMIF(INDIRECT("'"&Sheets&"'!"&"$B$1:$B$300"),$A58,INDIRECT("'"&Sheets&"'!"&"L$1:L$300"))) -> 0 | L58: =SUMPRODUCT(SUMIF(INDIRECT("'"&Sheets&"'!"&"$B$1:$B$300"),$A58,INDIRECT("'"&Sheets&"'!"&"M$1:M$300"))) -> 0 | M58: =SUMPRODUCT(SUMIF(INDIRECT("'"&Sheets&"'!"&"$B$1:$B$300"),$A58,INDIRECT("'"&Sheets&"'!"&"N$1:N$300"))) -> 0 | N58: =SUMPRODUCT(SUMIF(INDIRECT("'"&Sheets&"'!"&"$B$1:$B$300"),$A58,INDIRECT("'"&Sheets&"'!"&"O$1:O$300"))) -> 0 | O58: =SUMPRODUCT(SUMIF(INDIRECT("'"&Sheets&"'!"&"$B$1:$B$300"),$A58,INDIRECT("'"&Sheets&"'!"&"P$1:P$300"))) -> 0 | P58: =SUMPRODUCT(SUMIF(INDIRECT("'"&Sheets&"'!"&"$B$1:$B$300"),$A58,INDIRECT("'"&Sheets&"'!"&"Q$1:Q$300"))) -> 0 | Q58: =SUMPRODUCT(SUMIF(INDIRECT("'"&Sheets&"'!"&"$B$1:$B$300"),$A58,INDIRECT("'"&Sheets&"'!"&"R$1:R$300"))) -> 0 | R58: =SUMPRODUCT(SUMIF(INDIRECT("'"&Sheets&"'!"&"$B$1:$B$300"),$A58,INDIRECT("'"&Sheets&"'!"&"S$1:S$300"))) -> 0
A59: 4052 Valmennuspalveluiden kulut | F59: 0 | G59: 0 | H59: 0 | I59: 0 | J59: 0 | K59: 0 | L59: 0 | M59: 0 | N59: 0 | O59: 0 | P59: 0 | Q59: 0 | R59: 0
A60: 4053 Turnausten järjestämiskulut | F60: 0 | G60: 0 | H60: 0 | I60: 0 | J60: 0 | K60: 0 | L60: 0 | M60: 0 | N60: 0 | O60: 0 | P60: 0 | Q60: 0 | R60: 0
A61: 4054 Leiritoiminnan kulut | F61: 0 | G61: 0 | H61: 0 | I61: 0 | J61: 0 | K61: 0 | L61: 0 | M61: 0 | N61: 0 | O61: 0 | P61: 0 | Q61: 0 | R61: 0
A62: 4055 Kerhotoiminnan yleiset kulut | F62: 0 | G62: 0 | H62: 0 | I62: 0 | J62: 0 | K62: 0 | L62: 0 | M62: 0 | N62: 0 | O62: 0 | P62: 0 | Q62: 0 | R62: 0
A63: 4056 Kerhotoiminnan ruokailukulut | F63: 0 | G63: 0 | H63: 0 | I63: 0 | J63: 0 | K63: 0 | L63: 0 | M63: 0 | N63: 0 | O63: 0 | P63: 0 | Q63: 0 | R63: 0
A64: 4057 Harrastetapahtumien kulut | F64: 0 | G64: 0 | H64: 0 | I64: 0 | J64: 0 | K64: 0 | L64: 0 | M64: 0 | N64: 0 | O64: 0 | P64: 0 | Q64: 0 | R64: 0
A65: 4058 Kuntosalin kulut | F65: =SUM(G65:R65) -> 0 | G65: 0 | H65: 0 | I65: 0 | J65: 0 | K65: 0 | L65: 0 | M65: 0 | N65: 0 | O65: 0 | P65: 0 | Q65: 0 | R65: 0
A66: 4070 Muut urheilupalveluiden kulut | F66: 0 | G66: 0 | H66: 0 | I66: 0 | J66: 0 | K66: 0 | L66: 0 | M66: 0 | N66: 0 | O66: 0 | P66: 0 | Q66: 0 | R66: 0
A67: Hallinto | F67: =F68+F72 -> 0 | G67: =G68+G72 -> 0 | H67: 0 | I67: 0 | J67: 0 | K67: 0 | L67: 0 | M67: 0 | N67: 0 | O67: 0 | P67: 0 | Q67: 0 | R67: 0
A68: Tuotot | F68: =SUM(F69:F71) -> 0 | G68: =SUM(G69:G71) -> 0 | H68: 0 | I68: 0 | J68: 0 | K68: 0 | L68: 0 | M68: 0 | N68: 0 | O68: 0 | P68: 0 | Q68: 0 | R68: 0
A69: 3200 Saadut hallinnon tuet | F69: =SUM(G69:R69) -> 0 | G69: =SUMPRODUCT(SUMIF(INDIRECT("'"&Sheets&"'!"&"$B$1:$B$300"),$A69,INDIRECT("'"&Sheets&"'!"&"H$1:H$300"))) -> 0 | H69: =SUMPRODUCT(SUMIF(INDIRECT("'"&Sheets&"'!"&"$B$1:$B$300"),$A69,INDIRECT("'"&Sheets&"'!"&"I$1:I$300"))) -> 0 | I69: =SUMPRODUCT(SUMIF(INDIRECT("'"&Sheets&"'!"&"$B$1:$B$300"),$A69,INDIRECT("'"&Sheets&"'!"&"J$1:J$300"))) -> 0 | J69: =SUMPRODUCT(SUMIF(INDIRECT("'"&Sheets&"'!"&"$B$1:$B$300"),$A69,INDIRECT("'"&Sheets&"'!"&"K$1:K$300"))) -> 0 | K69: =SUMPRODUCT(SUMIF(INDIRECT("'"&Sheets&"'!"&"$B$1:$B$300"),$A69,INDIRECT("'"&Sheets&"'!"&"L$1:L$300"))) -> 0 | L69: =SUMPRODUCT(SUMIF(INDIRECT("'"&Sheets&"'!"&"$B$1:$B$300"),$A69,INDIRECT("'"&Sheets&"'!"&"M$1:M$300"))) -> 0 | M69: =SUMPRODUCT(SUMIF(INDIRECT("'"&Sheets&"'!"&"$B$1:$B$300"),$A69,INDIRECT("'"&Sheets&"'!"&"N$1:N$300"))) -> 0 | N69: =SUMPRODUCT(SUMIF(INDIRECT("'"&Sheets&"'!"&"$B$1:$B$300"),$A69,INDIRECT("'"&Sheets&"'!"&"O$1:O$300"))) -> 0 | O69: =SUMPRODUCT(SUMIF(INDIRECT("'"&Sheets&"'!"&"$B$1:$B$300"),$A69,INDIRECT("'"&Sheets&"'!"&"P$1:P$300"))) -> 0 | P69: =SUMPRODUCT(SUMIF(INDIRECT("'"&Sheets&"'!"&"$B$1:$B$300"),$A69,INDIRECT("'"&Sheets&"'!"&"Q$1:Q$300"))) -> 0 | Q69: =SUMPRODUCT(SUMIF(INDIRECT("'"&Sheets&"'!"&"$B$1:$B$300"),$A69,INDIRECT("'"&Sheets&"'!"&"R$1:R$300"))) -> 0 | R69: =SUMPRODUCT(SUMIF(INDIRECT("'"&Sheets&"'!"&"$B$1:$B$300"),$A69,INDIRECT("'"&Sheets&"'!"&"S$1:S$300"))) -> 0
A70: 3201 Saadut maksut seuran tai joukkueen tapahtumista | F70: 0 | G70: =SUMPRODUCT(SUMIF(INDIRECT("'"&Sheets&"'!"&"$B$1:$B$300"),$A70,INDIRECT("'"&Sheets&"'!"&"H$1:H$300"))) -> 0 | H70: =SUMPRODUCT(SUMIF(INDIRECT("'"&Sheets&"'!"&"$B$1:$B$300"),$A70,INDIRECT("'"&Sheets&"'!"&"I$1:I$300"))) -> 0 | I70: =SUMPRODUCT(SUMIF(INDIRECT("'"&Sheets&"'!"&"$B$1:$B$300"),$A70,INDIRECT("'"&Sheets&"'!"&"J$1:J$300"))) -> 0 | J70: =SUMPRODUCT(SUMIF(INDIRECT("'"&Sheets&"'!"&"$B$1:$B$300"),$A70,INDIRECT("'"&Sheets&"'!"&"K$1:K$300"))) -> 0 | K70: =SUMPRODUCT(SUMIF(INDIRECT("'"&Sheets&"'!"&"$B$1:$B$300"),$A70,INDIRECT("'"&Sheets&"'!"&"L$1:L$300"))) -> 0 | L70: =SUMPRODUCT(SUMIF(INDIRECT("'"&Sheets&"'!"&"$B$1:$B$300"),$A70,INDIRECT("'"&Sheets&"'!"&"M$1:M$300"))) -> 0 | M70: =SUMPRODUCT(SUMIF(INDIRECT("'"&Sheets&"'!"&"$B$1:$B$300"),$A70,INDIRECT("'"&Sheets&"'!"&"N$1:N$300"))) -> 0 | N70: =SUMPRODUCT(SUMIF(INDIRECT("'"&Sheets&"'!"&"$B$1:$B$300"),$A70,INDIRECT("'"&Sheets&"'!"&"O$1:O$300"))) -> 0 | O70: =SUMPRODUCT(SUMIF(INDIRECT("'"&Sheets&"'!"&"$B$1:$B$300"),$A70,INDIRECT("'"&Sheets&"'!"&"P$1:P$300"))) -> 0 | P70: =SUMPRODUCT(SUMIF(INDIRECT("'"&Sheets&"'!"&"$B$1:$B$300"),$A70,INDIRECT("'"&Sheets&"'!"&"Q$1:Q$300"))) -> 0 | Q70: =SUMPRODUCT(SUMIF(INDIRECT("'"&Sheets&"'!"&"$B$1:$B$300"),$A70,INDIRECT("'"&Sheets&"'!"&"R$1:R$300"))) -> 0 | R70: =SUMPRODUCT(SUMIF(INDIRECT("'"&Sheets&"'!"&"$B$1:$B$300"),$A70,INDIRECT("'"&Sheets&"'!"&"S$1:S$300"))) -> 0
A71: 3240 Muut hallinnon tuotot | F71: 0 | G71: =SUMPRODUCT(SUMIF(INDIRECT("'"&Sheets&"'!"&"$B$1:$B$300"),$A71,INDIRECT("'"&Sheets&"'!"&"H$1:H$300"))) -> 0 | H71: =SUMPRODUCT(SUMIF(INDIRECT("'"&Sheets&"'!"&"$B$1:$B$300"),$A71,INDIRECT("'"&Sheets&"'!"&"I$1:I$300"))) -> 0 | I71: =SUMPRODUCT(SUMIF(INDIRECT("'"&Sheets&"'!"&"$B$1:$B$300"),$A71,INDIRECT("'"&Sheets&"'!"&"J$1:J$300"))) -> 0 | J71: =SUMPRODUCT(SUMIF(INDIRECT("'"&Sheets&"'!"&"$B$1:$B$300"),$A71,INDIRECT("'"&Sheets&"'!"&"K$1:K$300"))) -> 0 | K71: =SUMPRODUCT(SUMIF(INDIRECT("'"&Sheets&"'!"&"$B$1:$B$300"),$A71,INDIRECT("'"&Sheets&"'!"&"L$1:L$300"))) -> 0 | L71: =SUMPRODUCT(SUMIF(INDIRECT("'"&Sheets&"'!"&"$B$1:$B$300"),$A71,INDIRECT("'"&Sheets&"'!"&"M$1:M$300"))) -> 0 | M71: =SUMPRODUCT(SUMIF(INDIRECT("'"&Sheets&"'!"&"$B$1:$B$300"),$A71,INDIRECT("'"&Sheets&"'!"&"N$1:N$300"))) -> 0 | N71: =SUMPRODUCT(SUMIF(INDIRECT("'"&Sheets&"'!"&"$B$1:$B$300"),$A71,INDIRECT("'"&Sheets&"'!"&"O$1:O$300"))) -> 0 | O71: =SUMPRODUCT(SUMIF(INDIRECT("'"&Sheets&"'!"&"$B$1:$B$300"),$A71,INDIRECT("'"&Sheets&"'!"&"P$1:P$300"))) -> 0 | P71: =SUMPRODUCT(SUMIF(INDIRECT("'"&Sheets&"'!"&"$B$1:$B$300"),$A71,INDIRECT("'"&Sheets&"'!"&"Q$1:Q$300"))) -> 0 | Q71: =SUMPRODUCT(SUMIF(INDIRECT("'"&Sheets&"'!"&"$B$1:$B$300"),$A71,INDIRECT("'"&Sheets&"'!"&"R$1:R$300"))) -> 0 | R71: =SUMPRODUCT(SUMIF(INDIRECT("'"&Sheets&"'!"&"$B$1:$B$300"),$A71,INDIRECT("'"&Sheets&"'!"&"S$1:S$300"))) -> 0
A72: Kulut | F72: =SUM(F73:F98) -> 0 | G72: =SUM(G73:G98) -> 0 | H72: 0 | I72: 0 | J72: 0 | K72: 0 | L72: 0 | M72: 0 | N72: 0 | O72: 0 | P72: 0 | Q72: 0 | R72: 0
A73: 7000 Henkilöstön koulutuskulut | F73: 0 | G73: =SUMPRODUCT(SUMIF(INDIRECT("'"&Sheets&"'!"&"$B$1:$B$300"),$A73,INDIRECT("'"&Sheets&"'!"&"H$1:H$300"))) -> 0 | H73: =SUMPRODUCT(SUMIF(INDIRECT("'"&Sheets&"'!"&"$B$1:$B$300"),$A73,INDIRECT("'"&Sheets&"'!"&"I$1:I$300"))) -> 0 | I73: =SUMPRODUCT(SUMIF(INDIRECT("'"&Sheets&"'!"&"$B$1:$B$300"),$A73,INDIRECT("'"&Sheets&"'!"&"J$1:J$300"))) -> 0 | J73: =SUMPRODUCT(SUMIF(INDIRECT("'"&Sheets&"'!"&"$B$1:$B$300"),$A73,INDIRECT("'"&Sheets&"'!"&"K$1:K$300"))) -> 0 | K73: =SUMPRODUCT(SUMIF(INDIRECT("'"&Sheets&"'!"&"$B$1:$B$300"),$A73,INDIRECT("'"&Sheets&"'!"&"L$1:L$300"))) -> 0 | L73: =SUMPRODUCT(SUMIF(INDIRECT("'"&Sheets&"'!"&"$B$1:$B$300"),$A73,INDIRECT("'"&Sheets&"'!"&"M$1:M$300"))) -> 0 | M73: =SUMPRODUCT(SUMIF(INDIRECT("'"&Sheets&"'!"&"$B$1:$B$300"),$A73,INDIRECT("'"&Sheets&"'!"&"N$1:N$300"))) -> 0 | N73: =SUMPRODUCT(SUMIF(INDIRECT("'"&Sheets&"'!"&"$B$1:$B$300"),$A73,INDIRECT("'"&Sheets&"'!"&"O$1:O$300"))) -> 0 | O73: =SUMPRODUCT(SUMIF(INDIRECT("'"&Sheets&"'!"&"$B$1:$B$300"),$A73,INDIRECT("'"&Sheets&"'!"&"P$1:P$300"))) -> 0 | P73: =SUMPRODUCT(SUMIF(INDIRECT("'"&Sheets&"'!"&"$B$1:$B$300"),$A73,INDIRECT("'"&Sheets&"'!"&"Q$1:Q$300"))) -> 0 | Q73: =SUMPRODUCT(SUMIF(INDIRECT("'"&Sheets&"'!"&"$B$1:$B$300"),$A73,INDIRECT("'"&Sheets&"'!"&"R$1:R$300"))) -> 0 | R73: =SUMPRODUCT(SUMIF(INDIRECT("'"&Sheets&"'!"&"$B$1:$B$300"),$A73,INDIRECT("'"&Sheets&"'!"&"S$1:S$300"))) -> 0
A74: 7001 Työterveyshuollon kulut | F74: 0 | G74: 0 | H74: 0 | I74: 0 | J74: 0 | K74: 0 | L74: 0 | M74: 0 | N74: 0 | O74: 0 | P74: 0 | Q74: 0 | R74: 0
A75: 7002 Lahjat ja muistamiset | F75: 0 | G75: 0 | H75: 0 | I75: 0 | J75: 0 | K75: 0 | L75: 0 | M75: 0 | N75: 0 | O75: 0 | P75: 0 | Q75: 0 | R75: 0
A76: 7003 Muut henkilöstökulut | F76: 0 | G76: 0 | H76: 0 | I76: 0 | J76: 0 | K76: 0 | L76: 0 | M76: 0 | N76: 0 | O76: 0 | P76: 0 | Q76: 0 | R76: 0
A77: 7200 Tilavuokrat | F77: 0 | G77: 0 | H77: 0 | I77: 0 | J77: 0 | K77: 0 | L77: 0 | M77: 0 | N77: 0 | O77: 0 | P77: 0 | Q77: 0 | R77: 0
A78: 7640 Ohjelmistokulut | F78: 0 | G78: 0 | H78: 0 | I78: 0 | J78: 0 | K78: 0 | L78: 0 | M78: 0 | N78: 0 | O78: 0 | P78: 0 | Q78: 0 | R78: 0
A79: 7710 Laitevuokrat | F79: 0 | G79: 0 | H79: 0 | I79: 0 | J79: 0 | K79: 0 | L79: 0 | M79: 0 | N79: 0 | O79: 0 | P79: 0 | Q79: 0 | R79: 0
A80: 7711 IT-laitevuokrakulut | F80: 0 | G80: 0 | H80: 0 | I80: 0 | J80: 0 | K80: 0 | L80: 0 | M80: 0 | N80: 0 | O80: 0 | P80: 0 | Q80: 0 | R80: 0
A81: 7712 Muut vuokrat | F81: 0 | G81: 0 | H81: 0 | I81: 0 | J81: 0 | K81: 0 | L81: 0 | M81: 0 | N81: 0 | O81: 0 | P81: 0 | Q81: 0 | R81: 0
A82: 7713 IT-laitehankintakulut | F82: 0 | G82: 0 | H82: 0 | I82: 0 | J82: 0 | K82: 0 | L82: 0 | M82: 0 | N82: 0 | O82: 0 | P82: 0 | Q82: 0 | R82: 0
A83: 7714 IT-ylläpito- ja huoltokulut | F83: 0 | G83: 0 | H83: 0 | I83: 0 | J83: 0 | K83: 0 | L83: 0 | M83: 0 | N83: 0 | O83: 0 | P83: 0 | Q83: 0 | R83: 0
A84: 7790 Muut kone- ja kalustokulut | F84: 0 | G84: 0 | H84: 0 | I84: 0 | J84: 0 | K84: 0 | L84: 0 | M84: 0 | N84: 0 | O84: 0 | P84: 0 | Q84: 0 | R84: 0
A85: 7800 Muut matkakulut | F85: 0 | G85: 0 | H85: 0 | I85: 0 | J85: 0 | K85: 0 | L85: 0 | M85: 0 | N85: 0 | O85: 0 | P85: 0 | Q85: 0 | R85: 0
A86: 7801 Päivärahat ja ateriakorvaukset | F86: 0 | G86: 0 | H86: 0 | I86: 0 | J86: 0 | K86: 0 | L86: 0 | M86: 0 | N86: 0 | O86: 0 | P86: 0 | Q86: 0 | R86: 0
A87: 7802 Km-korvaukset | F87: 0 | G87: 0 | H87: 0 | I87: 0 | J87: 0 | K87: 0 | L87: 0 | M87: 0 | N87: 0 | O87: 0 | P87: 0 | Q87: 0 | R87: 0
A88: 8050 Mainos- ja markkinointikulut | F88: 0 | G88: 0 | H88: 0 | I88: 0 | J88: 0 | K88: 0 | L88: 0 | M88: 0 | N88: 0 | O88: 0 | P88: 0 | Q88: 0 | R88: 0
A89: 8370 Taloushallintopalvelut | F89: 0 | G89: 0 | H89: 0 | I89: 0 | J89: 0 | K89: 0 | L89: 0 | M89: 0 | N89: 0 | O89: 0 | P89: 0 | Q89: 0 | R89: 0
A90: 8371 Muut ostetut palvelut | F90: 0 | G90: 0 | H90: 0 | I90: 0 | J90: 0 | K90: 0 | L90: 0 | M90: 0 | N90: 0 | O90: 0 | P90: 0 | Q90: 0 | R90: 0
A91: 8451 Neuvottelukulut | F91: 0 | G91: 0 | H91: 0 | I91: 0 | J91: 0 | K91: 0 | L91: 0 | M91: 0 | N91: 0 | O91: 0 | P91: 0 | Q91: 0 | R91: 0
A92: 8452 Jäsenmaksut | F92: 0 | G92: 0 | H92: 0 | I92: 0 | J92: 0 | K92: 0 | L92: 0 | M92: 0 | N92: 0 | O92: 0 | P92: 0 | Q92: 0 | R92: 0
A93: 8453 Vakuutusmaksut | F93: 0 | G93: 0 | H93: 0 | I93: 0 | J93: 0 | K93: 0 | L93: 0 | M93: 0 | N93: 0 | O93: 0 | P93: 0 | Q93: 0 | R93: 0
A94: 8454 Puhelin- ja tietoliikennekulut | F94: 0 | G94: 0 | H94: 0 | I94: 0 | J94: 0 | K94: 0 | L94: 0 | M94: 0 | N94: 0 | O94: 0 | P94: 0 | Q94: 0 | R94: 0
A95: 8455 Toimistokulut | F95: 0 | G95: 0 | H95: 0 | I95: 0 | J95: 0 | K95: 0 | L95: 0 | M95: 0 | N95: 0 | O95: 0 | P95: 0 | Q95: 0 | R95: 0
A96: 8456 Pankkikulut | F96: 0 | G96: 0 | H96: 0 | I96: 0 | J96: 0 | K96: 0 | L96: 0 | M96: 0 | N96: 0 | O96: 0 | P96: 0 | Q96: 0 | R96: 0
A97: 8600 Muut kulut | F97: 0 | G97: 0 | H97: 0 | I97: 0 | J97: 0 | K97: 0 | L97: 0 | M97: 0 | N97: 0 | O97: 0 | P97: 0 | Q97: 0 | R97: 0
A98: 8700 Seuran tai joukkueen tapahtumat | F98: 0 | G98: 0 | H98: 0 | I98: 0 | J98: 0 | K98: 0 | L98: 0 | M98: 0 | N98: 0 | O98: 0 | P98: 0 | Q98: 0 | R98: 0
A99: Henkilöstökulut | F99: =SUM(F100:F117) -> 0 | G99: =SUM(G100:G117) -> 0 | H99: 0 | I99: 0 | J99: 0 | K99: 0 | L99: 0 | M99: 0 | N99: 0 | O99: 0 | P99: 0 | Q99: 0 | R99: 0
A100: 5000 Tuntipalkat | F100: 0 | G100: =SUMPRODUCT(SUMIF(INDIRECT("'"&Sheets&"'!"&"$B$1:$B$300"),$A100,INDIRECT("'"&Sheets&"'!"&"H$1:H$300"))) -> 0 | H100: =SUMPRODUCT(SUMIF(INDIRECT("'"&Sheets&"'!"&"$B$1:$B$300"),$A100,INDIRECT("'"&Sheets&"'!"&"I$1:I$300"))) -> 0 | I100: =SUMPRODUCT(SUMIF(INDIRECT("'"&Sheets&"'!"&"$B$1:$B$300"),$A100,INDIRECT("'"&Sheets&"'!"&"J$1:J$300"))) -> 0 | J100: =SUMPRODUCT(SUMIF(INDIRECT("'"&Sheets&"'!"&"$B$1:$B$300"),$A100,INDIRECT("'"&Sheets&"'!"&"K$1:K$300"))) -> 0 | K100: =SUMPRODUCT(SUMIF(INDIRECT("'"&Sheets&"'!"&"$B$1:$B$300"),$A100,INDIRECT("'"&Sheets&"'!"&"L$1:L$300"))) -> 0 | L100: =SUMPRODUCT(SUMIF(INDIRECT("'"&Sheets&"'!"&"$B$1:$B$300"),$A100,INDIRECT("'"&Sheets&"'!"&"M$1:M$300"))) -> 0 | M100: =SUMPRODUCT(SUMIF(INDIRECT("'"&Sheets&"'!"&"$B$1:$B$300"),$A100,INDIRECT("'"&Sheets&"'!"&"N$1:N$300"))) -> 0 | N100: =SUMPRODUCT(SUMIF(INDIRECT("'"&Sheets&"'!"&"$B$1:$B$300"),$A100,INDIRECT("'"&Sheets&"'!"&"O$1:O$300"))) -> 0 | O100: =SUMPRODUCT(SUMIF(INDIRECT("'"&Sheets&"'!"&"$B$1:$B$300"),$A100,INDIRECT("'"&Sheets&"'!"&"P$1:P$300"))) -> 0 | P100: =SUMPRODUCT(SUMIF(INDIRECT("'"&Sheets&"'!"&"$B$1:$B$300"),$A100,INDIRECT("'"&Sheets&"'!"&"Q$1:Q$300"))) -> 0 | Q100: =SUMPRODUCT(SUMIF(INDIRECT("'"&Sheets&"'!"&"$B$1:$B$300"),$A100,INDIRECT("'"&Sheets&"'!"&"R$1:R$300"))) -> 0 | R100: =SUMPRODUCT(SUMIF(INDIRECT("'"&Sheets&"'!"&"$B$1:$B$300"),$A100,INDIRECT("'"&Sheets&"'!"&"S$1:S$300"))) -> 0
A101: 5001 Kuukausipalkat | F101: 0 | G101: 0 | H101: 0 | I101: 0 | J101: 0 | K101: 0 | L101: 0 | M101: 0 | N101: 0 | O101: 0 | P101: 0 | Q101: 0 | R101: 0
A102: 5100 Lisät ja korvaukset | F102: 0 | G102: 0 | H102: 0 | I102: 0 | J102: 0 | K102: 0 | L102: 0 | M102: 0 | N102: 0 | O102: 0 | P102: 0 | Q102: 0 | R102: 0
A103: 5200 Palkat ja palkkiot | F103: 0 | G103: 0 | H103: 0 | I103: 0 | J103: 0 | K103: 0 | L103: 0 | M103: 0 | N103: 0 | O103: 0 | P103: 0 | Q103: 0 | R103: 0
A104: 5201 Tulospalkkiot | F104: 0 | G104: 0 | H104: 0 | I104: 0 | J104: 0 | K104: 0 | L104: 0 | M104: 0 | N104: 0 | O104: 0 | P104: 0 | Q104: 0 | R104: 0
A105: 5202 Pelaajien tulospalkkiot | F105: 0 | G105: 0 | H105: 0 | I105: 0 | J105: 0 | K105: 0 | L105: 0 | M105: 0 | N105: 0 | O105: 0 | P105: 0 | Q105: 0 | R105: 0
A106: 5203 Valmennuspalkkiot | F106: 0 | G106: 0 | H106: 0 | I106: 0 | J106: 0 | K106: 0 | L106: 0 | M106: 0 | N106: 0 | O106: 0 | P106: 0 | Q106: 0 | R106: 0
A107: 5204 Erotuomaripalkkiot | F107: 0 | G107: 0 | H107: 0 | I107: 0 | J107: 0 | K107: 0 | L107: 0 | M107: 0 | N107: 0 | O107: 0 | P107: 0 | Q107: 0 | R107: 0
A108: 5300 Loma-ajan ja sosiaalipalkat | F108: 0 | G108: 0 | H108: 0 | I108: 0 | J108: 0 | K108: 0 | L108: 0 | M108: 0 | N108: 0 | O108: 0 | P108: 0 | Q108: 0 | R108: 0
A109: 5400 Luontoisedut | F109: 0 | G109: 0 | H109: 0 | I109: 0 | J109: 0 | K109: 0 | L109: 0 | M109: 0 | N109: 0 | O109: 0 | P109: 0 | Q109: 0 | R109: 0
A110: 5469 Saadut korvaukset palkoista | F110: 0 | G110: 0 | H110: 0 | I110: 0 | J110: 0 | K110: 0 | L110: 0 | M110: 0 | N110: 0 | O110: 0 | P110: 0 | Q110: 0 | R110: 0
A111: 5470 Saadut palkkatuet | F111: 0 | G111: 0 | H111: 0 | I111: 0 | J111: 0 | K111: 0 | L111: 0 | M111: 0 | N111: 0 | O111: 0 | P111: 0 | Q111: 0 | R111: 0
A112: 5471 Lomapalkka ja lomarahajaksotuksen muutos | F112: 0 | G112: 0 | H112: 0 | I112: 0 | J112: 0 | K112: 0 | L112: 0 | M112: 0 | N112: 0 | O112: 0 | P112: 0 | Q112: 0 | R112: 0
A113: 5990 Luontoisetujen vastatili | F113: 0 | G113: 0 | H113: 0 | I113: 0 | J113: 0 | K113: 0 | L113: 0 | M113: 0 | N113: 0 | O113: 0 | P113: 0 | Q113: 0 | R113: 0
A114: 6000 TyEL-vakuutusmaksut | F114: 0 | G114: 0 | H114: 0 | I114: 0 | J114: 0 | K114: 0 | L114: 0 | M114: 0 | N114: 0 | O114: 0 | P114: 0 | Q114: 0 | R114: 0
A115: 6300 Sosiaaliturvamaksut | F115: 0 | G115: 0 | H115: 0 | I115: 0 | J115: 0 | K115: 0 | L115: 0 | M115: 0 | N115: 0 | O115: 0 | P115: 0 | Q115: 0 | R115: 0
A116: 6400 Työttömyysvakuutusmaksut | F116: 0 | G116: 0 | H116: 0 | I116: 0 | J116: 0 | K116: 0 | L116: 0 | M116: 0 | N116: 0 | O116: 0 | P116: 0 | Q116: 0 | R116: 0
A117: 6402 Tapaturma- ja ryhmähenkivakuutusmaksut | F117: 0 | G117: 0 | H117: 0 | I117: 0 | J117: 0 | K117: 0 | L117: 0 | M117: 0 | N117: 0 | O117: 0 | P117: 0 | Q117: 0 | R117: 0
A118: VARAINHANKINTA | F118: =F119+F128 -> 0 | G118: 0 | H118: 0 | I118: 0 | J118: 0 | K118: 0 | L118: 0 | M118: 0 | N118: 0 | O118: 0 | P118: 0 | Q118: 0 | R118: 0
A119: Tuotot | F119: =SUM(F120:F127) -> 0 | G119: =SUM(G120:G127) -> 0 | H119: 0 | I119: 0 | J119: 0 | K119: 0 | L119: 0 | M119: 0 | N119: 0 | O119: 0 | P119: 0 | Q119: 0 | R119: 0
A120: 9006 Seura- ja fanituotemyynnin tuotot | F120: =SUM(G120:R120) -> 0 | G120: =SUMPRODUCT(SUMIF(INDIRECT("'"&Sheets&"'!"&"$B$1:$B$300"),$A120,INDIRECT("'"&Sheets&"'!"&"H$1:H$300"))) -> 0 | H120: =SUMPRODUCT(SUMIF(INDIRECT("'"&Sheets&"'!"&"$B$1:$B$300"),$A120,INDIRECT("'"&Sheets&"'!"&"I$1:I$300"))) -> 0 | I120: =SUMPRODUCT(SUMIF(INDIRECT("'"&Sheets&"'!"&"$B$1:$B$300"),$A120,INDIRECT("'"&Sheets&"'!"&"J$1:J$300"))) -> 0 | J120: =SUMPRODUCT(SUMIF(INDIRECT("'"&Sheets&"'!"&"$B$1:$B$300"),$A120,INDIRECT("'"&Sheets&"'!"&"K$1:K$300"))) -> 0 | K120: =SUMPRODUCT(SUMIF(INDIRECT("'"&Sheets&"'!"&"$B$1:$B$300"),$A120,INDIRECT("'"&Sheets&"'!"&"L$1:L$300"))) -> 0 | L120: =SUMPRODUCT(SUMIF(INDIRECT("'"&Sheets&"'!"&"$B$1:$B$300"),$A120,INDIRECT("'"&Sheets&"'!"&"M$1:M$300"))) -> 0 | M120: =SUMPRODUCT(SUMIF(INDIRECT("'"&Sheets&"'!"&"$B$1:$B$300"),$A120,INDIRECT("'"&Sheets&"'!"&"N$1:N$300"))) -> 0 | N120: =SUMPRODUCT(SUMIF(INDIRECT("'"&Sheets&"'!"&"$B$1:$B$300"),$A120,INDIRECT("'"&Sheets&"'!"&"O$1:O$300"))) -> 0 | O120: =SUMPRODUCT(SUMIF(INDIRECT("'"&Sheets&"'!"&"$B$1:$B$300"),$A120,INDIRECT("'"&Sheets&"'!"&"P$1:P$300"))) -> 0 | P120: =SUMPRODUCT(SUMIF(INDIRECT("'"&Sheets&"'!"&"$B$1:$B$300"),$A120,INDIRECT("'"&Sheets&"'!"&"Q$1:Q$300"))) -> 0 | Q120: =SUMPRODUCT(SUMIF(INDIRECT("'"&Sheets&"'!"&"$B$1:$B$300"),$A120,INDIRECT("'"&Sheets&"'!"&"R$1:R$300"))) -> 0 | R120: =SUMPRODUCT(SUMIF(INDIRECT("'"&Sheets&"'!"&"$B$1:$B$300"),$A120,INDIRECT("'"&Sheets&"'!"&"S$1:S$300"))) -> 0
A121: 9016 Buffa- ja myyjäistuotot | F121: 0 | G121: 0 | H121: 0 | I121: 0 | J121: 0 | K121: 0 | L121: 0 | M121: 0 | N121: 0 | O121: 0 | P121: 0 | Q121: 0 | R121: 0
A122: 9017 Talkootyötuotot | F122: 0 | G122: 0 | H122: 0 | I122: 0 | J122: 0 | K122: 0 | L122: 0 | M122: 0 | N122: 0 | O122: 0 | P122: 0 | Q122: 0 | R122: 0
A123: 9026 Mainosmyyntituotot | F123: 0 | G123: 0 | H123: 0 | I123: 0 | J123: 0 | K123: 0 | L123: 0 | M123: 0 | N123: 0 | O123: 0 | P123: 0 | Q123: 0 | R123: 0
A124: 9036 Jäsenmaksutuotot | F124: 0 | G124: 0 | H124: 0 | I124: 0 | J124: 0 | K124: 0 | L124: 0 | M124: 0 | N124: 0 | O124: 0 | P124: 0 | Q124: 0 | R124: 0
A125: 9037 Olosuhdemaksutuotot | F125: 0 | G125: 0 | H125: 0 | I125: 0 | J125: 0 | K125: 0 | L125: 0 | M125: 0 | N125: 0 | O125: 0 | P125: 0 | Q125: 0 | R125: 0
A126: 9045 Saadut yhteistyökumppaneiden tukimaksut | F126: 0 | G126: 0 | H126: 0 | I126: 0 | J126: 0 | K126: 0 | L126: 0 | M126: 0 | N126: 0 | O126: 0 | P126: 0 | Q126: 0 | R126: 0
A127: 9046 Muut varainhankinnan tuotot | F127: 0 | G127: 0 | H127: 0 | I127: 0 | J127: 0 | K127: 0 | L127: 0 | M127: 0 | N127: 0 | O127: 0 | P127: 0 | Q127: 0 | R127: 0
A128: Kulut | F128: =SUM(F129:F135) -> 0 | G128: =SUM(G129:G134) -> 0 | H128: 0 | I128: 0 | J128: 0 | K128: 0 | L128: 0 | M128: 0 | N128: 0 | O128: 0 | P128: 0 | Q128: 0 | R128: 0
A129: 9056 Seura- ja fanituotemyynnin kulut | F129: 0 | G129: =SUMPRODUCT(SUMIF(INDIRECT("'"&Sheets&"'!"&"$B$1:$B$300"),$A129,INDIRECT("'"&Sheets&"'!"&"H$1:H$300"))) -> 0 | H129: =SUMPRODUCT(SUMIF(INDIRECT("'"&Sheets&"'!"&"$B$1:$B$300"),$A129,INDIRECT("'"&Sheets&"'!"&"I$1:I$300"))) -> 0 | I129: =SUMPRODUCT(SUMIF(INDIRECT("'"&Sheets&"'!"&"$B$1:$B$300"),$A129,INDIRECT("'"&Sheets&"'!"&"J$1:J$300"))) -> 0 | J129: =SUMPRODUCT(SUMIF(INDIRECT("'"&Sheets&"'!"&"$B$1:$B$300"),$A129,INDIRECT("'"&Sheets&"'!"&"K$1:K$300"))) -> 0 | K129: =SUMPRODUCT(SUMIF(INDIRECT("'"&Sheets&"'!"&"$B$1:$B$300"),$A129,INDIRECT("'"&Sheets&"'!"&"L$1:L$300"))) -> 0 | L129: =SUMPRODUCT(SUMIF(INDIRECT("'"&Sheets&"'!"&"$B$1:$B$300"),$A129,INDIRECT("'"&Sheets&"'!"&"M$1:M$300"))) -> 0 | M129: =SUMPRODUCT(SUMIF(INDIRECT("'"&Sheets&"'!"&"$B$1:$B$300"),$A129,INDIRECT("'"&Sheets&"'!"&"N$1:N$300"))) -> 0 | N129: =SUMPRODUCT(SUMIF(INDIRECT("'"&Sheets&"'!"&"$B$1:$B$300"),$A129,INDIRECT("'"&Sheets&"'!"&"O$1:O$300"))) -> 0 | O129: =SUMPRODUCT(SUMIF(INDIRECT("'"&Sheets&"'!"&"$B$1:$B$300"),$A129,INDIRECT("'"&Sheets&"'!"&"P$1:P$300"))) -> 0 | P129: =SUMPRODUCT(SUMIF(INDIRECT("'"&Sheets&"'!"&"$B$1:$B$300"),$A129,INDIRECT("'"&Sheets&"'!"&"Q$1:Q$300"))) -> 0 | Q129: =SUMPRODUCT(SUMIF(INDIRECT("'"&Sheets&"'!"&"$B$1:$B$300"),$A129,INDIRECT("'"&Sheets&"'!"&"R$1:R$300"))) -> 0 | R129: =SUMPRODUCT(SUMIF(INDIRECT("'"&Sheets&"'!"&"$B$1:$B$300"),$A129,INDIRECT("'"&Sheets&"'!"&"S$1:S$300"))) -> 0
A130: 9057 Buffa- ja myyjäiskulut | F130: 0 | G130: 0 | H130: 0 | I130: 0 | J130: 0 | K130: 0 | L130: 0 | M130: 0 | N130: 0 | O130: 0 | P130: 0 | Q130: 0 | R130: 0
A131: 9058 Talkootyökulut | F131: 0 | G131: 0 | H131: 0 | I131: 0 | J131: 0 | K131: 0 | L131: 0 | M131: 0 | N131: 0 | O131: 0 | P131: 0 | Q131: 0 | R131: 0
A132: 9059 Mainosmyyntikulut | F132: 0 | G132: 0 | H132: 0 | I132: 0 | J132: 0 | K132: 0 | L132: 0 | M132: 0 | N132: 0 | O132: 0 | P132: 0 | Q132: 0 | R132: 0
A133: 9060 Jäsenmaksukulut | F133: 0 | G133: 0 | H133: 0 | I133: 0 | J133: 0 | K133: 0 | L133: 0 | M133: 0 | N133: 0 | O133: 0 | P133: 0 | Q133: 0 | R133: 0
A134: 9086 Muut varainhankinnan kulut | F134: 0 | G134: 0 | H134: 0 | I134: 0 | J134: 0 | K134: 0 | L134: 0 | M134: 0 | N134: 0 | O134: 0 | P134: 0 | Q134: 0 | R134: 0
A135: 9056 Seura- ja fanituotemyynnin kulut | F135: 0 | G135: 0 | H135: 0 | I135: 0 | J135: 0 | K135: 0 | L135: 0 | M135: 0 | N135: 0 | O135: 0 | P135: 0 | Q135: 0 | R135: 0
A136: SIJOITUS- JA RAHOITUSTOIMINTA | F136: =F137+F142 -> 0 | G136: =G137+G142 -> 0 | H136: 0 | I136: 0 | J136: 0 | K136: 0 | L136: 0 | M136: 0 | N136: 0 | O136: 0 | P136: 0 | Q136: 0 | R136: 0
A137: Tuotot | F137: =SUM(F138:F141) -> 0 | G137: =SUM(G138:G141) -> 0 | H137: 0 | I137: 0 | J137: 0 | K137: 0 | L137: 0 | M137: 0 | N137: 0 | O137: 0 | P137: 0 | Q137: 0 | R137: 0
A138: 9090 Osinkotuotot | F138: =SUM(G138:R138) -> 0 | G138: =SUMPRODUCT(SUMIF(INDIRECT("'"&Sheets&"'!"&"$B$1:$B$300"),$A138,INDIRECT("'"&Sheets&"'!"&"H$1:H$300"))) -> 0 | H138: =SUMPRODUCT(SUMIF(INDIRECT("'"&Sheets&"'!"&"$B$1:$B$300"),$A138,INDIRECT("'"&Sheets&"'!"&"I$1:I$300"))) -> 0 | I138: =SUMPRODUCT(SUMIF(INDIRECT("'"&Sheets&"'!"&"$B$1:$B$300"),$A138,INDIRECT("'"&Sheets&"'!"&"J$1:J$300"))) -> 0 | J138: =SUMPRODUCT(SUMIF(INDIRECT("'"&Sheets&"'!"&"$B$1:$B$300"),$A138,INDIRECT("'"&Sheets&"'!"&"K$1:K$300"))) -> 0 | K138: =SUMPRODUCT(SUMIF(INDIRECT("'"&Sheets&"'!"&"$B$1:$B$300"),$A138,INDIRECT("'"&Sheets&"'!"&"L$1:L$300"))) -> 0 | L138: =SUMPRODUCT(SUMIF(INDIRECT("'"&Sheets&"'!"&"$B$1:$B$300"),$A138,INDIRECT("'"&Sheets&"'!"&"M$1:M$300"))) -> 0 | M138: =SUMPRODUCT(SUMIF(INDIRECT("'"&Sheets&"'!"&"$B$1:$B$300"),$A138,INDIRECT("'"&Sheets&"'!"&"N$1:N$300"))) -> 0 | N138: =SUMPRODUCT(SUMIF(INDIRECT("'"&Sheets&"'!"&"$B$1:$B$300"),$A138,INDIRECT("'"&Sheets&"'!"&"O$1:O$300"))) -> 0 | O138: =SUMPRODUCT(SUMIF(INDIRECT("'"&Sheets&"'!"&"$B$1:$B$300"),$A138,INDIRECT("'"&Sheets&"'!"&"P$1:P$300"))) -> 0 | P138: =SUMPRODUCT(SUMIF(INDIRECT("'"&Sheets&"'!"&"$B$1:$B$300"),$A138,INDIRECT("'"&Sheets&"'!"&"Q$1:Q$300"))) -> 0 | Q138: =SUMPRODUCT(SUMIF(INDIRECT("'"&Sheets&"'!"&"$B$1:$B$300"),$A138,INDIRECT("'"&Sheets&"'!"&"R$1:R$300"))) -> 0 | R138: =SUMPRODUCT(SUMIF(INDIRECT("'"&Sheets&"'!"&"$B$1:$B$300"),$A138,INDIRECT("'"&Sheets&"'!"&"S$1:S$300"))) -> 0
A139: 9106 Korkotuotot | F139: 0 | G139: =SUMPRODUCT(SUMIF(INDIRECT("'"&Sheets&"'!"&"$B$1:$B$300"),$A139,INDIRECT("'"&Sheets&"'!"&"H$1:H$300"))) -> 0 | H139: =SUMPRODUCT(SUMIF(INDIRECT("'"&Sheets&"'!"&"$B$1:$B$300"),$A139,INDIRECT("'"&Sheets&"'!"&"I$1:I$300"))) -> 0 | I139: =SUMPRODUCT(SUMIF(INDIRECT("'"&Sheets&"'!"&"$B$1:$B$300"),$A139,INDIRECT("'"&Sheets&"'!"&"J$1:J$300"))) -> 0 | J139: =SUMPRODUCT(SUMIF(INDIRECT("'"&Sheets&"'!"&"$B$1:$B$300"),$A139,INDIRECT("'"&Sheets&"'!"&"K$1:K$300"))) -> 0 | K139: =SUMPRODUCT(SUMIF(INDIRECT("'"&Sheets&"'!"&"$B$1:$B$300"),$A139,INDIRECT("'"&Sheets&"'!"&"L$1:L$300"))) -> 0 | L139: =SUMPRODUCT(SUMIF(INDIRECT("'"&Sheets&"'!"&"$B$1:$B$300"),$A139,INDIRECT("'"&Sheets&"'!"&"M$1:M$300"))) -> 0 | M139: =SUMPRODUCT(SUMIF(INDIRECT("'"&Sheets&"'!"&"$B$1:$B$300"),$A139,INDIRECT("'"&Sheets&"'!"&"N$1:N$300"))) -> 0 | N139: =SUMPRODUCT(SUMIF(INDIRECT("'"&Sheets&"'!"&"$B$1:$B$300"),$A139,INDIRECT("'"&Sheets&"'!"&"O$1:O$300"))) -> 0 | O139: =SUMPRODUCT(SUMIF(INDIRECT("'"&Sheets&"'!"&"$B$1:$B$300"),$A139,INDIRECT("'"&Sheets&"'!"&"P$1:P$300"))) -> 0 | P139: =SUMPRODUCT(SUMIF(INDIRECT("'"&Sheets&"'!"&"$B$1:$B$300"),$A139,INDIRECT("'"&Sheets&"'!"&"Q$1:Q$300"))) -> 0 | Q139: =SUMPRODUCT(SUMIF(INDIRECT("'"&Sheets&"'!"&"$B$1:$B$300"),$A139,INDIRECT("'"&Sheets&"'!"&"R$1:R$300"))) -> 0 | R139: =SUMPRODUCT(SUMIF(INDIRECT("'"&Sheets&"'!"&"$B$1:$B$300"),$A139,INDIRECT("'"&Sheets&"'!"&"S$1:S$300"))) -> 0
A140: 9110 Vuokratuotot | F140: 0 | G140: =SUMPRODUCT(SUMIF(INDIRECT("'"&Sheets&"'!"&"$B$1:$B$300"),$A140,INDIRECT("'"&Sheets&"'!"&"H$1:H$300"))) -> 0 | H140: =SUMPRODUCT(SUMIF(INDIRECT("'"&Sheets&"'!"&"$B$1:$B$300"),$A140,INDIRECT("'"&Sheets&"'!"&"I$1:I$300"))) -> 0 | I140: =SUMPRODUCT(SUMIF(INDIRECT("'"&Sheets&"'!"&"$B$1:$B$300"),$A140,INDIRECT("'"&Sheets&"'!"&"J$1:J$300"))) -> 0 | J140: =SUMPRODUCT(SUMIF(INDIRECT("'"&Sheets&"'!"&"$B$1:$B$300"),$A140,INDIRECT("'"&Sheets&"'!"&"K$1:K$300"))) -> 0 | K140: =SUMPRODUCT(SUMIF(INDIRECT("'"&Sheets&"'!"&"$B$1:$B$300"),$A140,INDIRECT("'"&Sheets&"'!"&"L$1:L$300"))) -> 0 | L140: =SUMPRODUCT(SUMIF(INDIRECT("'"&Sheets&"'!"&"$B$1:$B$300"),$A140,INDIRECT("'"&Sheets&"'!"&"M$1:M$300"))) -> 0 | M140: =SUMPRODUCT(SUMIF(INDIRECT("'"&Sheets&"'!"&"$B$1:$B$300"),$A140,INDIRECT("'"&Sheets&"'!"&"N$1:N$300"))) -> 0 | N140: =SUMPRODUCT(SUMIF(INDIRECT("'"&Sheets&"'!"&"$B$1:$B$300"),$A140,INDIRECT("'"&Sheets&"'!"&"O$1:O$300"))) -> 0 | O140: =SUMPRODUCT(SUMIF(INDIRECT("'"&Sheets&"'!"&"$B$1:$B$300"),$A140,INDIRECT("'"&Sheets&"'!"&"P$1:P$300"))) -> 0 | P140: =SUMPRODUCT(SUMIF(INDIRECT("'"&Sheets&"'!"&"$B$1:$B$300"),$A140,INDIRECT("'"&Sheets&"'!"&"Q$1:Q$300"))) -> 0 | Q140: =SUMPRODUCT(SUMIF(INDIRECT("'"&Sheets&"'!"&"$B$1:$B$300"),$A140,INDIRECT("'"&Sheets&"'!"&"R$1:R$300"))) -> 0 | R140: =SUMPRODUCT(SUMIF(INDIRECT("'"&Sheets&"'!"&"$B$1:$B$300"),$A140,INDIRECT("'"&Sheets&"'!"&"S$1:S$300"))) -> 0
A141: 9160 Muut rahoitustuotot | F141: 0 | G141: =SUMPRODUCT(SUMIF(INDIRECT("'"&Sheets&"'!"&"$B$1:$B$300"),$A141,INDIRECT("'"&Sheets&"'!"&"H$1:H$300"))) -> 0 | H141: =SUMPRODUCT(SUMIF(INDIRECT("'"&Sheets&"'!"&"$B$1:$B$300"),$A141,INDIRECT("'"&Sheets&"'!"&"I$1:I$300"))) -> 0 | I141: =SUMPRODUCT(SUMIF(INDIRECT("'"&Sheets&"'!"&"$B$1:$B$300"),$A141,INDIRECT("'"&Sheets&"'!"&"J$1:J$300"))) -> 0 | J141: =SUMPRODUCT(SUMIF(INDIRECT("'"&Sheets&"'!"&"$B$1:$B$300"),$A141,INDIRECT("'"&Sheets&"'!"&"K$1:K$300"))) -> 0 | K141: =SUMPRODUCT(SUMIF(INDIRECT("'"&Sheets&"'!"&"$B$1:$B$300"),$A141,INDIRECT("'"&Sheets&"'!"&"L$1:L$300"))) -> 0 | L141: =SUMPRODUCT(SUMIF(INDIRECT("'"&Sheets&"'!"&"$B$1:$B$300"),$A141,INDIRECT("'"&Sheets&"'!"&"M$1:M$300"))) -> 0 | M141: =SUMPRODUCT(SUMIF(INDIRECT("'"&Sheets&"'!"&"$B$1:$B$300"),$A141,INDIRECT("'"&Sheets&"'!"&"N$1:N$300"))) -> 0 | N141: =SUMPRODUCT(SUMIF(INDIRECT("'"&Sheets&"'!"&"$B$1:$B$300"),$A141,INDIRECT("'"&Sheets&"'!"&"O$1:O$300"))) -> 0 | O141: =SUMPRODUCT(SUMIF(INDIRECT("'"&Sheets&"'!"&"$B$1:$B$300"),$A141,INDIRECT("'"&Sheets&"'!"&"P$1:P$300"))) -> 0 | P141: =SUMPRODUCT(SUMIF(INDIRECT("'"&Sheets&"'!"&"$B$1:$B$300"),$A141,INDIRECT("'"&Sheets&"'!"&"Q$1:Q$300"))) -> 0 | Q141: =SUMPRODUCT(SUMIF(INDIRECT("'"&Sheets&"'!"&"$B$1:$B$300"),$A141,INDIRECT("'"&Sheets&"'!"&"R$1:R$300"))) -> 0 | R141: =SUMPRODUCT(SUMIF(INDIRECT("'"&Sheets&"'!"&"$B$1:$B$300"),$A141,INDIRECT("'"&Sheets&"'!"&"S$1:S$300"))) -> 0
A142: Kulut | F142: =SUM(F143:F144) -> 0 | G142: =SUM(G143:G144) -> 0 | H142: 0 | I142: 0 | J142: 0 | K142: 0 | L142: 0 | M142: 0 | N142: 0 | O142: 0 | P142: 0 | Q142: 0 | R142: 0
A143: 9440 Korkokulut | F143: 0 | G143: =SUMPRODUCT(SUMIF(INDIRECT("'"&Sheets&"'!"&"$B$1:$B$300"),$A143,INDIRECT("'"&Sheets&"'!"&"H$1:H$300"))) -> 0 | H143: =SUMPRODUCT(SUMIF(INDIRECT("'"&Sheets&"'!"&"$B$1:$B$300"),$A143,INDIRECT("'"&Sheets&"'!"&"I$1:I$300"))) -> 0 | I143: =SUMPRODUCT(SUMIF(INDIRECT("'"&Sheets&"'!"&"$B$1:$B$300"),$A143,INDIRECT("'"&Sheets&"'!"&"J$1:J$300"))) -> 0 | J143: =SUMPRODUCT(SUMIF(INDIRECT("'"&Sheets&"'!"&"$B$1:$B$300"),$A143,INDIRECT("'"&Sheets&"'!"&"K$1:K$300"))) -> 0 | K143: =SUMPRODUCT(SUMIF(INDIRECT("'"&Sheets&"'!"&"$B$1:$B$300"),$A143,INDIRECT("'"&Sheets&"'!"&"L$1:L$300"))) -> 0 | L143: =SUMPRODUCT(SUMIF(INDIRECT("'"&Sheets&"'!"&"$B$1:$B$300"),$A143,INDIRECT("'"&Sheets&"'!"&"M$1:M$300"))) -> 0 | M143: =SUMPRODUCT(SUMIF(INDIRECT("'"&Sheets&"'!"&"$B$1:$B$300"),$A143,INDIRECT("'"&Sheets&"'!"&"N$1:N$300"))) -> 0 | N143: =SUMPRODUCT(SUMIF(INDIRECT("'"&Sheets&"'!"&"$B$1:$B$300"),$A143,INDIRECT("'"&Sheets&"'!"&"O$1:O$300"))) -> 0 | O143: =SUMPRODUCT(SUMIF(INDIRECT("'"&Sheets&"'!"&"$B$1:$B$300"),$A143,INDIRECT("'"&Sheets&"'!"&"P$1:P$300"))) -> 0 | P143: =SUMPRODUCT(SUMIF(INDIRECT("'"&Sheets&"'!"&"$B$1:$B$300"),$A143,INDIRECT("'"&Sheets&"'!"&"Q$1:Q$300"))) -> 0 | Q143: =SUMPRODUCT(SUMIF(INDIRECT("'"&Sheets&"'!"&"$B$1:$B$300"),$A143,INDIRECT("'"&Sheets&"'!"&"R$1:R$300"))) -> 0 | R143: =SUMPRODUCT(SUMIF(INDIRECT("'"&Sheets&"'!"&"$B$1:$B$300"),$A143,INDIRECT("'"&Sheets&"'!"&"S$1:S$300"))) -> 0
A144: 9446 Muut rahoituskulut | F144: 0 | G144: =SUMPRODUCT(SUMIF(INDIRECT("'"&Sheets&"'!"&"$B$1:$B$300"),$A144,INDIRECT("'"&Sheets&"'!"&"H$1:H$300"))) -> 0 | H144: =SUMPRODUCT(SUMIF(INDIRECT("'"&Sheets&"'!"&"$B$1:$B$300"),$A144,INDIRECT("'"&Sheets&"'!"&"I$1:I$300"))) -> 0 | I144: =SUMPRODUCT(SUMIF(INDIRECT("'"&Sheets&"'!"&"$B$1:$B$300"),$A144,INDIRECT("'"&Sheets&"'!"&"J$1:J$300"))) -> 0 | J144: =SUMPRODUCT(SUMIF(INDIRECT("'"&Sheets&"'!"&"$B$1:$B$300"),$A144,INDIRECT("'"&Sheets&"'!"&"K$1:K$300"))) -> 0 | K144: =SUMPRODUCT(SUMIF(INDIRECT("'"&Sheets&"'!"&"$B$1:$B$300"),$A144,INDIRECT("'"&Sheets&"'!"&"L$1:L$300"))) -> 0 | L144: =SUMPRODUCT(SUMIF(INDIRECT("'"&Sheets&"'!"&"$B$1:$B$300"),$A144,INDIRECT("'"&Sheets&"'!"&"M$1:M$300"))) -> 0 | M144: =SUMPRODUCT(SUMIF(INDIRECT("'"&Sheets&"'!"&"$B$1:$B$300"),$A144,INDIRECT("'"&Sheets&"'!"&"N$1:N$300"))) -> 0 | N144: =SUMPRODUCT(SUMIF(INDIRECT("'"&Sheets&"'!"&"$B$1:$B$300"),$A144,INDIRECT("'"&Sheets&"'!"&"O$1:O$300"))) -> 0 | O144: =SUMPRODUCT(SUMIF(INDIRECT("'"&Sheets&"'!"&"$B$1:$B$300"),$A144,INDIRECT("'"&Sheets&"'!"&"P$1:P$300"))) -> 0 | P144: =SUMPRODUCT(SUMIF(INDIRECT("'"&Sheets&"'!"&"$B$1:$B$300"),$A144,INDIRECT("'"&Sheets&"'!"&"Q$1:Q$300"))) -> 0 | Q144: =SUMPRODUCT(SUMIF(INDIRECT("'"&Sheets&"'!"&"$B$1:$B$300"),$A144,INDIRECT("'"&Sheets&"'!"&"R$1:R$300"))) -> 0 | R144: =SUMPRODUCT(SUMIF(INDIRECT("'"&Sheets&"'!"&"$B$1:$B$300"),$A144,INDIRECT("'"&Sheets&"'!"&"S$1:S$300"))) -> 0
A145: YLEISAVUSTUKSET | F145: =SUM(F146:F148) -> 0 | G145: =SUM(G146:G148) -> 0 | H145: 0 | I145: 0 | J145: 0 | K145: 0 | L145: 0 | M145: 0 | N145: 0 | O145: 0 | P145: 0 | Q145: 0 | R145: 0
A146: 9756 Perusavustus | F146: =SUM(G146:R146) -> 0 | G146: =SUMPRODUCT(SUMIF(INDIRECT("'"&Sheets&"'!"&"$B$1:$B$300"),$A146,INDIRECT("'"&Sheets&"'!"&"H$1:H$300"))) -> 0 | H146: =SUMPRODUCT(SUMIF(INDIRECT("'"&Sheets&"'!"&"$B$1:$B$300"),$A146,INDIRECT("'"&Sheets&"'!"&"I$1:I$300"))) -> 0 | I146: =SUMPRODUCT(SUMIF(INDIRECT("'"&Sheets&"'!"&"$B$1:$B$300"),$A146,INDIRECT("'"&Sheets&"'!"&"J$1:J$300"))) -> 0 | J146: =SUMPRODUCT(SUMIF(INDIRECT("'"&Sheets&"'!"&"$B$1:$B$300"),$A146,INDIRECT("'"&Sheets&"'!"&"K$1:K$300"))) -> 0 | K146: =SUMPRODUCT(SUMIF(INDIRECT("'"&Sheets&"'!"&"$B$1:$B$300"),$A146,INDIRECT("'"&Sheets&"'!"&"L$1:L$300"))) -> 0 | L146: =SUMPRODUCT(SUMIF(INDIRECT("'"&Sheets&"'!"&"$B$1:$B$300"),$A146,INDIRECT("'"&Sheets&"'!"&"M$1:M$300"))) -> 0 | M146: =SUMPRODUCT(SUMIF(INDIRECT("'"&Sheets&"'!"&"$B$1:$B$300"),$A146,INDIRECT("'"&Sheets&"'!"&"N$1:N$300"))) -> 0 | N146: =SUMPRODUCT(SUMIF(INDIRECT("'"&Sheets&"'!"&"$B$1:$B$300"),$A146,INDIRECT("'"&Sheets&"'!"&"O$1:O$300"))) -> 0 | O146: =SUMPRODUCT(SUMIF(INDIRECT("'"&Sheets&"'!"&"$B$1:$B$300"),$A146,INDIRECT("'"&Sheets&"'!"&"P$1:P$300"))) -> 0 | P146: =SUMPRODUCT(SUMIF(INDIRECT("'"&Sheets&"'!"&"$B$1:$B$300"),$A146,INDIRECT("'"&Sheets&"'!"&"Q$1:Q$300"))) -> 0 | Q146: =SUMPRODUCT(SUMIF(INDIRECT("'"&Sheets&"'!"&"$B$1:$B$300"),$A146,INDIRECT("'"&Sheets&"'!"&"R$1:R$300"))) -> 0 | R146: =SUMPRODUCT(SUMIF(INDIRECT("'"&Sheets&"'!"&"$B$1:$B$300"),$A146,INDIRECT("'"&Sheets&"'!"&"S$1:S$300"))) -> 0
A147: 9757 Vuokra-avustus | F147: 0 | G147: =SUMPRODUCT(SUMIF(INDIRECT("'"&Sheets&"'!"&"$B$1:$B$300"),$A147,INDIRECT("'"&Sheets&"'!"&"H$1:H$300"))) -> 0 | H147: =SUMPRODUCT(SUMIF(INDIRECT("'"&Sheets&"'!"&"$B$1:$B$300"),$A147,INDIRECT("'"&Sheets&"'!"&"I$1:I$300"))) -> 0 | I147: =SUMPRODUCT(SUMIF(INDIRECT("'"&Sheets&"'!"&"$B$1:$B$300"),$A147,INDIRECT("'"&Sheets&"'!"&"J$1:J$300"))) -> 0 | J147: =SUMPRODUCT(SUMIF(INDIRECT("'"&Sheets&"'!"&"$B$1:$B$300"),$A147,INDIRECT("'"&Sheets&"'!"&"K$1:K$300"))) -> 0 | K147: =SUMPRODUCT(SUMIF(INDIRECT("'"&Sheets&"'!"&"$B$1:$B$300"),$A147,INDIRECT("'"&Sheets&"'!"&"L$1:L$300"))) -> 0 | L147: =SUMPRODUCT(SUMIF(INDIRECT("'"&Sheets&"'!"&"$B$1:$B$300"),$A147,INDIRECT("'"&Sheets&"'!"&"M$1:M$300"))) -> 0 | M147: =SUMPRODUCT(SUMIF(INDIRECT("'"&Sheets&"'!"&"$B$1:$B$300"),$A147,INDIRECT("'"&Sheets&"'!"&"N$1:N$300"))) -> 0 | N147: =SUMPRODUCT(SUMIF(INDIRECT("'"&Sheets&"'!"&"$B$1:$B$300"),$A147,INDIRECT("'"&Sheets&"'!"&"O$1:O$300"))) -> 0 | O147: =SUMPRODUCT(SUMIF(INDIRECT("'"&Sheets&"'!"&"$B$1:$B$300"),$A147,INDIRECT("'"&Sheets&"'!"&"P$1:P$300"))) -> 0 | P147: =SUMPRODUCT(SUMIF(INDIRECT("'"&Sheets&"'!"&"$B$1:$B$300"),$A147,INDIRECT("'"&Sheets&"'!"&"Q$1:Q$300"))) -> 0 | Q147: =SUMPRODUCT(SUMIF(INDIRECT("'"&Sheets&"'!"&"$B$1:$B$300"),$A147,INDIRECT("'"&Sheets&"'!"&"R$1:R$300"))) -> 0 | R147: =SUMPRODUCT(SUMIF(INDIRECT("'"&Sheets&"'!"&"$B$1:$B$300"),$A147,INDIRECT("'"&Sheets&"'!"&"S$1:S$300"))) -> 0
A148: 9758 Koulutusavustus | F148: 0 | G148: =SUMPRODUCT(SUMIF(INDIRECT("'"&Sheets&"'!"&"$B$1:$B$300"),$A148,INDIRECT("'"&Sheets&"'!"&"H$1:H$300"))) -> 0 | H148: =SUMPRODUCT(SUMIF(INDIRECT("'"&Sheets&"'!"&"$B$1:$B$300"),$A148,INDIRECT("'"&Sheets&"'!"&"I$1:I$300"))) -> 0 | I148: =SUMPRODUCT(SUMIF(INDIRECT("'"&Sheets&"'!"&"$B$1:$B$300"),$A148,INDIRECT("'"&Sheets&"'!"&"J$1:J$300"))) -> 0 | J148: =SUMPRODUCT(SUMIF(INDIRECT("'"&Sheets&"'!"&"$B$1:$B$300"),$A148,INDIRECT("'"&Sheets&"'!"&"K$1:K$300"))) -> 0 | K148: =SUMPRODUCT(SUMIF(INDIRECT("'"&Sheets&"'!"&"$B$1:$B$300"),$A148,INDIRECT("'"&Sheets&"'!"&"L$1:L$300"))) -> 0 | L148: =SUMPRODUCT(SUMIF(INDIRECT("'"&Sheets&"'!"&"$B$1:$B$300"),$A148,INDIRECT("'"&Sheets&"'!"&"M$1:M$300"))) -> 0 | M148: =SUMPRODUCT(SUMIF(INDIRECT("'"&Sheets&"'!"&"$B$1:$B$300"),$A148,INDIRECT("'"&Sheets&"'!"&"N$1:N$300"))) -> 0 | N148: =SUMPRODUCT(SUMIF(INDIRECT("'"&Sheets&"'!"&"$B$1:$B$300"),$A148,INDIRECT("'"&Sheets&"'!"&"O$1:O$300"))) -> 0 | O148: =SUMPRODUCT(SUMIF(INDIRECT("'"&Sheets&"'!"&"$B$1:$B$300"),$A148,INDIRECT("'"&Sheets&"'!"&"P$1:P$300"))) -> 0 | P148: =SUMPRODUCT(SUMIF(INDIRECT("'"&Sheets&"'!"&"$B$1:$B$300"),$A148,INDIRECT("'"&Sheets&"'!"&"Q$1:Q$300"))) -> 0 | Q148: =SUMPRODUCT(SUMIF(INDIRECT("'"&Sheets&"'!"&"$B$1:$B$300"),$A148,INDIRECT("'"&Sheets&"'!"&"R$1:R$300"))) -> 0 | R148: =SUMPRODUCT(SUMIF(INDIRECT("'"&Sheets&"'!"&"$B$1:$B$300"),$A148,INDIRECT("'"&Sheets&"'!"&"S$1:S$300"))) -> 0
A150: TULOS | F150: =F3+F118+F136+F145 -> -1310 | G150: -152 | H150: 128 | I150: 472 | J150: 48 | K150: -122 | L150: 348 | M150: -272 | N150: -272 | O150: -272 | P150: -272 | Q150: -272 | R150: -272
A151: TULOS KUMULATIIVINEN | G151: =G150 -> -152 | H151: =G151+H150 -> -24 | I151: =H151+I150 -> 448 | J151: 496 | K151: 374 | L151: 722 | M151: 450 | N151: 178 | O151: -94 | P151: -366 | Q151: -638 | R151: -910
F152: Alkusaldo
E153: Kassa | F153: 300 | G153: =F153+G150 -> 148 | H153: =G153+H150 -> 276 | I153: 748 | J153: 796 | K153: 674 | L153: 1022 | M153: 750 | N153: 478 | O153: 206 | P153: -66 | Q153: -338 | R153: -610

Sheet Pelaajat
A1: Joukkueen kokonaistulostulos nykytiedoilla: | D1: =Budjetti!F150 -> -1310
G2: Yhteensä | H2: =Asetukset!B2 -> 2022-11-01 | I2: =EDATE(H2,1) -> 2022-12-01 | J2: =EDATE(I2,1) -> 2023-01-01 | K2: 2023-02-01 | L2: 2023-03-01 | M2: 2023-04-01 | N2: 2023-05-01 | O2: 2023-06-01 | P2: 2023-07-01 | Q2: 2023-08-01 | R2: 2023-09-01 | S2: 2023-10-01
A3: Pelaajakohtaiset tuotot ja kulut yhteensä | G3: =SUM(G4:G7) -> 936 | H3: =SUM(H4:H7) -> 448 | I3: =SUM(I4:I7) -> 328 | J3: 448 | K3: 448 | L3: 448 | M3: 448 | N3: -272 | O3: -272 | P3: -272 | Q3: -272 | R3: -272 | S3: -272
A4: Pelaajien toimintamaksut | B4: 3000 Saadut toimintamaksut | G4: =SUM(H4:S4) -> 4320 | H4: =H10*H11 -> 720 | I4: =I10*I11 -> 720 | J4: 720 | K4: 720 | L4: 720 | M4: 720 | N4: 0 | O4: 0 | P4: 0 | Q4: 0 | R4: 0 | S4: 0
A5: Joukkueen valmennusmaksu | B5: 4005 Ostetut valmennuspalvelut | G5: =SUM(H5:S5) -> -3264 | H5: =-H10*Asetukset!$B$10 -> -272 | I5: =-I10*Asetukset!$B$10 -> -272 | J5: =-J10*Asetukset!$B$10 -> -272 | K5: =-K10*Asetukset!$B$10 -> -272 | L5: =-L10*Asetukset!$B$10 -> -272 | M5: =-M10*Asetukset!$B$10 -> -272 | N5: =-N10*Asetukset!$B$10 -> -272 | O5: =-O10*Asetukset!$B$10 -> -272 | P5: =-P10*Asetukset!$B$10 -> -272 | Q5: =-Q10*Asetukset!$B$10 -> -272 | R5: =-R10*Asetukset!$B$10 -> -272 | S5: =-S10*Asetukset!$B$10 -> -272
A6: Pelipassit ja vakuutukset | B6: 4000 Lisenssi- ja vakuutusmaksut | G6: =SUM(H6:S6) -> -120 | H6: =-H12 -> 0 | I6: =-I12 -> -120 | J6: 0 | K6: 0 | L6: 0 | M6: 0 | N6: 0 | O6: 0 | P6: 0 | Q6: 0 | R6: 0 | S6: 0
G7: =SUM($B10:$B11) -> 0 | H7: =SUM($B10:$B11) -> 0 | I7: 0 | J7: 0 | K7: 0 | L7: 0 | M7: 0 | N7: 0 | O7: 0 | P7: 0 | Q7: 0 | R7: 0 | S7: 0
A8: É Syötettävät arvot | S8: Ê
C9: Merkintätapa | H9: =H2 -> 2022-11-01 | I9: =I2 -> 2022-12-01 | J9: 2023-01-01 | K9: 2023-02-01 | L9: 2023-03-01 | M9: 2023-04-01 | N9: 2023-05-01 | O9: 2023-06-01 | P9: 2023-07-01 | Q9: 2023-08-01 | R9: 2023-09-01 | S9: 2023-10-01
A10: Pelaajamääräarvio | C10: Kuukauden arvio | H10: 16 | I10: 16 | J10: 16 | K10: 16 | L10: 16 | M10: 16 | N10: 16 | O10: 16 | P10: 16 | Q10: 16 | R10: 16 | S10: 16
A11: Kuukausittainen toimintamaksu | C11: Kuukauden pelaajalta perittävä yksikköhinta | H11: 45 | I11: 45 | J11: 45 | K11: 45 | L11: 45 | M11: 45
A12: Pelipassit ja vakuutukset | C12: Kuukauden ostojen summa euroina | I12: 120

Sheet Harkat
A1: Joukkueen kokonaistulostulos nykytiedoilla: | D1: =Budjetti!F150 -> -1310
G2: Yhteensä | H2: =Asetukset!B2 -> 2022-11-01 | I2: =EDATE(H2,1) -> 2022-12-01 | J2: =EDATE(I2,1) -> 2023-01-01 | K2: 2023-02-01 | L2: 2023-03-01 | M2: 2023-04-01 | N2: 2023-05-01 | O2: 2023-06-01 | P2: 2023-07-01 | Q2: 2023-08-01 | R2: 2023-09-01 | S2: 2023-10-01
A3: Harjoituskustannukset yhteensä | G3: =SUM(G4:G6) -> -2150 | H3: =SUM(H4:H6) -> -400 | I3: =SUM(I4:I6) -> -400 | J3: -400 | K3: -400 | L3: -450 | M3: -100 | N3: 0 | O3: 0 | P3: 0 | Q3: 0 | R3: 0 | S3: 0
A4: Kenttävuorot yhteensä | B4: 4004 Kenttävuokrat | G4: =SUM(H4:S4) -> -2150 | H4: =-SUM(H14:H33) -> -400 | I4: -400 | J4: -400 | K4: -400 | L4: -450 | M4: -100 | N4: 0 | O4: 0 | P4: 0 | Q4: 0 | R4: 0 | S4: 0
A5: Tuntivalmennus yht. | B5: 4005 Ostetut valmennuspalvelut | G5: =SUM(H5:S5) -> 0 | H5: =-SUM(T14:T33) -> 0 | I5: 0 | J5: 0 | K5: 0 | L5: 0 | M5: 0 | N5: 0 | O5: 0 | P5: 0 | Q5: 0 | R5: 0 | S5: 0
A6: OTO-valmennus | B6: 4005 Ostetut valmennuspalvelut | G6: =SUM(H6:S6) -> 0 | H6: =-G9 -> 0 | I6: =-G9 -> 0 | J6: =-G9 -> 0 | K6: =-G9 -> 0 | L6: =-G9 -> 0 | M6: =-G9 -> 0 | N6: =-G9 -> 0 | O6: =-G9 -> 0 | P6: =-G9 -> 0 | Q6: =-G9 -> 0 | R6: =-G9 -> 0 | S6: =-G9 -> 0
A8: É Syötettävät arvot | G8: Ê
A9: OTO-valmennus: | B9: kk-maksu (palkkio+20%)
A13: Harjoitusvuorot: | B13: Osuus | C13: Kesto | D13: Alkaen | E13: Päättyen | F13: Viikonpv | G13: Tuntivalmentajan korvaus | H13: =CONCATENATE("Kenttä/",MONTH(H2)) -> Kenttä/11 | I13: Kenttä/12 | J13: Kenttä/1 | K13: Kenttä/2 | L13: Kenttä/3 | M13: Kenttä/4 | N13: Kenttä/5 | O13: Kenttä/6 | P13: Kenttä/7 | Q13: Kenttä/8 | R13: Kenttä/9 | S13: Kenttä/10 | T13: =CONCATENATE("TV/",MONTH(H2)) -> TV/11 | U13: TV/12 | V13: TV/1 | W13: TV/2 | X13: TV/3 | Y13: TV/4 | Z13: TV/5 | AA13: TV/6 | AB13: TV/7 | AC13: TV/8 | AD13: TV/9 | AE13: TV/10
A14: Myntinsyrjä | C14: 1 | D14: 2022-11-02 | E14: 2023-04-09 | F14: La | H14: =IF($D14<>"",IF(AND($D14<=EOMONTH(H$2,0),$E14>=H$2),SUMPRODUCT(--(WEEKDAY(ROW(INDIRECT(MAX($D14,H$2)&":"&MIN($E14,EOMONTH(H$2,0)))))=MATCH($F14,{"Su";"Ma";"Ti";"Ke";"To";"Pe";"La"},0)))-SUMPRODUCT(--COUNTIF(INDIRECT("Kenttätiedot!"&HLOOKUP($A14,Kenttätiedot!$B$3:$Q$5,3,FALSE)&"6:"&HLOOKUP($A14,Kenttätiedot!$B$3:$Q$5,3,FALSE)&"300"),ROW(INDIRECT(MAX($D14,H$2)&":"&MIN($E14,EOMONTH(H$2,0)))))*(WEEKDAY(ROW(INDIRECT(MAX($D14,H$2)&":"&MIN($E14,EOMONTH(H$2,0)))))=MATCH($F14,{"Su";"Ma";"Ti";"Ke";"To";"Pe";"La"},0))),0)*HLOOKUP($A14,Kenttätiedot!$B$3:$Q$5,2,FALSE)*$B14,0) -> 0 | I14: =IF($D14<>"",IF(AND($D14<=EOMONTH(I$2,0),$E14>=I$2),SUMPRODUCT(--(WEEKDAY(ROW(INDIRECT(MAX($D14,I$2)&":"&MIN($E14,EOMONTH(I$2,0)))))=MATCH($F14,{"Su";"Ma";"Ti";"Ke";"To";"Pe";"La"},0)))-SUMPRODUCT(--COUNTIF(INDIRECT("Kenttätiedot!"&HLOOKUP($A14,Kenttätiedot!$B$3:$Q$5,3,FALSE)&"6:"&HLOOKUP($A14,Kenttätiedot!$B$3:$Q$5,3,FALSE)&"300"),ROW(INDIRECT(MAX($D14,I$2)&":"&MIN($E14,EOMONTH(I$2,0)))))*(WEEKDAY(ROW(INDIRECT(MAX($D14,I$2)&":"&MIN($E14,EOMONTH(I$2,0)))))=MATCH($F14,{"Su";"Ma";"Ti";"Ke";"To";"Pe";"La"},0))),0)*HLOOKUP($A14,Kenttätiedot!$B$3:$Q$5,2,FALSE)*$B14,0) -> 0 | J14: =IF($D14<>"",IF(AND($D14<=EOMONTH(J$2,0),$E14>=J$2),SUMPRODUCT(--(WEEKDAY(ROW(INDIRECT(MAX($D14,J$2)&":"&MIN($E14,EOMONTH(J$2,0)))))=MATCH($F14,{"Su";"Ma";"Ti";"Ke";"To";"Pe";"La"},0)))-SUMPRODUCT(--COUNTIF(INDIRECT("Kenttätiedot!"&HLOOKUP($A14,Kenttätiedot!$B$3:$Q$5,3,FALSE)&"6:"&HLOOKUP($A14,Kenttätiedot!$B$3:$Q$5,3,FALSE)&"300"),ROW(INDIRECT(MAX($D14,J$2)&":"&MIN($E14,EOMONTH(J$2,0)))))*(WEEKDAY(ROW(INDIRECT(MAX($D14,J$2)&":"&MIN($E14,EOMONTH(J$2,0)))))=MATCH($F14,{"Su";"Ma";"Ti";"Ke";"To";"Pe";"La"},0))),0)*HLOOKUP($A14,Kenttätiedot!$B$3:$Q$5,2,FALSE)*$B14,0) -> 0 | K14: =IF($D14<>"",IF(AND($D14<=EOMONTH(K$2,0),$E14>=K$2),SUMPRODUCT(--(WEEKDAY(ROW(INDIRECT(MAX($D14,K$2)&":"&MIN($E14,EOMONTH(K$2,0)))))=MATCH($F14,{"Su";"Ma";"Ti";"Ke";"To";"Pe";"La"},0)))-SUMPRODUCT(--COUNTIF(INDIRECT("Kenttätiedot!"&HLOOKUP($A14,Kenttätiedot!$B$3:$Q$5,3,FALSE)&"6:"&HLOOKUP($A14,Kenttätiedot!$B$3:$Q$5,3,FALSE)&"300"),ROW(INDIRECT(MAX($D14,K$2)&":"&MIN($E14,EOMONTH(K$2,0)))))*(WEEKDAY(ROW(INDIRECT(MAX($D14,K$2)&":"&MIN($E14,EOMONTH(K$2,0)))))=MATCH($F14,{"Su";"Ma";"Ti";"Ke";"To";"Pe";"La"},0))),0)*HLOOKUP($A14,Kenttätiedot!$B$3:$Q$5,2,FALSE)*$B14,0) -> 0 | L14: =IF($D14<>"",IF(AND($D14<=EOMONTH(L$2,0),$E14>=L$2),SUMPRODUCT(--(WEEKDAY(ROW(INDIRECT(MAX($D14,L$2)&":"&MIN($E14,EOMONTH(L$2,0)))))=MATCH($F14,{"Su";"Ma";"Ti";"Ke";"To";"Pe";"La"},0)))-SUMPRODUCT(--COUNTIF(INDIRECT("Kenttätiedot!"&HLOOKUP($A14,Kenttätiedot!$B$3:$Q$5,3,FALSE)&"6:"&HLOOKUP($A14,Kenttätiedot!$B$3:$Q$5,3,FALSE)&"300"),ROW(INDIRECT(MAX($D14,L$2)&":"&MIN($E14,EOMONTH(L$2,0)))))*(WEEKDAY(ROW(INDIRECT(MAX($D14,L$2)&":"&MIN($E14,EOMONTH(L$2,0)))))=MATCH($F14,{"Su";"Ma";"Ti";"Ke";"To";"Pe";"La"},0))),0)*HLOOKUP($A14,Kenttätiedot!$B$3:$Q$5,2,FALSE)*$B14,0) -> 0 | M14: =IF($D14<>"",IF(AND($D14<=EOMONTH(M$2,0),$E14>=M$2),SUMPRODUCT(--(WEEKDAY(ROW(INDIRECT(MAX($D14,M$2)&":"&MIN($E14,EOMONTH(M$2,0)))))=MATCH($F14,{"Su";"Ma";"Ti";"Ke";"To";"Pe";"La"},0)))-SUMPRODUCT(--COUNTIF(INDIRECT("Kenttätiedot!"&HLOOKUP($A14,Kenttätiedot!$B$3:$Q$5,3,FALSE)&"6:"&HLOOKUP($A14,Kenttätiedot!$B$3:$Q$5,3,FALSE)&"300"),ROW(INDIRECT(MAX($D14,M$2)&":"&MIN($E14,EOMONTH(M$2,0)))))*(WEEKDAY(ROW(INDIRECT(MAX($D14,M$2)&":"&MIN($E14,EOMONTH(M$2,0)))))=MATCH($F14,{"Su";"Ma";"Ti";"Ke";"To";"Pe";"La"},0))),0)*HLOOKUP($A14,Kenttätiedot!$B$3:$Q$5,2,FALSE)*$B14,0) -> 0 | N14: =IF($D14<>"",IF(AND($D14<=EOMONTH(N$2,0),$E14>=N$2),SUMPRODUCT(--(WEEKDAY(ROW(INDIRECT(MAX($D14,N$2)&":"&MIN($E14,EOMONTH(N$2,0)))))=MATCH($F14,{"Su";"Ma";"Ti";"Ke";"To";"Pe";"La"},0)))-SUMPRODUCT(--COUNTIF(INDIRECT("Kenttätiedot!"&HLOOKUP($A14,Kenttätiedot!$B$3:$Q$5,3,FALSE)&"6:"&HLOOKUP($A14,Kenttätiedot!$B$3:$Q$5,3,FALSE)&"300"),ROW(INDIRECT(MAX($D14,N$2)&":"&MIN($E14,EOMONTH(N$2,0)))))*(WEEKDAY(ROW(INDIRECT(MAX($D14,N$2)&":"&MIN($E14,EOMONTH(N$2,0)))))=MATCH($F14,{"Su";"Ma";"Ti";"Ke";"To";"Pe";"La"},0))),0)*HLOOKUP($A14,Kenttätiedot!$B$3:$Q$5,2,FALSE)*$B14,0) -> 0 | O14: =IF($D14<>"",IF(AND($D14<=EOMONTH(O$2,0),$E14>=O$2),SUMPRODUCT(--(WEEKDAY(ROW(INDIRECT(MAX($D14,O$2)&":"&MIN($E14,EOMONTH(O$2,0)))))=MATCH($F14,{"Su";"Ma";"Ti";"Ke";"To";"Pe";"La"},0)))-SUMPRODUCT(--COUNTIF(INDIRECT("Kenttätiedot!"&HLOOKUP($A14,Kenttätiedot!$B$3:$Q$5,3,FALSE)&"6:"&HLOOKUP($A14,Kenttätiedot!$B$3:$Q$5,3,FALSE)&"300"),ROW(INDIRECT(MAX($D14,O$2)&":"&MIN($E14,EOMONTH(O$2,0)))))*(WEEKDAY(ROW(INDIRECT(MAX($D14,O$2)&":"&MIN($E14,EOMONTH(O$2,0)))))=MATCH($F14,{"Su";"Ma";"Ti";"Ke";"To";"Pe";"La"},0))),0)*HLOOKUP($A14,Kenttätiedot!$B$3:$Q$5,2,FALSE)*$B14,0) -> 0 | P14: =IF($D14<>"",IF(AND($D14<=EOMONTH(P$2,0),$E14>=P$2),SUMPRODUCT(--(WEEKDAY(ROW(INDIRECT(MAX($D14,P$2)&":"&MIN($E14,EOMONTH(P$2,0)))))=MATCH($F14,{"Su";"Ma";"Ti";"Ke";"To";"Pe";"La"},0)))-SUMPRODUCT(--COUNTIF(INDIRECT("Kenttätiedot!"&HLOOKUP($A14,Kenttätiedot!$B$3:$Q$5,3,FALSE)&"6:"&HLOOKUP($A14,Kenttätiedot!$B$3:$Q$5,3,FALSE)&"300"),ROW(INDIRECT(MAX($D14,P$2)&":"&MIN($E14,EOMONTH(P$2,0)))))*(WEEKDAY(ROW(INDIRECT(MAX($D14,P$2)&":"&MIN($E14,EOMONTH(P$2,0)))))=MATCH($F14,{"Su";"Ma";"Ti";"Ke";"To";"Pe";"La"},0))),0)*HLOOKUP($A14,Kenttätiedot!$B$3:$Q$5,2,FALSE)*$B14,0) -> 0 | Q14: =IF($D14<>"",IF(AND($D14<=EOMONTH(Q$2,0),$E14>=Q$2),SUMPRODUCT(--(WEEKDAY(ROW(INDIRECT(MAX($D14,Q$2)&":"&MIN($E14,EOMONTH(Q$2,0)))))=MATCH($F14,{"Su";"Ma";"Ti";"Ke";"To";"Pe";"La"},0)))-SUMPRODUCT(--COUNTIF(INDIRECT("Kenttätiedot!"&HLOOKUP($A14,Kenttätiedot!$B$3:$Q$5,3,FALSE)&"6:"&HLOOKUP($A14,Kenttätiedot!$B$3:$Q$5,3,FALSE)&"300"),ROW(INDIRECT(MAX($D14,Q$2)&":"&MIN($E14,EOMONTH(Q$2,0)))))*(WEEKDAY(ROW(INDIRECT(MAX($D14,Q$2)&":"&MIN($E14,EOMONTH(Q$2,0)))))=MATCH($F14,{"Su";"Ma";"Ti";"Ke";"To";"Pe";"La"},0))),0)*HLOOKUP($A14,Kenttätiedot!$B$3:$Q$5,2,FALSE)*$B14,0) -> 0 | R14: =IF($D14<>"",IF(AND($D14<=EOMONTH(R$2,0),$E14>=R$2),SUMPRODUCT(--(WEEKDAY(ROW(INDIRECT(MAX($D14,R$2)&":"&MIN($E14,EOMONTH(R$2,0)))))=MATCH($F14,{"Su";"Ma";"Ti";"Ke";"To";"Pe";"La"},0)))-SUMPRODUCT(--COUNTIF(INDIRECT("Kenttätiedot!"&HLOOKUP($A14,Kenttätiedot!$B$3:$Q$5,3,FALSE)&"6:"&HLOOKUP($A14,Kenttätiedot!$B$3:$Q$5,3,FALSE)&"300"),ROW(INDIRECT(MAX($D14,R$2)&":"&MIN($E14,EOMONTH(R$2,0)))))*(WEEKDAY(ROW(INDIRECT(MAX($D14,R$2)&":"&MIN($E14,EOMONTH(R$2,0)))))=MATCH($F14,{"Su";"Ma";"Ti";"Ke";"To";"Pe";"La"},0))),0)*HLOOKUP($A14,Kenttätiedot!$B$3:$Q$5,2,FALSE)*$B14,0) -> 0 | S14: =IF($D14<>"",IF(AND($D14<=EOMONTH(S$2,0),$E14>=S$2),SUMPRODUCT(--(WEEKDAY(ROW(INDIRECT(MAX($D14,S$2)&":"&MIN($E14,EOMONTH(S$2,0)))))=MATCH($F14,{"Su";"Ma";"Ti";"Ke";"To";"Pe";"La"},0)))-SUMPRODUCT(--COUNTIF(INDIRECT("Kenttätiedot!"&HLOOKUP($A14,Kenttätiedot!$B$3:$Q$5,3,FALSE)&"6:"&HLOOKUP($A14,Kenttätiedot!$B$3:$Q$5,3,FALSE)&"300"),ROW(INDIRECT(MAX($D14,S$2)&":"&MIN($E14,EOMONTH(S$2,0)))))*(WEEKDAY(ROW(INDIRECT(MAX($D14,S$2)&":"&MIN($E14,EOMONTH(S$2,0)))))=MATCH($F14,{"Su";"Ma";"Ti";"Ke";"To";"Pe";"La"},0))),0)*HLOOKUP($A14,Kenttätiedot!$B$3:$Q$5,2,FALSE)*$B14,0) -> 0 | T14: =IF($D14<>"",IF(AND($D14<=EOMONTH(H$2,0),$E14>=H$2),SUMPRODUCT(--(WEEKDAY(ROW(INDIRECT(MAX($D14,H$2)&":"&MIN($E14,EOMONTH(H$2,0)))))=MATCH($F14,{"Su";"Ma";"Ti";"Ke";"To";"Pe";"La"},0)))-SUMPRODUCT(--COUNTIF(INDIRECT("Kenttätiedot!"&HLOOKUP($A14,Kenttätiedot!$B$3:$Q$5,3,FALSE)&"6:"&HLOOKUP($A14,Kenttätiedot!$B$3:$Q$5,3,FALSE)&"300"),ROW(INDIRECT(MAX($D14,H$2)&":"&MIN($E14,EOMONTH(H$2,0)))))*(WEEKDAY(ROW(INDIRECT(MAX($D14,H$2)&":"&MIN($E14,EOMONTH(H$2,0)))))=MATCH($F14,{"Su";"Ma";"Ti";"Ke";"To";"Pe";"La"},0))),0)*$G14,0) -> 0 | U14: =IF($D14<>"",IF(AND($D14<=EOMONTH(I$2,0),$E14>=I$2),SUMPRODUCT(--(WEEKDAY(ROW(INDIRECT(MAX($D14,I$2)&":"&MIN($E14,EOMONTH(I$2,0)))))=MATCH($F14,{"Su";"Ma";"Ti";"Ke";"To";"Pe";"La"},0)))-SUMPRODUCT(--COUNTIF(INDIRECT("Kenttätiedot!"&HLOOKUP($A14,Kenttätiedot!$B$3:$Q$5,3,FALSE)&"6:"&HLOOKUP($A14,Kenttätiedot!$B$3:$Q$5,3,FALSE)&"300"),ROW(INDIRECT(MAX($D14,I$2)&":"&MIN($E14,EOMONTH(I$2,0)))))*(WEEKDAY(ROW(INDIRECT(MAX($D14,I$2)&":"&MIN($E14,EOMONTH(I$2,0)))))=MATCH($F14,{"Su";"Ma";"Ti";"Ke";"To";"Pe";"La"},0))),0)*$G14,0) -> 0 | V14: =IF($D14<>"",IF(AND($D14<=EOMONTH(J$2,0),$E14>=J$2),SUMPRODUCT(--(WEEKDAY(ROW(INDIRECT(MAX($D14,J$2)&":"&MIN($E14,EOMONTH(J$2,0)))))=MATCH($F14,{"Su";"Ma";"Ti";"Ke";"To";"Pe";"La"},0)))-SUMPRODUCT(--COUNTIF(INDIRECT("Kenttätiedot!"&HLOOKUP($A14,Kenttätiedot!$B$3:$Q$5,3,FALSE)&"6:"&HLOOKUP($A14,Kenttätiedot!$B$3:$Q$5,3,FALSE)&"300"),ROW(INDIRECT(MAX($D14,J$2)&":"&MIN($E14,EOMONTH(J$2,0)))))*(WEEKDAY(ROW(INDIRECT(MAX($D14,J$2)&":"&MIN($E14,EOMONTH(J$2,0)))))=MATCH($F14,{"Su";"Ma";"Ti";"Ke";"To";"Pe";"La"},0))),0)*$G14,0) -> 0 | W14: =IF($D14<>"",IF(AND($D14<=EOMONTH(K$2,0),$E14>=K$2),SUMPRODUCT(--(WEEKDAY(ROW(INDIRECT(MAX($D14,K$2)&":"&MIN($E14,EOMONTH(K$2,0)))))=MATCH($F14,{"Su";"Ma";"Ti";"Ke";"To";"Pe";"La"},0)))-SUMPRODUCT(--COUNTIF(INDIRECT("Kenttätiedot!"&HLOOKUP($A14,Kenttätiedot!$B$3:$Q$5,3,FALSE)&"6:"&HLOOKUP($A14,Kenttätiedot!$B$3:$Q$5,3,FALSE)&"300"),ROW(INDIRECT(MAX($D14,K$2)&":"&MIN($E14,EOMONTH(K$2,0)))))*(WEEKDAY(ROW(INDIRECT(MAX($D14,K$2)&":"&MIN($E14,EOMONTH(K$2,0)))))=MATCH($F14,{"Su";"Ma";"Ti";"Ke";"To";"Pe";"La"},0))),0)*$G14,0) -> 0 | X14: =IF($D14<>"",IF(AND($D14<=EOMONTH(L$2,0),$E14>=L$2),SUMPRODUCT(--(WEEKDAY(ROW(INDIRECT(MAX($D14,L$2)&":"&MIN($E14,EOMONTH(L$2,0)))))=MATCH($F14,{"Su";"Ma";"Ti";"Ke";"To";"Pe";"La"},0)))-SUMPRODUCT(--COUNTIF(INDIRECT("Kenttätiedot!"&HLOOKUP($A14,Kenttätiedot!$B$3:$Q$5,3,FALSE)&"6:"&HLOOKUP($A14,Kenttätiedot!$B$3:$Q$5,3,FALSE)&"300"),ROW(INDIRECT(MAX($D14,L$2)&":"&MIN($E14,EOMONTH(L$2,0)))))*(WEEKDAY(ROW(INDIRECT(MAX($D14,L$2)&":"&MIN($E14,EOMONTH(L$2,0)))))=MATCH($F14,{"Su";"Ma";"Ti";"Ke";"To";"Pe";"La"},0))),0)*$G14,0) -> 0 | Y14: =IF($D14<>"",IF(AND($D14<=EOMONTH(M$2,0),$E14>=M$2),SUMPRODUCT(--(WEEKDAY(ROW(INDIRECT(MAX($D14,M$2)&":"&MIN($E14,EOMONTH(M$2,0)))))=MATCH($F14,{"Su";"Ma";"Ti";"Ke";"To";"Pe";"La"},0)))-SUMPRODUCT(--COUNTIF(INDIRECT("Kenttätiedot!"&HLOOKUP($A14,Kenttätiedot!$B$3:$Q$5,3,FALSE)&"6:"&HLOOKUP($A14,Kenttätiedot!$B$3:$Q$5,3,FALSE)&"300"),ROW(INDIRECT(MAX($D14,M$2)&":"&MIN($E14,EOMONTH(M$2,0)))))*(WEEKDAY(ROW(INDIRECT(MAX($D14,M$2)&":"&MIN($E14,EOMONTH(M$2,0)))))=MATCH($F14,{"Su";"Ma";"Ti";"Ke";"To";"Pe";"La"},0))),0)*$G14,0) -> 0 | Z14: =IF($D14<>"",IF(AND($D14<=EOMONTH(N$2,0),$E14>=N$2),SUMPRODUCT(--(WEEKDAY(ROW(INDIRECT(MAX($D14,N$2)&":"&MIN($E14,EOMONTH(N$2,0)))))=MATCH($F14,{"Su";"Ma";"Ti";"Ke";"To";"Pe";"La"},0)))-SUMPRODUCT(--COUNTIF(INDIRECT("Kenttätiedot!"&HLOOKUP($A14,Kenttätiedot!$B$3:$Q$5,3,FALSE)&"6:"&HLOOKUP($A14,Kenttätiedot!$B$3:$Q$5,3,FALSE)&"300"),ROW(INDIRECT(MAX($D14,N$2)&":"&MIN($E14,EOMONTH(N$2,0)))))*(WEEKDAY(ROW(INDIRECT(MAX($D14,N$2)&":"&MIN($E14,EOMONTH(N$2,0)))))=MATCH($F14,{"Su";"Ma";"Ti";"Ke";"To";"Pe";"La"},0))),0)*$G14,0) -> 0 | AA14: =IF($D14<>"",IF(AND($D14<=EOMONTH(O$2,0),$E14>=O$2),SUMPRODUCT(--(WEEKDAY(ROW(INDIRECT(MAX($D14,O$2)&":"&MIN($E14,EOMONTH(O$2,0)))))=MATCH($F14,{"Su";"Ma";"Ti";"Ke";"To";"Pe";"La"},0)))-SUMPRODUCT(--COUNTIF(INDIRECT("Kenttätiedot!"&HLOOKUP($A14,Kenttätiedot!$B$3:$Q$5,3,FALSE)&"6:"&HLOOKUP($A14,Kenttätiedot!$B$3:$Q$5,3,FALSE)&"300"),ROW(INDIRECT(MAX($D14,O$2)&":"&MIN($E14,EOMONTH(O$2,0)))))*(WEEKDAY(ROW(INDIRECT(MAX($D14,O$2)&":"&MIN($E14,EOMONTH(O$2,0)))))=MATCH($F14,{"Su";"Ma";"Ti";"Ke";"To";"Pe";"La"},0))),0)*$G14,0) -> 0 | AB14: =IF($D14<>"",IF(AND($D14<=EOMONTH(P$2,0),$E14>=P$2),SUMPRODUCT(--(WEEKDAY(ROW(INDIRECT(MAX($D14,P$2)&":"&MIN($E14,EOMONTH(P$2,0)))))=MATCH($F14,{"Su";"Ma";"Ti";"Ke";"To";"Pe";"La"},0)))-SUMPRODUCT(--COUNTIF(INDIRECT("Kenttätiedot!"&HLOOKUP($A14,Kenttätiedot!$B$3:$Q$5,3,FALSE)&"6:"&HLOOKUP($A14,Kenttätiedot!$B$3:$Q$5,3,FALSE)&"300"),ROW(INDIRECT(MAX($D14,P$2)&":"&MIN($E14,EOMONTH(P$2,0)))))*(WEEKDAY(ROW(INDIRECT(MAX($D14,P$2)&":"&MIN($E14,EOMONTH(P$2,0)))))=MATCH($F14,{"Su";"Ma";"Ti";"Ke";"To";"Pe";"La"},0))),0)*$G14,0) -> 0 | AC14: =IF($D14<>"",IF(AND($D14<=EOMONTH(Q$2,0),$E14>=Q$2),SUMPRODUCT(--(WEEKDAY(ROW(INDIRECT(MAX($D14,Q$2)&":"&MIN($E14,EOMONTH(Q$2,0)))))=MATCH($F14,{"Su";"Ma";"Ti";"Ke";"To";"Pe";"La"},0)))-SUMPRODUCT(--COUNTIF(INDIRECT("Kenttätiedot!"&HLOOKUP($A14,Kenttätiedot!$B$3:$Q$5,3,FALSE)&"6:"&HLOOKUP($A14,Kenttätiedot!$B$3:$Q$5,3,FALSE)&"300"),ROW(INDIRECT(MAX($D14,Q$2)&":"&MIN($E14,EOMONTH(Q$2,0)))))*(WEEKDAY(ROW(INDIRECT(MAX($D14,Q$2)&":"&MIN($E14,EOMONTH(Q$2,0)))))=MATCH($F14,{"Su";"Ma";"Ti";"Ke";"To";"Pe";"La"},0))),0)*$G14,0) -> 0 | AD14: =IF($D14<>"",IF(AND($D14<=EOMONTH(R$2,0),$E14>=R$2),SUMPRODUCT(--(WEEKDAY(ROW(INDIRECT(MAX($D14,R$2)&":"&MIN($E14,EOMONTH(R$2,0)))))=MATCH($F14,{"Su";"Ma";"Ti";"Ke";"To";"Pe";"La"},0)))-SUMPRODUCT(--COUNTIF(INDIRECT("Kenttätiedot!"&HLOOKUP($A14,Kenttätiedot!$B$3:$Q$5,3,FALSE)&"6:"&HLOOKUP($A14,Kenttätiedot!$B$3:$Q$5,3,FALSE)&"300"),ROW(INDIRECT(MAX($D14,R$2)&":"&MIN($E14,EOMONTH(R$2,0)))))*(WEEKDAY(ROW(INDIRECT(MAX($D14,R$2)&":"&MIN($E14,EOMONTH(R$2,0)))))=MATCH($F14,{"Su";"Ma";"Ti";"Ke";"To";"Pe";"La"},0))),0)*$G14,0) -> 0 | AE14: =IF($D14<>"",IF(AND($D14<=EOMONTH(S$2,0),$E14>=S$2),SUMPRODUCT(--(WEEKDAY(ROW(INDIRECT(MAX($D14,S$2)&":"&MIN($E14,EOMONTH(S$2,0)))))=MATCH($F14,{"Su";"Ma";"Ti";"Ke";"To";"Pe";"La"},0)))-SUMPRODUCT(--COUNTIF(INDIRECT("Kenttätiedot!"&HLOOKUP($A14,Kenttätiedot!$B$3:$Q$5,3,FALSE)&"6:"&HLOOKUP($A14,Kenttätiedot!$B$3:$Q$5,3,FALSE)&"300"),ROW(INDIRECT(MAX($D14,S$2)&":"&MIN($E14,EOMONTH(S$2,0)))))*(WEEKDAY(ROW(INDIRECT(MAX($D14,S$2)&":"&MIN($E14,EOMONTH(S$2,0)))))=MATCH($F14,{"Su";"Ma";"Ti";"Ke";"To";"Pe";"La"},0))),0)*$G14,0) -> 0
A15: Laaksolahden halli | B15: 0.25 | C15: 1 | D15: 2022-11-02 | E15: 2023-04-09 | F15: To | H15: =IF($D15<>"",IF(AND($D15<=EOMONTH(H$2,0),$E15>=H$2),SUMPRODUCT(--(WEEKDAY(ROW(INDIRECT(MAX($D15,H$2)&":"&MIN($E15,EOMONTH(H$2,0)))))=MATCH($F15,{"Su";"Ma";"Ti";"Ke";"To";"Pe";"La"},0)))-SUMPRODUCT(--COUNTIF(INDIRECT("Kenttätiedot!"&HLOOKUP($A15,Kenttätiedot!$B$3:$Q$5,3,FALSE)&"6:"&HLOOKUP($A15,Kenttätiedot!$B$3:$Q$5,3,FALSE)&"300"),ROW(INDIRECT(MAX($D15,H$2)&":"&MIN($E15,EOMONTH(H$2,0)))))*(WEEKDAY(ROW(INDIRECT(MAX($D15,H$2)&":"&MIN($E15,EOMONTH(H$2,0)))))=MATCH($F15,{"Su";"Ma";"Ti";"Ke";"To";"Pe";"La"},0))),0)*HLOOKUP($A15,Kenttätiedot!$B$3:$Q$5,2,FALSE)*$B15,0) -> 200 | I15: =IF($D15<>"",IF(AND($D15<=EOMONTH(I$2,0),$E15>=I$2),SUMPRODUCT(--(WEEKDAY(ROW(INDIRECT(MAX($D15,I$2)&":"&MIN($E15,EOMONTH(I$2,0)))))=MATCH($F15,{"Su";"Ma";"Ti";"Ke";"To";"Pe";"La"},0)))-SUMPRODUCT(--COUNTIF(INDIRECT("Kenttätiedot!"&HLOOKUP($A15,Kenttätiedot!$B$3:$Q$5,3,FALSE)&"6:"&HLOOKUP($A15,Kenttätiedot!$B$3:$Q$5,3,FALSE)&"300"),ROW(INDIRECT(MAX($D15,I$2)&":"&MIN($E15,EOMONTH(I$2,0)))))*(WEEKDAY(ROW(INDIRECT(MAX($D15,I$2)&":"&MIN($E15,EOMONTH(I$2,0)))))=MATCH($F15,{"Su";"Ma";"Ti";"Ke";"To";"Pe";"La"},0))),0)*HLOOKUP($A15,Kenttätiedot!$B$3:$Q$5,2,FALSE)*$B15,0) -> 250 | J15: =IF($D15<>"",IF(AND($D15<=EOMONTH(J$2,0),$E15>=J$2),SUMPRODUCT(--(WEEKDAY(ROW(INDIRECT(MAX($D15,J$2)&":"&MIN($E15,EOMONTH(J$2,0)))))=MATCH($F15,{"Su";"Ma";"Ti";"Ke";"To";"Pe";"La"},0)))-SUMPRODUCT(--COUNTIF(INDIRECT("Kenttätiedot!"&HLOOKUP($A15,Kenttätiedot!$B$3:$Q$5,3,FALSE)&"6:"&HLOOKUP($A15,Kenttätiedot!$B$3:$Q$5,3,FALSE)&"300"),ROW(INDIRECT(MAX($D15,J$2)&":"&MIN($E15,EOMONTH(J$2,0)))))*(WEEKDAY(ROW(INDIRECT(MAX($D15,J$2)&":"&MIN($E15,EOMONTH(J$2,0)))))=MATCH($F15,{"Su";"Ma";"Ti";"Ke";"To";"Pe";"La"},0))),0)*HLOOKUP($A15,Kenttätiedot!$B$3:$Q$5,2,FALSE)*$B15,0) -> 200 | K15: =IF($D15<>"",IF(AND($D15<=EOMONTH(K$2,0),$E15>=K$2),SUMPRODUCT(--(WEEKDAY(ROW(INDIRECT(MAX($D15,K$2)&":"&MIN($E15,EOMONTH(K$2,0)))))=MATCH($F15,{"Su";"Ma";"Ti";"Ke";"To";"Pe";"La"},0)))-SUMPRODUCT(--COUNTIF(INDIRECT("Kenttätiedot!"&HLOOKUP($A15,Kenttätiedot!$B$3:$Q$5,3,FALSE)&"6:"&HLOOKUP($A15,Kenttätiedot!$B$3:$Q$5,3,FALSE)&"300"),ROW(INDIRECT(MAX($D15,K$2)&":"&MIN($E15,EOMONTH(K$2,0)))))*(WEEKDAY(ROW(INDIRECT(MAX($D15,K$2)&":"&MIN($E15,EOMONTH(K$2,0)))))=MATCH($F15,{"Su";"Ma";"Ti";"Ke";"To";"Pe";"La"},0))),0)*HLOOKUP($A15,Kenttätiedot!$B$3:$Q$5,2,FALSE)*$B15,0) -> 200 | L15: =IF($D15<>"",IF(AND($D15<=EOMONTH(L$2,0),$E15>=L$2),SUMPRODUCT(--(WEEKDAY(ROW(INDIRECT(MAX($D15,L$2)&":"&MIN($E15,EOMONTH(L$2,0)))))=MATCH($F15,{"Su";"Ma";"Ti";"Ke";"To";"Pe";"La"},0)))-SUMPRODUCT(--COUNTIF(INDIRECT("Kenttätiedot!"&HLOOKUP($A15,Kenttätiedot!$B$3:$Q$5,3,FALSE)&"6:"&HLOOKUP($A15,Kenttätiedot!$B$3:$Q$5,3,FALSE)&"300"),ROW(INDIRECT(MAX($D15,L$2)&":"&MIN($E15,EOMONTH(L$2,0)))))*(WEEKDAY(ROW(INDIRECT(MAX($D15,L$2)&":"&MIN($E15,EOMONTH(L$2,0)))))=MATCH($F15,{"Su";"Ma";"Ti";"Ke";"To";"Pe";"La"},0))),0)*HLOOKUP($A15,Kenttätiedot!$B$3:$Q$5,2,FALSE)*$B15,0) -> 250 | M15: =IF($D15<>"",IF(AND($D15<=EOMONTH(M$2,0),$E15>=M$2),SUMPRODUCT(--(WEEKDAY(ROW(INDIRECT(MAX($D15,M$2)&":"&MIN($E15,EOMONTH(M$2,0)))))=MATCH($F15,{"Su";"Ma";"Ti";"Ke";"To";"Pe";"La"},0)))-SUMPRODUCT(--COUNTIF(INDIRECT("Kenttätiedot!"&HLOOKUP($A15,Kenttätiedot!$B$3:$Q$5,3,FALSE)&"6:"&HLOOKUP($A15,Kenttätiedot!$B$3:$Q$5,3,FALSE)&"300"),ROW(INDIRECT(MAX($D15,M$2)&":"&MIN($E15,EOMONTH(M$2,0)))))*(WEEKDAY(ROW(INDIRECT(MAX($D15,M$2)&":"&MIN($E15,EOMONTH(M$2,0)))))=MATCH($F15,{"Su";"Ma";"Ti";"Ke";"To";"Pe";"La"},0))),0)*HLOOKUP($A15,Kenttätiedot!$B$3:$Q$5,2,FALSE)*$B15,0) -> 50 | N15: =IF($D15<>"",IF(AND($D15<=EOMONTH(N$2,0),$E15>=N$2),SUMPRODUCT(--(WEEKDAY(ROW(INDIRECT(MAX($D15,N$2)&":"&MIN($E15,EOMONTH(N$2,0)))))=MATCH($F15,{"Su";"Ma";"Ti";"Ke";"To";"Pe";"La"},0)))-SUMPRODUCT(--COUNTIF(INDIRECT("Kenttätiedot!"&HLOOKUP($A15,Kenttätiedot!$B$3:$Q$5,3,FALSE)&"6:"&HLOOKUP($A15,Kenttätiedot!$B$3:$Q$5,3,FALSE)&"300"),ROW(INDIRECT(MAX($D15,N$2)&":"&MIN($E15,EOMONTH(N$2,0)))))*(WEEKDAY(ROW(INDIRECT(MAX($D15,N$2)&":"&MIN($E15,EOMONTH(N$2,0)))))=MATCH($F15,{"Su";"Ma";"Ti";"Ke";"To";"Pe";"La"},0))),0)*HLOOKUP($A15,Kenttätiedot!$B$3:$Q$5,2,FALSE)*$B15,0) -> 0 | O15: =IF($D15<>"",IF(AND($D15<=EOMONTH(O$2,0),$E15>=O$2),SUMPRODUCT(--(WEEKDAY(ROW(INDIRECT(MAX($D15,O$2)&":"&MIN($E15,EOMONTH(O$2,0)))))=MATCH($F15,{"Su";"Ma";"Ti";"Ke";"To";"Pe";"La"},0)))-SUMPRODUCT(--COUNTIF(INDIRECT("Kenttätiedot!"&HLOOKUP($A15,Kenttätiedot!$B$3:$Q$5,3,FALSE)&"6:"&HLOOKUP($A15,Kenttätiedot!$B$3:$Q$5,3,FALSE)&"300"),ROW(INDIRECT(MAX($D15,O$2)&":"&MIN($E15,EOMONTH(O$2,0)))))*(WEEKDAY(ROW(INDIRECT(MAX($D15,O$2)&":"&MIN($E15,EOMONTH(O$2,0)))))=MATCH($F15,{"Su";"Ma";"Ti";"Ke";"To";"Pe";"La"},0))),0)*HLOOKUP($A15,Kenttätiedot!$B$3:$Q$5,2,FALSE)*$B15,0) -> 0 | P15: =IF($D15<>"",IF(AND($D15<=EOMONTH(P$2,0),$E15>=P$2),SUMPRODUCT(--(WEEKDAY(ROW(INDIRECT(MAX($D15,P$2)&":"&MIN($E15,EOMONTH(P$2,0)))))=MATCH($F15,{"Su";"Ma";"Ti";"Ke";"To";"Pe";"La"},0)))-SUMPRODUCT(--COUNTIF(INDIRECT("Kenttätiedot!"&HLOOKUP($A15,Kenttätiedot!$B$3:$Q$5,3,FALSE)&"6:"&HLOOKUP($A15,Kenttätiedot!$B$3:$Q$5,3,FALSE)&"300"),ROW(INDIRECT(MAX($D15,P$2)&":"&MIN($E15,EOMONTH(P$2,0)))))*(WEEKDAY(ROW(INDIRECT(MAX($D15,P$2)&":"&MIN($E15,EOMONTH(P$2,0)))))=MATCH($F15,{"Su";"Ma";"Ti";"Ke";"To";"Pe";"La"},0))),0)*HLOOKUP($A15,Kenttätiedot!$B$3:$Q$5,2,FALSE)*$B15,0) -> 0 | Q15: =IF($D15<>"",IF(AND($D15<=EOMONTH(Q$2,0),$E15>=Q$2),SUMPRODUCT(--(WEEKDAY(ROW(INDIRECT(MAX($D15,Q$2)&":"&MIN($E15,EOMONTH(Q$2,0)))))=MATCH($F15,{"Su";"Ma";"Ti";"Ke";"To";"Pe";"La"},0)))-SUMPRODUCT(--COUNTIF(INDIRECT("Kenttätiedot!"&HLOOKUP($A15,Kenttätiedot!$B$3:$Q$5,3,FALSE)&"6:"&HLOOKUP($A15,Kenttätiedot!$B$3:$Q$5,3,FALSE)&"300"),ROW(INDIRECT(MAX($D15,Q$2)&":"&MIN($E15,EOMONTH(Q$2,0)))))*(WEEKDAY(ROW(INDIRECT(MAX($D15,Q$2)&":"&MIN($E15,EOMONTH(Q$2,0)))))=MATCH($F15,{"Su";"Ma";"Ti";"Ke";"To";"Pe";"La"},0))),0)*HLOOKUP($A15,Kenttätiedot!$B$3:$Q$5,2,FALSE)*$B15,0) -> 0 | R15: =IF($D15<>"",IF(AND($D15<=EOMONTH(R$2,0),$E15>=R$2),SUMPRODUCT(--(WEEKDAY(ROW(INDIRECT(MAX($D15,R$2)&":"&MIN($E15,EOMONTH(R$2,0)))))=MATCH($F15,{"Su";"Ma";"Ti";"Ke";"To";"Pe";"La"},0)))-SUMPRODUCT(--COUNTIF(INDIRECT("Kenttätiedot!"&HLOOKUP($A15,Kenttätiedot!$B$3:$Q$5,3,FALSE)&"6:"&HLOOKUP($A15,Kenttätiedot!$B$3:$Q$5,3,FALSE)&"300"),ROW(INDIRECT(MAX($D15,R$2)&":"&MIN($E15,EOMONTH(R$2,0)))))*(WEEKDAY(ROW(INDIRECT(MAX($D15,R$2)&":"&MIN($E15,EOMONTH(R$2,0)))))=MATCH($F15,{"Su";"Ma";"Ti";"Ke";"To";"Pe";"La"},0))),0)*HLOOKUP($A15,Kenttätiedot!$B$3:$Q$5,2,FALSE)*$B15,0) -> 0 | S15: =IF($D15<>"",IF(AND($D15<=EOMONTH(S$2,0),$E15>=S$2),SUMPRODUCT(--(WEEKDAY(ROW(INDIRECT(MAX($D15,S$2)&":"&MIN($E15,EOMONTH(S$2,0)))))=MATCH($F15,{"Su";"Ma";"Ti";"Ke";"To";"Pe";"La"},0)))-SUMPRODUCT(--COUNTIF(INDIRECT("Kenttätiedot!"&HLOOKUP($A15,Kenttätiedot!$B$3:$Q$5,3,FALSE)&"6:"&HLOOKUP($A15,Kenttätiedot!$B$3:$Q$5,3,FALSE)&"300"),ROW(INDIRECT(MAX($D15,S$2)&":"&MIN($E15,EOMONTH(S$2,0)))))*(WEEKDAY(ROW(INDIRECT(MAX($D15,S$2)&":"&MIN($E15,EOMONTH(S$2,0)))))=MATCH($F15,{"Su";"Ma";"Ti";"Ke";"To";"Pe";"La"},0))),0)*HLOOKUP($A15,Kenttätiedot!$B$3:$Q$5,2,FALSE)*$B15,0) -> 0 | T15: =IF($D15<>"",IF(AND($D15<=EOMONTH(H$2,0),$E15>=H$2),SUMPRODUCT(--(WEEKDAY(ROW(INDIRECT(MAX($D15,H$2)&":"&MIN($E15,EOMONTH(H$2,0)))))=MATCH($F15,{"Su";"Ma";"Ti";"Ke";"To";"Pe";"La"},0)))-SUMPRODUCT(--COUNTIF(INDIRECT("Kenttätiedot!"&HLOOKUP($A15,Kenttätiedot!$B$3:$Q$5,3,FALSE)&"6:"&HLOOKUP($A15,Kenttätiedot!$B$3:$Q$5,3,FALSE)&"300"),ROW(INDIRECT(MAX($D15,H$2)&":"&MIN($E15,EOMONTH(H$2,0)))))*(WEEKDAY(ROW(INDIRECT(MAX($D15,H$2)&":"&MIN($E15,EOMONTH(H$2,0)))))=MATCH($F15,{"Su";"Ma";"Ti";"Ke";"To";"Pe";"La"},0))),0)*$G15,0) -> 0 | U15: =IF($D15<>"",IF(AND($D15<=EOMONTH(I$2,0),$E15>=I$2),SUMPRODUCT(--(WEEKDAY(ROW(INDIRECT(MAX($D15,I$2)&":"&MIN($E15,EOMONTH(I$2,0)))))=MATCH($F15,{"Su";"Ma";"Ti";"Ke";"To";"Pe";"La"},0)))-SUMPRODUCT(--COUNTIF(INDIRECT("Kenttätiedot!"&HLOOKUP($A15,Kenttätiedot!$B$3:$Q$5,3,FALSE)&"6:"&HLOOKUP($A15,Kenttätiedot!$B$3:$Q$5,3,FALSE)&"300"),ROW(INDIRECT(MAX($D15,I$2)&":"&MIN($E15,EOMONTH(I$2,0)))))*(WEEKDAY(ROW(INDIRECT(MAX($D15,I$2)&":"&MIN($E15,EOMONTH(I$2,0)))))=MATCH($F15,{"Su";"Ma";"Ti";"Ke";"To";"Pe";"La"},0))),0)*$G15,0) -> 0 | V15: =IF($D15<>"",IF(AND($D15<=EOMONTH(J$2,0),$E15>=J$2),SUMPRODUCT(--(WEEKDAY(ROW(INDIRECT(MAX($D15,J$2)&":"&MIN($E15,EOMONTH(J$2,0)))))=MATCH($F15,{"Su";"Ma";"Ti";"Ke";"To";"Pe";"La"},0)))-SUMPRODUCT(--COUNTIF(INDIRECT("Kenttätiedot!"&HLOOKUP($A15,Kenttätiedot!$B$3:$Q$5,3,FALSE)&"6:"&HLOOKUP($A15,Kenttätiedot!$B$3:$Q$5,3,FALSE)&"300"),ROW(INDIRECT(MAX($D15,J$2)&":"&MIN($E15,EOMONTH(J$2,0)))))*(WEEKDAY(ROW(INDIRECT(MAX($D15,J$2)&":"&MIN($E15,EOMONTH(J$2,0)))))=MATCH($F15,{"Su";"Ma";"Ti";"Ke";"To";"Pe";"La"},0))),0)*$G15,0) -> 0 | W15: =IF($D15<>"",IF(AND($D15<=EOMONTH(K$2,0),$E15>=K$2),SUMPRODUCT(--(WEEKDAY(ROW(INDIRECT(MAX($D15,K$2)&":"&MIN($E15,EOMONTH(K$2,0)))))=MATCH($F15,{"Su";"Ma";"Ti";"Ke";"To";"Pe";"La"},0)))-SUMPRODUCT(--COUNTIF(INDIRECT("Kenttätiedot!"&HLOOKUP($A15,Kenttätiedot!$B$3:$Q$5,3,FALSE)&"6:"&HLOOKUP($A15,Kenttätiedot!$B$3:$Q$5,3,FALSE)&"300"),ROW(INDIRECT(MAX($D15,K$2)&":"&MIN($E15,EOMONTH(K$2,0)))))*(WEEKDAY(ROW(INDIRECT(MAX($D15,K$2)&":"&MIN($E15,EOMONTH(K$2,0)))))=MATCH($F15,{"Su";"Ma";"Ti";"Ke";"To";"Pe";"La"},0))),0)*$G15,0) -> 0 | X15: =IF($D15<>"",IF(AND($D15<=EOMONTH(L$2,0),$E15>=L$2),SUMPRODUCT(--(WEEKDAY(ROW(INDIRECT(MAX($D15,L$2)&":"&MIN($E15,EOMONTH(L$2,0)))))=MATCH($F15,{"Su";"Ma";"Ti";"Ke";"To";"Pe";"La"},0)))-SUMPRODUCT(--COUNTIF(INDIRECT("Kenttätiedot!"&HLOOKUP($A15,Kenttätiedot!$B$3:$Q$5,3,FALSE)&"6:"&HLOOKUP($A15,Kenttätiedot!$B$3:$Q$5,3,FALSE)&"300"),ROW(INDIRECT(MAX($D15,L$2)&":"&MIN($E15,EOMONTH(L$2,0)))))*(WEEKDAY(ROW(INDIRECT(MAX($D15,L$2)&":"&MIN($E15,EOMONTH(L$2,0)))))=MATCH($F15,{"Su";"Ma";"Ti";"Ke";"To";"Pe";"La"},0))),0)*$G15,0) -> 0 | Y15: =IF($D15<>"",IF(AND($D15<=EOMONTH(M$2,0),$E15>=M$2),SUMPRODUCT(--(WEEKDAY(ROW(INDIRECT(MAX($D15,M$2)&":"&MIN($E15,EOMONTH(M$2,0)))))=MATCH($F15,{"Su";"Ma";"Ti";"Ke";"To";"Pe";"La"},0)))-SUMPRODUCT(--COUNTIF(INDIRECT("Kenttätiedot!"&HLOOKUP($A15,Kenttätiedot!$B$3:$Q$5,3,FALSE)&"6:"&HLOOKUP($A15,Kenttätiedot!$B$3:$Q$5,3,FALSE)&"300"),ROW(INDIRECT(MAX($D15,M$2)&":"&MIN($E15,EOMONTH(M$2,0)))))*(WEEKDAY(ROW(INDIRECT(MAX($D15,M$2)&":"&MIN($E15,EOMONTH(M$2,0)))))=MATCH($F15,{"Su";"Ma";"Ti";"Ke";"To";"Pe";"La"},0))),0)*$G15,0) -> 0 | Z15: =IF($D15<>"",IF(AND($D15<=EOMONTH(N$2,0),$E15>=N$2),SUMPRODUCT(--(WEEKDAY(ROW(INDIRECT(MAX($D15,N$2)&":"&MIN($E15,EOMONTH(N$2,0)))))=MATCH($F15,{"Su";"Ma";"Ti";"Ke";"To";"Pe";"La"},0)))-SUMPRODUCT(--COUNTIF(INDIRECT("Kenttätiedot!"&HLOOKUP($A15,Kenttätiedot!$B$3:$Q$5,3,FALSE)&"6:"&HLOOKUP($A15,Kenttätiedot!$B$3:$Q$5,3,FALSE)&"300"),ROW(INDIRECT(MAX($D15,N$2)&":"&MIN($E15,EOMONTH(N$2,0)))))*(WEEKDAY(ROW(INDIRECT(MAX($D15,N$2)&":"&MIN($E15,EOMONTH(N$2,0)))))=MATCH($F15,{"Su";"Ma";"Ti";"Ke";"To";"Pe";"La"},0))),0)*$G15,0) -> 0 | AA15: =IF($D15<>"",IF(AND($D15<=EOMONTH(O$2,0),$E15>=O$2),SUMPRODUCT(--(WEEKDAY(ROW(INDIRECT(MAX($D15,O$2)&":"&MIN($E15,EOMONTH(O$2,0)))))=MATCH($F15,{"Su";"Ma";"Ti";"Ke";"To";"Pe";"La"},0)))-SUMPRODUCT(--COUNTIF(INDIRECT("Kenttätiedot!"&HLOOKUP($A15,Kenttätiedot!$B$3:$Q$5,3,FALSE)&"6:"&HLOOKUP($A15,Kenttätiedot!$B$3:$Q$5,3,FALSE)&"300"),ROW(INDIRECT(MAX($D15,O$2)&":"&MIN($E15,EOMONTH(O$2,0)))))*(WEEKDAY(ROW(INDIRECT(MAX($D15,O$2)&":"&MIN($E15,EOMONTH(O$2,0)))))=MATCH($F15,{"Su";"Ma";"Ti";"Ke";"To";"Pe";"La"},0))),0)*$G15,0) -> 0 | AB15: =IF($D15<>"",IF(AND($D15<=EOMONTH(P$2,0),$E15>=P$2),SUMPRODUCT(--(WEEKDAY(ROW(INDIRECT(MAX($D15,P$2)&":"&MIN($E15,EOMONTH(P$2,0)))))=MATCH($F15,{"Su";"Ma";"Ti";"Ke";"To";"Pe";"La"},0)))-SUMPRODUCT(--COUNTIF(INDIRECT("Kenttätiedot!"&HLOOKUP($A15,Kenttätiedot!$B$3:$Q$5,3,FALSE)&"6:"&HLOOKUP($A15,Kenttätiedot!$B$3:$Q$5,3,FALSE)&"300"),ROW(INDIRECT(MAX($D15,P$2)&":"&MIN($E15,EOMONTH(P$2,0)))))*(WEEKDAY(ROW(INDIRECT(MAX($D15,P$2)&":"&MIN($E15,EOMONTH(P$2,0)))))=MATCH($F15,{"Su";"Ma";"Ti";"Ke";"To";"Pe";"La"},0))),0)*$G15,0) -> 0 | AC15: =IF($D15<>"",IF(AND($D15<=EOMONTH(Q$2,0),$E15>=Q$2),SUMPRODUCT(--(WEEKDAY(ROW(INDIRECT(MAX($D15,Q$2)&":"&MIN($E15,EOMONTH(Q$2,0)))))=MATCH($F15,{"Su";"Ma";"Ti";"Ke";"To";"Pe";"La"},0)))-SUMPRODUCT(--COUNTIF(INDIRECT("Kenttätiedot!"&HLOOKUP($A15,Kenttätiedot!$B$3:$Q$5,3,FALSE)&"6:"&HLOOKUP($A15,Kenttätiedot!$B$3:$Q$5,3,FALSE)&"300"),ROW(INDIRECT(MAX($D15,Q$2)&":"&MIN($E15,EOMONTH(Q$2,0)))))*(WEEKDAY(ROW(INDIRECT(MAX($D15,Q$2)&":"&MIN($E15,EOMONTH(Q$2,0)))))=MATCH($F15,{"Su";"Ma";"Ti";"Ke";"To";"Pe";"La"},0))),0)*$G15,0) -> 0 | AD15: =IF($D15<>"",IF(AND($D15<=EOMONTH(R$2,0),$E15>=R$2),SUMPRODUCT(--(WEEKDAY(ROW(INDIRECT(MAX($D15,R$2)&":"&MIN($E15,EOMONTH(R$2,0)))))=MATCH($F15,{"Su";"Ma";"Ti";"Ke";"To";"Pe";"La"},0)))-SUMPRODUCT(--COUNTIF(INDIRECT("Kenttätiedot!"&HLOOKUP($A15,Kenttätiedot!$B$3:$Q$5,3,FALSE)&"6:"&HLOOKUP($A15,Kenttätiedot!$B$3:$Q$5,3,FALSE)&"300"),ROW(INDIRECT(MAX($D15,R$2)&":"&MIN($E15,EOMONTH(R$2,0)))))*(WEEKDAY(ROW(INDIRECT(MAX($D15,R$2)&":"&MIN($E15,EOMONTH(R$2,0)))))=MATCH($F15,{"Su";"Ma";"Ti";"Ke";"To";"Pe";"La"},0))),0)*$G15,0) -> 0 | AE15: =IF($D15<>"",IF(AND($D15<=EOMONTH(S$2,0),$E15>=S$2),SUMPRODUCT(--(WEEKDAY(ROW(INDIRECT(MAX($D15,S$2)&":"&MIN($E15,EOMONTH(S$2,0)))))=MATCH($F15,{"Su";"Ma";"Ti";"Ke";"To";"Pe";"La"},0)))-SUMPRODUCT(--COUNTIF(INDIRECT("Kenttätiedot!"&HLOOKUP($A15,Kenttätiedot!$B$3:$Q$5,3,FALSE)&"6:"&HLOOKUP($A15,Kenttätiedot!$B$3:$Q$5,3,FALSE)&"300"),ROW(INDIRECT(MAX($D15,S$2)&":"&MIN($E15,EOMONTH(S$2,0)))))*(WEEKDAY(ROW(INDIRECT(MAX($D15,S$2)&":"&MIN($E15,EOMONTH(S$2,0)))))=MATCH($F15,{"Su";"Ma";"Ti";"Ke";"To";"Pe";"La"},0))),0)*$G15,0) -> 0
A16: Laaksolahden halli | B16: 0.25 | C16: 1 | D16: 2022-11-02 | E16: 2023-04-09 | F16: La | H16: =IF($D16<>"",IF(AND($D16<=EOMONTH(H$2,0),$E16>=H$2),SUMPRODUCT(--(WEEKDAY(ROW(INDIRECT(MAX($D16,H$2)&":"&MIN($E16,EOMONTH(H$2,0)))))=MATCH($F16,{"Su";"Ma";"Ti";"Ke";"To";"Pe";"La"},0)))-SUMPRODUCT(--COUNTIF(INDIRECT("Kenttätiedot!"&HLOOKUP($A16,Kenttätiedot!$B$3:$Q$5,3,FALSE)&"6:"&HLOOKUP($A16,Kenttätiedot!$B$3:$Q$5,3,FALSE)&"300"),ROW(INDIRECT(MAX($D16,H$2)&":"&MIN($E16,EOMONTH(H$2,0)))))*(WEEKDAY(ROW(INDIRECT(MAX($D16,H$2)&":"&MIN($E16,EOMONTH(H$2,0)))))=MATCH($F16,{"Su";"Ma";"Ti";"Ke";"To";"Pe";"La"},0))),0)*HLOOKUP($A16,Kenttätiedot!$B$3:$Q$5,2,FALSE)*$B16,0) -> 200 | I16: =IF($D16<>"",IF(AND($D16<=EOMONTH(I$2,0),$E16>=I$2),SUMPRODUCT(--(WEEKDAY(ROW(INDIRECT(MAX($D16,I$2)&":"&MIN($E16,EOMONTH(I$2,0)))))=MATCH($F16,{"Su";"Ma";"Ti";"Ke";"To";"Pe";"La"},0)))-SUMPRODUCT(--COUNTIF(INDIRECT("Kenttätiedot!"&HLOOKUP($A16,Kenttätiedot!$B$3:$Q$5,3,FALSE)&"6:"&HLOOKUP($A16,Kenttätiedot!$B$3:$Q$5,3,FALSE)&"300"),ROW(INDIRECT(MAX($D16,I$2)&":"&MIN($E16,EOMONTH(I$2,0)))))*(WEEKDAY(ROW(INDIRECT(MAX($D16,I$2)&":"&MIN($E16,EOMONTH(I$2,0)))))=MATCH($F16,{"Su";"Ma";"Ti";"Ke";"To";"Pe";"La"},0))),0)*HLOOKUP($A16,Kenttätiedot!$B$3:$Q$5,2,FALSE)*$B16,0) -> 150 | J16: =IF($D16<>"",IF(AND($D16<=EOMONTH(J$2,0),$E16>=J$2),SUMPRODUCT(--(WEEKDAY(ROW(INDIRECT(MAX($D16,J$2)&":"&MIN($E16,EOMONTH(J$2,0)))))=MATCH($F16,{"Su";"Ma";"Ti";"Ke";"To";"Pe";"La"},0)))-SUMPRODUCT(--COUNTIF(INDIRECT("Kenttätiedot!"&HLOOKUP($A16,Kenttätiedot!$B$3:$Q$5,3,FALSE)&"6:"&HLOOKUP($A16,Kenttätiedot!$B$3:$Q$5,3,FALSE)&"300"),ROW(INDIRECT(MAX($D16,J$2)&":"&MIN($E16,EOMONTH(J$2,0)))))*(WEEKDAY(ROW(INDIRECT(MAX($D16,J$2)&":"&MIN($E16,EOMONTH(J$2,0)))))=MATCH($F16,{"Su";"Ma";"Ti";"Ke";"To";"Pe";"La"},0))),0)*HLOOKUP($A16,Kenttätiedot!$B$3:$Q$5,2,FALSE)*$B16,0) -> 200 | K16: =IF($D16<>"",IF(AND($D16<=EOMONTH(K$2,0),$E16>=K$2),SUMPRODUCT(--(WEEKDAY(ROW(INDIRECT(MAX($D16,K$2)&":"&MIN($E16,EOMONTH(K$2,0)))))=MATCH($F16,{"Su";"Ma";"Ti";"Ke";"To";"Pe";"La"},0)))-SUMPRODUCT(--COUNTIF(INDIRECT("Kenttätiedot!"&HLOOKUP($A16,Kenttätiedot!$B$3:$Q$5,3,FALSE)&"6:"&HLOOKUP($A16,Kenttätiedot!$B$3:$Q$5,3,FALSE)&"300"),ROW(INDIRECT(MAX($D16,K$2)&":"&MIN($E16,EOMONTH(K$2,0)))))*(WEEKDAY(ROW(INDIRECT(MAX($D16,K$2)&":"&MIN($E16,EOMONTH(K$2,0)))))=MATCH($F16,{"Su";"Ma";"Ti";"Ke";"To";"Pe";"La"},0))),0)*HLOOKUP($A16,Kenttätiedot!$B$3:$Q$5,2,FALSE)*$B16,0) -> 200 | L16: =IF($D16<>"",IF(AND($D16<=EOMONTH(L$2,0),$E16>=L$2),SUMPRODUCT(--(WEEKDAY(ROW(INDIRECT(MAX($D16,L$2)&":"&MIN($E16,EOMONTH(L$2,0)))))=MATCH($F16,{"Su";"Ma";"Ti";"Ke";"To";"Pe";"La"},0)))-SUMPRODUCT(--COUNTIF(INDIRECT("Kenttätiedot!"&HLOOKUP($A16,Kenttätiedot!$B$3:$Q$5,3,FALSE)&"6:"&HLOOKUP($A16,Kenttätiedot!$B$3:$Q$5,3,FALSE)&"300"),ROW(INDIRECT(MAX($D16,L$2)&":"&MIN($E16,EOMONTH(L$2,0)))))*(WEEKDAY(ROW(INDIRECT(MAX($D16,L$2)&":"&MIN($E16,EOMONTH(L$2,0)))))=MATCH($F16,{"Su";"Ma";"Ti";"Ke";"To";"Pe";"La"},0))),0)*HLOOKUP($A16,Kenttätiedot!$B$3:$Q$5,2,FALSE)*$B16,0) -> 200 | M16: =IF($D16<>"",IF(AND($D16<=EOMONTH(M$2,0),$E16>=M$2),SUMPRODUCT(--(WEEKDAY(ROW(INDIRECT(MAX($D16,M$2)&":"&MIN($E16,EOMONTH(M$2,0)))))=MATCH($F16,{"Su";"Ma";"Ti";"Ke";"To";"Pe";"La"},0)))-SUMPRODUCT(--COUNTIF(INDIRECT("Kenttätiedot!"&HLOOKUP($A16,Kenttätiedot!$B$3:$Q$5,3,FALSE)&"6:"&HLOOKUP($A16,Kenttätiedot!$B$3:$Q$5,3,FALSE)&"300"),ROW(INDIRECT(MAX($D16,M$2)&":"&MIN($E16,EOMONTH(M$2,0)))))*(WEEKDAY(ROW(INDIRECT(MAX($D16,M$2)&":"&MIN($E16,EOMONTH(M$2,0)))))=MATCH($F16,{"Su";"Ma";"Ti";"Ke";"To";"Pe";"La"},0))),0)*HLOOKUP($A16,Kenttätiedot!$B$3:$Q$5,2,FALSE)*$B16,0) -> 50 | N16: =IF($D16<>"",IF(AND($D16<=EOMONTH(N$2,0),$E16>=N$2),SUMPRODUCT(--(WEEKDAY(ROW(INDIRECT(MAX($D16,N$2)&":"&MIN($E16,EOMONTH(N$2,0)))))=MATCH($F16,{"Su";"Ma";"Ti";"Ke";"To";"Pe";"La"},0)))-SUMPRODUCT(--COUNTIF(INDIRECT("Kenttätiedot!"&HLOOKUP($A16,Kenttätiedot!$B$3:$Q$5,3,FALSE)&"6:"&HLOOKUP($A16,Kenttätiedot!$B$3:$Q$5,3,FALSE)&"300"),ROW(INDIRECT(MAX($D16,N$2)&":"&MIN($E16,EOMONTH(N$2,0)))))*(WEEKDAY(ROW(INDIRECT(MAX($D16,N$2)&":"&MIN($E16,EOMONTH(N$2,0)))))=MATCH($F16,{"Su";"Ma";"Ti";"Ke";"To";"Pe";"La"},0))),0)*HLOOKUP($A16,Kenttätiedot!$B$3:$Q$5,2,FALSE)*$B16,0) -> 0 | O16: =IF($D16<>"",IF(AND($D16<=EOMONTH(O$2,0),$E16>=O$2),SUMPRODUCT(--(WEEKDAY(ROW(INDIRECT(MAX($D16,O$2)&":"&MIN($E16,EOMONTH(O$2,0)))))=MATCH($F16,{"Su";"Ma";"Ti";"Ke";"To";"Pe";"La"},0)))-SUMPRODUCT(--COUNTIF(INDIRECT("Kenttätiedot!"&HLOOKUP($A16,Kenttätiedot!$B$3:$Q$5,3,FALSE)&"6:"&HLOOKUP($A16,Kenttätiedot!$B$3:$Q$5,3,FALSE)&"300"),ROW(INDIRECT(MAX($D16,O$2)&":"&MIN($E16,EOMONTH(O$2,0)))))*(WEEKDAY(ROW(INDIRECT(MAX($D16,O$2)&":"&MIN($E16,EOMONTH(O$2,0)))))=MATCH($F16,{"Su";"Ma";"Ti";"Ke";"To";"Pe";"La"},0))),0)*HLOOKUP($A16,Kenttätiedot!$B$3:$Q$5,2,FALSE)*$B16,0) -> 0 | P16: =IF($D16<>"",IF(AND($D16<=EOMONTH(P$2,0),$E16>=P$2),SUMPRODUCT(--(WEEKDAY(ROW(INDIRECT(MAX($D16,P$2)&":"&MIN($E16,EOMONTH(P$2,0)))))=MATCH($F16,{"Su";"Ma";"Ti";"Ke";"To";"Pe";"La"},0)))-SUMPRODUCT(--COUNTIF(INDIRECT("Kenttätiedot!"&HLOOKUP($A16,Kenttätiedot!$B$3:$Q$5,3,FALSE)&"6:"&HLOOKUP($A16,Kenttätiedot!$B$3:$Q$5,3,FALSE)&"300"),ROW(INDIRECT(MAX($D16,P$2)&":"&MIN($E16,EOMONTH(P$2,0)))))*(WEEKDAY(ROW(INDIRECT(MAX($D16,P$2)&":"&MIN($E16,EOMONTH(P$2,0)))))=MATCH($F16,{"Su";"Ma";"Ti";"Ke";"To";"Pe";"La"},0))),0)*HLOOKUP($A16,Kenttätiedot!$B$3:$Q$5,2,FALSE)*$B16,0) -> 0 | Q16: =IF($D16<>"",IF(AND($D16<=EOMONTH(Q$2,0),$E16>=Q$2),SUMPRODUCT(--(WEEKDAY(ROW(INDIRECT(MAX($D16,Q$2)&":"&MIN($E16,EOMONTH(Q$2,0)))))=MATCH($F16,{"Su";"Ma";"Ti";"Ke";"To";"Pe";"La"},0)))-SUMPRODUCT(--COUNTIF(INDIRECT("Kenttätiedot!"&HLOOKUP($A16,Kenttätiedot!$B$3:$Q$5,3,FALSE)&"6:"&HLOOKUP($A16,Kenttätiedot!$B$3:$Q$5,3,FALSE)&"300"),ROW(INDIRECT(MAX($D16,Q$2)&":"&MIN($E16,EOMONTH(Q$2,0)))))*(WEEKDAY(ROW(INDIRECT(MAX($D16,Q$2)&":"&MIN($E16,EOMONTH(Q$2,0)))))=MATCH($F16,{"Su";"Ma";"Ti";"Ke";"To";"Pe";"La"},0))),0)*HLOOKUP($A16,Kenttätiedot!$B$3:$Q$5,2,FALSE)*$B16,0) -> 0 | R16: =IF($D16<>"",IF(AND($D16<=EOMONTH(R$2,0),$E16>=R$2),SUMPRODUCT(--(WEEKDAY(ROW(INDIRECT(MAX($D16,R$2)&":"&MIN($E16,EOMONTH(R$2,0)))))=MATCH($F16,{"Su";"Ma";"Ti";"Ke";"To";"Pe";"La"},0)))-SUMPRODUCT(--COUNTIF(INDIRECT("Kenttätiedot!"&HLOOKUP($A16,Kenttätiedot!$B$3:$Q$5,3,FALSE)&"6:"&HLOOKUP($A16,Kenttätiedot!$B$3:$Q$5,3,FALSE)&"300"),ROW(INDIRECT(MAX($D16,R$2)&":"&MIN($E16,EOMONTH(R$2,0)))))*(WEEKDAY(ROW(INDIRECT(MAX($D16,R$2)&":"&MIN($E16,EOMONTH(R$2,0)))))=MATCH($F16,{"Su";"Ma";"Ti";"Ke";"To";"Pe";"La"},0))),0)*HLOOKUP($A16,Kenttätiedot!$B$3:$Q$5,2,FALSE)*$B16,0) -> 0 | S16: =IF($D16<>"",IF(AND($D16<=EOMONTH(S$2,0),$E16>=S$2),SUMPRODUCT(--(WEEKDAY(ROW(INDIRECT(MAX($D16,S$2)&":"&MIN($E16,EOMONTH(S$2,0)))))=MATCH($F16,{"Su";"Ma";"Ti";"Ke";"To";"Pe";"La"},0)))-SUMPRODUCT(--COUNTIF(INDIRECT("Kenttätiedot!"&HLOOKUP($A16,Kenttätiedot!$B$3:$Q$5,3,FALSE)&"6:"&HLOOKUP($A16,Kenttätiedot!$B$3:$Q$5,3,FALSE)&"300"),ROW(INDIRECT(MAX($D16,S$2)&":"&MIN($E16,EOMONTH(S$2,0)))))*(WEEKDAY(ROW(INDIRECT(MAX($D16,S$2)&":"&MIN($E16,EOMONTH(S$2,0)))))=MATCH($F16,{"Su";"Ma";"Ti";"Ke";"To";"Pe";"La"},0))),0)*HLOOKUP($A16,Kenttätiedot!$B$3:$Q$5,2,FALSE)*$B16,0) -> 0 | T16: =IF($D16<>"",IF(AND($D16<=EOMONTH(H$2,0),$E16>=H$2),SUMPRODUCT(--(WEEKDAY(ROW(INDIRECT(MAX($D16,H$2)&":"&MIN($E16,EOMONTH(H$2,0)))))=MATCH($F16,{"Su";"Ma";"Ti";"Ke";"To";"Pe";"La"},0)))-SUMPRODUCT(--COUNTIF(INDIRECT("Kenttätiedot!"&HLOOKUP($A16,Kenttätiedot!$B$3:$Q$5,3,FALSE)&"6:"&HLOOKUP($A16,Kenttätiedot!$B$3:$Q$5,3,FALSE)&"300"),ROW(INDIRECT(MAX($D16,H$2)&":"&MIN($E16,EOMONTH(H$2,0)))))*(WEEKDAY(ROW(INDIRECT(MAX($D16,H$2)&":"&MIN($E16,EOMONTH(H$2,0)))))=MATCH($F16,{"Su";"Ma";"Ti";"Ke";"To";"Pe";"La"},0))),0)*$G16,0) -> 0 | U16: =IF($D16<>"",IF(AND($D16<=EOMONTH(I$2,0),$E16>=I$2),SUMPRODUCT(--(WEEKDAY(ROW(INDIRECT(MAX($D16,I$2)&":"&MIN($E16,EOMONTH(I$2,0)))))=MATCH($F16,{"Su";"Ma";"Ti";"Ke";"To";"Pe";"La"},0)))-SUMPRODUCT(--COUNTIF(INDIRECT("Kenttätiedot!"&HLOOKUP($A16,Kenttätiedot!$B$3:$Q$5,3,FALSE)&"6:"&HLOOKUP($A16,Kenttätiedot!$B$3:$Q$5,3,FALSE)&"300"),ROW(INDIRECT(MAX($D16,I$2)&":"&MIN($E16,EOMONTH(I$2,0)))))*(WEEKDAY(ROW(INDIRECT(MAX($D16,I$2)&":"&MIN($E16,EOMONTH(I$2,0)))))=MATCH($F16,{"Su";"Ma";"Ti";"Ke";"To";"Pe";"La"},0))),0)*$G16,0) -> 0 | V16: =IF($D16<>"",IF(AND($D16<=EOMONTH(J$2,0),$E16>=J$2),SUMPRODUCT(--(WEEKDAY(ROW(INDIRECT(MAX($D16,J$2)&":"&MIN($E16,EOMONTH(J$2,0)))))=MATCH($F16,{"Su";"Ma";"Ti";"Ke";"To";"Pe";"La"},0)))-SUMPRODUCT(--COUNTIF(INDIRECT("Kenttätiedot!"&HLOOKUP($A16,Kenttätiedot!$B$3:$Q$5,3,FALSE)&"6:"&HLOOKUP($A16,Kenttätiedot!$B$3:$Q$5,3,FALSE)&"300"),ROW(INDIRECT(MAX($D16,J$2)&":"&MIN($E16,EOMONTH(J$2,0)))))*(WEEKDAY(ROW(INDIRECT(MAX($D16,J$2)&":"&MIN($E16,EOMONTH(J$2,0)))))=MATCH($F16,{"Su";"Ma";"Ti";"Ke";"To";"Pe";"La"},0))),0)*$G16,0) -> 0 | W16: =IF($D16<>"",IF(AND($D16<=EOMONTH(K$2,0),$E16>=K$2),SUMPRODUCT(--(WEEKDAY(ROW(INDIRECT(MAX($D16,K$2)&":"&MIN($E16,EOMONTH(K$2,0)))))=MATCH($F16,{"Su";"Ma";"Ti";"Ke";"To";"Pe";"La"},0)))-SUMPRODUCT(--COUNTIF(INDIRECT("Kenttätiedot!"&HLOOKUP($A16,Kenttätiedot!$B$3:$Q$5,3,FALSE)&"6:"&HLOOKUP($A16,Kenttätiedot!$B$3:$Q$5,3,FALSE)&"300"),ROW(INDIRECT(MAX($D16,K$2)&":"&MIN($E16,EOMONTH(K$2,0)))))*(WEEKDAY(ROW(INDIRECT(MAX($D16,K$2)&":"&MIN($E16,EOMONTH(K$2,0)))))=MATCH($F16,{"Su";"Ma";"Ti";"Ke";"To";"Pe";"La"},0))),0)*$G16,0) -> 0 | X16: =IF($D16<>"",IF(AND($D16<=EOMONTH(L$2,0),$E16>=L$2),SUMPRODUCT(--(WEEKDAY(ROW(INDIRECT(MAX($D16,L$2)&":"&MIN($E16,EOMONTH(L$2,0)))))=MATCH($F16,{"Su";"Ma";"Ti";"Ke";"To";"Pe";"La"},0)))-SUMPRODUCT(--COUNTIF(INDIRECT("Kenttätiedot!"&HLOOKUP($A16,Kenttätiedot!$B$3:$Q$5,3,FALSE)&"6:"&HLOOKUP($A16,Kenttätiedot!$B$3:$Q$5,3,FALSE)&"300"),ROW(INDIRECT(MAX($D16,L$2)&":"&MIN($E16,EOMONTH(L$2,0)))))*(WEEKDAY(ROW(INDIRECT(MAX($D16,L$2)&":"&MIN($E16,EOMONTH(L$2,0)))))=MATCH($F16,{"Su";"Ma";"Ti";"Ke";"To";"Pe";"La"},0))),0)*$G16,0) -> 0 | Y16: =IF($D16<>"",IF(AND($D16<=EOMONTH(M$2,0),$E16>=M$2),SUMPRODUCT(--(WEEKDAY(ROW(INDIRECT(MAX($D16,M$2)&":"&MIN($E16,EOMONTH(M$2,0)))))=MATCH($F16,{"Su";"Ma";"Ti";"Ke";"To";"Pe";"La"},0)))-SUMPRODUCT(--COUNTIF(INDIRECT("Kenttätiedot!"&HLOOKUP($A16,Kenttätiedot!$B$3:$Q$5,3,FALSE)&"6:"&HLOOKUP($A16,Kenttätiedot!$B$3:$Q$5,3,FALSE)&"300"),ROW(INDIRECT(MAX($D16,M$2)&":"&MIN($E16,EOMONTH(M$2,0)))))*(WEEKDAY(ROW(INDIRECT(MAX($D16,M$2)&":"&MIN($E16,EOMONTH(M$2,0)))))=MATCH($F16,{"Su";"Ma";"Ti";"Ke";"To";"Pe";"La"},0))),0)*$G16,0) -> 0 | Z16: =IF($D16<>"",IF(AND($D16<=EOMONTH(N$2,0),$E16>=N$2),SUMPRODUCT(--(WEEKDAY(ROW(INDIRECT(MAX($D16,N$2)&":"&MIN($E16,EOMONTH(N$2,0)))))=MATCH($F16,{"Su";"Ma";"Ti";"Ke";"To";"Pe";"La"},0)))-SUMPRODUCT(--COUNTIF(INDIRECT("Kenttätiedot!"&HLOOKUP($A16,Kenttätiedot!$B$3:$Q$5,3,FALSE)&"6:"&HLOOKUP($A16,Kenttätiedot!$B$3:$Q$5,3,FALSE)&"300"),ROW(INDIRECT(MAX($D16,N$2)&":"&MIN($E16,EOMONTH(N$2,0)))))*(WEEKDAY(ROW(INDIRECT(MAX($D16,N$2)&":"&MIN($E16,EOMONTH(N$2,0)))))=MATCH($F16,{"Su";"Ma";"Ti";"Ke";"To";"Pe";"La"},0))),0)*$G16,0) -> 0 | AA16: =IF($D16<>"",IF(AND($D16<=EOMONTH(O$2,0),$E16>=O$2),SUMPRODUCT(--(WEEKDAY(ROW(INDIRECT(MAX($D16,O$2)&":"&MIN($E16,EOMONTH(O$2,0)))))=MATCH($F16,{"Su";"Ma";"Ti";"Ke";"To";"Pe";"La"},0)))-SUMPRODUCT(--COUNTIF(INDIRECT("Kenttätiedot!"&HLOOKUP($A16,Kenttätiedot!$B$3:$Q$5,3,FALSE)&"6:"&HLOOKUP($A16,Kenttätiedot!$B$3:$Q$5,3,FALSE)&"300"),ROW(INDIRECT(MAX($D16,O$2)&":"&MIN($E16,EOMONTH(O$2,0)))))*(WEEKDAY(ROW(INDIRECT(MAX($D16,O$2)&":"&MIN($E16,EOMONTH(O$2,0)))))=MATCH($F16,{"Su";"Ma";"Ti";"Ke";"To";"Pe";"La"},0))),0)*$G16,0) -> 0 | AB16: =IF($D16<>"",IF(AND($D16<=EOMONTH(P$2,0),$E16>=P$2),SUMPRODUCT(--(WEEKDAY(ROW(INDIRECT(MAX($D16,P$2)&":"&MIN($E16,EOMONTH(P$2,0)))))=MATCH($F16,{"Su";"Ma";"Ti";"Ke";"To";"Pe";"La"},0)))-SUMPRODUCT(--COUNTIF(INDIRECT("Kenttätiedot!"&HLOOKUP($A16,Kenttätiedot!$B$3:$Q$5,3,FALSE)&"6:"&HLOOKUP($A16,Kenttätiedot!$B$3:$Q$5,3,FALSE)&"300"),ROW(INDIRECT(MAX($D16,P$2)&":"&MIN($E16,EOMONTH(P$2,0)))))*(WEEKDAY(ROW(INDIRECT(MAX($D16,P$2)&":"&MIN($E16,EOMONTH(P$2,0)))))=MATCH($F16,{"Su";"Ma";"Ti";"Ke";"To";"Pe";"La"},0))),0)*$G16,0) -> 0 | AC16: =IF($D16<>"",IF(AND($D16<=EOMONTH(Q$2,0),$E16>=Q$2),SUMPRODUCT(--(WEEKDAY(ROW(INDIRECT(MAX($D16,Q$2)&":"&MIN($E16,EOMONTH(Q$2,0)))))=MATCH($F16,{"Su";"Ma";"Ti";"Ke";"To";"Pe";"La"},0)))-SUMPRODUCT(--COUNTIF(INDIRECT("Kenttätiedot!"&HLOOKUP($A16,Kenttätiedot!$B$3:$Q$5,3,FALSE)&"6:"&HLOOKUP($A16,Kenttätiedot!$B$3:$Q$5,3,FALSE)&"300"),ROW(INDIRECT(MAX($D16,Q$2)&":"&MIN($E16,EOMONTH(Q$2,0)))))*(WEEKDAY(ROW(INDIRECT(MAX($D16,Q$2)&":"&MIN($E16,EOMONTH(Q$2,0)))))=MATCH($F16,{"Su";"Ma";"Ti";"Ke";"To";"Pe";"La"},0))),0)*$G16,0) -> 0 | AD16: =IF($D16<>"",IF(AND($D16<=EOMONTH(R$2,0),$E16>=R$2),SUMPRODUCT(--(WEEKDAY(ROW(INDIRECT(MAX($D16,R$2)&":"&MIN($E16,EOMONTH(R$2,0)))))=MATCH($F16,{"Su";"Ma";"Ti";"Ke";"To";"Pe";"La"},0)))-SUMPRODUCT(--COUNTIF(INDIRECT("Kenttätiedot!"&HLOOKUP($A16,Kenttätiedot!$B$3:$Q$5,3,FALSE)&"6:"&HLOOKUP($A16,Kenttätiedot!$B$3:$Q$5,3,FALSE)&"300"),ROW(INDIRECT(MAX($D16,R$2)&":"&MIN($E16,EOMONTH(R$2,0)))))*(WEEKDAY(ROW(INDIRECT(MAX($D16,R$2)&":"&MIN($E16,EOMONTH(R$2,0)))))=MATCH($F16,{"Su";"Ma";"Ti";"Ke";"To";"Pe";"La"},0))),0)*$G16,0) -> 0 | AE16: =IF($D16<>"",IF(AND($D16<=EOMONTH(S$2,0),$E16>=S$2),SUMPRODUCT(--(WEEKDAY(ROW(INDIRECT(MAX($D16,S$2)&":"&MIN($E16,EOMONTH(S$2,0)))))=MATCH($F16,{"Su";"Ma";"Ti";"Ke";"To";"Pe";"La"},0)))-SUMPRODUCT(--COUNTIF(INDIRECT("Kenttätiedot!"&HLOOKUP($A16,Kenttätiedot!$B$3:$Q$5,3,FALSE)&"6:"&HLOOKUP($A16,Kenttätiedot!$B$3:$Q$5,3,FALSE)&"300"),ROW(INDIRECT(MAX($D16,S$2)&":"&MIN($E16,EOMONTH(S$2,0)))))*(WEEKDAY(ROW(INDIRECT(MAX($D16,S$2)&":"&MIN($E16,EOMONTH(S$2,0)))))=MATCH($F16,{"Su";"Ma";"Ti";"Ke";"To";"Pe";"La"},0))),0)*$G16,0) -> 0
A17: Koulusali | C17: 1 | D17: 2022-11-02 | E17: 2023-04-09 | F17: Ma | H17: =IF($D17<>"",IF(AND($D17<=EOMONTH(H$2,0),$E17>=H$2),SUMPRODUCT(--(WEEKDAY(ROW(INDIRECT(MAX($D17,H$2)&":"&MIN($E17,EOMONTH(H$2,0)))))=MATCH($F17,{"Su";"Ma";"Ti";"Ke";"To";"Pe";"La"},0)))-SUMPRODUCT(--COUNTIF(INDIRECT("Kenttätiedot!"&HLOOKUP($A17,Kenttätiedot!$B$3:$Q$5,3,FALSE)&"6:"&HLOOKUP($A17,Kenttätiedot!$B$3:$Q$5,3,FALSE)&"300"),ROW(INDIRECT(MAX($D17,H$2)&":"&MIN($E17,EOMONTH(H$2,0)))))*(WEEKDAY(ROW(INDIRECT(MAX($D17,H$2)&":"&MIN($E17,EOMONTH(H$2,0)))))=MATCH($F17,{"Su";"Ma";"Ti";"Ke";"To";"Pe";"La"},0))),0)*HLOOKUP($A17,Kenttätiedot!$B$3:$Q$5,2,FALSE)*$B17,0) -> 0 | I17: =IF($D17<>"",IF(AND($D17<=EOMONTH(I$2,0),$E17>=I$2),SUMPRODUCT(--(WEEKDAY(ROW(INDIRECT(MAX($D17,I$2)&":"&MIN($E17,EOMONTH(I$2,0)))))=MATCH($F17,{"Su";"Ma";"Ti";"Ke";"To";"Pe";"La"},0)))-SUMPRODUCT(--COUNTIF(INDIRECT("Kenttätiedot!"&HLOOKUP($A17,Kenttätiedot!$B$3:$Q$5,3,FALSE)&"6:"&HLOOKUP($A17,Kenttätiedot!$B$3:$Q$5,3,FALSE)&"300"),ROW(INDIRECT(MAX($D17,I$2)&":"&MIN($E17,EOMONTH(I$2,0)))))*(WEEKDAY(ROW(INDIRECT(MAX($D17,I$2)&":"&MIN($E17,EOMONTH(I$2,0)))))=MATCH($F17,{"Su";"Ma";"Ti";"Ke";"To";"Pe";"La"},0))),0)*HLOOKUP($A17,Kenttätiedot!$B$3:$Q$5,2,FALSE)*$B17,0) -> 0 | J17: =IF($D17<>"",IF(AND($D17<=EOMONTH(J$2,0),$E17>=J$2),SUMPRODUCT(--(WEEKDAY(ROW(INDIRECT(MAX($D17,J$2)&":"&MIN($E17,EOMONTH(J$2,0)))))=MATCH($F17,{"Su";"Ma";"Ti";"Ke";"To";"Pe";"La"},0)))-SUMPRODUCT(--COUNTIF(INDIRECT("Kenttätiedot!"&HLOOKUP($A17,Kenttätiedot!$B$3:$Q$5,3,FALSE)&"6:"&HLOOKUP($A17,Kenttätiedot!$B$3:$Q$5,3,FALSE)&"300"),ROW(INDIRECT(MAX($D17,J$2)&":"&MIN($E17,EOMONTH(J$2,0)))))*(WEEKDAY(ROW(INDIRECT(MAX($D17,J$2)&":"&MIN($E17,EOMONTH(J$2,0)))))=MATCH($F17,{"Su";"Ma";"Ti";"Ke";"To";"Pe";"La"},0))),0)*HLOOKUP($A17,Kenttätiedot!$B$3:$Q$5,2,FALSE)*$B17,0) -> 0 | K17: =IF($D17<>"",IF(AND($D17<=EOMONTH(K$2,0),$E17>=K$2),SUMPRODUCT(--(WEEKDAY(ROW(INDIRECT(MAX($D17,K$2)&":"&MIN($E17,EOMONTH(K$2,0)))))=MATCH($F17,{"Su";"Ma";"Ti";"Ke";"To";"Pe";"La"},0)))-SUMPRODUCT(--COUNTIF(INDIRECT("Kenttätiedot!"&HLOOKUP($A17,Kenttätiedot!$B$3:$Q$5,3,FALSE)&"6:"&HLOOKUP($A17,Kenttätiedot!$B$3:$Q$5,3,FALSE)&"300"),ROW(INDIRECT(MAX($D17,K$2)&":"&MIN($E17,EOMONTH(K$2,0)))))*(WEEKDAY(ROW(INDIRECT(MAX($D17,K$2)&":"&MIN($E17,EOMONTH(K$2,0)))))=MATCH($F17,{"Su";"Ma";"Ti";"Ke";"To";"Pe";"La"},0))),0)*HLOOKUP($A17,Kenttätiedot!$B$3:$Q$5,2,FALSE)*$B17,0) -> 0 | L17: =IF($D17<>"",IF(AND($D17<=EOMONTH(L$2,0),$E17>=L$2),SUMPRODUCT(--(WEEKDAY(ROW(INDIRECT(MAX($D17,L$2)&":"&MIN($E17,EOMONTH(L$2,0)))))=MATCH($F17,{"Su";"Ma";"Ti";"Ke";"To";"Pe";"La"},0)))-SUMPRODUCT(--COUNTIF(INDIRECT("Kenttätiedot!"&HLOOKUP($A17,Kenttätiedot!$B$3:$Q$5,3,FALSE)&"6:"&HLOOKUP($A17,Kenttätiedot!$B$3:$Q$5,3,FALSE)&"300"),ROW(INDIRECT(MAX($D17,L$2)&":"&MIN($E17,EOMONTH(L$2,0)))))*(WEEKDAY(ROW(INDIRECT(MAX($D17,L$2)&":"&MIN($E17,EOMONTH(L$2,0)))))=MATCH($F17,{"Su";"Ma";"Ti";"Ke";"To";"Pe";"La"},0))),0)*HLOOKUP($A17,Kenttätiedot!$B$3:$Q$5,2,FALSE)*$B17,0) -> 0 | M17: =IF($D17<>"",IF(AND($D17<=EOMONTH(M$2,0),$E17>=M$2),SUMPRODUCT(--(WEEKDAY(ROW(INDIRECT(MAX($D17,M$2)&":"&MIN($E17,EOMONTH(M$2,0)))))=MATCH($F17,{"Su";"Ma";"Ti";"Ke";"To";"Pe";"La"},0)))-SUMPRODUCT(--COUNTIF(INDIRECT("Kenttätiedot!"&HLOOKUP($A17,Kenttätiedot!$B$3:$Q$5,3,FALSE)&"6:"&HLOOKUP($A17,Kenttätiedot!$B$3:$Q$5,3,FALSE)&"300"),ROW(INDIRECT(MAX($D17,M$2)&":"&MIN($E17,EOMONTH(M$2,0)))))*(WEEKDAY(ROW(INDIRECT(MAX($D17,M$2)&":"&MIN($E17,EOMONTH(M$2,0)))))=MATCH($F17,{"Su";"Ma";"Ti";"Ke";"To";"Pe";"La"},0))),0)*HLOOKUP($A17,Kenttätiedot!$B$3:$Q$5,2,FALSE)*$B17,0) -> 0 | N17: =IF($D17<>"",IF(AND($D17<=EOMONTH(N$2,0),$E17>=N$2),SUMPRODUCT(--(WEEKDAY(ROW(INDIRECT(MAX($D17,N$2)&":"&MIN($E17,EOMONTH(N$2,0)))))=MATCH($F17,{"Su";"Ma";"Ti";"Ke";"To";"Pe";"La"},0)))-SUMPRODUCT(--COUNTIF(INDIRECT("Kenttätiedot!"&HLOOKUP($A17,Kenttätiedot!$B$3:$Q$5,3,FALSE)&"6:"&HLOOKUP($A17,Kenttätiedot!$B$3:$Q$5,3,FALSE)&"300"),ROW(INDIRECT(MAX($D17,N$2)&":"&MIN($E17,EOMONTH(N$2,0)))))*(WEEKDAY(ROW(INDIRECT(MAX($D17,N$2)&":"&MIN($E17,EOMONTH(N$2,0)))))=MATCH($F17,{"Su";"Ma";"Ti";"Ke";"To";"Pe";"La"},0))),0)*HLOOKUP($A17,Kenttätiedot!$B$3:$Q$5,2,FALSE)*$B17,0) -> 0 | O17: =IF($D17<>"",IF(AND($D17<=EOMONTH(O$2,0),$E17>=O$2),SUMPRODUCT(--(WEEKDAY(ROW(INDIRECT(MAX($D17,O$2)&":"&MIN($E17,EOMONTH(O$2,0)))))=MATCH($F17,{"Su";"Ma";"Ti";"Ke";"To";"Pe";"La"},0)))-SUMPRODUCT(--COUNTIF(INDIRECT("Kenttätiedot!"&HLOOKUP($A17,Kenttätiedot!$B$3:$Q$5,3,FALSE)&"6:"&HLOOKUP($A17,Kenttätiedot!$B$3:$Q$5,3,FALSE)&"300"),ROW(INDIRECT(MAX($D17,O$2)&":"&MIN($E17,EOMONTH(O$2,0)))))*(WEEKDAY(ROW(INDIRECT(MAX($D17,O$2)&":"&MIN($E17,EOMONTH(O$2,0)))))=MATCH($F17,{"Su";"Ma";"Ti";"Ke";"To";"Pe";"La"},0))),0)*HLOOKUP($A17,Kenttätiedot!$B$3:$Q$5,2,FALSE)*$B17,0) -> 0 | P17: =IF($D17<>"",IF(AND($D17<=EOMONTH(P$2,0),$E17>=P$2),SUMPRODUCT(--(WEEKDAY(ROW(INDIRECT(MAX($D17,P$2)&":"&MIN($E17,EOMONTH(P$2,0)))))=MATCH($F17,{"Su";"Ma";"Ti";"Ke";"To";"Pe";"La"},0)))-SUMPRODUCT(--COUNTIF(INDIRECT("Kenttätiedot!"&HLOOKUP($A17,Kenttätiedot!$B$3:$Q$5,3,FALSE)&"6:"&HLOOKUP($A17,Kenttätiedot!$B$3:$Q$5,3,FALSE)&"300"),ROW(INDIRECT(MAX($D17,P$2)&":"&MIN($E17,EOMONTH(P$2,0)))))*(WEEKDAY(ROW(INDIRECT(MAX($D17,P$2)&":"&MIN($E17,EOMONTH(P$2,0)))))=MATCH($F17,{"Su";"Ma";"Ti";"Ke";"To";"Pe";"La"},0))),0)*HLOOKUP($A17,Kenttätiedot!$B$3:$Q$5,2,FALSE)*$B17,0) -> 0 | Q17: =IF($D17<>"",IF(AND($D17<=EOMONTH(Q$2,0),$E17>=Q$2),SUMPRODUCT(--(WEEKDAY(ROW(INDIRECT(MAX($D17,Q$2)&":"&MIN($E17,EOMONTH(Q$2,0)))))=MATCH($F17,{"Su";"Ma";"Ti";"Ke";"To";"Pe";"La"},0)))-SUMPRODUCT(--COUNTIF(INDIRECT("Kenttätiedot!"&HLOOKUP($A17,Kenttätiedot!$B$3:$Q$5,3,FALSE)&"6:"&HLOOKUP($A17,Kenttätiedot!$B$3:$Q$5,3,FALSE)&"300"),ROW(INDIRECT(MAX($D17,Q$2)&":"&MIN($E17,EOMONTH(Q$2,0)))))*(WEEKDAY(ROW(INDIRECT(MAX($D17,Q$2)&":"&MIN($E17,EOMONTH(Q$2,0)))))=MATCH($F17,{"Su";"Ma";"Ti";"Ke";"To";"Pe";"La"},0))),0)*HLOOKUP($A17,Kenttätiedot!$B$3:$Q$5,2,FALSE)*$B17,0) -> 0 | R17: =IF($D17<>"",IF(AND($D17<=EOMONTH(R$2,0),$E17>=R$2),SUMPRODUCT(--(WEEKDAY(ROW(INDIRECT(MAX($D17,R$2)&":"&MIN($E17,EOMONTH(R$2,0)))))=MATCH($F17,{"Su";"Ma";"Ti";"Ke";"To";"Pe";"La"},0)))-SUMPRODUCT(--COUNTIF(INDIRECT("Kenttätiedot!"&HLOOKUP($A17,Kenttätiedot!$B$3:$Q$5,3,FALSE)&"6:"&HLOOKUP($A17,Kenttätiedot!$B$3:$Q$5,3,FALSE)&"300"),ROW(INDIRECT(MAX($D17,R$2)&":"&MIN($E17,EOMONTH(R$2,0)))))*(WEEKDAY(ROW(INDIRECT(MAX($D17,R$2)&":"&MIN($E17,EOMONTH(R$2,0)))))=MATCH($F17,{"Su";"Ma";"Ti";"Ke";"To";"Pe";"La"},0))),0)*HLOOKUP($A17,Kenttätiedot!$B$3:$Q$5,2,FALSE)*$B17,0) -> 0 | S17: =IF($D17<>"",IF(AND($D17<=EOMONTH(S$2,0),$E17>=S$2),SUMPRODUCT(--(WEEKDAY(ROW(INDIRECT(MAX($D17,S$2)&":"&MIN($E17,EOMONTH(S$2,0)))))=MATCH($F17,{"Su";"Ma";"Ti";"Ke";"To";"Pe";"La"},0)))-SUMPRODUCT(--COUNTIF(INDIRECT("Kenttätiedot!"&HLOOKUP($A17,Kenttätiedot!$B$3:$Q$5,3,FALSE)&"6:"&HLOOKUP($A17,Kenttätiedot!$B$3:$Q$5,3,FALSE)&"300"),ROW(INDIRECT(MAX($D17,S$2)&":"&MIN($E17,EOMONTH(S$2,0)))))*(WEEKDAY(ROW(INDIRECT(MAX($D17,S$2)&":"&MIN($E17,EOMONTH(S$2,0)))))=MATCH($F17,{"Su";"Ma";"Ti";"Ke";"To";"Pe";"La"},0))),0)*HLOOKUP($A17,Kenttätiedot!$B$3:$Q$5,2,FALSE)*$B17,0) -> 0 | T17: =IF($D17<>"",IF(AND($D17<=EOMONTH(H$2,0),$E17>=H$2),SUMPRODUCT(--(WEEKDAY(ROW(INDIRECT(MAX($D17,H$2)&":"&MIN($E17,EOMONTH(H$2,0)))))=MATCH($F17,{"Su";"Ma";"Ti";"Ke";"To";"Pe";"La"},0)))-SUMPRODUCT(--COUNTIF(INDIRECT("Kenttätiedot!"&HLOOKUP($A17,Kenttätiedot!$B$3:$Q$5,3,FALSE)&"6:"&HLOOKUP($A17,Kenttätiedot!$B$3:$Q$5,3,FALSE)&"300"),ROW(INDIRECT(MAX($D17,H$2)&":"&MIN($E17,EOMONTH(H$2,0)))))*(WEEKDAY(ROW(INDIRECT(MAX($D17,H$2)&":"&MIN($E17,EOMONTH(H$2,0)))))=MATCH($F17,{"Su";"Ma";"Ti";"Ke";"To";"Pe";"La"},0))),0)*$G17,0) -> 0 | U17: =IF($D17<>"",IF(AND($D17<=EOMONTH(I$2,0),$E17>=I$2),SUMPRODUCT(--(WEEKDAY(ROW(INDIRECT(MAX($D17,I$2)&":"&MIN($E17,EOMONTH(I$2,0)))))=MATCH($F17,{"Su";"Ma";"Ti";"Ke";"To";"Pe";"La"},0)))-SUMPRODUCT(--COUNTIF(INDIRECT("Kenttätiedot!"&HLOOKUP($A17,Kenttätiedot!$B$3:$Q$5,3,FALSE)&"6:"&HLOOKUP($A17,Kenttätiedot!$B$3:$Q$5,3,FALSE)&"300"),ROW(INDIRECT(MAX($D17,I$2)&":"&MIN($E17,EOMONTH(I$2,0)))))*(WEEKDAY(ROW(INDIRECT(MAX($D17,I$2)&":"&MIN($E17,EOMONTH(I$2,0)))))=MATCH($F17,{"Su";"Ma";"Ti";"Ke";"To";"Pe";"La"},0))),0)*$G17,0) -> 0 | V17: =IF($D17<>"",IF(AND($D17<=EOMONTH(J$2,0),$E17>=J$2),SUMPRODUCT(--(WEEKDAY(ROW(INDIRECT(MAX($D17,J$2)&":"&MIN($E17,EOMONTH(J$2,0)))))=MATCH($F17,{"Su";"Ma";"Ti";"Ke";"To";"Pe";"La"},0)))-SUMPRODUCT(--COUNTIF(INDIRECT("Kenttätiedot!"&HLOOKUP($A17,Kenttätiedot!$B$3:$Q$5,3,FALSE)&"6:"&HLOOKUP($A17,Kenttätiedot!$B$3:$Q$5,3,FALSE)&"300"),ROW(INDIRECT(MAX($D17,J$2)&":"&MIN($E17,EOMONTH(J$2,0)))))*(WEEKDAY(ROW(INDIRECT(MAX($D17,J$2)&":"&MIN($E17,EOMONTH(J$2,0)))))=MATCH($F17,{"Su";"Ma";"Ti";"Ke";"To";"Pe";"La"},0))),0)*$G17,0) -> 0 | W17: =IF($D17<>"",IF(AND($D17<=EOMONTH(K$2,0),$E17>=K$2),SUMPRODUCT(--(WEEKDAY(ROW(INDIRECT(MAX($D17,K$2)&":"&MIN($E17,EOMONTH(K$2,0)))))=MATCH($F17,{"Su";"Ma";"Ti";"Ke";"To";"Pe";"La"},0)))-SUMPRODUCT(--COUNTIF(INDIRECT("Kenttätiedot!"&HLOOKUP($A17,Kenttätiedot!$B$3:$Q$5,3,FALSE)&"6:"&HLOOKUP($A17,Kenttätiedot!$B$3:$Q$5,3,FALSE)&"300"),ROW(INDIRECT(MAX($D17,K$2)&":"&MIN($E17,EOMONTH(K$2,0)))))*(WEEKDAY(ROW(INDIRECT(MAX($D17,K$2)&":"&MIN($E17,EOMONTH(K$2,0)))))=MATCH($F17,{"Su";"Ma";"Ti";"Ke";"To";"Pe";"La"},0))),0)*$G17,0) -> 0 | X17: =IF($D17<>"",IF(AND($D17<=EOMONTH(L$2,0),$E17>=L$2),SUMPRODUCT(--(WEEKDAY(ROW(INDIRECT(MAX($D17,L$2)&":"&MIN($E17,EOMONTH(L$2,0)))))=MATCH($F17,{"Su";"Ma";"Ti";"Ke";"To";"Pe";"La"},0)))-SUMPRODUCT(--COUNTIF(INDIRECT("Kenttätiedot!"&HLOOKUP($A17,Kenttätiedot!$B$3:$Q$5,3,FALSE)&"6:"&HLOOKUP($A17,Kenttätiedot!$B$3:$Q$5,3,FALSE)&"300"),ROW(INDIRECT(MAX($D17,L$2)&":"&MIN($E17,EOMONTH(L$2,0)))))*(WEEKDAY(ROW(INDIRECT(MAX($D17,L$2)&":"&MIN($E17,EOMONTH(L$2,0)))))=MATCH($F17,{"Su";"Ma";"Ti";"Ke";"To";"Pe";"La"},0))),0)*$G17,0) -> 0 | Y17: =IF($D17<>"",IF(AND($D17<=EOMONTH(M$2,0),$E17>=M$2),SUMPRODUCT(--(WEEKDAY(ROW(INDIRECT(MAX($D17,M$2)&":"&MIN($E17,EOMONTH(M$2,0)))))=MATCH($F17,{"Su";"Ma";"Ti";"Ke";"To";"Pe";"La"},0)))-SUMPRODUCT(--COUNTIF(INDIRECT("Kenttätiedot!"&HLOOKUP($A17,Kenttätiedot!$B$3:$Q$5,3,FALSE)&"6:"&HLOOKUP($A17,Kenttätiedot!$B$3:$Q$5,3,FALSE)&"300"),ROW(INDIRECT(MAX($D17,M$2)&":"&MIN($E17,EOMONTH(M$2,0)))))*(WEEKDAY(ROW(INDIRECT(MAX($D17,M$2)&":"&MIN($E17,EOMONTH(M$2,0)))))=MATCH($F17,{"Su";"Ma";"Ti";"Ke";"To";"Pe";"La"},0))),0)*$G17,0) -> 0 | Z17: =IF($D17<>"",IF(AND($D17<=EOMONTH(N$2,0),$E17>=N$2),SUMPRODUCT(--(WEEKDAY(ROW(INDIRECT(MAX($D17,N$2)&":"&MIN($E17,EOMONTH(N$2,0)))))=MATCH($F17,{"Su";"Ma";"Ti";"Ke";"To";"Pe";"La"},0)))-SUMPRODUCT(--COUNTIF(INDIRECT("Kenttätiedot!"&HLOOKUP($A17,Kenttätiedot!$B$3:$Q$5,3,FALSE)&"6:"&HLOOKUP($A17,Kenttätiedot!$B$3:$Q$5,3,FALSE)&"300"),ROW(INDIRECT(MAX($D17,N$2)&":"&MIN($E17,EOMONTH(N$2,0)))))*(WEEKDAY(ROW(INDIRECT(MAX($D17,N$2)&":"&MIN($E17,EOMONTH(N$2,0)))))=MATCH($F17,{"Su";"Ma";"Ti";"Ke";"To";"Pe";"La"},0))),0)*$G17,0) -> 0 | AA17: =IF($D17<>"",IF(AND($D17<=EOMONTH(O$2,0),$E17>=O$2),SUMPRODUCT(--(WEEKDAY(ROW(INDIRECT(MAX($D17,O$2)&":"&MIN($E17,EOMONTH(O$2,0)))))=MATCH($F17,{"Su";"Ma";"Ti";"Ke";"To";"Pe";"La"},0)))-SUMPRODUCT(--COUNTIF(INDIRECT("Kenttätiedot!"&HLOOKUP($A17,Kenttätiedot!$B$3:$Q$5,3,FALSE)&"6:"&HLOOKUP($A17,Kenttätiedot!$B$3:$Q$5,3,FALSE)&"300"),ROW(INDIRECT(MAX($D17,O$2)&":"&MIN($E17,EOMONTH(O$2,0)))))*(WEEKDAY(ROW(INDIRECT(MAX($D17,O$2)&":"&MIN($E17,EOMONTH(O$2,0)))))=MATCH($F17,{"Su";"Ma";"Ti";"Ke";"To";"Pe";"La"},0))),0)*$G17,0) -> 0 | AB17: =IF($D17<>"",IF(AND($D17<=EOMONTH(P$2,0),$E17>=P$2),SUMPRODUCT(--(WEEKDAY(ROW(INDIRECT(MAX($D17,P$2)&":"&MIN($E17,EOMONTH(P$2,0)))))=MATCH($F17,{"Su";"Ma";"Ti";"Ke";"To";"Pe";"La"},0)))-SUMPRODUCT(--COUNTIF(INDIRECT("Kenttätiedot!"&HLOOKUP($A17,Kenttätiedot!$B$3:$Q$5,3,FALSE)&"6:"&HLOOKUP($A17,Kenttätiedot!$B$3:$Q$5,3,FALSE)&"300"),ROW(INDIRECT(MAX($D17,P$2)&":"&MIN($E17,EOMONTH(P$2,0)))))*(WEEKDAY(ROW(INDIRECT(MAX($D17,P$2)&":"&MIN($E17,EOMONTH(P$2,0)))))=MATCH($F17,{"Su";"Ma";"Ti";"Ke";"To";"Pe";"La"},0))),0)*$G17,0) -> 0 | AC17: =IF($D17<>"",IF(AND($D17<=EOMONTH(Q$2,0),$E17>=Q$2),SUMPRODUCT(--(WEEKDAY(ROW(INDIRECT(MAX($D17,Q$2)&":"&MIN($E17,EOMONTH(Q$2,0)))))=MATCH($F17,{"Su";"Ma";"Ti";"Ke";"To";"Pe";"La"},0)))-SUMPRODUCT(--COUNTIF(INDIRECT("Kenttätiedot!"&HLOOKUP($A17,Kenttätiedot!$B$3:$Q$5,3,FALSE)&"6:"&HLOOKUP($A17,Kenttätiedot!$B$3:$Q$5,3,FALSE)&"300"),ROW(INDIRECT(MAX($D17,Q$2)&":"&MIN($E17,EOMONTH(Q$2,0)))))*(WEEKDAY(ROW(INDIRECT(MAX($D17,Q$2)&":"&MIN($E17,EOMONTH(Q$2,0)))))=MATCH($F17,{"Su";"Ma";"Ti";"Ke";"To";"Pe";"La"},0))),0)*$G17,0) -> 0 | AD17: =IF($D17<>"",IF(AND($D17<=EOMONTH(R$2,0),$E17>=R$2),SUMPRODUCT(--(WEEKDAY(ROW(INDIRECT(MAX($D17,R$2)&":"&MIN($E17,EOMONTH(R$2,0)))))=MATCH($F17,{"Su";"Ma";"Ti";"Ke";"To";"Pe";"La"},0)))-SUMPRODUCT(--COUNTIF(INDIRECT("Kenttätiedot!"&HLOOKUP($A17,Kenttätiedot!$B$3:$Q$5,3,FALSE)&"6:"&HLOOKUP($A17,Kenttätiedot!$B$3:$Q$5,3,FALSE)&"300"),ROW(INDIRECT(MAX($D17,R$2)&":"&MIN($E17,EOMONTH(R$2,0)))))*(WEEKDAY(ROW(INDIRECT(MAX($D17,R$2)&":"&MIN($E17,EOMONTH(R$2,0)))))=MATCH($F17,{"Su";"Ma";"Ti";"Ke";"To";"Pe";"La"},0))),0)*$G17,0) -> 0 | AE17: =IF($D17<>"",IF(AND($D17<=EOMONTH(S$2,0),$E17>=S$2),SUMPRODUCT(--(WEEKDAY(ROW(INDIRECT(MAX($D17,S$2)&":"&MIN($E17,EOMONTH(S$2,0)))))=MATCH($F17,{"Su";"Ma";"Ti";"Ke";"To";"Pe";"La"},0)))-SUMPRODUCT(--COUNTIF(INDIRECT("Kenttätiedot!"&HLOOKUP($A17,Kenttätiedot!$B$3:$Q$5,3,FALSE)&"6:"&HLOOKUP($A17,Kenttätiedot!$B$3:$Q$5,3,FALSE)&"300"),ROW(INDIRECT(MAX($D17,S$2)&":"&MIN($E17,EOMONTH(S$2,0)))))*(WEEKDAY(ROW(INDIRECT(MAX($D17,S$2)&":"&MIN($E17,EOMONTH(S$2,0)))))=MATCH($F17,{"Su";"Ma";"Ti";"Ke";"To";"Pe";"La"},0))),0)*$G17,0) -> 0
A18: Ulkotekonurmi | C18: 1 | D18: 2023-04-10 | E18: 2023-10-31 | F18: To | H18: =IF($D18<>"",IF(AND($D18<=EOMONTH(H$2,0),$E18>=H$2),SUMPRODUCT(--(WEEKDAY(ROW(INDIRECT(MAX($D18,H$2)&":"&MIN($E18,EOMONTH(H$2,0)))))=MATCH($F18,{"Su";"Ma";"Ti";"Ke";"To";"Pe";"La"},0)))-SUMPRODUCT(--COUNTIF(INDIRECT("Kenttätiedot!"&HLOOKUP($A18,Kenttätiedot!$B$3:$Q$5,3,FALSE)&"6:"&HLOOKUP($A18,Kenttätiedot!$B$3:$Q$5,3,FALSE)&"300"),ROW(INDIRECT(MAX($D18,H$2)&":"&MIN($E18,EOMONTH(H$2,0)))))*(WEEKDAY(ROW(INDIRECT(MAX($D18,H$2)&":"&MIN($E18,EOMONTH(H$2,0)))))=MATCH($F18,{"Su";"Ma";"Ti";"Ke";"To";"Pe";"La"},0))),0)*HLOOKUP($A18,Kenttätiedot!$B$3:$Q$5,2,FALSE)*$B18,0) -> 0 | I18: =IF($D18<>"",IF(AND($D18<=EOMONTH(I$2,0),$E18>=I$2),SUMPRODUCT(--(WEEKDAY(ROW(INDIRECT(MAX($D18,I$2)&":"&MIN($E18,EOMONTH(I$2,0)))))=MATCH($F18,{"Su";"Ma";"Ti";"Ke";"To";"Pe";"La"},0)))-SUMPRODUCT(--COUNTIF(INDIRECT("Kenttätiedot!"&HLOOKUP($A18,Kenttätiedot!$B$3:$Q$5,3,FALSE)&"6:"&HLOOKUP($A18,Kenttätiedot!$B$3:$Q$5,3,FALSE)&"300"),ROW(INDIRECT(MAX($D18,I$2)&":"&MIN($E18,EOMONTH(I$2,0)))))*(WEEKDAY(ROW(INDIRECT(MAX($D18,I$2)&":"&MIN($E18,EOMONTH(I$2,0)))))=MATCH($F18,{"Su";"Ma";"Ti";"Ke";"To";"Pe";"La"},0))),0)*HLOOKUP($A18,Kenttätiedot!$B$3:$Q$5,2,FALSE)*$B18,0) -> 0 | J18: =IF($D18<>"",IF(AND($D18<=EOMONTH(J$2,0),$E18>=J$2),SUMPRODUCT(--(WEEKDAY(ROW(INDIRECT(MAX($D18,J$2)&":"&MIN($E18,EOMONTH(J$2,0)))))=MATCH($F18,{"Su";"Ma";"Ti";"Ke";"To";"Pe";"La"},0)))-SUMPRODUCT(--COUNTIF(INDIRECT("Kenttätiedot!"&HLOOKUP($A18,Kenttätiedot!$B$3:$Q$5,3,FALSE)&"6:"&HLOOKUP($A18,Kenttätiedot!$B$3:$Q$5,3,FALSE)&"300"),ROW(INDIRECT(MAX($D18,J$2)&":"&MIN($E18,EOMONTH(J$2,0)))))*(WEEKDAY(ROW(INDIRECT(MAX($D18,J$2)&":"&MIN($E18,EOMONTH(J$2,0)))))=MATCH($F18,{"Su";"Ma";"Ti";"Ke";"To";"Pe";"La"},0))),0)*HLOOKUP($A18,Kenttätiedot!$B$3:$Q$5,2,FALSE)*$B18,0) -> 0 | K18: =IF($D18<>"",IF(AND($D18<=EOMONTH(K$2,0),$E18>=K$2),SUMPRODUCT(--(WEEKDAY(ROW(INDIRECT(MAX($D18,K$2)&":"&MIN($E18,EOMONTH(K$2,0)))))=MATCH($F18,{"Su";"Ma";"Ti";"Ke";"To";"Pe";"La"},0)))-SUMPRODUCT(--COUNTIF(INDIRECT("Kenttätiedot!"&HLOOKUP($A18,Kenttätiedot!$B$3:$Q$5,3,FALSE)&"6:"&HLOOKUP($A18,Kenttätiedot!$B$3:$Q$5,3,FALSE)&"300"),ROW(INDIRECT(MAX($D18,K$2)&":"&MIN($E18,EOMONTH(K$2,0)))))*(WEEKDAY(ROW(INDIRECT(MAX($D18,K$2)&":"&MIN($E18,EOMONTH(K$2,0)))))=MATCH($F18,{"Su";"Ma";"Ti";"Ke";"To";"Pe";"La"},0))),0)*HLOOKUP($A18,Kenttätiedot!$B$3:$Q$5,2,FALSE)*$B18,0) -> 0 | L18: =IF($D18<>"",IF(AND($D18<=EOMONTH(L$2,0),$E18>=L$2),SUMPRODUCT(--(WEEKDAY(ROW(INDIRECT(MAX($D18,L$2)&":"&MIN($E18,EOMONTH(L$2,0)))))=MATCH($F18,{"Su";"Ma";"Ti";"Ke";"To";"Pe";"La"},0)))-SUMPRODUCT(--COUNTIF(INDIRECT("Kenttätiedot!"&HLOOKUP($A18,Kenttätiedot!$B$3:$Q$5,3,FALSE)&"6:"&HLOOKUP($A18,Kenttätiedot!$B$3:$Q$5,3,FALSE)&"300"),ROW(INDIRECT(MAX($D18,L$2)&":"&MIN($E18,EOMONTH(L$2,0)))))*(WEEKDAY(ROW(INDIRECT(MAX($D18,L$2)&":"&MIN($E18,EOMONTH(L$2,0)))))=MATCH($F18,{"Su";"Ma";"Ti";"Ke";"To";"Pe";"La"},0))),0)*HLOOKUP($A18,Kenttätiedot!$B$3:$Q$5,2,FALSE)*$B18,0) -> 0 | M18: =IF($D18<>"",IF(AND($D18<=EOMONTH(M$2,0),$E18>=M$2),SUMPRODUCT(--(WEEKDAY(ROW(INDIRECT(MAX($D18,M$2)&":"&MIN($E18,EOMONTH(M$2,0)))))=MATCH($F18,{"Su";"Ma";"Ti";"Ke";"To";"Pe";"La"},0)))-SUMPRODUCT(--COUNTIF(INDIRECT("Kenttätiedot!"&HLOOKUP($A18,Kenttätiedot!$B$3:$Q$5,3,FALSE)&"6:"&HLOOKUP($A18,Kenttätiedot!$B$3:$Q$5,3,FALSE)&"300"),ROW(INDIRECT(MAX($D18,M$2)&":"&MIN($E18,EOMONTH(M$2,0)))))*(WEEKDAY(ROW(INDIRECT(MAX($D18,M$2)&":"&MIN($E18,EOMONTH(M$2,0)))))=MATCH($F18,{"Su";"Ma";"Ti";"Ke";"To";"Pe";"La"},0))),0)*HLOOKUP($A18,Kenttätiedot!$B$3:$Q$5,2,FALSE)*$B18,0) -> 0 | N18: =IF($D18<>"",IF(AND($D18<=EOMONTH(N$2,0),$E18>=N$2),SUMPRODUCT(--(WEEKDAY(ROW(INDIRECT(MAX($D18,N$2)&":"&MIN($E18,EOMONTH(N$2,0)))))=MATCH($F18,{"Su";"Ma";"Ti";"Ke";"To";"Pe";"La"},0)))-SUMPRODUCT(--COUNTIF(INDIRECT("Kenttätiedot!"&HLOOKUP($A18,Kenttätiedot!$B$3:$Q$5,3,FALSE)&"6:"&HLOOKUP($A18,Kenttätiedot!$B$3:$Q$5,3,FALSE)&"300"),ROW(INDIRECT(MAX($D18,N$2)&":"&MIN($E18,EOMONTH(N$2,0)))))*(WEEKDAY(ROW(INDIRECT(MAX($D18,N$2)&":"&MIN($E18,EOMONTH(N$2,0)))))=MATCH($F18,{"Su";"Ma";"Ti";"Ke";"To";"Pe";"La"},0))),0)*HLOOKUP($A18,Kenttätiedot!$B$3:$Q$5,2,FALSE)*$B18,0) -> 0 | O18: =IF($D18<>"",IF(AND($D18<=EOMONTH(O$2,0),$E18>=O$2),SUMPRODUCT(--(WEEKDAY(ROW(INDIRECT(MAX($D18,O$2)&":"&MIN($E18,EOMONTH(O$2,0)))))=MATCH($F18,{"Su";"Ma";"Ti";"Ke";"To";"Pe";"La"},0)))-SUMPRODUCT(--COUNTIF(INDIRECT("Kenttätiedot!"&HLOOKUP($A18,Kenttätiedot!$B$3:$Q$5,3,FALSE)&"6:"&HLOOKUP($A18,Kenttätiedot!$B$3:$Q$5,3,FALSE)&"300"),ROW(INDIRECT(MAX($D18,O$2)&":"&MIN($E18,EOMONTH(O$2,0)))))*(WEEKDAY(ROW(INDIRECT(MAX($D18,O$2)&":"&MIN($E18,EOMONTH(O$2,0)))))=MATCH($F18,{"Su";"Ma";"Ti";"Ke";"To";"Pe";"La"},0))),0)*HLOOKUP($A18,Kenttätiedot!$B$3:$Q$5,2,FALSE)*$B18,0) -> 0 | P18: =IF($D18<>"",IF(AND($D18<=EOMONTH(P$2,0),$E18>=P$2),SUMPRODUCT(--(WEEKDAY(ROW(INDIRECT(MAX($D18,P$2)&":"&MIN($E18,EOMONTH(P$2,0)))))=MATCH($F18,{"Su";"Ma";"Ti";"Ke";"To";"Pe";"La"},0)))-SUMPRODUCT(--COUNTIF(INDIRECT("Kenttätiedot!"&HLOOKUP($A18,Kenttätiedot!$B$3:$Q$5,3,FALSE)&"6:"&HLOOKUP($A18,Kenttätiedot!$B$3:$Q$5,3,FALSE)&"300"),ROW(INDIRECT(MAX($D18,P$2)&":"&MIN($E18,EOMONTH(P$2,0)))))*(WEEKDAY(ROW(INDIRECT(MAX($D18,P$2)&":"&MIN($E18,EOMONTH(P$2,0)))))=MATCH($F18,{"Su";"Ma";"Ti";"Ke";"To";"Pe";"La"},0))),0)*HLOOKUP($A18,Kenttätiedot!$B$3:$Q$5,2,FALSE)*$B18,0) -> 0 | Q18: =IF($D18<>"",IF(AND($D18<=EOMONTH(Q$2,0),$E18>=Q$2),SUMPRODUCT(--(WEEKDAY(ROW(INDIRECT(MAX($D18,Q$2)&":"&MIN($E18,EOMONTH(Q$2,0)))))=MATCH($F18,{"Su";"Ma";"Ti";"Ke";"To";"Pe";"La"},0)))-SUMPRODUCT(--COUNTIF(INDIRECT("Kenttätiedot!"&HLOOKUP($A18,Kenttätiedot!$B$3:$Q$5,3,FALSE)&"6:"&HLOOKUP($A18,Kenttätiedot!$B$3:$Q$5,3,FALSE)&"300"),ROW(INDIRECT(MAX($D18,Q$2)&":"&MIN($E18,EOMONTH(Q$2,0)))))*(WEEKDAY(ROW(INDIRECT(MAX($D18,Q$2)&":"&MIN($E18,EOMONTH(Q$2,0)))))=MATCH($F18,{"Su";"Ma";"Ti";"Ke";"To";"Pe";"La"},0))),0)*HLOOKUP($A18,Kenttätiedot!$B$3:$Q$5,2,FALSE)*$B18,0) -> 0 | R18: =IF($D18<>"",IF(AND($D18<=EOMONTH(R$2,0),$E18>=R$2),SUMPRODUCT(--(WEEKDAY(ROW(INDIRECT(MAX($D18,R$2)&":"&MIN($E18,EOMONTH(R$2,0)))))=MATCH($F18,{"Su";"Ma";"Ti";"Ke";"To";"Pe";"La"},0)))-SUMPRODUCT(--COUNTIF(INDIRECT("Kenttätiedot!"&HLOOKUP($A18,Kenttätiedot!$B$3:$Q$5,3,FALSE)&"6:"&HLOOKUP($A18,Kenttätiedot!$B$3:$Q$5,3,FALSE)&"300"),ROW(INDIRECT(MAX($D18,R$2)&":"&MIN($E18,EOMONTH(R$2,0)))))*(WEEKDAY(ROW(INDIRECT(MAX($D18,R$2)&":"&MIN($E18,EOMONTH(R$2,0)))))=MATCH($F18,{"Su";"Ma";"Ti";"Ke";"To";"Pe";"La"},0))),0)*HLOOKUP($A18,Kenttätiedot!$B$3:$Q$5,2,FALSE)*$B18,0) -> 0 | S18: =IF($D18<>"",IF(AND($D18<=EOMONTH(S$2,0),$E18>=S$2),SUMPRODUCT(--(WEEKDAY(ROW(INDIRECT(MAX($D18,S$2)&":"&MIN($E18,EOMONTH(S$2,0)))))=MATCH($F18,{"Su";"Ma";"Ti";"Ke";"To";"Pe";"La"},0)))-SUMPRODUCT(--COUNTIF(INDIRECT("Kenttätiedot!"&HLOOKUP($A18,Kenttätiedot!$B$3:$Q$5,3,FALSE)&"6:"&HLOOKUP($A18,Kenttätiedot!$B$3:$Q$5,3,FALSE)&"300"),ROW(INDIRECT(MAX($D18,S$2)&":"&MIN($E18,EOMONTH(S$2,0)))))*(WEEKDAY(ROW(INDIRECT(MAX($D18,S$2)&":"&MIN($E18,EOMONTH(S$2,0)))))=MATCH($F18,{"Su";"Ma";"Ti";"Ke";"To";"Pe";"La"},0))),0)*HLOOKUP($A18,Kenttätiedot!$B$3:$Q$5,2,FALSE)*$B18,0) -> 0 | T18: =IF($D18<>"",IF(AND($D18<=EOMONTH(H$2,0),$E18>=H$2),SUMPRODUCT(--(WEEKDAY(ROW(INDIRECT(MAX($D18,H$2)&":"&MIN($E18,EOMONTH(H$2,0)))))=MATCH($F18,{"Su";"Ma";"Ti";"Ke";"To";"Pe";"La"},0)))-SUMPRODUCT(--COUNTIF(INDIRECT("Kenttätiedot!"&HLOOKUP($A18,Kenttätiedot!$B$3:$Q$5,3,FALSE)&"6:"&HLOOKUP($A18,Kenttätiedot!$B$3:$Q$5,3,FALSE)&"300"),ROW(INDIRECT(MAX($D18,H$2)&":"&MIN($E18,EOMONTH(H$2,0)))))*(WEEKDAY(ROW(INDIRECT(MAX($D18,H$2)&":"&MIN($E18,EOMONTH(H$2,0)))))=MATCH($F18,{"Su";"Ma";"Ti";"Ke";"To";"Pe";"La"},0))),0)*$G18,0) -> 0 | U18: =IF($D18<>"",IF(AND($D18<=EOMONTH(I$2,0),$E18>=I$2),SUMPRODUCT(--(WEEKDAY(ROW(INDIRECT(MAX($D18,I$2)&":"&MIN($E18,EOMONTH(I$2,0)))))=MATCH($F18,{"Su";"Ma";"Ti";"Ke";"To";"Pe";"La"},0)))-SUMPRODUCT(--COUNTIF(INDIRECT("Kenttätiedot!"&HLOOKUP($A18,Kenttätiedot!$B$3:$Q$5,3,FALSE)&"6:"&HLOOKUP($A18,Kenttätiedot!$B$3:$Q$5,3,FALSE)&"300"),ROW(INDIRECT(MAX($D18,I$2)&":"&MIN($E18,EOMONTH(I$2,0)))))*(WEEKDAY(ROW(INDIRECT(MAX($D18,I$2)&":"&MIN($E18,EOMONTH(I$2,0)))))=MATCH($F18,{"Su";"Ma";"Ti";"Ke";"To";"Pe";"La"},0))),0)*$G18,0) -> 0 | V18: =IF($D18<>"",IF(AND($D18<=EOMONTH(J$2,0),$E18>=J$2),SUMPRODUCT(--(WEEKDAY(ROW(INDIRECT(MAX($D18,J$2)&":"&MIN($E18,EOMONTH(J$2,0)))))=MATCH($F18,{"Su";"Ma";"Ti";"Ke";"To";"Pe";"La"},0)))-SUMPRODUCT(--COUNTIF(INDIRECT("Kenttätiedot!"&HLOOKUP($A18,Kenttätiedot!$B$3:$Q$5,3,FALSE)&"6:"&HLOOKUP($A18,Kenttätiedot!$B$3:$Q$5,3,FALSE)&"300"),ROW(INDIRECT(MAX($D18,J$2)&":"&MIN($E18,EOMONTH(J$2,0)))))*(WEEKDAY(ROW(INDIRECT(MAX($D18,J$2)&":"&MIN($E18,EOMONTH(J$2,0)))))=MATCH($F18,{"Su";"Ma";"Ti";"Ke";"To";"Pe";"La"},0))),0)*$G18,0) -> 0 | W18: =IF($D18<>"",IF(AND($D18<=EOMONTH(K$2,0),$E18>=K$2),SUMPRODUCT(--(WEEKDAY(ROW(INDIRECT(MAX($D18,K$2)&":"&MIN($E18,EOMONTH(K$2,0)))))=MATCH($F18,{"Su";"Ma";"Ti";"Ke";"To";"Pe";"La"},0)))-SUMPRODUCT(--COUNTIF(INDIRECT("Kenttätiedot!"&HLOOKUP($A18,Kenttätiedot!$B$3:$Q$5,3,FALSE)&"6:"&HLOOKUP($A18,Kenttätiedot!$B$3:$Q$5,3,FALSE)&"300"),ROW(INDIRECT(MAX($D18,K$2)&":"&MIN($E18,EOMONTH(K$2,0)))))*(WEEKDAY(ROW(INDIRECT(MAX($D18,K$2)&":"&MIN($E18,EOMONTH(K$2,0)))))=MATCH($F18,{"Su";"Ma";"Ti";"Ke";"To";"Pe";"La"},0))),0)*$G18,0) -> 0 | X18: =IF($D18<>"",IF(AND($D18<=EOMONTH(L$2,0),$E18>=L$2),SUMPRODUCT(--(WEEKDAY(ROW(INDIRECT(MAX($D18,L$2)&":"&MIN($E18,EOMONTH(L$2,0)))))=MATCH($F18,{"Su";"Ma";"Ti";"Ke";"To";"Pe";"La"},0)))-SUMPRODUCT(--COUNTIF(INDIRECT("Kenttätiedot!"&HLOOKUP($A18,Kenttätiedot!$B$3:$Q$5,3,FALSE)&"6:"&HLOOKUP($A18,Kenttätiedot!$B$3:$Q$5,3,FALSE)&"300"),ROW(INDIRECT(MAX($D18,L$2)&":"&MIN($E18,EOMONTH(L$2,0)))))*(WEEKDAY(ROW(INDIRECT(MAX($D18,L$2)&":"&MIN($E18,EOMONTH(L$2,0)))))=MATCH($F18,{"Su";"Ma";"Ti";"Ke";"To";"Pe";"La"},0))),0)*$G18,0) -> 0 | Y18: =IF($D18<>"",IF(AND($D18<=EOMONTH(M$2,0),$E18>=M$2),SUMPRODUCT(--(WEEKDAY(ROW(INDIRECT(MAX($D18,M$2)&":"&MIN($E18,EOMONTH(M$2,0)))))=MATCH($F18,{"Su";"Ma";"Ti";"Ke";"To";"Pe";"La"},0)))-SUMPRODUCT(--COUNTIF(INDIRECT("Kenttätiedot!"&HLOOKUP($A18,Kenttätiedot!$B$3:$Q$5,3,FALSE)&"6:"&HLOOKUP($A18,Kenttätiedot!$B$3:$Q$5,3,FALSE)&"300"),ROW(INDIRECT(MAX($D18,M$2)&":"&MIN($E18,EOMONTH(M$2,0)))))*(WEEKDAY(ROW(INDIRECT(MAX($D18,M$2)&":"&MIN($E18,EOMONTH(M$2,0)))))=MATCH($F18,{"Su";"Ma";"Ti";"Ke";"To";"Pe";"La"},0))),0)*$G18,0) -> 0 | Z18: =IF($D18<>"",IF(AND($D18<=EOMONTH(N$2,0),$E18>=N$2),SUMPRODUCT(--(WEEKDAY(ROW(INDIRECT(MAX($D18,N$2)&":"&MIN($E18,EOMONTH(N$2,0)))))=MATCH($F18,{"Su";"Ma";"Ti";"Ke";"To";"Pe";"La"},0)))-SUMPRODUCT(--COUNTIF(INDIRECT("Kenttätiedot!"&HLOOKUP($A18,Kenttätiedot!$B$3:$Q$5,3,FALSE)&"6:"&HLOOKUP($A18,Kenttätiedot!$B$3:$Q$5,3,FALSE)&"300"),ROW(INDIRECT(MAX($D18,N$2)&":"&MIN($E18,EOMONTH(N$2,0)))))*(WEEKDAY(ROW(INDIRECT(MAX($D18,N$2)&":"&MIN($E18,EOMONTH(N$2,0)))))=MATCH($F18,{"Su";"Ma";"Ti";"Ke";"To";"Pe";"La"},0))),0)*$G18,0) -> 0 | AA18: =IF($D18<>"",IF(AND($D18<=EOMONTH(O$2,0),$E18>=O$2),SUMPRODUCT(--(WEEKDAY(ROW(INDIRECT(MAX($D18,O$2)&":"&MIN($E18,EOMONTH(O$2,0)))))=MATCH($F18,{"Su";"Ma";"Ti";"Ke";"To";"Pe";"La"},0)))-SUMPRODUCT(--COUNTIF(INDIRECT("Kenttätiedot!"&HLOOKUP($A18,Kenttätiedot!$B$3:$Q$5,3,FALSE)&"6:"&HLOOKUP($A18,Kenttätiedot!$B$3:$Q$5,3,FALSE)&"300"),ROW(INDIRECT(MAX($D18,O$2)&":"&MIN($E18,EOMONTH(O$2,0)))))*(WEEKDAY(ROW(INDIRECT(MAX($D18,O$2)&":"&MIN($E18,EOMONTH(O$2,0)))))=MATCH($F18,{"Su";"Ma";"Ti";"Ke";"To";"Pe";"La"},0))),0)*$G18,0) -> 0 | AB18: =IF($D18<>"",IF(AND($D18<=EOMONTH(P$2,0),$E18>=P$2),SUMPRODUCT(--(WEEKDAY(ROW(INDIRECT(MAX($D18,P$2)&":"&MIN($E18,EOMONTH(P$2,0)))))=MATCH($F18,{"Su";"Ma";"Ti";"Ke";"To";"Pe";"La"},0)))-SUMPRODUCT(--COUNTIF(INDIRECT("Kenttätiedot!"&HLOOKUP($A18,Kenttätiedot!$B$3:$Q$5,3,FALSE)&"6:"&HLOOKUP($A18,Kenttätiedot!$B$3:$Q$5,3,FALSE)&"300"),ROW(INDIRECT(MAX($D18,P$2)&":"&MIN($E18,EOMONTH(P$2,0)))))*(WEEKDAY(ROW(INDIRECT(MAX($D18,P$2)&":"&MIN($E18,EOMONTH(P$2,0)))))=MATCH($F18,{"Su";"Ma";"Ti";"Ke";"To";"Pe";"La"},0))),0)*$G18,0) -> 0 | AC18: =IF($D18<>"",IF(AND($D18<=EOMONTH(Q$2,0),$E18>=Q$2),SUMPRODUCT(--(WEEKDAY(ROW(INDIRECT(MAX($D18,Q$2)&":"&MIN($E18,EOMONTH(Q$2,0)))))=MATCH($F18,{"Su";"Ma";"Ti";"Ke";"To";"Pe";"La"},0)))-SUMPRODUCT(--COUNTIF(INDIRECT("Kenttätiedot!"&HLOOKUP($A18,Kenttätiedot!$B$3:$Q$5,3,FALSE)&"6:"&HLOOKUP($A18,Kenttätiedot!$B$3:$Q$5,3,FALSE)&"300"),ROW(INDIRECT(MAX($D18,Q$2)&":"&MIN($E18,EOMONTH(Q$2,0)))))*(WEEKDAY(ROW(INDIRECT(MAX($D18,Q$2)&":"&MIN($E18,EOMONTH(Q$2,0)))))=MATCH($F18,{"Su";"Ma";"Ti";"Ke";"To";"Pe";"La"},0))),0)*$G18,0) -> 0 | AD18: =IF($D18<>"",IF(AND($D18<=EOMONTH(R$2,0),$E18>=R$2),SUMPRODUCT(--(WEEKDAY(ROW(INDIRECT(MAX($D18,R$2)&":"&MIN($E18,EOMONTH(R$2,0)))))=MATCH($F18,{"Su";"Ma";"Ti";"Ke";"To";"Pe";"La"},0)))-SUMPRODUCT(--COUNTIF(INDIRECT("Kenttätiedot!"&HLOOKUP($A18,Kenttätiedot!$B$3:$Q$5,3,FALSE)&"6:"&HLOOKUP($A18,Kenttätiedot!$B$3:$Q$5,3,FALSE)&"300"),ROW(INDIRECT(MAX($D18,R$2)&":"&MIN($E18,EOMONTH(R$2,0)))))*(WEEKDAY(ROW(INDIRECT(MAX($D18,R$2)&":"&MIN($E18,EOMONTH(R$2,0)))))=MATCH($F18,{"Su";"Ma";"Ti";"Ke";"To";"Pe";"La"},0))),0)*$G18,0) -> 0 | AE18: =IF($D18<>"",IF(AND($D18<=EOMONTH(S$2,0),$E18>=S$2),SUMPRODUCT(--(WEEKDAY(ROW(INDIRECT(MAX($D18,S$2)&":"&MIN($E18,EOMONTH(S$2,0)))))=MATCH($F18,{"Su";"Ma";"Ti";"Ke";"To";"Pe";"La"},0)))-SUMPRODUCT(--COUNTIF(INDIRECT("Kenttätiedot!"&HLOOKUP($A18,Kenttätiedot!$B$3:$Q$5,3,FALSE)&"6:"&HLOOKUP($A18,Kenttätiedot!$B$3:$Q$5,3,FALSE)&"300"),ROW(INDIRECT(MAX($D18,S$2)&":"&MIN($E18,EOMONTH(S$2,0)))))*(WEEKDAY(ROW(INDIRECT(MAX($D18,S$2)&":"&MIN($E18,EOMONTH(S$2,0)))))=MATCH($F18,{"Su";"Ma";"Ti";"Ke";"To";"Pe";"La"},0))),0)*$G18,0) -> 0
A19: Ulkotekonurmi | C19: 1 | D19: 2023-04-10 | E19: 2023-10-31 | F19: Su | H19: =IF($D19<>"",IF(AND($D19<=EOMONTH(H$2,0),$E19>=H$2),SUMPRODUCT(--(WEEKDAY(ROW(INDIRECT(MAX($D19,H$2)&":"&MIN($E19,EOMONTH(H$2,0)))))=MATCH($F19,{"Su";"Ma";"Ti";"Ke";"To";"Pe";"La"},0)))-SUMPRODUCT(--COUNTIF(INDIRECT("Kenttätiedot!"&HLOOKUP($A19,Kenttätiedot!$B$3:$Q$5,3,FALSE)&"6:"&HLOOKUP($A19,Kenttätiedot!$B$3:$Q$5,3,FALSE)&"300"),ROW(INDIRECT(MAX($D19,H$2)&":"&MIN($E19,EOMONTH(H$2,0)))))*(WEEKDAY(ROW(INDIRECT(MAX($D19,H$2)&":"&MIN($E19,EOMONTH(H$2,0)))))=MATCH($F19,{"Su";"Ma";"Ti";"Ke";"To";"Pe";"La"},0))),0)*HLOOKUP($A19,Kenttätiedot!$B$3:$Q$5,2,FALSE)*$B19,0) -> 0 | I19: =IF($D19<>"",IF(AND($D19<=EOMONTH(I$2,0),$E19>=I$2),SUMPRODUCT(--(WEEKDAY(ROW(INDIRECT(MAX($D19,I$2)&":"&MIN($E19,EOMONTH(I$2,0)))))=MATCH($F19,{"Su";"Ma";"Ti";"Ke";"To";"Pe";"La"},0)))-SUMPRODUCT(--COUNTIF(INDIRECT("Kenttätiedot!"&HLOOKUP($A19,Kenttätiedot!$B$3:$Q$5,3,FALSE)&"6:"&HLOOKUP($A19,Kenttätiedot!$B$3:$Q$5,3,FALSE)&"300"),ROW(INDIRECT(MAX($D19,I$2)&":"&MIN($E19,EOMONTH(I$2,0)))))*(WEEKDAY(ROW(INDIRECT(MAX($D19,I$2)&":"&MIN($E19,EOMONTH(I$2,0)))))=MATCH($F19,{"Su";"Ma";"Ti";"Ke";"To";"Pe";"La"},0))),0)*HLOOKUP($A19,Kenttätiedot!$B$3:$Q$5,2,FALSE)*$B19,0) -> 0 | J19: =IF($D19<>"",IF(AND($D19<=EOMONTH(J$2,0),$E19>=J$2),SUMPRODUCT(--(WEEKDAY(ROW(INDIRECT(MAX($D19,J$2)&":"&MIN($E19,EOMONTH(J$2,0)))))=MATCH($F19,{"Su";"Ma";"Ti";"Ke";"To";"Pe";"La"},0)))-SUMPRODUCT(--COUNTIF(INDIRECT("Kenttätiedot!"&HLOOKUP($A19,Kenttätiedot!$B$3:$Q$5,3,FALSE)&"6:"&HLOOKUP($A19,Kenttätiedot!$B$3:$Q$5,3,FALSE)&"300"),ROW(INDIRECT(MAX($D19,J$2)&":"&MIN($E19,EOMONTH(J$2,0)))))*(WEEKDAY(ROW(INDIRECT(MAX($D19,J$2)&":"&MIN($E19,EOMONTH(J$2,0)))))=MATCH($F19,{"Su";"Ma";"Ti";"Ke";"To";"Pe";"La"},0))),0)*HLOOKUP($A19,Kenttätiedot!$B$3:$Q$5,2,FALSE)*$B19,0) -> 0 | K19: =IF($D19<>"",IF(AND($D19<=EOMONTH(K$2,0),$E19>=K$2),SUMPRODUCT(--(WEEKDAY(ROW(INDIRECT(MAX($D19,K$2)&":"&MIN($E19,EOMONTH(K$2,0)))))=MATCH($F19,{"Su";"Ma";"Ti";"Ke";"To";"Pe";"La"},0)))-SUMPRODUCT(--COUNTIF(INDIRECT("Kenttätiedot!"&HLOOKUP($A19,Kenttätiedot!$B$3:$Q$5,3,FALSE)&"6:"&HLOOKUP($A19,Kenttätiedot!$B$3:$Q$5,3,FALSE)&"300"),ROW(INDIRECT(MAX($D19,K$2)&":"&MIN($E19,EOMONTH(K$2,0)))))*(WEEKDAY(ROW(INDIRECT(MAX($D19,K$2)&":"&MIN($E19,EOMONTH(K$2,0)))))=MATCH($F19,{"Su";"Ma";"Ti";"Ke";"To";"Pe";"La"},0))),0)*HLOOKUP($A19,Kenttätiedot!$B$3:$Q$5,2,FALSE)*$B19,0) -> 0 | L19: =IF($D19<>"",IF(AND($D19<=EOMONTH(L$2,0),$E19>=L$2),SUMPRODUCT(--(WEEKDAY(ROW(INDIRECT(MAX($D19,L$2)&":"&MIN($E19,EOMONTH(L$2,0)))))=MATCH($F19,{"Su";"Ma";"Ti";"Ke";"To";"Pe";"La"},0)))-SUMPRODUCT(--COUNTIF(INDIRECT("Kenttätiedot!"&HLOOKUP($A19,Kenttätiedot!$B$3:$Q$5,3,FALSE)&"6:"&HLOOKUP($A19,Kenttätiedot!$B$3:$Q$5,3,FALSE)&"300"),ROW(INDIRECT(MAX($D19,L$2)&":"&MIN($E19,EOMONTH(L$2,0)))))*(WEEKDAY(ROW(INDIRECT(MAX($D19,L$2)&":"&MIN($E19,EOMONTH(L$2,0)))))=MATCH($F19,{"Su";"Ma";"Ti";"Ke";"To";"Pe";"La"},0))),0)*HLOOKUP($A19,Kenttätiedot!$B$3:$Q$5,2,FALSE)*$B19,0) -> 0 | M19: =IF($D19<>"",IF(AND($D19<=EOMONTH(M$2,0),$E19>=M$2),SUMPRODUCT(--(WEEKDAY(ROW(INDIRECT(MAX($D19,M$2)&":"&MIN($E19,EOMONTH(M$2,0)))))=MATCH($F19,{"Su";"Ma";"Ti";"Ke";"To";"Pe";"La"},0)))-SUMPRODUCT(--COUNTIF(INDIRECT("Kenttätiedot!"&HLOOKUP($A19,Kenttätiedot!$B$3:$Q$5,3,FALSE)&"6:"&HLOOKUP($A19,Kenttätiedot!$B$3:$Q$5,3,FALSE)&"300"),ROW(INDIRECT(MAX($D19,M$2)&":"&MIN($E19,EOMONTH(M$2,0)))))*(WEEKDAY(ROW(INDIRECT(MAX($D19,M$2)&":"&MIN($E19,EOMONTH(M$2,0)))))=MATCH($F19,{"Su";"Ma";"Ti";"Ke";"To";"Pe";"La"},0))),0)*HLOOKUP($A19,Kenttätiedot!$B$3:$Q$5,2,FALSE)*$B19,0) -> 0 | N19: =IF($D19<>"",IF(AND($D19<=EOMONTH(N$2,0),$E19>=N$2),SUMPRODUCT(--(WEEKDAY(ROW(INDIRECT(MAX($D19,N$2)&":"&MIN($E19,EOMONTH(N$2,0)))))=MATCH($F19,{"Su";"Ma";"Ti";"Ke";"To";"Pe";"La"},0)))-SUMPRODUCT(--COUNTIF(INDIRECT("Kenttätiedot!"&HLOOKUP($A19,Kenttätiedot!$B$3:$Q$5,3,FALSE)&"6:"&HLOOKUP($A19,Kenttätiedot!$B$3:$Q$5,3,FALSE)&"300"),ROW(INDIRECT(MAX($D19,N$2)&":"&MIN($E19,EOMONTH(N$2,0)))))*(WEEKDAY(ROW(INDIRECT(MAX($D19,N$2)&":"&MIN($E19,EOMONTH(N$2,0)))))=MATCH($F19,{"Su";"Ma";"Ti";"Ke";"To";"Pe";"La"},0))),0)*HLOOKUP($A19,Kenttätiedot!$B$3:$Q$5,2,FALSE)*$B19,0) -> 0 | O19: =IF($D19<>"",IF(AND($D19<=EOMONTH(O$2,0),$E19>=O$2),SUMPRODUCT(--(WEEKDAY(ROW(INDIRECT(MAX($D19,O$2)&":"&MIN($E19,EOMONTH(O$2,0)))))=MATCH($F19,{"Su";"Ma";"Ti";"Ke";"To";"Pe";"La"},0)))-SUMPRODUCT(--COUNTIF(INDIRECT("Kenttätiedot!"&HLOOKUP($A19,Kenttätiedot!$B$3:$Q$5,3,FALSE)&"6:"&HLOOKUP($A19,Kenttätiedot!$B$3:$Q$5,3,FALSE)&"300"),ROW(INDIRECT(MAX($D19,O$2)&":"&MIN($E19,EOMONTH(O$2,0)))))*(WEEKDAY(ROW(INDIRECT(MAX($D19,O$2)&":"&MIN($E19,EOMONTH(O$2,0)))))=MATCH($F19,{"Su";"Ma";"Ti";"Ke";"To";"Pe";"La"},0))),0)*HLOOKUP($A19,Kenttätiedot!$B$3:$Q$5,2,FALSE)*$B19,0) -> 0 | P19: =IF($D19<>"",IF(AND($D19<=EOMONTH(P$2,0),$E19>=P$2),SUMPRODUCT(--(WEEKDAY(ROW(INDIRECT(MAX($D19,P$2)&":"&MIN($E19,EOMONTH(P$2,0)))))=MATCH($F19,{"Su";"Ma";"Ti";"Ke";"To";"Pe";"La"},0)))-SUMPRODUCT(--COUNTIF(INDIRECT("Kenttätiedot!"&HLOOKUP($A19,Kenttätiedot!$B$3:$Q$5,3,FALSE)&"6:"&HLOOKUP($A19,Kenttätiedot!$B$3:$Q$5,3,FALSE)&"300"),ROW(INDIRECT(MAX($D19,P$2)&":"&MIN($E19,EOMONTH(P$2,0)))))*(WEEKDAY(ROW(INDIRECT(MAX($D19,P$2)&":"&MIN($E19,EOMONTH(P$2,0)))))=MATCH($F19,{"Su";"Ma";"Ti";"Ke";"To";"Pe";"La"},0))),0)*HLOOKUP($A19,Kenttätiedot!$B$3:$Q$5,2,FALSE)*$B19,0) -> 0 | Q19: =IF($D19<>"",IF(AND($D19<=EOMONTH(Q$2,0),$E19>=Q$2),SUMPRODUCT(--(WEEKDAY(ROW(INDIRECT(MAX($D19,Q$2)&":"&MIN($E19,EOMONTH(Q$2,0)))))=MATCH($F19,{"Su";"Ma";"Ti";"Ke";"To";"Pe";"La"},0)))-SUMPRODUCT(--COUNTIF(INDIRECT("Kenttätiedot!"&HLOOKUP($A19,Kenttätiedot!$B$3:$Q$5,3,FALSE)&"6:"&HLOOKUP($A19,Kenttätiedot!$B$3:$Q$5,3,FALSE)&"300"),ROW(INDIRECT(MAX($D19,Q$2)&":"&MIN($E19,EOMONTH(Q$2,0)))))*(WEEKDAY(ROW(INDIRECT(MAX($D19,Q$2)&":"&MIN($E19,EOMONTH(Q$2,0)))))=MATCH($F19,{"Su";"Ma";"Ti";"Ke";"To";"Pe";"La"},0))),0)*HLOOKUP($A19,Kenttätiedot!$B$3:$Q$5,2,FALSE)*$B19,0) -> 0 | R19: =IF($D19<>"",IF(AND($D19<=EOMONTH(R$2,0),$E19>=R$2),SUMPRODUCT(--(WEEKDAY(ROW(INDIRECT(MAX($D19,R$2)&":"&MIN($E19,EOMONTH(R$2,0)))))=MATCH($F19,{"Su";"Ma";"Ti";"Ke";"To";"Pe";"La"},0)))-SUMPRODUCT(--COUNTIF(INDIRECT("Kenttätiedot!"&HLOOKUP($A19,Kenttätiedot!$B$3:$Q$5,3,FALSE)&"6:"&HLOOKUP($A19,Kenttätiedot!$B$3:$Q$5,3,FALSE)&"300"),ROW(INDIRECT(MAX($D19,R$2)&":"&MIN($E19,EOMONTH(R$2,0)))))*(WEEKDAY(ROW(INDIRECT(MAX($D19,R$2)&":"&MIN($E19,EOMONTH(R$2,0)))))=MATCH($F19,{"Su";"Ma";"Ti";"Ke";"To";"Pe";"La"},0))),0)*HLOOKUP($A19,Kenttätiedot!$B$3:$Q$5,2,FALSE)*$B19,0) -> 0 | S19: =IF($D19<>"",IF(AND($D19<=EOMONTH(S$2,0),$E19>=S$2),SUMPRODUCT(--(WEEKDAY(ROW(INDIRECT(MAX($D19,S$2)&":"&MIN($E19,EOMONTH(S$2,0)))))=MATCH($F19,{"Su";"Ma";"Ti";"Ke";"To";"Pe";"La"},0)))-SUMPRODUCT(--COUNTIF(INDIRECT("Kenttätiedot!"&HLOOKUP($A19,Kenttätiedot!$B$3:$Q$5,3,FALSE)&"6:"&HLOOKUP($A19,Kenttätiedot!$B$3:$Q$5,3,FALSE)&"300"),ROW(INDIRECT(MAX($D19,S$2)&":"&MIN($E19,EOMONTH(S$2,0)))))*(WEEKDAY(ROW(INDIRECT(MAX($D19,S$2)&":"&MIN($E19,EOMONTH(S$2,0)))))=MATCH($F19,{"Su";"Ma";"Ti";"Ke";"To";"Pe";"La"},0))),0)*HLOOKUP($A19,Kenttätiedot!$B$3:$Q$5,2,FALSE)*$B19,0) -> 0 | T19: =IF($D19<>"",IF(AND($D19<=EOMONTH(H$2,0),$E19>=H$2),SUMPRODUCT(--(WEEKDAY(ROW(INDIRECT(MAX($D19,H$2)&":"&MIN($E19,EOMONTH(H$2,0)))))=MATCH($F19,{"Su";"Ma";"Ti";"Ke";"To";"Pe";"La"},0)))-SUMPRODUCT(--COUNTIF(INDIRECT("Kenttätiedot!"&HLOOKUP($A19,Kenttätiedot!$B$3:$Q$5,3,FALSE)&"6:"&HLOOKUP($A19,Kenttätiedot!$B$3:$Q$5,3,FALSE)&"300"),ROW(INDIRECT(MAX($D19,H$2)&":"&MIN($E19,EOMONTH(H$2,0)))))*(WEEKDAY(ROW(INDIRECT(MAX($D19,H$2)&":"&MIN($E19,EOMONTH(H$2,0)))))=MATCH($F19,{"Su";"Ma";"Ti";"Ke";"To";"Pe";"La"},0))),0)*$G19,0) -> 0 | U19: =IF($D19<>"",IF(AND($D19<=EOMONTH(I$2,0),$E19>=I$2),SUMPRODUCT(--(WEEKDAY(ROW(INDIRECT(MAX($D19,I$2)&":"&MIN($E19,EOMONTH(I$2,0)))))=MATCH($F19,{"Su";"Ma";"Ti";"Ke";"To";"Pe";"La"},0)))-SUMPRODUCT(--COUNTIF(INDIRECT("Kenttätiedot!"&HLOOKUP($A19,Kenttätiedot!$B$3:$Q$5,3,FALSE)&"6:"&HLOOKUP($A19,Kenttätiedot!$B$3:$Q$5,3,FALSE)&"300"),ROW(INDIRECT(MAX($D19,I$2)&":"&MIN($E19,EOMONTH(I$2,0)))))*(WEEKDAY(ROW(INDIRECT(MAX($D19,I$2)&":"&MIN($E19,EOMONTH(I$2,0)))))=MATCH($F19,{"Su";"Ma";"Ti";"Ke";"To";"Pe";"La"},0))),0)*$G19,0) -> 0 | V19: =IF($D19<>"",IF(AND($D19<=EOMONTH(J$2,0),$E19>=J$2),SUMPRODUCT(--(WEEKDAY(ROW(INDIRECT(MAX($D19,J$2)&":"&MIN($E19,EOMONTH(J$2,0)))))=MATCH($F19,{"Su";"Ma";"Ti";"Ke";"To";"Pe";"La"},0)))-SUMPRODUCT(--COUNTIF(INDIRECT("Kenttätiedot!"&HLOOKUP($A19,Kenttätiedot!$B$3:$Q$5,3,FALSE)&"6:"&HLOOKUP($A19,Kenttätiedot!$B$3:$Q$5,3,FALSE)&"300"),ROW(INDIRECT(MAX($D19,J$2)&":"&MIN($E19,EOMONTH(J$2,0)))))*(WEEKDAY(ROW(INDIRECT(MAX($D19,J$2)&":"&MIN($E19,EOMONTH(J$2,0)))))=MATCH($F19,{"Su";"Ma";"Ti";"Ke";"To";"Pe";"La"},0))),0)*$G19,0) -> 0 | W19: =IF($D19<>"",IF(AND($D19<=EOMONTH(K$2,0),$E19>=K$2),SUMPRODUCT(--(WEEKDAY(ROW(INDIRECT(MAX($D19,K$2)&":"&MIN($E19,EOMONTH(K$2,0)))))=MATCH($F19,{"Su";"Ma";"Ti";"Ke";"To";"Pe";"La"},0)))-SUMPRODUCT(--COUNTIF(INDIRECT("Kenttätiedot!"&HLOOKUP($A19,Kenttätiedot!$B$3:$Q$5,3,FALSE)&"6:"&HLOOKUP($A19,Kenttätiedot!$B$3:$Q$5,3,FALSE)&"300"),ROW(INDIRECT(MAX($D19,K$2)&":"&MIN($E19,EOMONTH(K$2,0)))))*(WEEKDAY(ROW(INDIRECT(MAX($D19,K$2)&":"&MIN($E19,EOMONTH(K$2,0)))))=MATCH($F19,{"Su";"Ma";"Ti";"Ke";"To";"Pe";"La"},0))),0)*$G19,0) -> 0 | X19: =IF($D19<>"",IF(AND($D19<=EOMONTH(L$2,0),$E19>=L$2),SUMPRODUCT(--(WEEKDAY(ROW(INDIRECT(MAX($D19,L$2)&":"&MIN($E19,EOMONTH(L$2,0)))))=MATCH($F19,{"Su";"Ma";"Ti";"Ke";"To";"Pe";"La"},0)))-SUMPRODUCT(--COUNTIF(INDIRECT("Kenttätiedot!"&HLOOKUP($A19,Kenttätiedot!$B$3:$Q$5,3,FALSE)&"6:"&HLOOKUP($A19,Kenttätiedot!$B$3:$Q$5,3,FALSE)&"300"),ROW(INDIRECT(MAX($D19,L$2)&":"&MIN($E19,EOMONTH(L$2,0)))))*(WEEKDAY(ROW(INDIRECT(MAX($D19,L$2)&":"&MIN($E19,EOMONTH(L$2,0)))))=MATCH($F19,{"Su";"Ma";"Ti";"Ke";"To";"Pe";"La"},0))),0)*$G19,0) -> 0 | Y19: =IF($D19<>"",IF(AND($D19<=EOMONTH(M$2,0),$E19>=M$2),SUMPRODUCT(--(WEEKDAY(ROW(INDIRECT(MAX($D19,M$2)&":"&MIN($E19,EOMONTH(M$2,0)))))=MATCH($F19,{"Su";"Ma";"Ti";"Ke";"To";"Pe";"La"},0)))-SUMPRODUCT(--COUNTIF(INDIRECT("Kenttätiedot!"&HLOOKUP($A19,Kenttätiedot!$B$3:$Q$5,3,FALSE)&"6:"&HLOOKUP($A19,Kenttätiedot!$B$3:$Q$5,3,FALSE)&"300"),ROW(INDIRECT(MAX($D19,M$2)&":"&MIN($E19,EOMONTH(M$2,0)))))*(WEEKDAY(ROW(INDIRECT(MAX($D19,M$2)&":"&MIN($E19,EOMONTH(M$2,0)))))=MATCH($F19,{"Su";"Ma";"Ti";"Ke";"To";"Pe";"La"},0))),0)*$G19,0) -> 0 | Z19: =IF($D19<>"",IF(AND($D19<=EOMONTH(N$2,0),$E19>=N$2),SUMPRODUCT(--(WEEKDAY(ROW(INDIRECT(MAX($D19,N$2)&":"&MIN($E19,EOMONTH(N$2,0)))))=MATCH($F19,{"Su";"Ma";"Ti";"Ke";"To";"Pe";"La"},0)))-SUMPRODUCT(--COUNTIF(INDIRECT("Kenttätiedot!"&HLOOKUP($A19,Kenttätiedot!$B$3:$Q$5,3,FALSE)&"6:"&HLOOKUP($A19,Kenttätiedot!$B$3:$Q$5,3,FALSE)&"300"),ROW(INDIRECT(MAX($D19,N$2)&":"&MIN($E19,EOMONTH(N$2,0)))))*(WEEKDAY(ROW(INDIRECT(MAX($D19,N$2)&":"&MIN($E19,EOMONTH(N$2,0)))))=MATCH($F19,{"Su";"Ma";"Ti";"Ke";"To";"Pe";"La"},0))),0)*$G19,0) -> 0 | AA19: =IF($D19<>"",IF(AND($D19<=EOMONTH(O$2,0),$E19>=O$2),SUMPRODUCT(--(WEEKDAY(ROW(INDIRECT(MAX($D19,O$2)&":"&MIN($E19,EOMONTH(O$2,0)))))=MATCH($F19,{"Su";"Ma";"Ti";"Ke";"To";"Pe";"La"},0)))-SUMPRODUCT(--COUNTIF(INDIRECT("Kenttätiedot!"&HLOOKUP($A19,Kenttätiedot!$B$3:$Q$5,3,FALSE)&"6:"&HLOOKUP($A19,Kenttätiedot!$B$3:$Q$5,3,FALSE)&"300"),ROW(INDIRECT(MAX($D19,O$2)&":"&MIN($E19,EOMONTH(O$2,0)))))*(WEEKDAY(ROW(INDIRECT(MAX($D19,O$2)&":"&MIN($E19,EOMONTH(O$2,0)))))=MATCH($F19,{"Su";"Ma";"Ti";"Ke";"To";"Pe";"La"},0))),0)*$G19,0) -> 0 | AB19: =IF($D19<>"",IF(AND($D19<=EOMONTH(P$2,0),$E19>=P$2),SUMPRODUCT(--(WEEKDAY(ROW(INDIRECT(MAX($D19,P$2)&":"&MIN($E19,EOMONTH(P$2,0)))))=MATCH($F19,{"Su";"Ma";"Ti";"Ke";"To";"Pe";"La"},0)))-SUMPRODUCT(--COUNTIF(INDIRECT("Kenttätiedot!"&HLOOKUP($A19,Kenttätiedot!$B$3:$Q$5,3,FALSE)&"6:"&HLOOKUP($A19,Kenttätiedot!$B$3:$Q$5,3,FALSE)&"300"),ROW(INDIRECT(MAX($D19,P$2)&":"&MIN($E19,EOMONTH(P$2,0)))))*(WEEKDAY(ROW(INDIRECT(MAX($D19,P$2)&":"&MIN($E19,EOMONTH(P$2,0)))))=MATCH($F19,{"Su";"Ma";"Ti";"Ke";"To";"Pe";"La"},0))),0)*$G19,0) -> 0 | AC19: =IF($D19<>"",IF(AND($D19<=EOMONTH(Q$2,0),$E19>=Q$2),SUMPRODUCT(--(WEEKDAY(ROW(INDIRECT(MAX($D19,Q$2)&":"&MIN($E19,EOMONTH(Q$2,0)))))=MATCH($F19,{"Su";"Ma";"Ti";"Ke";"To";"Pe";"La"},0)))-SUMPRODUCT(--COUNTIF(INDIRECT("Kenttätiedot!"&HLOOKUP($A19,Kenttätiedot!$B$3:$Q$5,3,FALSE)&"6:"&HLOOKUP($A19,Kenttätiedot!$B$3:$Q$5,3,FALSE)&"300"),ROW(INDIRECT(MAX($D19,Q$2)&":"&MIN($E19,EOMONTH(Q$2,0)))))*(WEEKDAY(ROW(INDIRECT(MAX($D19,Q$2)&":"&MIN($E19,EOMONTH(Q$2,0)))))=MATCH($F19,{"Su";"Ma";"Ti";"Ke";"To";"Pe";"La"},0))),0)*$G19,0) -> 0 | AD19: =IF($D19<>"",IF(AND($D19<=EOMONTH(R$2,0),$E19>=R$2),SUMPRODUCT(--(WEEKDAY(ROW(INDIRECT(MAX($D19,R$2)&":"&MIN($E19,EOMONTH(R$2,0)))))=MATCH($F19,{"Su";"Ma";"Ti";"Ke";"To";"Pe";"La"},0)))-SUMPRODUCT(--COUNTIF(INDIRECT("Kenttätiedot!"&HLOOKUP($A19,Kenttätiedot!$B$3:$Q$5,3,FALSE)&"6:"&HLOOKUP($A19,Kenttätiedot!$B$3:$Q$5,3,FALSE)&"300"),ROW(INDIRECT(MAX($D19,R$2)&":"&MIN($E19,EOMONTH(R$2,0)))))*(WEEKDAY(ROW(INDIRECT(MAX($D19,R$2)&":"&MIN($E19,EOMONTH(R$2,0)))))=MATCH($F19,{"Su";"Ma";"Ti";"Ke";"To";"Pe";"La"},0))),0)*$G19,0) -> 0 | AE19: =IF($D19<>"",IF(AND($D19<=EOMONTH(S$2,0),$E19>=S$2),SUMPRODUCT(--(WEEKDAY(ROW(INDIRECT(MAX($D19,S$2)&":"&MIN($E19,EOMONTH(S$2,0)))))=MATCH($F19,{"Su";"Ma";"Ti";"Ke";"To";"Pe";"La"},0)))-SUMPRODUCT(--COUNTIF(INDIRECT("Kenttätiedot!"&HLOOKUP($A19,Kenttätiedot!$B$3:$Q$5,3,FALSE)&"6:"&HLOOKUP($A19,Kenttätiedot!$B$3:$Q$5,3,FALSE)&"300"),ROW(INDIRECT(MAX($D19,S$2)&":"&MIN($E19,EOMONTH(S$2,0)))))*(WEEKDAY(ROW(INDIRECT(MAX($D19,S$2)&":"&MIN($E19,EOMONTH(S$2,0)))))=MATCH($F19,{"Su";"Ma";"Ti";"Ke";"To";"Pe";"La"},0))),0)*$G19,0) -> 0
H20: =IF($D20<>"",IF(AND($D20<=EOMONTH(H$2,0),$E20>=H$2),SUMPRODUCT(--(WEEKDAY(ROW(INDIRECT(MAX($D20,H$2)&":"&MIN($E20,EOMONTH(H$2,0)))))=MATCH($F20,{"Su";"Ma";"Ti";"Ke";"To";"Pe";"La"},0)))-SUMPRODUCT(--COUNTIF(INDIRECT("Kenttätiedot!"&HLOOKUP($A20,Kenttätiedot!$B$3:$Q$5,3,FALSE)&"6:"&HLOOKUP($A20,Kenttätiedot!$B$3:$Q$5,3,FALSE)&"300"),ROW(INDIRECT(MAX($D20,H$2)&":"&MIN($E20,EOMONTH(H$2,0)))))*(WEEKDAY(ROW(INDIRECT(MAX($D20,H$2)&":"&MIN($E20,EOMONTH(H$2,0)))))=MATCH($F20,{"Su";"Ma";"Ti";"Ke";"To";"Pe";"La"},0))),0)*HLOOKUP($A20,Kenttätiedot!$B$3:$Q$5,2,FALSE)*$B20,0) -> 0 | I20: =IF($D20<>"",IF(AND($D20<=EOMONTH(I$2,0),$E20>=I$2),SUMPRODUCT(--(WEEKDAY(ROW(INDIRECT(MAX($D20,I$2)&":"&MIN($E20,EOMONTH(I$2,0)))))=MATCH($F20,{"Su";"Ma";"Ti";"Ke";"To";"Pe";"La"},0)))-SUMPRODUCT(--COUNTIF(INDIRECT("Kenttätiedot!"&HLOOKUP($A20,Kenttätiedot!$B$3:$Q$5,3,FALSE)&"6:"&HLOOKUP($A20,Kenttätiedot!$B$3:$Q$5,3,FALSE)&"300"),ROW(INDIRECT(MAX($D20,I$2)&":"&MIN($E20,EOMONTH(I$2,0)))))*(WEEKDAY(ROW(INDIRECT(MAX($D20,I$2)&":"&MIN($E20,EOMONTH(I$2,0)))))=MATCH($F20,{"Su";"Ma";"Ti";"Ke";"To";"Pe";"La"},0))),0)*HLOOKUP($A20,Kenttätiedot!$B$3:$Q$5,2,FALSE)*$B20,0) -> 0 | J20: =IF($D20<>"",IF(AND($D20<=EOMONTH(J$2,0),$E20>=J$2),SUMPRODUCT(--(WEEKDAY(ROW(INDIRECT(MAX($D20,J$2)&":"&MIN($E20,EOMONTH(J$2,0)))))=MATCH($F20,{"Su";"Ma";"Ti";"Ke";"To";"Pe";"La"},0)))-SUMPRODUCT(--COUNTIF(INDIRECT("Kenttätiedot!"&HLOOKUP($A20,Kenttätiedot!$B$3:$Q$5,3,FALSE)&"6:"&HLOOKUP($A20,Kenttätiedot!$B$3:$Q$5,3,FALSE)&"300"),ROW(INDIRECT(MAX($D20,J$2)&":"&MIN($E20,EOMONTH(J$2,0)))))*(WEEKDAY(ROW(INDIRECT(MAX($D20,J$2)&":"&MIN($E20,EOMONTH(J$2,0)))))=MATCH($F20,{"Su";"Ma";"Ti";"Ke";"To";"Pe";"La"},0))),0)*HLOOKUP($A20,Kenttätiedot!$B$3:$Q$5,2,FALSE)*$B20,0) -> 0 | K20: =IF($D20<>"",IF(AND($D20<=EOMONTH(K$2,0),$E20>=K$2),SUMPRODUCT(--(WEEKDAY(ROW(INDIRECT(MAX($D20,K$2)&":"&MIN($E20,EOMONTH(K$2,0)))))=MATCH($F20,{"Su";"Ma";"Ti";"Ke";"To";"Pe";"La"},0)))-SUMPRODUCT(--COUNTIF(INDIRECT("Kenttätiedot!"&HLOOKUP($A20,Kenttätiedot!$B$3:$Q$5,3,FALSE)&"6:"&HLOOKUP($A20,Kenttätiedot!$B$3:$Q$5,3,FALSE)&"300"),ROW(INDIRECT(MAX($D20,K$2)&":"&MIN($E20,EOMONTH(K$2,0)))))*(WEEKDAY(ROW(INDIRECT(MAX($D20,K$2)&":"&MIN($E20,EOMONTH(K$2,0)))))=MATCH($F20,{"Su";"Ma";"Ti";"Ke";"To";"Pe";"La"},0))),0)*HLOOKUP($A20,Kenttätiedot!$B$3:$Q$5,2,FALSE)*$B20,0) -> 0 | L20: =IF($D20<>"",IF(AND($D20<=EOMONTH(L$2,0),$E20>=L$2),SUMPRODUCT(--(WEEKDAY(ROW(INDIRECT(MAX($D20,L$2)&":"&MIN($E20,EOMONTH(L$2,0)))))=MATCH($F20,{"Su";"Ma";"Ti";"Ke";"To";"Pe";"La"},0)))-SUMPRODUCT(--COUNTIF(INDIRECT("Kenttätiedot!"&HLOOKUP($A20,Kenttätiedot!$B$3:$Q$5,3,FALSE)&"6:"&HLOOKUP($A20,Kenttätiedot!$B$3:$Q$5,3,FALSE)&"300"),ROW(INDIRECT(MAX($D20,L$2)&":"&MIN($E20,EOMONTH(L$2,0)))))*(WEEKDAY(ROW(INDIRECT(MAX($D20,L$2)&":"&MIN($E20,EOMONTH(L$2,0)))))=MATCH($F20,{"Su";"Ma";"Ti";"Ke";"To";"Pe";"La"},0))),0)*HLOOKUP($A20,Kenttätiedot!$B$3:$Q$5,2,FALSE)*$B20,0) -> 0 | M20: =IF($D20<>"",IF(AND($D20<=EOMONTH(M$2,0),$E20>=M$2),SUMPRODUCT(--(WEEKDAY(ROW(INDIRECT(MAX($D20,M$2)&":"&MIN($E20,EOMONTH(M$2,0)))))=MATCH($F20,{"Su";"Ma";"Ti";"Ke";"To";"Pe";"La"},0)))-SUMPRODUCT(--COUNTIF(INDIRECT("Kenttätiedot!"&HLOOKUP($A20,Kenttätiedot!$B$3:$Q$5,3,FALSE)&"6:"&HLOOKUP($A20,Kenttätiedot!$B$3:$Q$5,3,FALSE)&"300"),ROW(INDIRECT(MAX($D20,M$2)&":"&MIN($E20,EOMONTH(M$2,0)))))*(WEEKDAY(ROW(INDIRECT(MAX($D20,M$2)&":"&MIN($E20,EOMONTH(M$2,0)))))=MATCH($F20,{"Su";"Ma";"Ti";"Ke";"To";"Pe";"La"},0))),0)*HLOOKUP($A20,Kenttätiedot!$B$3:$Q$5,2,FALSE)*$B20,0) -> 0 | N20: =IF($D20<>"",IF(AND($D20<=EOMONTH(N$2,0),$E20>=N$2),SUMPRODUCT(--(WEEKDAY(ROW(INDIRECT(MAX($D20,N$2)&":"&MIN($E20,EOMONTH(N$2,0)))))=MATCH($F20,{"Su";"Ma";"Ti";"Ke";"To";"Pe";"La"},0)))-SUMPRODUCT(--COUNTIF(INDIRECT("Kenttätiedot!"&HLOOKUP($A20,Kenttätiedot!$B$3:$Q$5,3,FALSE)&"6:"&HLOOKUP($A20,Kenttätiedot!$B$3:$Q$5,3,FALSE)&"300"),ROW(INDIRECT(MAX($D20,N$2)&":"&MIN($E20,EOMONTH(N$2,0)))))*(WEEKDAY(ROW(INDIRECT(MAX($D20,N$2)&":"&MIN($E20,EOMONTH(N$2,0)))))=MATCH($F20,{"Su";"Ma";"Ti";"Ke";"To";"Pe";"La"},0))),0)*HLOOKUP($A20,Kenttätiedot!$B$3:$Q$5,2,FALSE)*$B20,0) -> 0 | O20: =IF($D20<>"",IF(AND($D20<=EOMONTH(O$2,0),$E20>=O$2),SUMPRODUCT(--(WEEKDAY(ROW(INDIRECT(MAX($D20,O$2)&":"&MIN($E20,EOMONTH(O$2,0)))))=MATCH($F20,{"Su";"Ma";"Ti";"Ke";"To";"Pe";"La"},0)))-SUMPRODUCT(--COUNTIF(INDIRECT("Kenttätiedot!"&HLOOKUP($A20,Kenttätiedot!$B$3:$Q$5,3,FALSE)&"6:"&HLOOKUP($A20,Kenttätiedot!$B$3:$Q$5,3,FALSE)&"300"),ROW(INDIRECT(MAX($D20,O$2)&":"&MIN($E20,EOMONTH(O$2,0)))))*(WEEKDAY(ROW(INDIRECT(MAX($D20,O$2)&":"&MIN($E20,EOMONTH(O$2,0)))))=MATCH($F20,{"Su";"Ma";"Ti";"Ke";"To";"Pe";"La"},0))),0)*HLOOKUP($A20,Kenttätiedot!$B$3:$Q$5,2,FALSE)*$B20,0) -> 0 | P20: =IF($D20<>"",IF(AND($D20<=EOMONTH(P$2,0),$E20>=P$2),SUMPRODUCT(--(WEEKDAY(ROW(INDIRECT(MAX($D20,P$2)&":"&MIN($E20,EOMONTH(P$2,0)))))=MATCH($F20,{"Su";"Ma";"Ti";"Ke";"To";"Pe";"La"},0)))-SUMPRODUCT(--COUNTIF(INDIRECT("Kenttätiedot!"&HLOOKUP($A20,Kenttätiedot!$B$3:$Q$5,3,FALSE)&"6:"&HLOOKUP($A20,Kenttätiedot!$B$3:$Q$5,3,FALSE)&"300"),ROW(INDIRECT(MAX($D20,P$2)&":"&MIN($E20,EOMONTH(P$2,0)))))*(WEEKDAY(ROW(INDIRECT(MAX($D20,P$2)&":"&MIN($E20,EOMONTH(P$2,0)))))=MATCH($F20,{"Su";"Ma";"Ti";"Ke";"To";"Pe";"La"},0))),0)*HLOOKUP($A20,Kenttätiedot!$B$3:$Q$5,2,FALSE)*$B20,0) -> 0 | Q20: =IF($D20<>"",IF(AND($D20<=EOMONTH(Q$2,0),$E20>=Q$2),SUMPRODUCT(--(WEEKDAY(ROW(INDIRECT(MAX($D20,Q$2)&":"&MIN($E20,EOMONTH(Q$2,0)))))=MATCH($F20,{"Su";"Ma";"Ti";"Ke";"To";"Pe";"La"},0)))-SUMPRODUCT(--COUNTIF(INDIRECT("Kenttätiedot!"&HLOOKUP($A20,Kenttätiedot!$B$3:$Q$5,3,FALSE)&"6:"&HLOOKUP($A20,Kenttätiedot!$B$3:$Q$5,3,FALSE)&"300"),ROW(INDIRECT(MAX($D20,Q$2)&":"&MIN($E20,EOMONTH(Q$2,0)))))*(WEEKDAY(ROW(INDIRECT(MAX($D20,Q$2)&":"&MIN($E20,EOMONTH(Q$2,0)))))=MATCH($F20,{"Su";"Ma";"Ti";"Ke";"To";"Pe";"La"},0))),0)*HLOOKUP($A20,Kenttätiedot!$B$3:$Q$5,2,FALSE)*$B20,0) -> 0 | R20: =IF($D20<>"",IF(AND($D20<=EOMONTH(R$2,0),$E20>=R$2),SUMPRODUCT(--(WEEKDAY(ROW(INDIRECT(MAX($D20,R$2)&":"&MIN($E20,EOMONTH(R$2,0)))))=MATCH($F20,{"Su";"Ma";"Ti";"Ke";"To";"Pe";"La"},0)))-SUMPRODUCT(--COUNTIF(INDIRECT("Kenttätiedot!"&HLOOKUP($A20,Kenttätiedot!$B$3:$Q$5,3,FALSE)&"6:"&HLOOKUP($A20,Kenttätiedot!$B$3:$Q$5,3,FALSE)&"300"),ROW(INDIRECT(MAX($D20,R$2)&":"&MIN($E20,EOMONTH(R$2,0)))))*(WEEKDAY(ROW(INDIRECT(MAX($D20,R$2)&":"&MIN($E20,EOMONTH(R$2,0)))))=MATCH($F20,{"Su";"Ma";"Ti";"Ke";"To";"Pe";"La"},0))),0)*HLOOKUP($A20,Kenttätiedot!$B$3:$Q$5,2,FALSE)*$B20,0) -> 0 | S20: =IF($D20<>"",IF(AND($D20<=EOMONTH(S$2,0),$E20>=S$2),SUMPRODUCT(--(WEEKDAY(ROW(INDIRECT(MAX($D20,S$2)&":"&MIN($E20,EOMONTH(S$2,0)))))=MATCH($F20,{"Su";"Ma";"Ti";"Ke";"To";"Pe";"La"},0)))-SUMPRODUCT(--COUNTIF(INDIRECT("Kenttätiedot!"&HLOOKUP($A20,Kenttätiedot!$B$3:$Q$5,3,FALSE)&"6:"&HLOOKUP($A20,Kenttätiedot!$B$3:$Q$5,3,FALSE)&"300"),ROW(INDIRECT(MAX($D20,S$2)&":"&MIN($E20,EOMONTH(S$2,0)))))*(WEEKDAY(ROW(INDIRECT(MAX($D20,S$2)&":"&MIN($E20,EOMONTH(S$2,0)))))=MATCH($F20,{"Su";"Ma";"Ti";"Ke";"To";"Pe";"La"},0))),0)*HLOOKUP($A20,Kenttätiedot!$B$3:$Q$5,2,FALSE)*$B20,0) -> 0 | T20: =IF($D20<>"",IF(AND($D20<=EOMONTH(H$2,0),$E20>=H$2),SUMPRODUCT(--(WEEKDAY(ROW(INDIRECT(MAX($D20,H$2)&":"&MIN($E20,EOMONTH(H$2,0)))))=MATCH($F20,{"Su";"Ma";"Ti";"Ke";"To";"Pe";"La"},0)))-SUMPRODUCT(--COUNTIF(INDIRECT("Kenttätiedot!"&HLOOKUP($A20,Kenttätiedot!$B$3:$Q$5,3,FALSE)&"6:"&HLOOKUP($A20,Kenttätiedot!$B$3:$Q$5,3,FALSE)&"300"),ROW(INDIRECT(MAX($D20,H$2)&":"&MIN($E20,EOMONTH(H$2,0)))))*(WEEKDAY(ROW(INDIRECT(MAX($D20,H$2)&":"&MIN($E20,EOMONTH(H$2,0)))))=MATCH($F20,{"Su";"Ma";"Ti";"Ke";"To";"Pe";"La"},0))),0)*$G20,0) -> 0 | U20: =IF($D20<>"",IF(AND($D20<=EOMONTH(I$2,0),$E20>=I$2),SUMPRODUCT(--(WEEKDAY(ROW(INDIRECT(MAX($D20,I$2)&":"&MIN($E20,EOMONTH(I$2,0)))))=MATCH($F20,{"Su";"Ma";"Ti";"Ke";"To";"Pe";"La"},0)))-SUMPRODUCT(--COUNTIF(INDIRECT("Kenttätiedot!"&HLOOKUP($A20,Kenttätiedot!$B$3:$Q$5,3,FALSE)&"6:"&HLOOKUP($A20,Kenttätiedot!$B$3:$Q$5,3,FALSE)&"300"),ROW(INDIRECT(MAX($D20,I$2)&":"&MIN($E20,EOMONTH(I$2,0)))))*(WEEKDAY(ROW(INDIRECT(MAX($D20,I$2)&":"&MIN($E20,EOMONTH(I$2,0)))))=MATCH($F20,{"Su";"Ma";"Ti";"Ke";"To";"Pe";"La"},0))),0)*$G20,0) -> 0 | V20: =IF($D20<>"",IF(AND($D20<=EOMONTH(J$2,0),$E20>=J$2),SUMPRODUCT(--(WEEKDAY(ROW(INDIRECT(MAX($D20,J$2)&":"&MIN($E20,EOMONTH(J$2,0)))))=MATCH($F20,{"Su";"Ma";"Ti";"Ke";"To";"Pe";"La"},0)))-SUMPRODUCT(--COUNTIF(INDIRECT("Kenttätiedot!"&HLOOKUP($A20,Kenttätiedot!$B$3:$Q$5,3,FALSE)&"6:"&HLOOKUP($A20,Kenttätiedot!$B$3:$Q$5,3,FALSE)&"300"),ROW(INDIRECT(MAX($D20,J$2)&":"&MIN($E20,EOMONTH(J$2,0)))))*(WEEKDAY(ROW(INDIRECT(MAX($D20,J$2)&":"&MIN($E20,EOMONTH(J$2,0)))))=MATCH($F20,{"Su";"Ma";"Ti";"Ke";"To";"Pe";"La"},0))),0)*$G20,0) -> 0 | W20: =IF($D20<>"",IF(AND($D20<=EOMONTH(K$2,0),$E20>=K$2),SUMPRODUCT(--(WEEKDAY(ROW(INDIRECT(MAX($D20,K$2)&":"&MIN($E20,EOMONTH(K$2,0)))))=MATCH($F20,{"Su";"Ma";"Ti";"Ke";"To";"Pe";"La"},0)))-SUMPRODUCT(--COUNTIF(INDIRECT("Kenttätiedot!"&HLOOKUP($A20,Kenttätiedot!$B$3:$Q$5,3,FALSE)&"6:"&HLOOKUP($A20,Kenttätiedot!$B$3:$Q$5,3,FALSE)&"300"),ROW(INDIRECT(MAX($D20,K$2)&":"&MIN($E20,EOMONTH(K$2,0)))))*(WEEKDAY(ROW(INDIRECT(MAX($D20,K$2)&":"&MIN($E20,EOMONTH(K$2,0)))))=MATCH($F20,{"Su";"Ma";"Ti";"Ke";"To";"Pe";"La"},0))),0)*$G20,0) -> 0 | X20: =IF($D20<>"",IF(AND($D20<=EOMONTH(L$2,0),$E20>=L$2),SUMPRODUCT(--(WEEKDAY(ROW(INDIRECT(MAX($D20,L$2)&":"&MIN($E20,EOMONTH(L$2,0)))))=MATCH($F20,{"Su";"Ma";"Ti";"Ke";"To";"Pe";"La"},0)))-SUMPRODUCT(--COUNTIF(INDIRECT("Kenttätiedot!"&HLOOKUP($A20,Kenttätiedot!$B$3:$Q$5,3,FALSE)&"6:"&HLOOKUP($A20,Kenttätiedot!$B$3:$Q$5,3,FALSE)&"300"),ROW(INDIRECT(MAX($D20,L$2)&":"&MIN($E20,EOMONTH(L$2,0)))))*(WEEKDAY(ROW(INDIRECT(MAX($D20,L$2)&":"&MIN($E20,EOMONTH(L$2,0)))))=MATCH($F20,{"Su";"Ma";"Ti";"Ke";"To";"Pe";"La"},0))),0)*$G20,0) -> 0 | Y20: =IF($D20<>"",IF(AND($D20<=EOMONTH(M$2,0),$E20>=M$2),SUMPRODUCT(--(WEEKDAY(ROW(INDIRECT(MAX($D20,M$2)&":"&MIN($E20,EOMONTH(M$2,0)))))=MATCH($F20,{"Su";"Ma";"Ti";"Ke";"To";"Pe";"La"},0)))-SUMPRODUCT(--COUNTIF(INDIRECT("Kenttätiedot!"&HLOOKUP($A20,Kenttätiedot!$B$3:$Q$5,3,FALSE)&"6:"&HLOOKUP($A20,Kenttätiedot!$B$3:$Q$5,3,FALSE)&"300"),ROW(INDIRECT(MAX($D20,M$2)&":"&MIN($E20,EOMONTH(M$2,0)))))*(WEEKDAY(ROW(INDIRECT(MAX($D20,M$2)&":"&MIN($E20,EOMONTH(M$2,0)))))=MATCH($F20,{"Su";"Ma";"Ti";"Ke";"To";"Pe";"La"},0))),0)*$G20,0) -> 0 | Z20: =IF($D20<>"",IF(AND($D20<=EOMONTH(N$2,0),$E20>=N$2),SUMPRODUCT(--(WEEKDAY(ROW(INDIRECT(MAX($D20,N$2)&":"&MIN($E20,EOMONTH(N$2,0)))))=MATCH($F20,{"Su";"Ma";"Ti";"Ke";"To";"Pe";"La"},0)))-SUMPRODUCT(--COUNTIF(INDIRECT("Kenttätiedot!"&HLOOKUP($A20,Kenttätiedot!$B$3:$Q$5,3,FALSE)&"6:"&HLOOKUP($A20,Kenttätiedot!$B$3:$Q$5,3,FALSE)&"300"),ROW(INDIRECT(MAX($D20,N$2)&":"&MIN($E20,EOMONTH(N$2,0)))))*(WEEKDAY(ROW(INDIRECT(MAX($D20,N$2)&":"&MIN($E20,EOMONTH(N$2,0)))))=MATCH($F20,{"Su";"Ma";"Ti";"Ke";"To";"Pe";"La"},0))),0)*$G20,0) -> 0 | AA20: =IF($D20<>"",IF(AND($D20<=EOMONTH(O$2,0),$E20>=O$2),SUMPRODUCT(--(WEEKDAY(ROW(INDIRECT(MAX($D20,O$2)&":"&MIN($E20,EOMONTH(O$2,0)))))=MATCH($F20,{"Su";"Ma";"Ti";"Ke";"To";"Pe";"La"},0)))-SUMPRODUCT(--COUNTIF(INDIRECT("Kenttätiedot!"&HLOOKUP($A20,Kenttätiedot!$B$3:$Q$5,3,FALSE)&"6:"&HLOOKUP($A20,Kenttätiedot!$B$3:$Q$5,3,FALSE)&"300"),ROW(INDIRECT(MAX($D20,O$2)&":"&MIN($E20,EOMONTH(O$2,0)))))*(WEEKDAY(ROW(INDIRECT(MAX($D20,O$2)&":"&MIN($E20,EOMONTH(O$2,0)))))=MATCH($F20,{"Su";"Ma";"Ti";"Ke";"To";"Pe";"La"},0))),0)*$G20,0) -> 0 | AB20: =IF($D20<>"",IF(AND($D20<=EOMONTH(P$2,0),$E20>=P$2),SUMPRODUCT(--(WEEKDAY(ROW(INDIRECT(MAX($D20,P$2)&":"&MIN($E20,EOMONTH(P$2,0)))))=MATCH($F20,{"Su";"Ma";"Ti";"Ke";"To";"Pe";"La"},0)))-SUMPRODUCT(--COUNTIF(INDIRECT("Kenttätiedot!"&HLOOKUP($A20,Kenttätiedot!$B$3:$Q$5,3,FALSE)&"6:"&HLOOKUP($A20,Kenttätiedot!$B$3:$Q$5,3,FALSE)&"300"),ROW(INDIRECT(MAX($D20,P$2)&":"&MIN($E20,EOMONTH(P$2,0)))))*(WEEKDAY(ROW(INDIRECT(MAX($D20,P$2)&":"&MIN($E20,EOMONTH(P$2,0)))))=MATCH($F20,{"Su";"Ma";"Ti";"Ke";"To";"Pe";"La"},0))),0)*$G20,0) -> 0 | AC20: =IF($D20<>"",IF(AND($D20<=EOMONTH(Q$2,0),$E20>=Q$2),SUMPRODUCT(--(WEEKDAY(ROW(INDIRECT(MAX($D20,Q$2)&":"&MIN($E20,EOMONTH(Q$2,0)))))=MATCH($F20,{"Su";"Ma";"Ti";"Ke";"To";"Pe";"La"},0)))-SUMPRODUCT(--COUNTIF(INDIRECT("Kenttätiedot!"&HLOOKUP($A20,Kenttätiedot!$B$3:$Q$5,3,FALSE)&"6:"&HLOOKUP($A20,Kenttätiedot!$B$3:$Q$5,3,FALSE)&"300"),ROW(INDIRECT(MAX($D20,Q$2)&":"&MIN($E20,EOMONTH(Q$2,0)))))*(WEEKDAY(ROW(INDIRECT(MAX($D20,Q$2)&":"&MIN($E20,EOMONTH(Q$2,0)))))=MATCH($F20,{"Su";"Ma";"Ti";"Ke";"To";"Pe";"La"},0))),0)*$G20,0) -> 0 | AD20: =IF($D20<>"",IF(AND($D20<=EOMONTH(R$2,0),$E20>=R$2),SUMPRODUCT(--(WEEKDAY(ROW(INDIRECT(MAX($D20,R$2)&":"&MIN($E20,EOMONTH(R$2,0)))))=MATCH($F20,{"Su";"Ma";"Ti";"Ke";"To";"Pe";"La"},0)))-SUMPRODUCT(--COUNTIF(INDIRECT("Kenttätiedot!"&HLOOKUP($A20,Kenttätiedot!$B$3:$Q$5,3,FALSE)&"6:"&HLOOKUP($A20,Kenttätiedot!$B$3:$Q$5,3,FALSE)&"300"),ROW(INDIRECT(MAX($D20,R$2)&":"&MIN($E20,EOMONTH(R$2,0)))))*(WEEKDAY(ROW(INDIRECT(MAX($D20,R$2)&":"&MIN($E20,EOMONTH(R$2,0)))))=MATCH($F20,{"Su";"Ma";"Ti";"Ke";"To";"Pe";"La"},0))),0)*$G20,0) -> 0 | AE20: =IF($D20<>"",IF(AND($D20<=EOMONTH(S$2,0),$E20>=S$2),SUMPRODUCT(--(WEEKDAY(ROW(INDIRECT(MAX($D20,S$2)&":"&MIN($E20,EOMONTH(S$2,0)))))=MATCH($F20,{"Su";"Ma";"Ti";"Ke";"To";"Pe";"La"},0)))-SUMPRODUCT(--COUNTIF(INDIRECT("Kenttätiedot!"&HLOOKUP($A20,Kenttätiedot!$B$3:$Q$5,3,FALSE)&"6:"&HLOOKUP($A20,Kenttätiedot!$B$3:$Q$5,3,FALSE)&"300"),ROW(INDIRECT(MAX($D20,S$2)&":"&MIN($E20,EOMONTH(S$2,0)))))*(WEEKDAY(ROW(INDIRECT(MAX($D20,S$2)&":"&MIN($E20,EOMONTH(S$2,0)))))=MATCH($F20,{"Su";"Ma";"Ti";"Ke";"To";"Pe";"La"},0))),0)*$G20,0) -> 0
H21: =IF($D21<>"",IF(AND($D21<=EOMONTH(H$2,0),$E21>=H$2),SUMPRODUCT(--(WEEKDAY(ROW(INDIRECT(MAX($D21,H$2)&":"&MIN($E21,EOMONTH(H$2,0)))))=MATCH($F21,{"Su";"Ma";"Ti";"Ke";"To";"Pe";"La"},0)))-SUMPRODUCT(--COUNTIF(INDIRECT("Kenttätiedot!"&HLOOKUP($A21,Kenttätiedot!$B$3:$Q$5,3,FALSE)&"6:"&HLOOKUP($A21,Kenttätiedot!$B$3:$Q$5,3,FALSE)&"300"),ROW(INDIRECT(MAX($D21,H$2)&":"&MIN($E21,EOMONTH(H$2,0)))))*(WEEKDAY(ROW(INDIRECT(MAX($D21,H$2)&":"&MIN($E21,EOMONTH(H$2,0)))))=MATCH($F21,{"Su";"Ma";"Ti";"Ke";"To";"Pe";"La"},0))),0)*HLOOKUP($A21,Kenttätiedot!$B$3:$Q$5,2,FALSE)*$B21,0) -> 0 | I21: =IF($D21<>"",IF(AND($D21<=EOMONTH(I$2,0),$E21>=I$2),SUMPRODUCT(--(WEEKDAY(ROW(INDIRECT(MAX($D21,I$2)&":"&MIN($E21,EOMONTH(I$2,0)))))=MATCH($F21,{"Su";"Ma";"Ti";"Ke";"To";"Pe";"La"},0)))-SUMPRODUCT(--COUNTIF(INDIRECT("Kenttätiedot!"&HLOOKUP($A21,Kenttätiedot!$B$3:$Q$5,3,FALSE)&"6:"&HLOOKUP($A21,Kenttätiedot!$B$3:$Q$5,3,FALSE)&"300"),ROW(INDIRECT(MAX($D21,I$2)&":"&MIN($E21,EOMONTH(I$2,0)))))*(WEEKDAY(ROW(INDIRECT(MAX($D21,I$2)&":"&MIN($E21,EOMONTH(I$2,0)))))=MATCH($F21,{"Su";"Ma";"Ti";"Ke";"To";"Pe";"La"},0))),0)*HLOOKUP($A21,Kenttätiedot!$B$3:$Q$5,2,FALSE)*$B21,0) -> 0 | J21: =IF($D21<>"",IF(AND($D21<=EOMONTH(J$2,0),$E21>=J$2),SUMPRODUCT(--(WEEKDAY(ROW(INDIRECT(MAX($D21,J$2)&":"&MIN($E21,EOMONTH(J$2,0)))))=MATCH($F21,{"Su";"Ma";"Ti";"Ke";"To";"Pe";"La"},0)))-SUMPRODUCT(--COUNTIF(INDIRECT("Kenttätiedot!"&HLOOKUP($A21,Kenttätiedot!$B$3:$Q$5,3,FALSE)&"6:"&HLOOKUP($A21,Kenttätiedot!$B$3:$Q$5,3,FALSE)&"300"),ROW(INDIRECT(MAX($D21,J$2)&":"&MIN($E21,EOMONTH(J$2,0)))))*(WEEKDAY(ROW(INDIRECT(MAX($D21,J$2)&":"&MIN($E21,EOMONTH(J$2,0)))))=MATCH($F21,{"Su";"Ma";"Ti";"Ke";"To";"Pe";"La"},0))),0)*HLOOKUP($A21,Kenttätiedot!$B$3:$Q$5,2,FALSE)*$B21,0) -> 0 | K21: =IF($D21<>"",IF(AND($D21<=EOMONTH(K$2,0),$E21>=K$2),SUMPRODUCT(--(WEEKDAY(ROW(INDIRECT(MAX($D21,K$2)&":"&MIN($E21,EOMONTH(K$2,0)))))=MATCH($F21,{"Su";"Ma";"Ti";"Ke";"To";"Pe";"La"},0)))-SUMPRODUCT(--COUNTIF(INDIRECT("Kenttätiedot!"&HLOOKUP($A21,Kenttätiedot!$B$3:$Q$5,3,FALSE)&"6:"&HLOOKUP($A21,Kenttätiedot!$B$3:$Q$5,3,FALSE)&"300"),ROW(INDIRECT(MAX($D21,K$2)&":"&MIN($E21,EOMONTH(K$2,0)))))*(WEEKDAY(ROW(INDIRECT(MAX($D21,K$2)&":"&MIN($E21,EOMONTH(K$2,0)))))=MATCH($F21,{"Su";"Ma";"Ti";"Ke";"To";"Pe";"La"},0))),0)*HLOOKUP($A21,Kenttätiedot!$B$3:$Q$5,2,FALSE)*$B21,0) -> 0 | L21: =IF($D21<>"",IF(AND($D21<=EOMONTH(L$2,0),$E21>=L$2),SUMPRODUCT(--(WEEKDAY(ROW(INDIRECT(MAX($D21,L$2)&":"&MIN($E21,EOMONTH(L$2,0)))))=MATCH($F21,{"Su";"Ma";"Ti";"Ke";"To";"Pe";"La"},0)))-SUMPRODUCT(--COUNTIF(INDIRECT("Kenttätiedot!"&HLOOKUP($A21,Kenttätiedot!$B$3:$Q$5,3,FALSE)&"6:"&HLOOKUP($A21,Kenttätiedot!$B$3:$Q$5,3,FALSE)&"300"),ROW(INDIRECT(MAX($D21,L$2)&":"&MIN($E21,EOMONTH(L$2,0)))))*(WEEKDAY(ROW(INDIRECT(MAX($D21,L$2)&":"&MIN($E21,EOMONTH(L$2,0)))))=MATCH($F21,{"Su";"Ma";"Ti";"Ke";"To";"Pe";"La"},0))),0)*HLOOKUP($A21,Kenttätiedot!$B$3:$Q$5,2,FALSE)*$B21,0) -> 0 | M21: =IF($D21<>"",IF(AND($D21<=EOMONTH(M$2,0),$E21>=M$2),SUMPRODUCT(--(WEEKDAY(ROW(INDIRECT(MAX($D21,M$2)&":"&MIN($E21,EOMONTH(M$2,0)))))=MATCH($F21,{"Su";"Ma";"Ti";"Ke";"To";"Pe";"La"},0)))-SUMPRODUCT(--COUNTIF(INDIRECT("Kenttätiedot!"&HLOOKUP($A21,Kenttätiedot!$B$3:$Q$5,3,FALSE)&"6:"&HLOOKUP($A21,Kenttätiedot!$B$3:$Q$5,3,FALSE)&"300"),ROW(INDIRECT(MAX($D21,M$2)&":"&MIN($E21,EOMONTH(M$2,0)))))*(WEEKDAY(ROW(INDIRECT(MAX($D21,M$2)&":"&MIN($E21,EOMONTH(M$2,0)))))=MATCH($F21,{"Su";"Ma";"Ti";"Ke";"To";"Pe";"La"},0))),0)*HLOOKUP($A21,Kenttätiedot!$B$3:$Q$5,2,FALSE)*$B21,0) -> 0 | N21: =IF($D21<>"",IF(AND($D21<=EOMONTH(N$2,0),$E21>=N$2),SUMPRODUCT(--(WEEKDAY(ROW(INDIRECT(MAX($D21,N$2)&":"&MIN($E21,EOMONTH(N$2,0)))))=MATCH($F21,{"Su";"Ma";"Ti";"Ke";"To";"Pe";"La"},0)))-SUMPRODUCT(--COUNTIF(INDIRECT("Kenttätiedot!"&HLOOKUP($A21,Kenttätiedot!$B$3:$Q$5,3,FALSE)&"6:"&HLOOKUP($A21,Kenttätiedot!$B$3:$Q$5,3,FALSE)&"300"),ROW(INDIRECT(MAX($D21,N$2)&":"&MIN($E21,EOMONTH(N$2,0)))))*(WEEKDAY(ROW(INDIRECT(MAX($D21,N$2)&":"&MIN($E21,EOMONTH(N$2,0)))))=MATCH($F21,{"Su";"Ma";"Ti";"Ke";"To";"Pe";"La"},0))),0)*HLOOKUP($A21,Kenttätiedot!$B$3:$Q$5,2,FALSE)*$B21,0) -> 0 | O21: =IF($D21<>"",IF(AND($D21<=EOMONTH(O$2,0),$E21>=O$2),SUMPRODUCT(--(WEEKDAY(ROW(INDIRECT(MAX($D21,O$2)&":"&MIN($E21,EOMONTH(O$2,0)))))=MATCH($F21,{"Su";"Ma";"Ti";"Ke";"To";"Pe";"La"},0)))-SUMPRODUCT(--COUNTIF(INDIRECT("Kenttätiedot!"&HLOOKUP($A21,Kenttätiedot!$B$3:$Q$5,3,FALSE)&"6:"&HLOOKUP($A21,Kenttätiedot!$B$3:$Q$5,3,FALSE)&"300"),ROW(INDIRECT(MAX($D21,O$2)&":"&MIN($E21,EOMONTH(O$2,0)))))*(WEEKDAY(ROW(INDIRECT(MAX($D21,O$2)&":"&MIN($E21,EOMONTH(O$2,0)))))=MATCH($F21,{"Su";"Ma";"Ti";"Ke";"To";"Pe";"La"},0))),0)*HLOOKUP($A21,Kenttätiedot!$B$3:$Q$5,2,FALSE)*$B21,0) -> 0 | P21: =IF($D21<>"",IF(AND($D21<=EOMONTH(P$2,0),$E21>=P$2),SUMPRODUCT(--(WEEKDAY(ROW(INDIRECT(MAX($D21,P$2)&":"&MIN($E21,EOMONTH(P$2,0)))))=MATCH($F21,{"Su";"Ma";"Ti";"Ke";"To";"Pe";"La"},0)))-SUMPRODUCT(--COUNTIF(INDIRECT("Kenttätiedot!"&HLOOKUP($A21,Kenttätiedot!$B$3:$Q$5,3,FALSE)&"6:"&HLOOKUP($A21,Kenttätiedot!$B$3:$Q$5,3,FALSE)&"300"),ROW(INDIRECT(MAX($D21,P$2)&":"&MIN($E21,EOMONTH(P$2,0)))))*(WEEKDAY(ROW(INDIRECT(MAX($D21,P$2)&":"&MIN($E21,EOMONTH(P$2,0)))))=MATCH($F21,{"Su";"Ma";"Ti";"Ke";"To";"Pe";"La"},0))),0)*HLOOKUP($A21,Kenttätiedot!$B$3:$Q$5,2,FALSE)*$B21,0) -> 0 | Q21: =IF($D21<>"",IF(AND($D21<=EOMONTH(Q$2,0),$E21>=Q$2),SUMPRODUCT(--(WEEKDAY(ROW(INDIRECT(MAX($D21,Q$2)&":"&MIN($E21,EOMONTH(Q$2,0)))))=MATCH($F21,{"Su";"Ma";"Ti";"Ke";"To";"Pe";"La"},0)))-SUMPRODUCT(--COUNTIF(INDIRECT("Kenttätiedot!"&HLOOKUP($A21,Kenttätiedot!$B$3:$Q$5,3,FALSE)&"6:"&HLOOKUP($A21,Kenttätiedot!$B$3:$Q$5,3,FALSE)&"300"),ROW(INDIRECT(MAX($D21,Q$2)&":"&MIN($E21,EOMONTH(Q$2,0)))))*(WEEKDAY(ROW(INDIRECT(MAX($D21,Q$2)&":"&MIN($E21,EOMONTH(Q$2,0)))))=MATCH($F21,{"Su";"Ma";"Ti";"Ke";"To";"Pe";"La"},0))),0)*HLOOKUP($A21,Kenttätiedot!$B$3:$Q$5,2,FALSE)*$B21,0) -> 0 | R21: =IF($D21<>"",IF(AND($D21<=EOMONTH(R$2,0),$E21>=R$2),SUMPRODUCT(--(WEEKDAY(ROW(INDIRECT(MAX($D21,R$2)&":"&MIN($E21,EOMONTH(R$2,0)))))=MATCH($F21,{"Su";"Ma";"Ti";"Ke";"To";"Pe";"La"},0)))-SUMPRODUCT(--COUNTIF(INDIRECT("Kenttätiedot!"&HLOOKUP($A21,Kenttätiedot!$B$3:$Q$5,3,FALSE)&"6:"&HLOOKUP($A21,Kenttätiedot!$B$3:$Q$5,3,FALSE)&"300"),ROW(INDIRECT(MAX($D21,R$2)&":"&MIN($E21,EOMONTH(R$2,0)))))*(WEEKDAY(ROW(INDIRECT(MAX($D21,R$2)&":"&MIN($E21,EOMONTH(R$2,0)))))=MATCH($F21,{"Su";"Ma";"Ti";"Ke";"To";"Pe";"La"},0))),0)*HLOOKUP($A21,Kenttätiedot!$B$3:$Q$5,2,FALSE)*$B21,0) -> 0 | S21: =IF($D21<>"",IF(AND($D21<=EOMONTH(S$2,0),$E21>=S$2),SUMPRODUCT(--(WEEKDAY(ROW(INDIRECT(MAX($D21,S$2)&":"&MIN($E21,EOMONTH(S$2,0)))))=MATCH($F21,{"Su";"Ma";"Ti";"Ke";"To";"Pe";"La"},0)))-SUMPRODUCT(--COUNTIF(INDIRECT("Kenttätiedot!"&HLOOKUP($A21,Kenttätiedot!$B$3:$Q$5,3,FALSE)&"6:"&HLOOKUP($A21,Kenttätiedot!$B$3:$Q$5,3,FALSE)&"300"),ROW(INDIRECT(MAX($D21,S$2)&":"&MIN($E21,EOMONTH(S$2,0)))))*(WEEKDAY(ROW(INDIRECT(MAX($D21,S$2)&":"&MIN($E21,EOMONTH(S$2,0)))))=MATCH($F21,{"Su";"Ma";"Ti";"Ke";"To";"Pe";"La"},0))),0)*HLOOKUP($A21,Kenttätiedot!$B$3:$Q$5,2,FALSE)*$B21,0) -> 0 | T21: =IF($D21<>"",IF(AND($D21<=EOMONTH(H$2,0),$E21>=H$2),SUMPRODUCT(--(WEEKDAY(ROW(INDIRECT(MAX($D21,H$2)&":"&MIN($E21,EOMONTH(H$2,0)))))=MATCH($F21,{"Su";"Ma";"Ti";"Ke";"To";"Pe";"La"},0)))-SUMPRODUCT(--COUNTIF(INDIRECT("Kenttätiedot!"&HLOOKUP($A21,Kenttätiedot!$B$3:$Q$5,3,FALSE)&"6:"&HLOOKUP($A21,Kenttätiedot!$B$3:$Q$5,3,FALSE)&"300"),ROW(INDIRECT(MAX($D21,H$2)&":"&MIN($E21,EOMONTH(H$2,0)))))*(WEEKDAY(ROW(INDIRECT(MAX($D21,H$2)&":"&MIN($E21,EOMONTH(H$2,0)))))=MATCH($F21,{"Su";"Ma";"Ti";"Ke";"To";"Pe";"La"},0))),0)*$G21,0) -> 0 | U21: =IF($D21<>"",IF(AND($D21<=EOMONTH(I$2,0),$E21>=I$2),SUMPRODUCT(--(WEEKDAY(ROW(INDIRECT(MAX($D21,I$2)&":"&MIN($E21,EOMONTH(I$2,0)))))=MATCH($F21,{"Su";"Ma";"Ti";"Ke";"To";"Pe";"La"},0)))-SUMPRODUCT(--COUNTIF(INDIRECT("Kenttätiedot!"&HLOOKUP($A21,Kenttätiedot!$B$3:$Q$5,3,FALSE)&"6:"&HLOOKUP($A21,Kenttätiedot!$B$3:$Q$5,3,FALSE)&"300"),ROW(INDIRECT(MAX($D21,I$2)&":"&MIN($E21,EOMONTH(I$2,0)))))*(WEEKDAY(ROW(INDIRECT(MAX($D21,I$2)&":"&MIN($E21,EOMONTH(I$2,0)))))=MATCH($F21,{"Su";"Ma";"Ti";"Ke";"To";"Pe";"La"},0))),0)*$G21,0) -> 0 | V21: =IF($D21<>"",IF(AND($D21<=EOMONTH(J$2,0),$E21>=J$2),SUMPRODUCT(--(WEEKDAY(ROW(INDIRECT(MAX($D21,J$2)&":"&MIN($E21,EOMONTH(J$2,0)))))=MATCH($F21,{"Su";"Ma";"Ti";"Ke";"To";"Pe";"La"},0)))-SUMPRODUCT(--COUNTIF(INDIRECT("Kenttätiedot!"&HLOOKUP($A21,Kenttätiedot!$B$3:$Q$5,3,FALSE)&"6:"&HLOOKUP($A21,Kenttätiedot!$B$3:$Q$5,3,FALSE)&"300"),ROW(INDIRECT(MAX($D21,J$2)&":"&MIN($E21,EOMONTH(J$2,0)))))*(WEEKDAY(ROW(INDIRECT(MAX($D21,J$2)&":"&MIN($E21,EOMONTH(J$2,0)))))=MATCH($F21,{"Su";"Ma";"Ti";"Ke";"To";"Pe";"La"},0))),0)*$G21,0) -> 0 | W21: =IF($D21<>"",IF(AND($D21<=EOMONTH(K$2,0),$E21>=K$2),SUMPRODUCT(--(WEEKDAY(ROW(INDIRECT(MAX($D21,K$2)&":"&MIN($E21,EOMONTH(K$2,0)))))=MATCH($F21,{"Su";"Ma";"Ti";"Ke";"To";"Pe";"La"},0)))-SUMPRODUCT(--COUNTIF(INDIRECT("Kenttätiedot!"&HLOOKUP($A21,Kenttätiedot!$B$3:$Q$5,3,FALSE)&"6:"&HLOOKUP($A21,Kenttätiedot!$B$3:$Q$5,3,FALSE)&"300"),ROW(INDIRECT(MAX($D21,K$2)&":"&MIN($E21,EOMONTH(K$2,0)))))*(WEEKDAY(ROW(INDIRECT(MAX($D21,K$2)&":"&MIN($E21,EOMONTH(K$2,0)))))=MATCH($F21,{"Su";"Ma";"Ti";"Ke";"To";"Pe";"La"},0))),0)*$G21,0) -> 0 | X21: =IF($D21<>"",IF(AND($D21<=EOMONTH(L$2,0),$E21>=L$2),SUMPRODUCT(--(WEEKDAY(ROW(INDIRECT(MAX($D21,L$2)&":"&MIN($E21,EOMONTH(L$2,0)))))=MATCH($F21,{"Su";"Ma";"Ti";"Ke";"To";"Pe";"La"},0)))-SUMPRODUCT(--COUNTIF(INDIRECT("Kenttätiedot!"&HLOOKUP($A21,Kenttätiedot!$B$3:$Q$5,3,FALSE)&"6:"&HLOOKUP($A21,Kenttätiedot!$B$3:$Q$5,3,FALSE)&"300"),ROW(INDIRECT(MAX($D21,L$2)&":"&MIN($E21,EOMONTH(L$2,0)))))*(WEEKDAY(ROW(INDIRECT(MAX($D21,L$2)&":"&MIN($E21,EOMONTH(L$2,0)))))=MATCH($F21,{"Su";"Ma";"Ti";"Ke";"To";"Pe";"La"},0))),0)*$G21,0) -> 0 | Y21: =IF($D21<>"",IF(AND($D21<=EOMONTH(M$2,0),$E21>=M$2),SUMPRODUCT(--(WEEKDAY(ROW(INDIRECT(MAX($D21,M$2)&":"&MIN($E21,EOMONTH(M$2,0)))))=MATCH($F21,{"Su";"Ma";"Ti";"Ke";"To";"Pe";"La"},0)))-SUMPRODUCT(--COUNTIF(INDIRECT("Kenttätiedot!"&HLOOKUP($A21,Kenttätiedot!$B$3:$Q$5,3,FALSE)&"6:"&HLOOKUP($A21,Kenttätiedot!$B$3:$Q$5,3,FALSE)&"300"),ROW(INDIRECT(MAX($D21,M$2)&":"&MIN($E21,EOMONTH(M$2,0)))))*(WEEKDAY(ROW(INDIRECT(MAX($D21,M$2)&":"&MIN($E21,EOMONTH(M$2,0)))))=MATCH($F21,{"Su";"Ma";"Ti";"Ke";"To";"Pe";"La"},0))),0)*$G21,0) -> 0 | Z21: =IF($D21<>"",IF(AND($D21<=EOMONTH(N$2,0),$E21>=N$2),SUMPRODUCT(--(WEEKDAY(ROW(INDIRECT(MAX($D21,N$2)&":"&MIN($E21,EOMONTH(N$2,0)))))=MATCH($F21,{"Su";"Ma";"Ti";"Ke";"To";"Pe";"La"},0)))-SUMPRODUCT(--COUNTIF(INDIRECT("Kenttätiedot!"&HLOOKUP($A21,Kenttätiedot!$B$3:$Q$5,3,FALSE)&"6:"&HLOOKUP($A21,Kenttätiedot!$B$3:$Q$5,3,FALSE)&"300"),ROW(INDIRECT(MAX($D21,N$2)&":"&MIN($E21,EOMONTH(N$2,0)))))*(WEEKDAY(ROW(INDIRECT(MAX($D21,N$2)&":"&MIN($E21,EOMONTH(N$2,0)))))=MATCH($F21,{"Su";"Ma";"Ti";"Ke";"To";"Pe";"La"},0))),0)*$G21,0) -> 0 | AA21: =IF($D21<>"",IF(AND($D21<=EOMONTH(O$2,0),$E21>=O$2),SUMPRODUCT(--(WEEKDAY(ROW(INDIRECT(MAX($D21,O$2)&":"&MIN($E21,EOMONTH(O$2,0)))))=MATCH($F21,{"Su";"Ma";"Ti";"Ke";"To";"Pe";"La"},0)))-SUMPRODUCT(--COUNTIF(INDIRECT("Kenttätiedot!"&HLOOKUP($A21,Kenttätiedot!$B$3:$Q$5,3,FALSE)&"6:"&HLOOKUP($A21,Kenttätiedot!$B$3:$Q$5,3,FALSE)&"300"),ROW(INDIRECT(MAX($D21,O$2)&":"&MIN($E21,EOMONTH(O$2,0)))))*(WEEKDAY(ROW(INDIRECT(MAX($D21,O$2)&":"&MIN($E21,EOMONTH(O$2,0)))))=MATCH($F21,{"Su";"Ma";"Ti";"Ke";"To";"Pe";"La"},0))),0)*$G21,0) -> 0 | AB21: =IF($D21<>"",IF(AND($D21<=EOMONTH(P$2,0),$E21>=P$2),SUMPRODUCT(--(WEEKDAY(ROW(INDIRECT(MAX($D21,P$2)&":"&MIN($E21,EOMONTH(P$2,0)))))=MATCH($F21,{"Su";"Ma";"Ti";"Ke";"To";"Pe";"La"},0)))-SUMPRODUCT(--COUNTIF(INDIRECT("Kenttätiedot!"&HLOOKUP($A21,Kenttätiedot!$B$3:$Q$5,3,FALSE)&"6:"&HLOOKUP($A21,Kenttätiedot!$B$3:$Q$5,3,FALSE)&"300"),ROW(INDIRECT(MAX($D21,P$2)&":"&MIN($E21,EOMONTH(P$2,0)))))*(WEEKDAY(ROW(INDIRECT(MAX($D21,P$2)&":"&MIN($E21,EOMONTH(P$2,0)))))=MATCH($F21,{"Su";"Ma";"Ti";"Ke";"To";"Pe";"La"},0))),0)*$G21,0) -> 0 | AC21: =IF($D21<>"",IF(AND($D21<=EOMONTH(Q$2,0),$E21>=Q$2),SUMPRODUCT(--(WEEKDAY(ROW(INDIRECT(MAX($D21,Q$2)&":"&MIN($E21,EOMONTH(Q$2,0)))))=MATCH($F21,{"Su";"Ma";"Ti";"Ke";"To";"Pe";"La"},0)))-SUMPRODUCT(--COUNTIF(INDIRECT("Kenttätiedot!"&HLOOKUP($A21,Kenttätiedot!$B$3:$Q$5,3,FALSE)&"6:"&HLOOKUP($A21,Kenttätiedot!$B$3:$Q$5,3,FALSE)&"300"),ROW(INDIRECT(MAX($D21,Q$2)&":"&MIN($E21,EOMONTH(Q$2,0)))))*(WEEKDAY(ROW(INDIRECT(MAX($D21,Q$2)&":"&MIN($E21,EOMONTH(Q$2,0)))))=MATCH($F21,{"Su";"Ma";"Ti";"Ke";"To";"Pe";"La"},0))),0)*$G21,0) -> 0 | AD21: =IF($D21<>"",IF(AND($D21<=EOMONTH(R$2,0),$E21>=R$2),SUMPRODUCT(--(WEEKDAY(ROW(INDIRECT(MAX($D21,R$2)&":"&MIN($E21,EOMONTH(R$2,0)))))=MATCH($F21,{"Su";"Ma";"Ti";"Ke";"To";"Pe";"La"},0)))-SUMPRODUCT(--COUNTIF(INDIRECT("Kenttätiedot!"&HLOOKUP($A21,Kenttätiedot!$B$3:$Q$5,3,FALSE)&"6:"&HLOOKUP($A21,Kenttätiedot!$B$3:$Q$5,3,FALSE)&"300"),ROW(INDIRECT(MAX($D21,R$2)&":"&MIN($E21,EOMONTH(R$2,0)))))*(WEEKDAY(ROW(INDIRECT(MAX($D21,R$2)&":"&MIN($E21,EOMONTH(R$2,0)))))=MATCH($F21,{"Su";"Ma";"Ti";"Ke";"To";"Pe";"La"},0))),0)*$G21,0) -> 0 | AE21: =IF($D21<>"",IF(AND($D21<=EOMONTH(S$2,0),$E21>=S$2),SUMPRODUCT(--(WEEKDAY(ROW(INDIRECT(MAX($D21,S$2)&":"&MIN($E21,EOMONTH(S$2,0)))))=MATCH($F21,{"Su";"Ma";"Ti";"Ke";"To";"Pe";"La"},0)))-SUMPRODUCT(--COUNTIF(INDIRECT("Kenttätiedot!"&HLOOKUP($A21,Kenttätiedot!$B$3:$Q$5,3,FALSE)&"6:"&HLOOKUP($A21,Kenttätiedot!$B$3:$Q$5,3,FALSE)&"300"),ROW(INDIRECT(MAX($D21,S$2)&":"&MIN($E21,EOMONTH(S$2,0)))))*(WEEKDAY(ROW(INDIRECT(MAX($D21,S$2)&":"&MIN($E21,EOMONTH(S$2,0)))))=MATCH($F21,{"Su";"Ma";"Ti";"Ke";"To";"Pe";"La"},0))),0)*$G21,0) -> 0
H22: =IF($D22<>"",IF(AND($D22<=EOMONTH(H$2,0),$E22>=H$2),SUMPRODUCT(--(WEEKDAY(ROW(INDIRECT(MAX($D22,H$2)&":"&MIN($E22,EOMONTH(H$2,0)))))=MATCH($F22,{"Su";"Ma";"Ti";"Ke";"To";"Pe";"La"},0)))-SUMPRODUCT(--COUNTIF(INDIRECT("Kenttätiedot!"&HLOOKUP($A22,Kenttätiedot!$B$3:$Q$5,3,FALSE)&"6:"&HLOOKUP($A22,Kenttätiedot!$B$3:$Q$5,3,FALSE)&"300"),ROW(INDIRECT(MAX($D22,H$2)&":"&MIN($E22,EOMONTH(H$2,0)))))*(WEEKDAY(ROW(INDIRECT(MAX($D22,H$2)&":"&MIN($E22,EOMONTH(H$2,0)))))=MATCH($F22,{"Su";"Ma";"Ti";"Ke";"To";"Pe";"La"},0))),0)*HLOOKUP($A22,Kenttätiedot!$B$3:$Q$5,2,FALSE)*$B22,0) -> 0 | I22: =IF($D22<>"",IF(AND($D22<=EOMONTH(I$2,0),$E22>=I$2),SUMPRODUCT(--(WEEKDAY(ROW(INDIRECT(MAX($D22,I$2)&":"&MIN($E22,EOMONTH(I$2,0)))))=MATCH($F22,{"Su";"Ma";"Ti";"Ke";"To";"Pe";"La"},0)))-SUMPRODUCT(--COUNTIF(INDIRECT("Kenttätiedot!"&HLOOKUP($A22,Kenttätiedot!$B$3:$Q$5,3,FALSE)&"6:"&HLOOKUP($A22,Kenttätiedot!$B$3:$Q$5,3,FALSE)&"300"),ROW(INDIRECT(MAX($D22,I$2)&":"&MIN($E22,EOMONTH(I$2,0)))))*(WEEKDAY(ROW(INDIRECT(MAX($D22,I$2)&":"&MIN($E22,EOMONTH(I$2,0)))))=MATCH($F22,{"Su";"Ma";"Ti";"Ke";"To";"Pe";"La"},0))),0)*HLOOKUP($A22,Kenttätiedot!$B$3:$Q$5,2,FALSE)*$B22,0) -> 0 | J22: =IF($D22<>"",IF(AND($D22<=EOMONTH(J$2,0),$E22>=J$2),SUMPRODUCT(--(WEEKDAY(ROW(INDIRECT(MAX($D22,J$2)&":"&MIN($E22,EOMONTH(J$2,0)))))=MATCH($F22,{"Su";"Ma";"Ti";"Ke";"To";"Pe";"La"},0)))-SUMPRODUCT(--COUNTIF(INDIRECT("Kenttätiedot!"&HLOOKUP($A22,Kenttätiedot!$B$3:$Q$5,3,FALSE)&"6:"&HLOOKUP($A22,Kenttätiedot!$B$3:$Q$5,3,FALSE)&"300"),ROW(INDIRECT(MAX($D22,J$2)&":"&MIN($E22,EOMONTH(J$2,0)))))*(WEEKDAY(ROW(INDIRECT(MAX($D22,J$2)&":"&MIN($E22,EOMONTH(J$2,0)))))=MATCH($F22,{"Su";"Ma";"Ti";"Ke";"To";"Pe";"La"},0))),0)*HLOOKUP($A22,Kenttätiedot!$B$3:$Q$5,2,FALSE)*$B22,0) -> 0 | K22: =IF($D22<>"",IF(AND($D22<=EOMONTH(K$2,0),$E22>=K$2),SUMPRODUCT(--(WEEKDAY(ROW(INDIRECT(MAX($D22,K$2)&":"&MIN($E22,EOMONTH(K$2,0)))))=MATCH($F22,{"Su";"Ma";"Ti";"Ke";"To";"Pe";"La"},0)))-SUMPRODUCT(--COUNTIF(INDIRECT("Kenttätiedot!"&HLOOKUP($A22,Kenttätiedot!$B$3:$Q$5,3,FALSE)&"6:"&HLOOKUP($A22,Kenttätiedot!$B$3:$Q$5,3,FALSE)&"300"),ROW(INDIRECT(MAX($D22,K$2)&":"&MIN($E22,EOMONTH(K$2,0)))))*(WEEKDAY(ROW(INDIRECT(MAX($D22,K$2)&":"&MIN($E22,EOMONTH(K$2,0)))))=MATCH($F22,{"Su";"Ma";"Ti";"Ke";"To";"Pe";"La"},0))),0)*HLOOKUP($A22,Kenttätiedot!$B$3:$Q$5,2,FALSE)*$B22,0) -> 0 | L22: =IF($D22<>"",IF(AND($D22<=EOMONTH(L$2,0),$E22>=L$2),SUMPRODUCT(--(WEEKDAY(ROW(INDIRECT(MAX($D22,L$2)&":"&MIN($E22,EOMONTH(L$2,0)))))=MATCH($F22,{"Su";"Ma";"Ti";"Ke";"To";"Pe";"La"},0)))-SUMPRODUCT(--COUNTIF(INDIRECT("Kenttätiedot!"&HLOOKUP($A22,Kenttätiedot!$B$3:$Q$5,3,FALSE)&"6:"&HLOOKUP($A22,Kenttätiedot!$B$3:$Q$5,3,FALSE)&"300"),ROW(INDIRECT(MAX($D22,L$2)&":"&MIN($E22,EOMONTH(L$2,0)))))*(WEEKDAY(ROW(INDIRECT(MAX($D22,L$2)&":"&MIN($E22,EOMONTH(L$2,0)))))=MATCH($F22,{"Su";"Ma";"Ti";"Ke";"To";"Pe";"La"},0))),0)*HLOOKUP($A22,Kenttätiedot!$B$3:$Q$5,2,FALSE)*$B22,0) -> 0 | M22: =IF($D22<>"",IF(AND($D22<=EOMONTH(M$2,0),$E22>=M$2),SUMPRODUCT(--(WEEKDAY(ROW(INDIRECT(MAX($D22,M$2)&":"&MIN($E22,EOMONTH(M$2,0)))))=MATCH($F22,{"Su";"Ma";"Ti";"Ke";"To";"Pe";"La"},0)))-SUMPRODUCT(--COUNTIF(INDIRECT("Kenttätiedot!"&HLOOKUP($A22,Kenttätiedot!$B$3:$Q$5,3,FALSE)&"6:"&HLOOKUP($A22,Kenttätiedot!$B$3:$Q$5,3,FALSE)&"300"),ROW(INDIRECT(MAX($D22,M$2)&":"&MIN($E22,EOMONTH(M$2,0)))))*(WEEKDAY(ROW(INDIRECT(MAX($D22,M$2)&":"&MIN($E22,EOMONTH(M$2,0)))))=MATCH($F22,{"Su";"Ma";"Ti";"Ke";"To";"Pe";"La"},0))),0)*HLOOKUP($A22,Kenttätiedot!$B$3:$Q$5,2,FALSE)*$B22,0) -> 0 | N22: =IF($D22<>"",IF(AND($D22<=EOMONTH(N$2,0),$E22>=N$2),SUMPRODUCT(--(WEEKDAY(ROW(INDIRECT(MAX($D22,N$2)&":"&MIN($E22,EOMONTH(N$2,0)))))=MATCH($F22,{"Su";"Ma";"Ti";"Ke";"To";"Pe";"La"},0)))-SUMPRODUCT(--COUNTIF(INDIRECT("Kenttätiedot!"&HLOOKUP($A22,Kenttätiedot!$B$3:$Q$5,3,FALSE)&"6:"&HLOOKUP($A22,Kenttätiedot!$B$3:$Q$5,3,FALSE)&"300"),ROW(INDIRECT(MAX($D22,N$2)&":"&MIN($E22,EOMONTH(N$2,0)))))*(WEEKDAY(ROW(INDIRECT(MAX($D22,N$2)&":"&MIN($E22,EOMONTH(N$2,0)))))=MATCH($F22,{"Su";"Ma";"Ti";"Ke";"To";"Pe";"La"},0))),0)*HLOOKUP($A22,Kenttätiedot!$B$3:$Q$5,2,FALSE)*$B22,0) -> 0 | O22: =IF($D22<>"",IF(AND($D22<=EOMONTH(O$2,0),$E22>=O$2),SUMPRODUCT(--(WEEKDAY(ROW(INDIRECT(MAX($D22,O$2)&":"&MIN($E22,EOMONTH(O$2,0)))))=MATCH($F22,{"Su";"Ma";"Ti";"Ke";"To";"Pe";"La"},0)))-SUMPRODUCT(--COUNTIF(INDIRECT("Kenttätiedot!"&HLOOKUP($A22,Kenttätiedot!$B$3:$Q$5,3,FALSE)&"6:"&HLOOKUP($A22,Kenttätiedot!$B$3:$Q$5,3,FALSE)&"300"),ROW(INDIRECT(MAX($D22,O$2)&":"&MIN($E22,EOMONTH(O$2,0)))))*(WEEKDAY(ROW(INDIRECT(MAX($D22,O$2)&":"&MIN($E22,EOMONTH(O$2,0)))))=MATCH($F22,{"Su";"Ma";"Ti";"Ke";"To";"Pe";"La"},0))),0)*HLOOKUP($A22,Kenttätiedot!$B$3:$Q$5,2,FALSE)*$B22,0) -> 0 | P22: =IF($D22<>"",IF(AND($D22<=EOMONTH(P$2,0),$E22>=P$2),SUMPRODUCT(--(WEEKDAY(ROW(INDIRECT(MAX($D22,P$2)&":"&MIN($E22,EOMONTH(P$2,0)))))=MATCH($F22,{"Su";"Ma";"Ti";"Ke";"To";"Pe";"La"},0)))-SUMPRODUCT(--COUNTIF(INDIRECT("Kenttätiedot!"&HLOOKUP($A22,Kenttätiedot!$B$3:$Q$5,3,FALSE)&"6:"&HLOOKUP($A22,Kenttätiedot!$B$3:$Q$5,3,FALSE)&"300"),ROW(INDIRECT(MAX($D22,P$2)&":"&MIN($E22,EOMONTH(P$2,0)))))*(WEEKDAY(ROW(INDIRECT(MAX($D22,P$2)&":"&MIN($E22,EOMONTH(P$2,0)))))=MATCH($F22,{"Su";"Ma";"Ti";"Ke";"To";"Pe";"La"},0))),0)*HLOOKUP($A22,Kenttätiedot!$B$3:$Q$5,2,FALSE)*$B22,0) -> 0 | Q22: =IF($D22<>"",IF(AND($D22<=EOMONTH(Q$2,0),$E22>=Q$2),SUMPRODUCT(--(WEEKDAY(ROW(INDIRECT(MAX($D22,Q$2)&":"&MIN($E22,EOMONTH(Q$2,0)))))=MATCH($F22,{"Su";"Ma";"Ti";"Ke";"To";"Pe";"La"},0)))-SUMPRODUCT(--COUNTIF(INDIRECT("Kenttätiedot!"&HLOOKUP($A22,Kenttätiedot!$B$3:$Q$5,3,FALSE)&"6:"&HLOOKUP($A22,Kenttätiedot!$B$3:$Q$5,3,FALSE)&"300"),ROW(INDIRECT(MAX($D22,Q$2)&":"&MIN($E22,EOMONTH(Q$2,0)))))*(WEEKDAY(ROW(INDIRECT(MAX($D22,Q$2)&":"&MIN($E22,EOMONTH(Q$2,0)))))=MATCH($F22,{"Su";"Ma";"Ti";"Ke";"To";"Pe";"La"},0))),0)*HLOOKUP($A22,Kenttätiedot!$B$3:$Q$5,2,FALSE)*$B22,0) -> 0 | R22: =IF($D22<>"",IF(AND($D22<=EOMONTH(R$2,0),$E22>=R$2),SUMPRODUCT(--(WEEKDAY(ROW(INDIRECT(MAX($D22,R$2)&":"&MIN($E22,EOMONTH(R$2,0)))))=MATCH($F22,{"Su";"Ma";"Ti";"Ke";"To";"Pe";"La"},0)))-SUMPRODUCT(--COUNTIF(INDIRECT("Kenttätiedot!"&HLOOKUP($A22,Kenttätiedot!$B$3:$Q$5,3,FALSE)&"6:"&HLOOKUP($A22,Kenttätiedot!$B$3:$Q$5,3,FALSE)&"300"),ROW(INDIRECT(MAX($D22,R$2)&":"&MIN($E22,EOMONTH(R$2,0)))))*(WEEKDAY(ROW(INDIRECT(MAX($D22,R$2)&":"&MIN($E22,EOMONTH(R$2,0)))))=MATCH($F22,{"Su";"Ma";"Ti";"Ke";"To";"Pe";"La"},0))),0)*HLOOKUP($A22,Kenttätiedot!$B$3:$Q$5,2,FALSE)*$B22,0) -> 0 | S22: =IF($D22<>"",IF(AND($D22<=EOMONTH(S$2,0),$E22>=S$2),SUMPRODUCT(--(WEEKDAY(ROW(INDIRECT(MAX($D22,S$2)&":"&MIN($E22,EOMONTH(S$2,0)))))=MATCH($F22,{"Su";"Ma";"Ti";"Ke";"To";"Pe";"La"},0)))-SUMPRODUCT(--COUNTIF(INDIRECT("Kenttätiedot!"&HLOOKUP($A22,Kenttätiedot!$B$3:$Q$5,3,FALSE)&"6:"&HLOOKUP($A22,Kenttätiedot!$B$3:$Q$5,3,FALSE)&"300"),ROW(INDIRECT(MAX($D22,S$2)&":"&MIN($E22,EOMONTH(S$2,0)))))*(WEEKDAY(ROW(INDIRECT(MAX($D22,S$2)&":"&MIN($E22,EOMONTH(S$2,0)))))=MATCH($F22,{"Su";"Ma";"Ti";"Ke";"To";"Pe";"La"},0))),0)*HLOOKUP($A22,Kenttätiedot!$B$3:$Q$5,2,FALSE)*$B22,0) -> 0 | T22: =IF($D22<>"",IF(AND($D22<=EOMONTH(H$2,0),$E22>=H$2),SUMPRODUCT(--(WEEKDAY(ROW(INDIRECT(MAX($D22,H$2)&":"&MIN($E22,EOMONTH(H$2,0)))))=MATCH($F22,{"Su";"Ma";"Ti";"Ke";"To";"Pe";"La"},0)))-SUMPRODUCT(--COUNTIF(INDIRECT("Kenttätiedot!"&HLOOKUP($A22,Kenttätiedot!$B$3:$Q$5,3,FALSE)&"6:"&HLOOKUP($A22,Kenttätiedot!$B$3:$Q$5,3,FALSE)&"300"),ROW(INDIRECT(MAX($D22,H$2)&":"&MIN($E22,EOMONTH(H$2,0)))))*(WEEKDAY(ROW(INDIRECT(MAX($D22,H$2)&":"&MIN($E22,EOMONTH(H$2,0)))))=MATCH($F22,{"Su";"Ma";"Ti";"Ke";"To";"Pe";"La"},0))),0)*$G22,0) -> 0 | U22: =IF($D22<>"",IF(AND($D22<=EOMONTH(I$2,0),$E22>=I$2),SUMPRODUCT(--(WEEKDAY(ROW(INDIRECT(MAX($D22,I$2)&":"&MIN($E22,EOMONTH(I$2,0)))))=MATCH($F22,{"Su";"Ma";"Ti";"Ke";"To";"Pe";"La"},0)))-SUMPRODUCT(--COUNTIF(INDIRECT("Kenttätiedot!"&HLOOKUP($A22,Kenttätiedot!$B$3:$Q$5,3,FALSE)&"6:"&HLOOKUP($A22,Kenttätiedot!$B$3:$Q$5,3,FALSE)&"300"),ROW(INDIRECT(MAX($D22,I$2)&":"&MIN($E22,EOMONTH(I$2,0)))))*(WEEKDAY(ROW(INDIRECT(MAX($D22,I$2)&":"&MIN($E22,EOMONTH(I$2,0)))))=MATCH($F22,{"Su";"Ma";"Ti";"Ke";"To";"Pe";"La"},0))),0)*$G22,0) -> 0 | V22: =IF($D22<>"",IF(AND($D22<=EOMONTH(J$2,0),$E22>=J$2),SUMPRODUCT(--(WEEKDAY(ROW(INDIRECT(MAX($D22,J$2)&":"&MIN($E22,EOMONTH(J$2,0)))))=MATCH($F22,{"Su";"Ma";"Ti";"Ke";"To";"Pe";"La"},0)))-SUMPRODUCT(--COUNTIF(INDIRECT("Kenttätiedot!"&HLOOKUP($A22,Kenttätiedot!$B$3:$Q$5,3,FALSE)&"6:"&HLOOKUP($A22,Kenttätiedot!$B$3:$Q$5,3,FALSE)&"300"),ROW(INDIRECT(MAX($D22,J$2)&":"&MIN($E22,EOMONTH(J$2,0)))))*(WEEKDAY(ROW(INDIRECT(MAX($D22,J$2)&":"&MIN($E22,EOMONTH(J$2,0)))))=MATCH($F22,{"Su";"Ma";"Ti";"Ke";"To";"Pe";"La"},0))),0)*$G22,0) -> 0 | W22: =IF($D22<>"",IF(AND($D22<=EOMONTH(K$2,0),$E22>=K$2),SUMPRODUCT(--(WEEKDAY(ROW(INDIRECT(MAX($D22,K$2)&":"&MIN($E22,EOMONTH(K$2,0)))))=MATCH($F22,{"Su";"Ma";"Ti";"Ke";"To";"Pe";"La"},0)))-SUMPRODUCT(--COUNTIF(INDIRECT("Kenttätiedot!"&HLOOKUP($A22,Kenttätiedot!$B$3:$Q$5,3,FALSE)&"6:"&HLOOKUP($A22,Kenttätiedot!$B$3:$Q$5,3,FALSE)&"300"),ROW(INDIRECT(MAX($D22,K$2)&":"&MIN($E22,EOMONTH(K$2,0)))))*(WEEKDAY(ROW(INDIRECT(MAX($D22,K$2)&":"&MIN($E22,EOMONTH(K$2,0)))))=MATCH($F22,{"Su";"Ma";"Ti";"Ke";"To";"Pe";"La"},0))),0)*$G22,0) -> 0 | X22: =IF($D22<>"",IF(AND($D22<=EOMONTH(L$2,0),$E22>=L$2),SUMPRODUCT(--(WEEKDAY(ROW(INDIRECT(MAX($D22,L$2)&":"&MIN($E22,EOMONTH(L$2,0)))))=MATCH($F22,{"Su";"Ma";"Ti";"Ke";"To";"Pe";"La"},0)))-SUMPRODUCT(--COUNTIF(INDIRECT("Kenttätiedot!"&HLOOKUP($A22,Kenttätiedot!$B$3:$Q$5,3,FALSE)&"6:"&HLOOKUP($A22,Kenttätiedot!$B$3:$Q$5,3,FALSE)&"300"),ROW(INDIRECT(MAX($D22,L$2)&":"&MIN($E22,EOMONTH(L$2,0)))))*(WEEKDAY(ROW(INDIRECT(MAX($D22,L$2)&":"&MIN($E22,EOMONTH(L$2,0)))))=MATCH($F22,{"Su";"Ma";"Ti";"Ke";"To";"Pe";"La"},0))),0)*$G22,0) -> 0 | Y22: =IF($D22<>"",IF(AND($D22<=EOMONTH(M$2,0),$E22>=M$2),SUMPRODUCT(--(WEEKDAY(ROW(INDIRECT(MAX($D22,M$2)&":"&MIN($E22,EOMONTH(M$2,0)))))=MATCH($F22,{"Su";"Ma";"Ti";"Ke";"To";"Pe";"La"},0)))-SUMPRODUCT(--COUNTIF(INDIRECT("Kenttätiedot!"&HLOOKUP($A22,Kenttätiedot!$B$3:$Q$5,3,FALSE)&"6:"&HLOOKUP($A22,Kenttätiedot!$B$3:$Q$5,3,FALSE)&"300"),ROW(INDIRECT(MAX($D22,M$2)&":"&MIN($E22,EOMONTH(M$2,0)))))*(WEEKDAY(ROW(INDIRECT(MAX($D22,M$2)&":"&MIN($E22,EOMONTH(M$2,0)))))=MATCH($F22,{"Su";"Ma";"Ti";"Ke";"To";"Pe";"La"},0))),0)*$G22,0) -> 0 | Z22: =IF($D22<>"",IF(AND($D22<=EOMONTH(N$2,0),$E22>=N$2),SUMPRODUCT(--(WEEKDAY(ROW(INDIRECT(MAX($D22,N$2)&":"&MIN($E22,EOMONTH(N$2,0)))))=MATCH($F22,{"Su";"Ma";"Ti";"Ke";"To";"Pe";"La"},0)))-SUMPRODUCT(--COUNTIF(INDIRECT("Kenttätiedot!"&HLOOKUP($A22,Kenttätiedot!$B$3:$Q$5,3,FALSE)&"6:"&HLOOKUP($A22,Kenttätiedot!$B$3:$Q$5,3,FALSE)&"300"),ROW(INDIRECT(MAX($D22,N$2)&":"&MIN($E22,EOMONTH(N$2,0)))))*(WEEKDAY(ROW(INDIRECT(MAX($D22,N$2)&":"&MIN($E22,EOMONTH(N$2,0)))))=MATCH($F22,{"Su";"Ma";"Ti";"Ke";"To";"Pe";"La"},0))),0)*$G22,0) -> 0 | AA22: =IF($D22<>"",IF(AND($D22<=EOMONTH(O$2,0),$E22>=O$2),SUMPRODUCT(--(WEEKDAY(ROW(INDIRECT(MAX($D22,O$2)&":"&MIN($E22,EOMONTH(O$2,0)))))=MATCH($F22,{"Su";"Ma";"Ti";"Ke";"To";"Pe";"La"},0)))-SUMPRODUCT(--COUNTIF(INDIRECT("Kenttätiedot!"&HLOOKUP($A22,Kenttätiedot!$B$3:$Q$5,3,FALSE)&"6:"&HLOOKUP($A22,Kenttätiedot!$B$3:$Q$5,3,FALSE)&"300"),ROW(INDIRECT(MAX($D22,O$2)&":"&MIN($E22,EOMONTH(O$2,0)))))*(WEEKDAY(ROW(INDIRECT(MAX($D22,O$2)&":"&MIN($E22,EOMONTH(O$2,0)))))=MATCH($F22,{"Su";"Ma";"Ti";"Ke";"To";"Pe";"La"},0))),0)*$G22,0) -> 0 | AB22: =IF($D22<>"",IF(AND($D22<=EOMONTH(P$2,0),$E22>=P$2),SUMPRODUCT(--(WEEKDAY(ROW(INDIRECT(MAX($D22,P$2)&":"&MIN($E22,EOMONTH(P$2,0)))))=MATCH($F22,{"Su";"Ma";"Ti";"Ke";"To";"Pe";"La"},0)))-SUMPRODUCT(--COUNTIF(INDIRECT("Kenttätiedot!"&HLOOKUP($A22,Kenttätiedot!$B$3:$Q$5,3,FALSE)&"6:"&HLOOKUP($A22,Kenttätiedot!$B$3:$Q$5,3,FALSE)&"300"),ROW(INDIRECT(MAX($D22,P$2)&":"&MIN($E22,EOMONTH(P$2,0)))))*(WEEKDAY(ROW(INDIRECT(MAX($D22,P$2)&":"&MIN($E22,EOMONTH(P$2,0)))))=MATCH($F22,{"Su";"Ma";"Ti";"Ke";"To";"Pe";"La"},0))),0)*$G22,0) -> 0 | AC22: =IF($D22<>"",IF(AND($D22<=EOMONTH(Q$2,0),$E22>=Q$2),SUMPRODUCT(--(WEEKDAY(ROW(INDIRECT(MAX($D22,Q$2)&":"&MIN($E22,EOMONTH(Q$2,0)))))=MATCH($F22,{"Su";"Ma";"Ti";"Ke";"To";"Pe";"La"},0)))-SUMPRODUCT(--COUNTIF(INDIRECT("Kenttätiedot!"&HLOOKUP($A22,Kenttätiedot!$B$3:$Q$5,3,FALSE)&"6:"&HLOOKUP($A22,Kenttätiedot!$B$3:$Q$5,3,FALSE)&"300"),ROW(INDIRECT(MAX($D22,Q$2)&":"&MIN($E22,EOMONTH(Q$2,0)))))*(WEEKDAY(ROW(INDIRECT(MAX($D22,Q$2)&":"&MIN($E22,EOMONTH(Q$2,0)))))=MATCH($F22,{"Su";"Ma";"Ti";"Ke";"To";"Pe";"La"},0))),0)*$G22,0) -> 0 | AD22: =IF($D22<>"",IF(AND($D22<=EOMONTH(R$2,0),$E22>=R$2),SUMPRODUCT(--(WEEKDAY(ROW(INDIRECT(MAX($D22,R$2)&":"&MIN($E22,EOMONTH(R$2,0)))))=MATCH($F22,{"Su";"Ma";"Ti";"Ke";"To";"Pe";"La"},0)))-SUMPRODUCT(--COUNTIF(INDIRECT("Kenttätiedot!"&HLOOKUP($A22,Kenttätiedot!$B$3:$Q$5,3,FALSE)&"6:"&HLOOKUP($A22,Kenttätiedot!$B$3:$Q$5,3,FALSE)&"300"),ROW(INDIRECT(MAX($D22,R$2)&":"&MIN($E22,EOMONTH(R$2,0)))))*(WEEKDAY(ROW(INDIRECT(MAX($D22,R$2)&":"&MIN($E22,EOMONTH(R$2,0)))))=MATCH($F22,{"Su";"Ma";"Ti";"Ke";"To";"Pe";"La"},0))),0)*$G22,0) -> 0 | AE22: =IF($D22<>"",IF(AND($D22<=EOMONTH(S$2,0),$E22>=S$2),SUMPRODUCT(--(WEEKDAY(ROW(INDIRECT(MAX($D22,S$2)&":"&MIN($E22,EOMONTH(S$2,0)))))=MATCH($F22,{"Su";"Ma";"Ti";"Ke";"To";"Pe";"La"},0)))-SUMPRODUCT(--COUNTIF(INDIRECT("Kenttätiedot!"&HLOOKUP($A22,Kenttätiedot!$B$3:$Q$5,3,FALSE)&"6:"&HLOOKUP($A22,Kenttätiedot!$B$3:$Q$5,3,FALSE)&"300"),ROW(INDIRECT(MAX($D22,S$2)&":"&MIN($E22,EOMONTH(S$2,0)))))*(WEEKDAY(ROW(INDIRECT(MAX($D22,S$2)&":"&MIN($E22,EOMONTH(S$2,0)))))=MATCH($F22,{"Su";"Ma";"Ti";"Ke";"To";"Pe";"La"},0))),0)*$G22,0) -> 0
H23: =IF($D23<>"",IF(AND($D23<=EOMONTH(H$2,0),$E23>=H$2),SUMPRODUCT(--(WEEKDAY(ROW(INDIRECT(MAX($D23,H$2)&":"&MIN($E23,EOMONTH(H$2,0)))))=MATCH($F23,{"Su";"Ma";"Ti";"Ke";"To";"Pe";"La"},0)))-SUMPRODUCT(--COUNTIF(INDIRECT("Kenttätiedot!"&HLOOKUP($A23,Kenttätiedot!$B$3:$Q$5,3,FALSE)&"6:"&HLOOKUP($A23,Kenttätiedot!$B$3:$Q$5,3,FALSE)&"300"),ROW(INDIRECT(MAX($D23,H$2)&":"&MIN($E23,EOMONTH(H$2,0)))))*(WEEKDAY(ROW(INDIRECT(MAX($D23,H$2)&":"&MIN($E23,EOMONTH(H$2,0)))))=MATCH($F23,{"Su";"Ma";"Ti";"Ke";"To";"Pe";"La"},0))),0)*HLOOKUP($A23,Kenttätiedot!$B$3:$Q$5,2,FALSE)*$B23,0) -> 0 | I23: =IF($D23<>"",IF(AND($D23<=EOMONTH(I$2,0),$E23>=I$2),SUMPRODUCT(--(WEEKDAY(ROW(INDIRECT(MAX($D23,I$2)&":"&MIN($E23,EOMONTH(I$2,0)))))=MATCH($F23,{"Su";"Ma";"Ti";"Ke";"To";"Pe";"La"},0)))-SUMPRODUCT(--COUNTIF(INDIRECT("Kenttätiedot!"&HLOOKUP($A23,Kenttätiedot!$B$3:$Q$5,3,FALSE)&"6:"&HLOOKUP($A23,Kenttätiedot!$B$3:$Q$5,3,FALSE)&"300"),ROW(INDIRECT(MAX($D23,I$2)&":"&MIN($E23,EOMONTH(I$2,0)))))*(WEEKDAY(ROW(INDIRECT(MAX($D23,I$2)&":"&MIN($E23,EOMONTH(I$2,0)))))=MATCH($F23,{"Su";"Ma";"Ti";"Ke";"To";"Pe";"La"},0))),0)*HLOOKUP($A23,Kenttätiedot!$B$3:$Q$5,2,FALSE)*$B23,0) -> 0 | J23: =IF($D23<>"",IF(AND($D23<=EOMONTH(J$2,0),$E23>=J$2),SUMPRODUCT(--(WEEKDAY(ROW(INDIRECT(MAX($D23,J$2)&":"&MIN($E23,EOMONTH(J$2,0)))))=MATCH($F23,{"Su";"Ma";"Ti";"Ke";"To";"Pe";"La"},0)))-SUMPRODUCT(--COUNTIF(INDIRECT("Kenttätiedot!"&HLOOKUP($A23,Kenttätiedot!$B$3:$Q$5,3,FALSE)&"6:"&HLOOKUP($A23,Kenttätiedot!$B$3:$Q$5,3,FALSE)&"300"),ROW(INDIRECT(MAX($D23,J$2)&":"&MIN($E23,EOMONTH(J$2,0)))))*(WEEKDAY(ROW(INDIRECT(MAX($D23,J$2)&":"&MIN($E23,EOMONTH(J$2,0)))))=MATCH($F23,{"Su";"Ma";"Ti";"Ke";"To";"Pe";"La"},0))),0)*HLOOKUP($A23,Kenttätiedot!$B$3:$Q$5,2,FALSE)*$B23,0) -> 0 | K23: =IF($D23<>"",IF(AND($D23<=EOMONTH(K$2,0),$E23>=K$2),SUMPRODUCT(--(WEEKDAY(ROW(INDIRECT(MAX($D23,K$2)&":"&MIN($E23,EOMONTH(K$2,0)))))=MATCH($F23,{"Su";"Ma";"Ti";"Ke";"To";"Pe";"La"},0)))-SUMPRODUCT(--COUNTIF(INDIRECT("Kenttätiedot!"&HLOOKUP($A23,Kenttätiedot!$B$3:$Q$5,3,FALSE)&"6:"&HLOOKUP($A23,Kenttätiedot!$B$3:$Q$5,3,FALSE)&"300"),ROW(INDIRECT(MAX($D23,K$2)&":"&MIN($E23,EOMONTH(K$2,0)))))*(WEEKDAY(ROW(INDIRECT(MAX($D23,K$2)&":"&MIN($E23,EOMONTH(K$2,0)))))=MATCH($F23,{"Su";"Ma";"Ti";"Ke";"To";"Pe";"La"},0))),0)*HLOOKUP($A23,Kenttätiedot!$B$3:$Q$5,2,FALSE)*$B23,0) -> 0 | L23: =IF($D23<>"",IF(AND($D23<=EOMONTH(L$2,0),$E23>=L$2),SUMPRODUCT(--(WEEKDAY(ROW(INDIRECT(MAX($D23,L$2)&":"&MIN($E23,EOMONTH(L$2,0)))))=MATCH($F23,{"Su";"Ma";"Ti";"Ke";"To";"Pe";"La"},0)))-SUMPRODUCT(--COUNTIF(INDIRECT("Kenttätiedot!"&HLOOKUP($A23,Kenttätiedot!$B$3:$Q$5,3,FALSE)&"6:"&HLOOKUP($A23,Kenttätiedot!$B$3:$Q$5,3,FALSE)&"300"),ROW(INDIRECT(MAX($D23,L$2)&":"&MIN($E23,EOMONTH(L$2,0)))))*(WEEKDAY(ROW(INDIRECT(MAX($D23,L$2)&":"&MIN($E23,EOMONTH(L$2,0)))))=MATCH($F23,{"Su";"Ma";"Ti";"Ke";"To";"Pe";"La"},0))),0)*HLOOKUP($A23,Kenttätiedot!$B$3:$Q$5,2,FALSE)*$B23,0) -> 0 | M23: =IF($D23<>"",IF(AND($D23<=EOMONTH(M$2,0),$E23>=M$2),SUMPRODUCT(--(WEEKDAY(ROW(INDIRECT(MAX($D23,M$2)&":"&MIN($E23,EOMONTH(M$2,0)))))=MATCH($F23,{"Su";"Ma";"Ti";"Ke";"To";"Pe";"La"},0)))-SUMPRODUCT(--COUNTIF(INDIRECT("Kenttätiedot!"&HLOOKUP($A23,Kenttätiedot!$B$3:$Q$5,3,FALSE)&"6:"&HLOOKUP($A23,Kenttätiedot!$B$3:$Q$5,3,FALSE)&"300"),ROW(INDIRECT(MAX($D23,M$2)&":"&MIN($E23,EOMONTH(M$2,0)))))*(WEEKDAY(ROW(INDIRECT(MAX($D23,M$2)&":"&MIN($E23,EOMONTH(M$2,0)))))=MATCH($F23,{"Su";"Ma";"Ti";"Ke";"To";"Pe";"La"},0))),0)*HLOOKUP($A23,Kenttätiedot!$B$3:$Q$5,2,FALSE)*$B23,0) -> 0 | N23: =IF($D23<>"",IF(AND($D23<=EOMONTH(N$2,0),$E23>=N$2),SUMPRODUCT(--(WEEKDAY(ROW(INDIRECT(MAX($D23,N$2)&":"&MIN($E23,EOMONTH(N$2,0)))))=MATCH($F23,{"Su";"Ma";"Ti";"Ke";"To";"Pe";"La"},0)))-SUMPRODUCT(--COUNTIF(INDIRECT("Kenttätiedot!"&HLOOKUP($A23,Kenttätiedot!$B$3:$Q$5,3,FALSE)&"6:"&HLOOKUP($A23,Kenttätiedot!$B$3:$Q$5,3,FALSE)&"300"),ROW(INDIRECT(MAX($D23,N$2)&":"&MIN($E23,EOMONTH(N$2,0)))))*(WEEKDAY(ROW(INDIRECT(MAX($D23,N$2)&":"&MIN($E23,EOMONTH(N$2,0)))))=MATCH($F23,{"Su";"Ma";"Ti";"Ke";"To";"Pe";"La"},0))),0)*HLOOKUP($A23,Kenttätiedot!$B$3:$Q$5,2,FALSE)*$B23,0) -> 0 | O23: =IF($D23<>"",IF(AND($D23<=EOMONTH(O$2,0),$E23>=O$2),SUMPRODUCT(--(WEEKDAY(ROW(INDIRECT(MAX($D23,O$2)&":"&MIN($E23,EOMONTH(O$2,0)))))=MATCH($F23,{"Su";"Ma";"Ti";"Ke";"To";"Pe";"La"},0)))-SUMPRODUCT(--COUNTIF(INDIRECT("Kenttätiedot!"&HLOOKUP($A23,Kenttätiedot!$B$3:$Q$5,3,FALSE)&"6:"&HLOOKUP($A23,Kenttätiedot!$B$3:$Q$5,3,FALSE)&"300"),ROW(INDIRECT(MAX($D23,O$2)&":"&MIN($E23,EOMONTH(O$2,0)))))*(WEEKDAY(ROW(INDIRECT(MAX($D23,O$2)&":"&MIN($E23,EOMONTH(O$2,0)))))=MATCH($F23,{"Su";"Ma";"Ti";"Ke";"To";"Pe";"La"},0))),0)*HLOOKUP($A23,Kenttätiedot!$B$3:$Q$5,2,FALSE)*$B23,0) -> 0 | P23: =IF($D23<>"",IF(AND($D23<=EOMONTH(P$2,0),$E23>=P$2),SUMPRODUCT(--(WEEKDAY(ROW(INDIRECT(MAX($D23,P$2)&":"&MIN($E23,EOMONTH(P$2,0)))))=MATCH($F23,{"Su";"Ma";"Ti";"Ke";"To";"Pe";"La"},0)))-SUMPRODUCT(--COUNTIF(INDIRECT("Kenttätiedot!"&HLOOKUP($A23,Kenttätiedot!$B$3:$Q$5,3,FALSE)&"6:"&HLOOKUP($A23,Kenttätiedot!$B$3:$Q$5,3,FALSE)&"300"),ROW(INDIRECT(MAX($D23,P$2)&":"&MIN($E23,EOMONTH(P$2,0)))))*(WEEKDAY(ROW(INDIRECT(MAX($D23,P$2)&":"&MIN($E23,EOMONTH(P$2,0)))))=MATCH($F23,{"Su";"Ma";"Ti";"Ke";"To";"Pe";"La"},0))),0)*HLOOKUP($A23,Kenttätiedot!$B$3:$Q$5,2,FALSE)*$B23,0) -> 0 | Q23: =IF($D23<>"",IF(AND($D23<=EOMONTH(Q$2,0),$E23>=Q$2),SUMPRODUCT(--(WEEKDAY(ROW(INDIRECT(MAX($D23,Q$2)&":"&MIN($E23,EOMONTH(Q$2,0)))))=MATCH($F23,{"Su";"Ma";"Ti";"Ke";"To";"Pe";"La"},0)))-SUMPRODUCT(--COUNTIF(INDIRECT("Kenttätiedot!"&HLOOKUP($A23,Kenttätiedot!$B$3:$Q$5,3,FALSE)&"6:"&HLOOKUP($A23,Kenttätiedot!$B$3:$Q$5,3,FALSE)&"300"),ROW(INDIRECT(MAX($D23,Q$2)&":"&MIN($E23,EOMONTH(Q$2,0)))))*(WEEKDAY(ROW(INDIRECT(MAX($D23,Q$2)&":"&MIN($E23,EOMONTH(Q$2,0)))))=MATCH($F23,{"Su";"Ma";"Ti";"Ke";"To";"Pe";"La"},0))),0)*HLOOKUP($A23,Kenttätiedot!$B$3:$Q$5,2,FALSE)*$B23,0) -> 0 | R23: =IF($D23<>"",IF(AND($D23<=EOMONTH(R$2,0),$E23>=R$2),SUMPRODUCT(--(WEEKDAY(ROW(INDIRECT(MAX($D23,R$2)&":"&MIN($E23,EOMONTH(R$2,0)))))=MATCH($F23,{"Su";"Ma";"Ti";"Ke";"To";"Pe";"La"},0)))-SUMPRODUCT(--COUNTIF(INDIRECT("Kenttätiedot!"&HLOOKUP($A23,Kenttätiedot!$B$3:$Q$5,3,FALSE)&"6:"&HLOOKUP($A23,Kenttätiedot!$B$3:$Q$5,3,FALSE)&"300"),ROW(INDIRECT(MAX($D23,R$2)&":"&MIN($E23,EOMONTH(R$2,0)))))*(WEEKDAY(ROW(INDIRECT(MAX($D23,R$2)&":"&MIN($E23,EOMONTH(R$2,0)))))=MATCH($F23,{"Su";"Ma";"Ti";"Ke";"To";"Pe";"La"},0))),0)*HLOOKUP($A23,Kenttätiedot!$B$3:$Q$5,2,FALSE)*$B23,0) -> 0 | S23: =IF($D23<>"",IF(AND($D23<=EOMONTH(S$2,0),$E23>=S$2),SUMPRODUCT(--(WEEKDAY(ROW(INDIRECT(MAX($D23,S$2)&":"&MIN($E23,EOMONTH(S$2,0)))))=MATCH($F23,{"Su";"Ma";"Ti";"Ke";"To";"Pe";"La"},0)))-SUMPRODUCT(--COUNTIF(INDIRECT("Kenttätiedot!"&HLOOKUP($A23,Kenttätiedot!$B$3:$Q$5,3,FALSE)&"6:"&HLOOKUP($A23,Kenttätiedot!$B$3:$Q$5,3,FALSE)&"300"),ROW(INDIRECT(MAX($D23,S$2)&":"&MIN($E23,EOMONTH(S$2,0)))))*(WEEKDAY(ROW(INDIRECT(MAX($D23,S$2)&":"&MIN($E23,EOMONTH(S$2,0)))))=MATCH($F23,{"Su";"Ma";"Ti";"Ke";"To";"Pe";"La"},0))),0)*HLOOKUP($A23,Kenttätiedot!$B$3:$Q$5,2,FALSE)*$B23,0) -> 0 | T23: =IF($D23<>"",IF(AND($D23<=EOMONTH(H$2,0),$E23>=H$2),SUMPRODUCT(--(WEEKDAY(ROW(INDIRECT(MAX($D23,H$2)&":"&MIN($E23,EOMONTH(H$2,0)))))=MATCH($F23,{"Su";"Ma";"Ti";"Ke";"To";"Pe";"La"},0)))-SUMPRODUCT(--COUNTIF(INDIRECT("Kenttätiedot!"&HLOOKUP($A23,Kenttätiedot!$B$3:$Q$5,3,FALSE)&"6:"&HLOOKUP($A23,Kenttätiedot!$B$3:$Q$5,3,FALSE)&"300"),ROW(INDIRECT(MAX($D23,H$2)&":"&MIN($E23,EOMONTH(H$2,0)))))*(WEEKDAY(ROW(INDIRECT(MAX($D23,H$2)&":"&MIN($E23,EOMONTH(H$2,0)))))=MATCH($F23,{"Su";"Ma";"Ti";"Ke";"To";"Pe";"La"},0))),0)*$G23,0) -> 0 | U23: =IF($D23<>"",IF(AND($D23<=EOMONTH(I$2,0),$E23>=I$2),SUMPRODUCT(--(WEEKDAY(ROW(INDIRECT(MAX($D23,I$2)&":"&MIN($E23,EOMONTH(I$2,0)))))=MATCH($F23,{"Su";"Ma";"Ti";"Ke";"To";"Pe";"La"},0)))-SUMPRODUCT(--COUNTIF(INDIRECT("Kenttätiedot!"&HLOOKUP($A23,Kenttätiedot!$B$3:$Q$5,3,FALSE)&"6:"&HLOOKUP($A23,Kenttätiedot!$B$3:$Q$5,3,FALSE)&"300"),ROW(INDIRECT(MAX($D23,I$2)&":"&MIN($E23,EOMONTH(I$2,0)))))*(WEEKDAY(ROW(INDIRECT(MAX($D23,I$2)&":"&MIN($E23,EOMONTH(I$2,0)))))=MATCH($F23,{"Su";"Ma";"Ti";"Ke";"To";"Pe";"La"},0))),0)*$G23,0) -> 0 | V23: =IF($D23<>"",IF(AND($D23<=EOMONTH(J$2,0),$E23>=J$2),SUMPRODUCT(--(WEEKDAY(ROW(INDIRECT(MAX($D23,J$2)&":"&MIN($E23,EOMONTH(J$2,0)))))=MATCH($F23,{"Su";"Ma";"Ti";"Ke";"To";"Pe";"La"},0)))-SUMPRODUCT(--COUNTIF(INDIRECT("Kenttätiedot!"&HLOOKUP($A23,Kenttätiedot!$B$3:$Q$5,3,FALSE)&"6:"&HLOOKUP($A23,Kenttätiedot!$B$3:$Q$5,3,FALSE)&"300"),ROW(INDIRECT(MAX($D23,J$2)&":"&MIN($E23,EOMONTH(J$2,0)))))*(WEEKDAY(ROW(INDIRECT(MAX($D23,J$2)&":"&MIN($E23,EOMONTH(J$2,0)))))=MATCH($F23,{"Su";"Ma";"Ti";"Ke";"To";"Pe";"La"},0))),0)*$G23,0) -> 0 | W23: =IF($D23<>"",IF(AND($D23<=EOMONTH(K$2,0),$E23>=K$2),SUMPRODUCT(--(WEEKDAY(ROW(INDIRECT(MAX($D23,K$2)&":"&MIN($E23,EOMONTH(K$2,0)))))=MATCH($F23,{"Su";"Ma";"Ti";"Ke";"To";"Pe";"La"},0)))-SUMPRODUCT(--COUNTIF(INDIRECT("Kenttätiedot!"&HLOOKUP($A23,Kenttätiedot!$B$3:$Q$5,3,FALSE)&"6:"&HLOOKUP($A23,Kenttätiedot!$B$3:$Q$5,3,FALSE)&"300"),ROW(INDIRECT(MAX($D23,K$2)&":"&MIN($E23,EOMONTH(K$2,0)))))*(WEEKDAY(ROW(INDIRECT(MAX($D23,K$2)&":"&MIN($E23,EOMONTH(K$2,0)))))=MATCH($F23,{"Su";"Ma";"Ti";"Ke";"To";"Pe";"La"},0))),0)*$G23,0) -> 0 | X23: =IF($D23<>"",IF(AND($D23<=EOMONTH(L$2,0),$E23>=L$2),SUMPRODUCT(--(WEEKDAY(ROW(INDIRECT(MAX($D23,L$2)&":"&MIN($E23,EOMONTH(L$2,0)))))=MATCH($F23,{"Su";"Ma";"Ti";"Ke";"To";"Pe";"La"},0)))-SUMPRODUCT(--COUNTIF(INDIRECT("Kenttätiedot!"&HLOOKUP($A23,Kenttätiedot!$B$3:$Q$5,3,FALSE)&"6:"&HLOOKUP($A23,Kenttätiedot!$B$3:$Q$5,3,FALSE)&"300"),ROW(INDIRECT(MAX($D23,L$2)&":"&MIN($E23,EOMONTH(L$2,0)))))*(WEEKDAY(ROW(INDIRECT(MAX($D23,L$2)&":"&MIN($E23,EOMONTH(L$2,0)))))=MATCH($F23,{"Su";"Ma";"Ti";"Ke";"To";"Pe";"La"},0))),0)*$G23,0) -> 0 | Y23: =IF($D23<>"",IF(AND($D23<=EOMONTH(M$2,0),$E23>=M$2),SUMPRODUCT(--(WEEKDAY(ROW(INDIRECT(MAX($D23,M$2)&":"&MIN($E23,EOMONTH(M$2,0)))))=MATCH($F23,{"Su";"Ma";"Ti";"Ke";"To";"Pe";"La"},0)))-SUMPRODUCT(--COUNTIF(INDIRECT("Kenttätiedot!"&HLOOKUP($A23,Kenttätiedot!$B$3:$Q$5,3,FALSE)&"6:"&HLOOKUP($A23,Kenttätiedot!$B$3:$Q$5,3,FALSE)&"300"),ROW(INDIRECT(MAX($D23,M$2)&":"&MIN($E23,EOMONTH(M$2,0)))))*(WEEKDAY(ROW(INDIRECT(MAX($D23,M$2)&":"&MIN($E23,EOMONTH(M$2,0)))))=MATCH($F23,{"Su";"Ma";"Ti";"Ke";"To";"Pe";"La"},0))),0)*$G23,0) -> 0 | Z23: =IF($D23<>"",IF(AND($D23<=EOMONTH(N$2,0),$E23>=N$2),SUMPRODUCT(--(WEEKDAY(ROW(INDIRECT(MAX($D23,N$2)&":"&MIN($E23,EOMONTH(N$2,0)))))=MATCH($F23,{"Su";"Ma";"Ti";"Ke";"To";"Pe";"La"},0)))-SUMPRODUCT(--COUNTIF(INDIRECT("Kenttätiedot!"&HLOOKUP($A23,Kenttätiedot!$B$3:$Q$5,3,FALSE)&"6:"&HLOOKUP($A23,Kenttätiedot!$B$3:$Q$5,3,FALSE)&"300"),ROW(INDIRECT(MAX($D23,N$2)&":"&MIN($E23,EOMONTH(N$2,0)))))*(WEEKDAY(ROW(INDIRECT(MAX($D23,N$2)&":"&MIN($E23,EOMONTH(N$2,0)))))=MATCH($F23,{"Su";"Ma";"Ti";"Ke";"To";"Pe";"La"},0))),0)*$G23,0) -> 0 | AA23: =IF($D23<>"",IF(AND($D23<=EOMONTH(O$2,0),$E23>=O$2),SUMPRODUCT(--(WEEKDAY(ROW(INDIRECT(MAX($D23,O$2)&":"&MIN($E23,EOMONTH(O$2,0)))))=MATCH($F23,{"Su";"Ma";"Ti";"Ke";"To";"Pe";"La"},0)))-SUMPRODUCT(--COUNTIF(INDIRECT("Kenttätiedot!"&HLOOKUP($A23,Kenttätiedot!$B$3:$Q$5,3,FALSE)&"6:"&HLOOKUP($A23,Kenttätiedot!$B$3:$Q$5,3,FALSE)&"300"),ROW(INDIRECT(MAX($D23,O$2)&":"&MIN($E23,EOMONTH(O$2,0)))))*(WEEKDAY(ROW(INDIRECT(MAX($D23,O$2)&":"&MIN($E23,EOMONTH(O$2,0)))))=MATCH($F23,{"Su";"Ma";"Ti";"Ke";"To";"Pe";"La"},0))),0)*$G23,0) -> 0 | AB23: =IF($D23<>"",IF(AND($D23<=EOMONTH(P$2,0),$E23>=P$2),SUMPRODUCT(--(WEEKDAY(ROW(INDIRECT(MAX($D23,P$2)&":"&MIN($E23,EOMONTH(P$2,0)))))=MATCH($F23,{"Su";"Ma";"Ti";"Ke";"To";"Pe";"La"},0)))-SUMPRODUCT(--COUNTIF(INDIRECT("Kenttätiedot!"&HLOOKUP($A23,Kenttätiedot!$B$3:$Q$5,3,FALSE)&"6:"&HLOOKUP($A23,Kenttätiedot!$B$3:$Q$5,3,FALSE)&"300"),ROW(INDIRECT(MAX($D23,P$2)&":"&MIN($E23,EOMONTH(P$2,0)))))*(WEEKDAY(ROW(INDIRECT(MAX($D23,P$2)&":"&MIN($E23,EOMONTH(P$2,0)))))=MATCH($F23,{"Su";"Ma";"Ti";"Ke";"To";"Pe";"La"},0))),0)*$G23,0) -> 0 | AC23: =IF($D23<>"",IF(AND($D23<=EOMONTH(Q$2,0),$E23>=Q$2),SUMPRODUCT(--(WEEKDAY(ROW(INDIRECT(MAX($D23,Q$2)&":"&MIN($E23,EOMONTH(Q$2,0)))))=MATCH($F23,{"Su";"Ma";"Ti";"Ke";"To";"Pe";"La"},0)))-SUMPRODUCT(--COUNTIF(INDIRECT("Kenttätiedot!"&HLOOKUP($A23,Kenttätiedot!$B$3:$Q$5,3,FALSE)&"6:"&HLOOKUP($A23,Kenttätiedot!$B$3:$Q$5,3,FALSE)&"300"),ROW(INDIRECT(MAX($D23,Q$2)&":"&MIN($E23,EOMONTH(Q$2,0)))))*(WEEKDAY(ROW(INDIRECT(MAX($D23,Q$2)&":"&MIN($E23,EOMONTH(Q$2,0)))))=MATCH($F23,{"Su";"Ma";"Ti";"Ke";"To";"Pe";"La"},0))),0)*$G23,0) -> 0 | AD23: =IF($D23<>"",IF(AND($D23<=EOMONTH(R$2,0),$E23>=R$2),SUMPRODUCT(--(WEEKDAY(ROW(INDIRECT(MAX($D23,R$2)&":"&MIN($E23,EOMONTH(R$2,0)))))=MATCH($F23,{"Su";"Ma";"Ti";"Ke";"To";"Pe";"La"},0)))-SUMPRODUCT(--COUNTIF(INDIRECT("Kenttätiedot!"&HLOOKUP($A23,Kenttätiedot!$B$3:$Q$5,3,FALSE)&"6:"&HLOOKUP($A23,Kenttätiedot!$B$3:$Q$5,3,FALSE)&"300"),ROW(INDIRECT(MAX($D23,R$2)&":"&MIN($E23,EOMONTH(R$2,0)))))*(WEEKDAY(ROW(INDIRECT(MAX($D23,R$2)&":"&MIN($E23,EOMONTH(R$2,0)))))=MATCH($F23,{"Su";"Ma";"Ti";"Ke";"To";"Pe";"La"},0))),0)*$G23,0) -> 0 | AE23: =IF($D23<>"",IF(AND($D23<=EOMONTH(S$2,0),$E23>=S$2),SUMPRODUCT(--(WEEKDAY(ROW(INDIRECT(MAX($D23,S$2)&":"&MIN($E23,EOMONTH(S$2,0)))))=MATCH($F23,{"Su";"Ma";"Ti";"Ke";"To";"Pe";"La"},0)))-SUMPRODUCT(--COUNTIF(INDIRECT("Kenttätiedot!"&HLOOKUP($A23,Kenttätiedot!$B$3:$Q$5,3,FALSE)&"6:"&HLOOKUP($A23,Kenttätiedot!$B$3:$Q$5,3,FALSE)&"300"),ROW(INDIRECT(MAX($D23,S$2)&":"&MIN($E23,EOMONTH(S$2,0)))))*(WEEKDAY(ROW(INDIRECT(MAX($D23,S$2)&":"&MIN($E23,EOMONTH(S$2,0)))))=MATCH($F23,{"Su";"Ma";"Ti";"Ke";"To";"Pe";"La"},0))),0)*$G23,0) -> 0
H24: =IF($D24<>"",IF(AND($D24<=EOMONTH(H$2,0),$E24>=H$2),SUMPRODUCT(--(WEEKDAY(ROW(INDIRECT(MAX($D24,H$2)&":"&MIN($E24,EOMONTH(H$2,0)))))=MATCH($F24,{"Su";"Ma";"Ti";"Ke";"To";"Pe";"La"},0)))-SUMPRODUCT(--COUNTIF(INDIRECT("Kenttätiedot!"&HLOOKUP($A24,Kenttätiedot!$B$3:$Q$5,3,FALSE)&"6:"&HLOOKUP($A24,Kenttätiedot!$B$3:$Q$5,3,FALSE)&"300"),ROW(INDIRECT(MAX($D24,H$2)&":"&MIN($E24,EOMONTH(H$2,0)))))*(WEEKDAY(ROW(INDIRECT(MAX($D24,H$2)&":"&MIN($E24,EOMONTH(H$2,0)))))=MATCH($F24,{"Su";"Ma";"Ti";"Ke";"To";"Pe";"La"},0))),0)*HLOOKUP($A24,Kenttätiedot!$B$3:$Q$5,2,FALSE)*$B24,0) -> 0 | I24: =IF($D24<>"",IF(AND($D24<=EOMONTH(I$2,0),$E24>=I$2),SUMPRODUCT(--(WEEKDAY(ROW(INDIRECT(MAX($D24,I$2)&":"&MIN($E24,EOMONTH(I$2,0)))))=MATCH($F24,{"Su";"Ma";"Ti";"Ke";"To";"Pe";"La"},0)))-SUMPRODUCT(--COUNTIF(INDIRECT("Kenttätiedot!"&HLOOKUP($A24,Kenttätiedot!$B$3:$Q$5,3,FALSE)&"6:"&HLOOKUP($A24,Kenttätiedot!$B$3:$Q$5,3,FALSE)&"300"),ROW(INDIRECT(MAX($D24,I$2)&":"&MIN($E24,EOMONTH(I$2,0)))))*(WEEKDAY(ROW(INDIRECT(MAX($D24,I$2)&":"&MIN($E24,EOMONTH(I$2,0)))))=MATCH($F24,{"Su";"Ma";"Ti";"Ke";"To";"Pe";"La"},0))),0)*HLOOKUP($A24,Kenttätiedot!$B$3:$Q$5,2,FALSE)*$B24,0) -> 0 | J24: =IF($D24<>"",IF(AND($D24<=EOMONTH(J$2,0),$E24>=J$2),SUMPRODUCT(--(WEEKDAY(ROW(INDIRECT(MAX($D24,J$2)&":"&MIN($E24,EOMONTH(J$2,0)))))=MATCH($F24,{"Su";"Ma";"Ti";"Ke";"To";"Pe";"La"},0)))-SUMPRODUCT(--COUNTIF(INDIRECT("Kenttätiedot!"&HLOOKUP($A24,Kenttätiedot!$B$3:$Q$5,3,FALSE)&"6:"&HLOOKUP($A24,Kenttätiedot!$B$3:$Q$5,3,FALSE)&"300"),ROW(INDIRECT(MAX($D24,J$2)&":"&MIN($E24,EOMONTH(J$2,0)))))*(WEEKDAY(ROW(INDIRECT(MAX($D24,J$2)&":"&MIN($E24,EOMONTH(J$2,0)))))=MATCH($F24,{"Su";"Ma";"Ti";"Ke";"To";"Pe";"La"},0))),0)*HLOOKUP($A24,Kenttätiedot!$B$3:$Q$5,2,FALSE)*$B24,0) -> 0 | K24: =IF($D24<>"",IF(AND($D24<=EOMONTH(K$2,0),$E24>=K$2),SUMPRODUCT(--(WEEKDAY(ROW(INDIRECT(MAX($D24,K$2)&":"&MIN($E24,EOMONTH(K$2,0)))))=MATCH($F24,{"Su";"Ma";"Ti";"Ke";"To";"Pe";"La"},0)))-SUMPRODUCT(--COUNTIF(INDIRECT("Kenttätiedot!"&HLOOKUP($A24,Kenttätiedot!$B$3:$Q$5,3,FALSE)&"6:"&HLOOKUP($A24,Kenttätiedot!$B$3:$Q$5,3,FALSE)&"300"),ROW(INDIRECT(MAX($D24,K$2)&":"&MIN($E24,EOMONTH(K$2,0)))))*(WEEKDAY(ROW(INDIRECT(MAX($D24,K$2)&":"&MIN($E24,EOMONTH(K$2,0)))))=MATCH($F24,{"Su";"Ma";"Ti";"Ke";"To";"Pe";"La"},0))),0)*HLOOKUP($A24,Kenttätiedot!$B$3:$Q$5,2,FALSE)*$B24,0) -> 0 | L24: =IF($D24<>"",IF(AND($D24<=EOMONTH(L$2,0),$E24>=L$2),SUMPRODUCT(--(WEEKDAY(ROW(INDIRECT(MAX($D24,L$2)&":"&MIN($E24,EOMONTH(L$2,0)))))=MATCH($F24,{"Su";"Ma";"Ti";"Ke";"To";"Pe";"La"},0)))-SUMPRODUCT(--COUNTIF(INDIRECT("Kenttätiedot!"&HLOOKUP($A24,Kenttätiedot!$B$3:$Q$5,3,FALSE)&"6:"&HLOOKUP($A24,Kenttätiedot!$B$3:$Q$5,3,FALSE)&"300"),ROW(INDIRECT(MAX($D24,L$2)&":"&MIN($E24,EOMONTH(L$2,0)))))*(WEEKDAY(ROW(INDIRECT(MAX($D24,L$2)&":"&MIN($E24,EOMONTH(L$2,0)))))=MATCH($F24,{"Su";"Ma";"Ti";"Ke";"To";"Pe";"La"},0))),0)*HLOOKUP($A24,Kenttätiedot!$B$3:$Q$5,2,FALSE)*$B24,0) -> 0 | M24: =IF($D24<>"",IF(AND($D24<=EOMONTH(M$2,0),$E24>=M$2),SUMPRODUCT(--(WEEKDAY(ROW(INDIRECT(MAX($D24,M$2)&":"&MIN($E24,EOMONTH(M$2,0)))))=MATCH($F24,{"Su";"Ma";"Ti";"Ke";"To";"Pe";"La"},0)))-SUMPRODUCT(--COUNTIF(INDIRECT("Kenttätiedot!"&HLOOKUP($A24,Kenttätiedot!$B$3:$Q$5,3,FALSE)&"6:"&HLOOKUP($A24,Kenttätiedot!$B$3:$Q$5,3,FALSE)&"300"),ROW(INDIRECT(MAX($D24,M$2)&":"&MIN($E24,EOMONTH(M$2,0)))))*(WEEKDAY(ROW(INDIRECT(MAX($D24,M$2)&":"&MIN($E24,EOMONTH(M$2,0)))))=MATCH($F24,{"Su";"Ma";"Ti";"Ke";"To";"Pe";"La"},0))),0)*HLOOKUP($A24,Kenttätiedot!$B$3:$Q$5,2,FALSE)*$B24,0) -> 0 | N24: =IF($D24<>"",IF(AND($D24<=EOMONTH(N$2,0),$E24>=N$2),SUMPRODUCT(--(WEEKDAY(ROW(INDIRECT(MAX($D24,N$2)&":"&MIN($E24,EOMONTH(N$2,0)))))=MATCH($F24,{"Su";"Ma";"Ti";"Ke";"To";"Pe";"La"},0)))-SUMPRODUCT(--COUNTIF(INDIRECT("Kenttätiedot!"&HLOOKUP($A24,Kenttätiedot!$B$3:$Q$5,3,FALSE)&"6:"&HLOOKUP($A24,Kenttätiedot!$B$3:$Q$5,3,FALSE)&"300"),ROW(INDIRECT(MAX($D24,N$2)&":"&MIN($E24,EOMONTH(N$2,0)))))*(WEEKDAY(ROW(INDIRECT(MAX($D24,N$2)&":"&MIN($E24,EOMONTH(N$2,0)))))=MATCH($F24,{"Su";"Ma";"Ti";"Ke";"To";"Pe";"La"},0))),0)*HLOOKUP($A24,Kenttätiedot!$B$3:$Q$5,2,FALSE)*$B24,0) -> 0 | O24: =IF($D24<>"",IF(AND($D24<=EOMONTH(O$2,0),$E24>=O$2),SUMPRODUCT(--(WEEKDAY(ROW(INDIRECT(MAX($D24,O$2)&":"&MIN($E24,EOMONTH(O$2,0)))))=MATCH($F24,{"Su";"Ma";"Ti";"Ke";"To";"Pe";"La"},0)))-SUMPRODUCT(--COUNTIF(INDIRECT("Kenttätiedot!"&HLOOKUP($A24,Kenttätiedot!$B$3:$Q$5,3,FALSE)&"6:"&HLOOKUP($A24,Kenttätiedot!$B$3:$Q$5,3,FALSE)&"300"),ROW(INDIRECT(MAX($D24,O$2)&":"&MIN($E24,EOMONTH(O$2,0)))))*(WEEKDAY(ROW(INDIRECT(MAX($D24,O$2)&":"&MIN($E24,EOMONTH(O$2,0)))))=MATCH($F24,{"Su";"Ma";"Ti";"Ke";"To";"Pe";"La"},0))),0)*HLOOKUP($A24,Kenttätiedot!$B$3:$Q$5,2,FALSE)*$B24,0) -> 0 | P24: =IF($D24<>"",IF(AND($D24<=EOMONTH(P$2,0),$E24>=P$2),SUMPRODUCT(--(WEEKDAY(ROW(INDIRECT(MAX($D24,P$2)&":"&MIN($E24,EOMONTH(P$2,0)))))=MATCH($F24,{"Su";"Ma";"Ti";"Ke";"To";"Pe";"La"},0)))-SUMPRODUCT(--COUNTIF(INDIRECT("Kenttätiedot!"&HLOOKUP($A24,Kenttätiedot!$B$3:$Q$5,3,FALSE)&"6:"&HLOOKUP($A24,Kenttätiedot!$B$3:$Q$5,3,FALSE)&"300"),ROW(INDIRECT(MAX($D24,P$2)&":"&MIN($E24,EOMONTH(P$2,0)))))*(WEEKDAY(ROW(INDIRECT(MAX($D24,P$2)&":"&MIN($E24,EOMONTH(P$2,0)))))=MATCH($F24,{"Su";"Ma";"Ti";"Ke";"To";"Pe";"La"},0))),0)*HLOOKUP($A24,Kenttätiedot!$B$3:$Q$5,2,FALSE)*$B24,0) -> 0 | Q24: =IF($D24<>"",IF(AND($D24<=EOMONTH(Q$2,0),$E24>=Q$2),SUMPRODUCT(--(WEEKDAY(ROW(INDIRECT(MAX($D24,Q$2)&":"&MIN($E24,EOMONTH(Q$2,0)))))=MATCH($F24,{"Su";"Ma";"Ti";"Ke";"To";"Pe";"La"},0)))-SUMPRODUCT(--COUNTIF(INDIRECT("Kenttätiedot!"&HLOOKUP($A24,Kenttätiedot!$B$3:$Q$5,3,FALSE)&"6:"&HLOOKUP($A24,Kenttätiedot!$B$3:$Q$5,3,FALSE)&"300"),ROW(INDIRECT(MAX($D24,Q$2)&":"&MIN($E24,EOMONTH(Q$2,0)))))*(WEEKDAY(ROW(INDIRECT(MAX($D24,Q$2)&":"&MIN($E24,EOMONTH(Q$2,0)))))=MATCH($F24,{"Su";"Ma";"Ti";"Ke";"To";"Pe";"La"},0))),0)*HLOOKUP($A24,Kenttätiedot!$B$3:$Q$5,2,FALSE)*$B24,0) -> 0 | R24: =IF($D24<>"",IF(AND($D24<=EOMONTH(R$2,0),$E24>=R$2),SUMPRODUCT(--(WEEKDAY(ROW(INDIRECT(MAX($D24,R$2)&":"&MIN($E24,EOMONTH(R$2,0)))))=MATCH($F24,{"Su";"Ma";"Ti";"Ke";"To";"Pe";"La"},0)))-SUMPRODUCT(--COUNTIF(INDIRECT("Kenttätiedot!"&HLOOKUP($A24,Kenttätiedot!$B$3:$Q$5,3,FALSE)&"6:"&HLOOKUP($A24,Kenttätiedot!$B$3:$Q$5,3,FALSE)&"300"),ROW(INDIRECT(MAX($D24,R$2)&":"&MIN($E24,EOMONTH(R$2,0)))))*(WEEKDAY(ROW(INDIRECT(MAX($D24,R$2)&":"&MIN($E24,EOMONTH(R$2,0)))))=MATCH($F24,{"Su";"Ma";"Ti";"Ke";"To";"Pe";"La"},0))),0)*HLOOKUP($A24,Kenttätiedot!$B$3:$Q$5,2,FALSE)*$B24,0) -> 0 | S24: =IF($D24<>"",IF(AND($D24<=EOMONTH(S$2,0),$E24>=S$2),SUMPRODUCT(--(WEEKDAY(ROW(INDIRECT(MAX($D24,S$2)&":"&MIN($E24,EOMONTH(S$2,0)))))=MATCH($F24,{"Su";"Ma";"Ti";"Ke";"To";"Pe";"La"},0)))-SUMPRODUCT(--COUNTIF(INDIRECT("Kenttätiedot!"&HLOOKUP($A24,Kenttätiedot!$B$3:$Q$5,3,FALSE)&"6:"&HLOOKUP($A24,Kenttätiedot!$B$3:$Q$5,3,FALSE)&"300"),ROW(INDIRECT(MAX($D24,S$2)&":"&MIN($E24,EOMONTH(S$2,0)))))*(WEEKDAY(ROW(INDIRECT(MAX($D24,S$2)&":"&MIN($E24,EOMONTH(S$2,0)))))=MATCH($F24,{"Su";"Ma";"Ti";"Ke";"To";"Pe";"La"},0))),0)*HLOOKUP($A24,Kenttätiedot!$B$3:$Q$5,2,FALSE)*$B24,0) -> 0 | T24: =IF($D24<>"",IF(AND($D24<=EOMONTH(H$2,0),$E24>=H$2),SUMPRODUCT(--(WEEKDAY(ROW(INDIRECT(MAX($D24,H$2)&":"&MIN($E24,EOMONTH(H$2,0)))))=MATCH($F24,{"Su";"Ma";"Ti";"Ke";"To";"Pe";"La"},0)))-SUMPRODUCT(--COUNTIF(INDIRECT("Kenttätiedot!"&HLOOKUP($A24,Kenttätiedot!$B$3:$Q$5,3,FALSE)&"6:"&HLOOKUP($A24,Kenttätiedot!$B$3:$Q$5,3,FALSE)&"300"),ROW(INDIRECT(MAX($D24,H$2)&":"&MIN($E24,EOMONTH(H$2,0)))))*(WEEKDAY(ROW(INDIRECT(MAX($D24,H$2)&":"&MIN($E24,EOMONTH(H$2,0)))))=MATCH($F24,{"Su";"Ma";"Ti";"Ke";"To";"Pe";"La"},0))),0)*$G24,0) -> 0 | U24: =IF($D24<>"",IF(AND($D24<=EOMONTH(I$2,0),$E24>=I$2),SUMPRODUCT(--(WEEKDAY(ROW(INDIRECT(MAX($D24,I$2)&":"&MIN($E24,EOMONTH(I$2,0)))))=MATCH($F24,{"Su";"Ma";"Ti";"Ke";"To";"Pe";"La"},0)))-SUMPRODUCT(--COUNTIF(INDIRECT("Kenttätiedot!"&HLOOKUP($A24,Kenttätiedot!$B$3:$Q$5,3,FALSE)&"6:"&HLOOKUP($A24,Kenttätiedot!$B$3:$Q$5,3,FALSE)&"300"),ROW(INDIRECT(MAX($D24,I$2)&":"&MIN($E24,EOMONTH(I$2,0)))))*(WEEKDAY(ROW(INDIRECT(MAX($D24,I$2)&":"&MIN($E24,EOMONTH(I$2,0)))))=MATCH($F24,{"Su";"Ma";"Ti";"Ke";"To";"Pe";"La"},0))),0)*$G24,0) -> 0 | V24: =IF($D24<>"",IF(AND($D24<=EOMONTH(J$2,0),$E24>=J$2),SUMPRODUCT(--(WEEKDAY(ROW(INDIRECT(MAX($D24,J$2)&":"&MIN($E24,EOMONTH(J$2,0)))))=MATCH($F24,{"Su";"Ma";"Ti";"Ke";"To";"Pe";"La"},0)))-SUMPRODUCT(--COUNTIF(INDIRECT("Kenttätiedot!"&HLOOKUP($A24,Kenttätiedot!$B$3:$Q$5,3,FALSE)&"6:"&HLOOKUP($A24,Kenttätiedot!$B$3:$Q$5,3,FALSE)&"300"),ROW(INDIRECT(MAX($D24,J$2)&":"&MIN($E24,EOMONTH(J$2,0)))))*(WEEKDAY(ROW(INDIRECT(MAX($D24,J$2)&":"&MIN($E24,EOMONTH(J$2,0)))))=MATCH($F24,{"Su";"Ma";"Ti";"Ke";"To";"Pe";"La"},0))),0)*$G24,0) -> 0 | W24: =IF($D24<>"",IF(AND($D24<=EOMONTH(K$2,0),$E24>=K$2),SUMPRODUCT(--(WEEKDAY(ROW(INDIRECT(MAX($D24,K$2)&":"&MIN($E24,EOMONTH(K$2,0)))))=MATCH($F24,{"Su";"Ma";"Ti";"Ke";"To";"Pe";"La"},0)))-SUMPRODUCT(--COUNTIF(INDIRECT("Kenttätiedot!"&HLOOKUP($A24,Kenttätiedot!$B$3:$Q$5,3,FALSE)&"6:"&HLOOKUP($A24,Kenttätiedot!$B$3:$Q$5,3,FALSE)&"300"),ROW(INDIRECT(MAX($D24,K$2)&":"&MIN($E24,EOMONTH(K$2,0)))))*(WEEKDAY(ROW(INDIRECT(MAX($D24,K$2)&":"&MIN($E24,EOMONTH(K$2,0)))))=MATCH($F24,{"Su";"Ma";"Ti";"Ke";"To";"Pe";"La"},0))),0)*$G24,0) -> 0 | X24: =IF($D24<>"",IF(AND($D24<=EOMONTH(L$2,0),$E24>=L$2),SUMPRODUCT(--(WEEKDAY(ROW(INDIRECT(MAX($D24,L$2)&":"&MIN($E24,EOMONTH(L$2,0)))))=MATCH($F24,{"Su";"Ma";"Ti";"Ke";"To";"Pe";"La"},0)))-SUMPRODUCT(--COUNTIF(INDIRECT("Kenttätiedot!"&HLOOKUP($A24,Kenttätiedot!$B$3:$Q$5,3,FALSE)&"6:"&HLOOKUP($A24,Kenttätiedot!$B$3:$Q$5,3,FALSE)&"300"),ROW(INDIRECT(MAX($D24,L$2)&":"&MIN($E24,EOMONTH(L$2,0)))))*(WEEKDAY(ROW(INDIRECT(MAX($D24,L$2)&":"&MIN($E24,EOMONTH(L$2,0)))))=MATCH($F24,{"Su";"Ma";"Ti";"Ke";"To";"Pe";"La"},0))),0)*$G24,0) -> 0 | Y24: =IF($D24<>"",IF(AND($D24<=EOMONTH(M$2,0),$E24>=M$2),SUMPRODUCT(--(WEEKDAY(ROW(INDIRECT(MAX($D24,M$2)&":"&MIN($E24,EOMONTH(M$2,0)))))=MATCH($F24,{"Su";"Ma";"Ti";"Ke";"To";"Pe";"La"},0)))-SUMPRODUCT(--COUNTIF(INDIRECT("Kenttätiedot!"&HLOOKUP($A24,Kenttätiedot!$B$3:$Q$5,3,FALSE)&"6:"&HLOOKUP($A24,Kenttätiedot!$B$3:$Q$5,3,FALSE)&"300"),ROW(INDIRECT(MAX($D24,M$2)&":"&MIN($E24,EOMONTH(M$2,0)))))*(WEEKDAY(ROW(INDIRECT(MAX($D24,M$2)&":"&MIN($E24,EOMONTH(M$2,0)))))=MATCH($F24,{"Su";"Ma";"Ti";"Ke";"To";"Pe";"La"},0))),0)*$G24,0) -> 0 | Z24: =IF($D24<>"",IF(AND($D24<=EOMONTH(N$2,0),$E24>=N$2),SUMPRODUCT(--(WEEKDAY(ROW(INDIRECT(MAX($D24,N$2)&":"&MIN($E24,EOMONTH(N$2,0)))))=MATCH($F24,{"Su";"Ma";"Ti";"Ke";"To";"Pe";"La"},0)))-SUMPRODUCT(--COUNTIF(INDIRECT("Kenttätiedot!"&HLOOKUP($A24,Kenttätiedot!$B$3:$Q$5,3,FALSE)&"6:"&HLOOKUP($A24,Kenttätiedot!$B$3:$Q$5,3,FALSE)&"300"),ROW(INDIRECT(MAX($D24,N$2)&":"&MIN($E24,EOMONTH(N$2,0)))))*(WEEKDAY(ROW(INDIRECT(MAX($D24,N$2)&":"&MIN($E24,EOMONTH(N$2,0)))))=MATCH($F24,{"Su";"Ma";"Ti";"Ke";"To";"Pe";"La"},0))),0)*$G24,0) -> 0 | AA24: =IF($D24<>"",IF(AND($D24<=EOMONTH(O$2,0),$E24>=O$2),SUMPRODUCT(--(WEEKDAY(ROW(INDIRECT(MAX($D24,O$2)&":"&MIN($E24,EOMONTH(O$2,0)))))=MATCH($F24,{"Su";"Ma";"Ti";"Ke";"To";"Pe";"La"},0)))-SUMPRODUCT(--COUNTIF(INDIRECT("Kenttätiedot!"&HLOOKUP($A24,Kenttätiedot!$B$3:$Q$5,3,FALSE)&"6:"&HLOOKUP($A24,Kenttätiedot!$B$3:$Q$5,3,FALSE)&"300"),ROW(INDIRECT(MAX($D24,O$2)&":"&MIN($E24,EOMONTH(O$2,0)))))*(WEEKDAY(ROW(INDIRECT(MAX($D24,O$2)&":"&MIN($E24,EOMONTH(O$2,0)))))=MATCH($F24,{"Su";"Ma";"Ti";"Ke";"To";"Pe";"La"},0))),0)*$G24,0) -> 0 | AB24: =IF($D24<>"",IF(AND($D24<=EOMONTH(P$2,0),$E24>=P$2),SUMPRODUCT(--(WEEKDAY(ROW(INDIRECT(MAX($D24,P$2)&":"&MIN($E24,EOMONTH(P$2,0)))))=MATCH($F24,{"Su";"Ma";"Ti";"Ke";"To";"Pe";"La"},0)))-SUMPRODUCT(--COUNTIF(INDIRECT("Kenttätiedot!"&HLOOKUP($A24,Kenttätiedot!$B$3:$Q$5,3,FALSE)&"6:"&HLOOKUP($A24,Kenttätiedot!$B$3:$Q$5,3,FALSE)&"300"),ROW(INDIRECT(MAX($D24,P$2)&":"&MIN($E24,EOMONTH(P$2,0)))))*(WEEKDAY(ROW(INDIRECT(MAX($D24,P$2)&":"&MIN($E24,EOMONTH(P$2,0)))))=MATCH($F24,{"Su";"Ma";"Ti";"Ke";"To";"Pe";"La"},0))),0)*$G24,0) -> 0 | AC24: =IF($D24<>"",IF(AND($D24<=EOMONTH(Q$2,0),$E24>=Q$2),SUMPRODUCT(--(WEEKDAY(ROW(INDIRECT(MAX($D24,Q$2)&":"&MIN($E24,EOMONTH(Q$2,0)))))=MATCH($F24,{"Su";"Ma";"Ti";"Ke";"To";"Pe";"La"},0)))-SUMPRODUCT(--COUNTIF(INDIRECT("Kenttätiedot!"&HLOOKUP($A24,Kenttätiedot!$B$3:$Q$5,3,FALSE)&"6:"&HLOOKUP($A24,Kenttätiedot!$B$3:$Q$5,3,FALSE)&"300"),ROW(INDIRECT(MAX($D24,Q$2)&":"&MIN($E24,EOMONTH(Q$2,0)))))*(WEEKDAY(ROW(INDIRECT(MAX($D24,Q$2)&":"&MIN($E24,EOMONTH(Q$2,0)))))=MATCH($F24,{"Su";"Ma";"Ti";"Ke";"To";"Pe";"La"},0))),0)*$G24,0) -> 0 | AD24: =IF($D24<>"",IF(AND($D24<=EOMONTH(R$2,0),$E24>=R$2),SUMPRODUCT(--(WEEKDAY(ROW(INDIRECT(MAX($D24,R$2)&":"&MIN($E24,EOMONTH(R$2,0)))))=MATCH($F24,{"Su";"Ma";"Ti";"Ke";"To";"Pe";"La"},0)))-SUMPRODUCT(--COUNTIF(INDIRECT("Kenttätiedot!"&HLOOKUP($A24,Kenttätiedot!$B$3:$Q$5,3,FALSE)&"6:"&HLOOKUP($A24,Kenttätiedot!$B$3:$Q$5,3,FALSE)&"300"),ROW(INDIRECT(MAX($D24,R$2)&":"&MIN($E24,EOMONTH(R$2,0)))))*(WEEKDAY(ROW(INDIRECT(MAX($D24,R$2)&":"&MIN($E24,EOMONTH(R$2,0)))))=MATCH($F24,{"Su";"Ma";"Ti";"Ke";"To";"Pe";"La"},0))),0)*$G24,0) -> 0 | AE24: =IF($D24<>"",IF(AND($D24<=EOMONTH(S$2,0),$E24>=S$2),SUMPRODUCT(--(WEEKDAY(ROW(INDIRECT(MAX($D24,S$2)&":"&MIN($E24,EOMONTH(S$2,0)))))=MATCH($F24,{"Su";"Ma";"Ti";"Ke";"To";"Pe";"La"},0)))-SUMPRODUCT(--COUNTIF(INDIRECT("Kenttätiedot!"&HLOOKUP($A24,Kenttätiedot!$B$3:$Q$5,3,FALSE)&"6:"&HLOOKUP($A24,Kenttätiedot!$B$3:$Q$5,3,FALSE)&"300"),ROW(INDIRECT(MAX($D24,S$2)&":"&MIN($E24,EOMONTH(S$2,0)))))*(WEEKDAY(ROW(INDIRECT(MAX($D24,S$2)&":"&MIN($E24,EOMONTH(S$2,0)))))=MATCH($F24,{"Su";"Ma";"Ti";"Ke";"To";"Pe";"La"},0))),0)*$G24,0) -> 0
H25: =IF($D25<>"",IF(AND($D25<=EOMONTH(H$2,0),$E25>=H$2),SUMPRODUCT(--(WEEKDAY(ROW(INDIRECT(MAX($D25,H$2)&":"&MIN($E25,EOMONTH(H$2,0)))))=MATCH($F25,{"Su";"Ma";"Ti";"Ke";"To";"Pe";"La"},0)))-SUMPRODUCT(--COUNTIF(INDIRECT("Kenttätiedot!"&HLOOKUP($A25,Kenttätiedot!$B$3:$Q$5,3,FALSE)&"6:"&HLOOKUP($A25,Kenttätiedot!$B$3:$Q$5,3,FALSE)&"300"),ROW(INDIRECT(MAX($D25,H$2)&":"&MIN($E25,EOMONTH(H$2,0)))))*(WEEKDAY(ROW(INDIRECT(MAX($D25,H$2)&":"&MIN($E25,EOMONTH(H$2,0)))))=MATCH($F25,{"Su";"Ma";"Ti";"Ke";"To";"Pe";"La"},0))),0)*HLOOKUP($A25,Kenttätiedot!$B$3:$Q$5,2,FALSE)*$B25,0) -> 0 | I25: =IF($D25<>"",IF(AND($D25<=EOMONTH(I$2,0),$E25>=I$2),SUMPRODUCT(--(WEEKDAY(ROW(INDIRECT(MAX($D25,I$2)&":"&MIN($E25,EOMONTH(I$2,0)))))=MATCH($F25,{"Su";"Ma";"Ti";"Ke";"To";"Pe";"La"},0)))-SUMPRODUCT(--COUNTIF(INDIRECT("Kenttätiedot!"&HLOOKUP($A25,Kenttätiedot!$B$3:$Q$5,3,FALSE)&"6:"&HLOOKUP($A25,Kenttätiedot!$B$3:$Q$5,3,FALSE)&"300"),ROW(INDIRECT(MAX($D25,I$2)&":"&MIN($E25,EOMONTH(I$2,0)))))*(WEEKDAY(ROW(INDIRECT(MAX($D25,I$2)&":"&MIN($E25,EOMONTH(I$2,0)))))=MATCH($F25,{"Su";"Ma";"Ti";"Ke";"To";"Pe";"La"},0))),0)*HLOOKUP($A25,Kenttätiedot!$B$3:$Q$5,2,FALSE)*$B25,0) -> 0 | J25: =IF($D25<>"",IF(AND($D25<=EOMONTH(J$2,0),$E25>=J$2),SUMPRODUCT(--(WEEKDAY(ROW(INDIRECT(MAX($D25,J$2)&":"&MIN($E25,EOMONTH(J$2,0)))))=MATCH($F25,{"Su";"Ma";"Ti";"Ke";"To";"Pe";"La"},0)))-SUMPRODUCT(--COUNTIF(INDIRECT("Kenttätiedot!"&HLOOKUP($A25,Kenttätiedot!$B$3:$Q$5,3,FALSE)&"6:"&HLOOKUP($A25,Kenttätiedot!$B$3:$Q$5,3,FALSE)&"300"),ROW(INDIRECT(MAX($D25,J$2)&":"&MIN($E25,EOMONTH(J$2,0)))))*(WEEKDAY(ROW(INDIRECT(MAX($D25,J$2)&":"&MIN($E25,EOMONTH(J$2,0)))))=MATCH($F25,{"Su";"Ma";"Ti";"Ke";"To";"Pe";"La"},0))),0)*HLOOKUP($A25,Kenttätiedot!$B$3:$Q$5,2,FALSE)*$B25,0) -> 0 | K25: =IF($D25<>"",IF(AND($D25<=EOMONTH(K$2,0),$E25>=K$2),SUMPRODUCT(--(WEEKDAY(ROW(INDIRECT(MAX($D25,K$2)&":"&MIN($E25,EOMONTH(K$2,0)))))=MATCH($F25,{"Su";"Ma";"Ti";"Ke";"To";"Pe";"La"},0)))-SUMPRODUCT(--COUNTIF(INDIRECT("Kenttätiedot!"&HLOOKUP($A25,Kenttätiedot!$B$3:$Q$5,3,FALSE)&"6:"&HLOOKUP($A25,Kenttätiedot!$B$3:$Q$5,3,FALSE)&"300"),ROW(INDIRECT(MAX($D25,K$2)&":"&MIN($E25,EOMONTH(K$2,0)))))*(WEEKDAY(ROW(INDIRECT(MAX($D25,K$2)&":"&MIN($E25,EOMONTH(K$2,0)))))=MATCH($F25,{"Su";"Ma";"Ti";"Ke";"To";"Pe";"La"},0))),0)*HLOOKUP($A25,Kenttätiedot!$B$3:$Q$5,2,FALSE)*$B25,0) -> 0 | L25: =IF($D25<>"",IF(AND($D25<=EOMONTH(L$2,0),$E25>=L$2),SUMPRODUCT(--(WEEKDAY(ROW(INDIRECT(MAX($D25,L$2)&":"&MIN($E25,EOMONTH(L$2,0)))))=MATCH($F25,{"Su";"Ma";"Ti";"Ke";"To";"Pe";"La"},0)))-SUMPRODUCT(--COUNTIF(INDIRECT("Kenttätiedot!"&HLOOKUP($A25,Kenttätiedot!$B$3:$Q$5,3,FALSE)&"6:"&HLOOKUP($A25,Kenttätiedot!$B$3:$Q$5,3,FALSE)&"300"),ROW(INDIRECT(MAX($D25,L$2)&":"&MIN($E25,EOMONTH(L$2,0)))))*(WEEKDAY(ROW(INDIRECT(MAX($D25,L$2)&":"&MIN($E25,EOMONTH(L$2,0)))))=MATCH($F25,{"Su";"Ma";"Ti";"Ke";"To";"Pe";"La"},0))),0)*HLOOKUP($A25,Kenttätiedot!$B$3:$Q$5,2,FALSE)*$B25,0) -> 0 | M25: =IF($D25<>"",IF(AND($D25<=EOMONTH(M$2,0),$E25>=M$2),SUMPRODUCT(--(WEEKDAY(ROW(INDIRECT(MAX($D25,M$2)&":"&MIN($E25,EOMONTH(M$2,0)))))=MATCH($F25,{"Su";"Ma";"Ti";"Ke";"To";"Pe";"La"},0)))-SUMPRODUCT(--COUNTIF(INDIRECT("Kenttätiedot!"&HLOOKUP($A25,Kenttätiedot!$B$3:$Q$5,3,FALSE)&"6:"&HLOOKUP($A25,Kenttätiedot!$B$3:$Q$5,3,FALSE)&"300"),ROW(INDIRECT(MAX($D25,M$2)&":"&MIN($E25,EOMONTH(M$2,0)))))*(WEEKDAY(ROW(INDIRECT(MAX($D25,M$2)&":"&MIN($E25,EOMONTH(M$2,0)))))=MATCH($F25,{"Su";"Ma";"Ti";"Ke";"To";"Pe";"La"},0))),0)*HLOOKUP($A25,Kenttätiedot!$B$3:$Q$5,2,FALSE)*$B25,0) -> 0 | N25: =IF($D25<>"",IF(AND($D25<=EOMONTH(N$2,0),$E25>=N$2),SUMPRODUCT(--(WEEKDAY(ROW(INDIRECT(MAX($D25,N$2)&":"&MIN($E25,EOMONTH(N$2,0)))))=MATCH($F25,{"Su";"Ma";"Ti";"Ke";"To";"Pe";"La"},0)))-SUMPRODUCT(--COUNTIF(INDIRECT("Kenttätiedot!"&HLOOKUP($A25,Kenttätiedot!$B$3:$Q$5,3,FALSE)&"6:"&HLOOKUP($A25,Kenttätiedot!$B$3:$Q$5,3,FALSE)&"300"),ROW(INDIRECT(MAX($D25,N$2)&":"&MIN($E25,EOMONTH(N$2,0)))))*(WEEKDAY(ROW(INDIRECT(MAX($D25,N$2)&":"&MIN($E25,EOMONTH(N$2,0)))))=MATCH($F25,{"Su";"Ma";"Ti";"Ke";"To";"Pe";"La"},0))),0)*HLOOKUP($A25,Kenttätiedot!$B$3:$Q$5,2,FALSE)*$B25,0) -> 0 | O25: =IF($D25<>"",IF(AND($D25<=EOMONTH(O$2,0),$E25>=O$2),SUMPRODUCT(--(WEEKDAY(ROW(INDIRECT(MAX($D25,O$2)&":"&MIN($E25,EOMONTH(O$2,0)))))=MATCH($F25,{"Su";"Ma";"Ti";"Ke";"To";"Pe";"La"},0)))-SUMPRODUCT(--COUNTIF(INDIRECT("Kenttätiedot!"&HLOOKUP($A25,Kenttätiedot!$B$3:$Q$5,3,FALSE)&"6:"&HLOOKUP($A25,Kenttätiedot!$B$3:$Q$5,3,FALSE)&"300"),ROW(INDIRECT(MAX($D25,O$2)&":"&MIN($E25,EOMONTH(O$2,0)))))*(WEEKDAY(ROW(INDIRECT(MAX($D25,O$2)&":"&MIN($E25,EOMONTH(O$2,0)))))=MATCH($F25,{"Su";"Ma";"Ti";"Ke";"To";"Pe";"La"},0))),0)*HLOOKUP($A25,Kenttätiedot!$B$3:$Q$5,2,FALSE)*$B25,0) -> 0 | P25: =IF($D25<>"",IF(AND($D25<=EOMONTH(P$2,0),$E25>=P$2),SUMPRODUCT(--(WEEKDAY(ROW(INDIRECT(MAX($D25,P$2)&":"&MIN($E25,EOMONTH(P$2,0)))))=MATCH($F25,{"Su";"Ma";"Ti";"Ke";"To";"Pe";"La"},0)))-SUMPRODUCT(--COUNTIF(INDIRECT("Kenttätiedot!"&HLOOKUP($A25,Kenttätiedot!$B$3:$Q$5,3,FALSE)&"6:"&HLOOKUP($A25,Kenttätiedot!$B$3:$Q$5,3,FALSE)&"300"),ROW(INDIRECT(MAX($D25,P$2)&":"&MIN($E25,EOMONTH(P$2,0)))))*(WEEKDAY(ROW(INDIRECT(MAX($D25,P$2)&":"&MIN($E25,EOMONTH(P$2,0)))))=MATCH($F25,{"Su";"Ma";"Ti";"Ke";"To";"Pe";"La"},0))),0)*HLOOKUP($A25,Kenttätiedot!$B$3:$Q$5,2,FALSE)*$B25,0) -> 0 | Q25: =IF($D25<>"",IF(AND($D25<=EOMONTH(Q$2,0),$E25>=Q$2),SUMPRODUCT(--(WEEKDAY(ROW(INDIRECT(MAX($D25,Q$2)&":"&MIN($E25,EOMONTH(Q$2,0)))))=MATCH($F25,{"Su";"Ma";"Ti";"Ke";"To";"Pe";"La"},0)))-SUMPRODUCT(--COUNTIF(INDIRECT("Kenttätiedot!"&HLOOKUP($A25,Kenttätiedot!$B$3:$Q$5,3,FALSE)&"6:"&HLOOKUP($A25,Kenttätiedot!$B$3:$Q$5,3,FALSE)&"300"),ROW(INDIRECT(MAX($D25,Q$2)&":"&MIN($E25,EOMONTH(Q$2,0)))))*(WEEKDAY(ROW(INDIRECT(MAX($D25,Q$2)&":"&MIN($E25,EOMONTH(Q$2,0)))))=MATCH($F25,{"Su";"Ma";"Ti";"Ke";"To";"Pe";"La"},0))),0)*HLOOKUP($A25,Kenttätiedot!$B$3:$Q$5,2,FALSE)*$B25,0) -> 0 | R25: =IF($D25<>"",IF(AND($D25<=EOMONTH(R$2,0),$E25>=R$2),SUMPRODUCT(--(WEEKDAY(ROW(INDIRECT(MAX($D25,R$2)&":"&MIN($E25,EOMONTH(R$2,0)))))=MATCH($F25,{"Su";"Ma";"Ti";"Ke";"To";"Pe";"La"},0)))-SUMPRODUCT(--COUNTIF(INDIRECT("Kenttätiedot!"&HLOOKUP($A25,Kenttätiedot!$B$3:$Q$5,3,FALSE)&"6:"&HLOOKUP($A25,Kenttätiedot!$B$3:$Q$5,3,FALSE)&"300"),ROW(INDIRECT(MAX($D25,R$2)&":"&MIN($E25,EOMONTH(R$2,0)))))*(WEEKDAY(ROW(INDIRECT(MAX($D25,R$2)&":"&MIN($E25,EOMONTH(R$2,0)))))=MATCH($F25,{"Su";"Ma";"Ti";"Ke";"To";"Pe";"La"},0))),0)*HLOOKUP($A25,Kenttätiedot!$B$3:$Q$5,2,FALSE)*$B25,0) -> 0 | S25: =IF($D25<>"",IF(AND($D25<=EOMONTH(S$2,0),$E25>=S$2),SUMPRODUCT(--(WEEKDAY(ROW(INDIRECT(MAX($D25,S$2)&":"&MIN($E25,EOMONTH(S$2,0)))))=MATCH($F25,{"Su";"Ma";"Ti";"Ke";"To";"Pe";"La"},0)))-SUMPRODUCT(--COUNTIF(INDIRECT("Kenttätiedot!"&HLOOKUP($A25,Kenttätiedot!$B$3:$Q$5,3,FALSE)&"6:"&HLOOKUP($A25,Kenttätiedot!$B$3:$Q$5,3,FALSE)&"300"),ROW(INDIRECT(MAX($D25,S$2)&":"&MIN($E25,EOMONTH(S$2,0)))))*(WEEKDAY(ROW(INDIRECT(MAX($D25,S$2)&":"&MIN($E25,EOMONTH(S$2,0)))))=MATCH($F25,{"Su";"Ma";"Ti";"Ke";"To";"Pe";"La"},0))),0)*HLOOKUP($A25,Kenttätiedot!$B$3:$Q$5,2,FALSE)*$B25,0) -> 0 | T25: =IF($D25<>"",IF(AND($D25<=EOMONTH(H$2,0),$E25>=H$2),SUMPRODUCT(--(WEEKDAY(ROW(INDIRECT(MAX($D25,H$2)&":"&MIN($E25,EOMONTH(H$2,0)))))=MATCH($F25,{"Su";"Ma";"Ti";"Ke";"To";"Pe";"La"},0)))-SUMPRODUCT(--COUNTIF(INDIRECT("Kenttätiedot!"&HLOOKUP($A25,Kenttätiedot!$B$3:$Q$5,3,FALSE)&"6:"&HLOOKUP($A25,Kenttätiedot!$B$3:$Q$5,3,FALSE)&"300"),ROW(INDIRECT(MAX($D25,H$2)&":"&MIN($E25,EOMONTH(H$2,0)))))*(WEEKDAY(ROW(INDIRECT(MAX($D25,H$2)&":"&MIN($E25,EOMONTH(H$2,0)))))=MATCH($F25,{"Su";"Ma";"Ti";"Ke";"To";"Pe";"La"},0))),0)*$G25,0) -> 0 | U25: =IF($D25<>"",IF(AND($D25<=EOMONTH(I$2,0),$E25>=I$2),SUMPRODUCT(--(WEEKDAY(ROW(INDIRECT(MAX($D25,I$2)&":"&MIN($E25,EOMONTH(I$2,0)))))=MATCH($F25,{"Su";"Ma";"Ti";"Ke";"To";"Pe";"La"},0)))-SUMPRODUCT(--COUNTIF(INDIRECT("Kenttätiedot!"&HLOOKUP($A25,Kenttätiedot!$B$3:$Q$5,3,FALSE)&"6:"&HLOOKUP($A25,Kenttätiedot!$B$3:$Q$5,3,FALSE)&"300"),ROW(INDIRECT(MAX($D25,I$2)&":"&MIN($E25,EOMONTH(I$2,0)))))*(WEEKDAY(ROW(INDIRECT(MAX($D25,I$2)&":"&MIN($E25,EOMONTH(I$2,0)))))=MATCH($F25,{"Su";"Ma";"Ti";"Ke";"To";"Pe";"La"},0))),0)*$G25,0) -> 0 | V25: =IF($D25<>"",IF(AND($D25<=EOMONTH(J$2,0),$E25>=J$2),SUMPRODUCT(--(WEEKDAY(ROW(INDIRECT(MAX($D25,J$2)&":"&MIN($E25,EOMONTH(J$2,0)))))=MATCH($F25,{"Su";"Ma";"Ti";"Ke";"To";"Pe";"La"},0)))-SUMPRODUCT(--COUNTIF(INDIRECT("Kenttätiedot!"&HLOOKUP($A25,Kenttätiedot!$B$3:$Q$5,3,FALSE)&"6:"&HLOOKUP($A25,Kenttätiedot!$B$3:$Q$5,3,FALSE)&"300"),ROW(INDIRECT(MAX($D25,J$2)&":"&MIN($E25,EOMONTH(J$2,0)))))*(WEEKDAY(ROW(INDIRECT(MAX($D25,J$2)&":"&MIN($E25,EOMONTH(J$2,0)))))=MATCH($F25,{"Su";"Ma";"Ti";"Ke";"To";"Pe";"La"},0))),0)*$G25,0) -> 0 | W25: =IF($D25<>"",IF(AND($D25<=EOMONTH(K$2,0),$E25>=K$2),SUMPRODUCT(--(WEEKDAY(ROW(INDIRECT(MAX($D25,K$2)&":"&MIN($E25,EOMONTH(K$2,0)))))=MATCH($F25,{"Su";"Ma";"Ti";"Ke";"To";"Pe";"La"},0)))-SUMPRODUCT(--COUNTIF(INDIRECT("Kenttätiedot!"&HLOOKUP($A25,Kenttätiedot!$B$3:$Q$5,3,FALSE)&"6:"&HLOOKUP($A25,Kenttätiedot!$B$3:$Q$5,3,FALSE)&"300"),ROW(INDIRECT(MAX($D25,K$2)&":"&MIN($E25,EOMONTH(K$2,0)))))*(WEEKDAY(ROW(INDIRECT(MAX($D25,K$2)&":"&MIN($E25,EOMONTH(K$2,0)))))=MATCH($F25,{"Su";"Ma";"Ti";"Ke";"To";"Pe";"La"},0))),0)*$G25,0) -> 0 | X25: =IF($D25<>"",IF(AND($D25<=EOMONTH(L$2,0),$E25>=L$2),SUMPRODUCT(--(WEEKDAY(ROW(INDIRECT(MAX($D25,L$2)&":"&MIN($E25,EOMONTH(L$2,0)))))=MATCH($F25,{"Su";"Ma";"Ti";"Ke";"To";"Pe";"La"},0)))-SUMPRODUCT(--COUNTIF(INDIRECT("Kenttätiedot!"&HLOOKUP($A25,Kenttätiedot!$B$3:$Q$5,3,FALSE)&"6:"&HLOOKUP($A25,Kenttätiedot!$B$3:$Q$5,3,FALSE)&"300"),ROW(INDIRECT(MAX($D25,L$2)&":"&MIN($E25,EOMONTH(L$2,0)))))*(WEEKDAY(ROW(INDIRECT(MAX($D25,L$2)&":"&MIN($E25,EOMONTH(L$2,0)))))=MATCH($F25,{"Su";"Ma";"Ti";"Ke";"To";"Pe";"La"},0))),0)*$G25,0) -> 0 | Y25: =IF($D25<>"",IF(AND($D25<=EOMONTH(M$2,0),$E25>=M$2),SUMPRODUCT(--(WEEKDAY(ROW(INDIRECT(MAX($D25,M$2)&":"&MIN($E25,EOMONTH(M$2,0)))))=MATCH($F25,{"Su";"Ma";"Ti";"Ke";"To";"Pe";"La"},0)))-SUMPRODUCT(--COUNTIF(INDIRECT("Kenttätiedot!"&HLOOKUP($A25,Kenttätiedot!$B$3:$Q$5,3,FALSE)&"6:"&HLOOKUP($A25,Kenttätiedot!$B$3:$Q$5,3,FALSE)&"300"),ROW(INDIRECT(MAX($D25,M$2)&":"&MIN($E25,EOMONTH(M$2,0)))))*(WEEKDAY(ROW(INDIRECT(MAX($D25,M$2)&":"&MIN($E25,EOMONTH(M$2,0)))))=MATCH($F25,{"Su";"Ma";"Ti";"Ke";"To";"Pe";"La"},0))),0)*$G25,0) -> 0 | Z25: =IF($D25<>"",IF(AND($D25<=EOMONTH(N$2,0),$E25>=N$2),SUMPRODUCT(--(WEEKDAY(ROW(INDIRECT(MAX($D25,N$2)&":"&MIN($E25,EOMONTH(N$2,0)))))=MATCH($F25,{"Su";"Ma";"Ti";"Ke";"To";"Pe";"La"},0)))-SUMPRODUCT(--COUNTIF(INDIRECT("Kenttätiedot!"&HLOOKUP($A25,Kenttätiedot!$B$3:$Q$5,3,FALSE)&"6:"&HLOOKUP($A25,Kenttätiedot!$B$3:$Q$5,3,FALSE)&"300"),ROW(INDIRECT(MAX($D25,N$2)&":"&MIN($E25,EOMONTH(N$2,0)))))*(WEEKDAY(ROW(INDIRECT(MAX($D25,N$2)&":"&MIN($E25,EOMONTH(N$2,0)))))=MATCH($F25,{"Su";"Ma";"Ti";"Ke";"To";"Pe";"La"},0))),0)*$G25,0) -> 0 | AA25: =IF($D25<>"",IF(AND($D25<=EOMONTH(O$2,0),$E25>=O$2),SUMPRODUCT(--(WEEKDAY(ROW(INDIRECT(MAX($D25,O$2)&":"&MIN($E25,EOMONTH(O$2,0)))))=MATCH($F25,{"Su";"Ma";"Ti";"Ke";"To";"Pe";"La"},0)))-SUMPRODUCT(--COUNTIF(INDIRECT("Kenttätiedot!"&HLOOKUP($A25,Kenttätiedot!$B$3:$Q$5,3,FALSE)&"6:"&HLOOKUP($A25,Kenttätiedot!$B$3:$Q$5,3,FALSE)&"300"),ROW(INDIRECT(MAX($D25,O$2)&":"&MIN($E25,EOMONTH(O$2,0)))))*(WEEKDAY(ROW(INDIRECT(MAX($D25,O$2)&":"&MIN($E25,EOMONTH(O$2,0)))))=MATCH($F25,{"Su";"Ma";"Ti";"Ke";"To";"Pe";"La"},0))),0)*$G25,0) -> 0 | AB25: =IF($D25<>"",IF(AND($D25<=EOMONTH(P$2,0),$E25>=P$2),SUMPRODUCT(--(WEEKDAY(ROW(INDIRECT(MAX($D25,P$2)&":"&MIN($E25,EOMONTH(P$2,0)))))=MATCH($F25,{"Su";"Ma";"Ti";"Ke";"To";"Pe";"La"},0)))-SUMPRODUCT(--COUNTIF(INDIRECT("Kenttätiedot!"&HLOOKUP($A25,Kenttätiedot!$B$3:$Q$5,3,FALSE)&"6:"&HLOOKUP($A25,Kenttätiedot!$B$3:$Q$5,3,FALSE)&"300"),ROW(INDIRECT(MAX($D25,P$2)&":"&MIN($E25,EOMONTH(P$2,0)))))*(WEEKDAY(ROW(INDIRECT(MAX($D25,P$2)&":"&MIN($E25,EOMONTH(P$2,0)))))=MATCH($F25,{"Su";"Ma";"Ti";"Ke";"To";"Pe";"La"},0))),0)*$G25,0) -> 0 | AC25: =IF($D25<>"",IF(AND($D25<=EOMONTH(Q$2,0),$E25>=Q$2),SUMPRODUCT(--(WEEKDAY(ROW(INDIRECT(MAX($D25,Q$2)&":"&MIN($E25,EOMONTH(Q$2,0)))))=MATCH($F25,{"Su";"Ma";"Ti";"Ke";"To";"Pe";"La"},0)))-SUMPRODUCT(--COUNTIF(INDIRECT("Kenttätiedot!"&HLOOKUP($A25,Kenttätiedot!$B$3:$Q$5,3,FALSE)&"6:"&HLOOKUP($A25,Kenttätiedot!$B$3:$Q$5,3,FALSE)&"300"),ROW(INDIRECT(MAX($D25,Q$2)&":"&MIN($E25,EOMONTH(Q$2,0)))))*(WEEKDAY(ROW(INDIRECT(MAX($D25,Q$2)&":"&MIN($E25,EOMONTH(Q$2,0)))))=MATCH($F25,{"Su";"Ma";"Ti";"Ke";"To";"Pe";"La"},0))),0)*$G25,0) -> 0 | AD25: =IF($D25<>"",IF(AND($D25<=EOMONTH(R$2,0),$E25>=R$2),SUMPRODUCT(--(WEEKDAY(ROW(INDIRECT(MAX($D25,R$2)&":"&MIN($E25,EOMONTH(R$2,0)))))=MATCH($F25,{"Su";"Ma";"Ti";"Ke";"To";"Pe";"La"},0)))-SUMPRODUCT(--COUNTIF(INDIRECT("Kenttätiedot!"&HLOOKUP($A25,Kenttätiedot!$B$3:$Q$5,3,FALSE)&"6:"&HLOOKUP($A25,Kenttätiedot!$B$3:$Q$5,3,FALSE)&"300"),ROW(INDIRECT(MAX($D25,R$2)&":"&MIN($E25,EOMONTH(R$2,0)))))*(WEEKDAY(ROW(INDIRECT(MAX($D25,R$2)&":"&MIN($E25,EOMONTH(R$2,0)))))=MATCH($F25,{"Su";"Ma";"Ti";"Ke";"To";"Pe";"La"},0))),0)*$G25,0) -> 0 | AE25: =IF($D25<>"",IF(AND($D25<=EOMONTH(S$2,0),$E25>=S$2),SUMPRODUCT(--(WEEKDAY(ROW(INDIRECT(MAX($D25,S$2)&":"&MIN($E25,EOMONTH(S$2,0)))))=MATCH($F25,{"Su";"Ma";"Ti";"Ke";"To";"Pe";"La"},0)))-SUMPRODUCT(--COUNTIF(INDIRECT("Kenttätiedot!"&HLOOKUP($A25,Kenttätiedot!$B$3:$Q$5,3,FALSE)&"6:"&HLOOKUP($A25,Kenttätiedot!$B$3:$Q$5,3,FALSE)&"300"),ROW(INDIRECT(MAX($D25,S$2)&":"&MIN($E25,EOMONTH(S$2,0)))))*(WEEKDAY(ROW(INDIRECT(MAX($D25,S$2)&":"&MIN($E25,EOMONTH(S$2,0)))))=MATCH($F25,{"Su";"Ma";"Ti";"Ke";"To";"Pe";"La"},0))),0)*$G25,0) -> 0
H26: =IF($D26<>"",IF(AND($D26<=EOMONTH(H$2,0),$E26>=H$2),SUMPRODUCT(--(WEEKDAY(ROW(INDIRECT(MAX($D26,H$2)&":"&MIN($E26,EOMONTH(H$2,0)))))=MATCH($F26,{"Su";"Ma";"Ti";"Ke";"To";"Pe";"La"},0)))-SUMPRODUCT(--COUNTIF(INDIRECT("Kenttätiedot!"&HLOOKUP($A26,Kenttätiedot!$B$3:$Q$5,3,FALSE)&"6:"&HLOOKUP($A26,Kenttätiedot!$B$3:$Q$5,3,FALSE)&"300"),ROW(INDIRECT(MAX($D26,H$2)&":"&MIN($E26,EOMONTH(H$2,0)))))*(WEEKDAY(ROW(INDIRECT(MAX($D26,H$2)&":"&MIN($E26,EOMONTH(H$2,0)))))=MATCH($F26,{"Su";"Ma";"Ti";"Ke";"To";"Pe";"La"},0))),0)*HLOOKUP($A26,Kenttätiedot!$B$3:$Q$5,2,FALSE)*$B26,0) -> 0 | I26: =IF($D26<>"",IF(AND($D26<=EOMONTH(I$2,0),$E26>=I$2),SUMPRODUCT(--(WEEKDAY(ROW(INDIRECT(MAX($D26,I$2)&":"&MIN($E26,EOMONTH(I$2,0)))))=MATCH($F26,{"Su";"Ma";"Ti";"Ke";"To";"Pe";"La"},0)))-SUMPRODUCT(--COUNTIF(INDIRECT("Kenttätiedot!"&HLOOKUP($A26,Kenttätiedot!$B$3:$Q$5,3,FALSE)&"6:"&HLOOKUP($A26,Kenttätiedot!$B$3:$Q$5,3,FALSE)&"300"),ROW(INDIRECT(MAX($D26,I$2)&":"&MIN($E26,EOMONTH(I$2,0)))))*(WEEKDAY(ROW(INDIRECT(MAX($D26,I$2)&":"&MIN($E26,EOMONTH(I$2,0)))))=MATCH($F26,{"Su";"Ma";"Ti";"Ke";"To";"Pe";"La"},0))),0)*HLOOKUP($A26,Kenttätiedot!$B$3:$Q$5,2,FALSE)*$B26,0) -> 0 | J26: =IF($D26<>"",IF(AND($D26<=EOMONTH(J$2,0),$E26>=J$2),SUMPRODUCT(--(WEEKDAY(ROW(INDIRECT(MAX($D26,J$2)&":"&MIN($E26,EOMONTH(J$2,0)))))=MATCH($F26,{"Su";"Ma";"Ti";"Ke";"To";"Pe";"La"},0)))-SUMPRODUCT(--COUNTIF(INDIRECT("Kenttätiedot!"&HLOOKUP($A26,Kenttätiedot!$B$3:$Q$5,3,FALSE)&"6:"&HLOOKUP($A26,Kenttätiedot!$B$3:$Q$5,3,FALSE)&"300"),ROW(INDIRECT(MAX($D26,J$2)&":"&MIN($E26,EOMONTH(J$2,0)))))*(WEEKDAY(ROW(INDIRECT(MAX($D26,J$2)&":"&MIN($E26,EOMONTH(J$2,0)))))=MATCH($F26,{"Su";"Ma";"Ti";"Ke";"To";"Pe";"La"},0))),0)*HLOOKUP($A26,Kenttätiedot!$B$3:$Q$5,2,FALSE)*$B26,0) -> 0 | K26: =IF($D26<>"",IF(AND($D26<=EOMONTH(K$2,0),$E26>=K$2),SUMPRODUCT(--(WEEKDAY(ROW(INDIRECT(MAX($D26,K$2)&":"&MIN($E26,EOMONTH(K$2,0)))))=MATCH($F26,{"Su";"Ma";"Ti";"Ke";"To";"Pe";"La"},0)))-SUMPRODUCT(--COUNTIF(INDIRECT("Kenttätiedot!"&HLOOKUP($A26,Kenttätiedot!$B$3:$Q$5,3,FALSE)&"6:"&HLOOKUP($A26,Kenttätiedot!$B$3:$Q$5,3,FALSE)&"300"),ROW(INDIRECT(MAX($D26,K$2)&":"&MIN($E26,EOMONTH(K$2,0)))))*(WEEKDAY(ROW(INDIRECT(MAX($D26,K$2)&":"&MIN($E26,EOMONTH(K$2,0)))))=MATCH($F26,{"Su";"Ma";"Ti";"Ke";"To";"Pe";"La"},0))),0)*HLOOKUP($A26,Kenttätiedot!$B$3:$Q$5,2,FALSE)*$B26,0) -> 0 | L26: =IF($D26<>"",IF(AND($D26<=EOMONTH(L$2,0),$E26>=L$2),SUMPRODUCT(--(WEEKDAY(ROW(INDIRECT(MAX($D26,L$2)&":"&MIN($E26,EOMONTH(L$2,0)))))=MATCH($F26,{"Su";"Ma";"Ti";"Ke";"To";"Pe";"La"},0)))-SUMPRODUCT(--COUNTIF(INDIRECT("Kenttätiedot!"&HLOOKUP($A26,Kenttätiedot!$B$3:$Q$5,3,FALSE)&"6:"&HLOOKUP($A26,Kenttätiedot!$B$3:$Q$5,3,FALSE)&"300"),ROW(INDIRECT(MAX($D26,L$2)&":"&MIN($E26,EOMONTH(L$2,0)))))*(WEEKDAY(ROW(INDIRECT(MAX($D26,L$2)&":"&MIN($E26,EOMONTH(L$2,0)))))=MATCH($F26,{"Su";"Ma";"Ti";"Ke";"To";"Pe";"La"},0))),0)*HLOOKUP($A26,Kenttätiedot!$B$3:$Q$5,2,FALSE)*$B26,0) -> 0 | M26: =IF($D26<>"",IF(AND($D26<=EOMONTH(M$2,0),$E26>=M$2),SUMPRODUCT(--(WEEKDAY(ROW(INDIRECT(MAX($D26,M$2)&":"&MIN($E26,EOMONTH(M$2,0)))))=MATCH($F26,{"Su";"Ma";"Ti";"Ke";"To";"Pe";"La"},0)))-SUMPRODUCT(--COUNTIF(INDIRECT("Kenttätiedot!"&HLOOKUP($A26,Kenttätiedot!$B$3:$Q$5,3,FALSE)&"6:"&HLOOKUP($A26,Kenttätiedot!$B$3:$Q$5,3,FALSE)&"300"),ROW(INDIRECT(MAX($D26,M$2)&":"&MIN($E26,EOMONTH(M$2,0)))))*(WEEKDAY(ROW(INDIRECT(MAX($D26,M$2)&":"&MIN($E26,EOMONTH(M$2,0)))))=MATCH($F26,{"Su";"Ma";"Ti";"Ke";"To";"Pe";"La"},0))),0)*HLOOKUP($A26,Kenttätiedot!$B$3:$Q$5,2,FALSE)*$B26,0) -> 0 | N26: =IF($D26<>"",IF(AND($D26<=EOMONTH(N$2,0),$E26>=N$2),SUMPRODUCT(--(WEEKDAY(ROW(INDIRECT(MAX($D26,N$2)&":"&MIN($E26,EOMONTH(N$2,0)))))=MATCH($F26,{"Su";"Ma";"Ti";"Ke";"To";"Pe";"La"},0)))-SUMPRODUCT(--COUNTIF(INDIRECT("Kenttätiedot!"&HLOOKUP($A26,Kenttätiedot!$B$3:$Q$5,3,FALSE)&"6:"&HLOOKUP($A26,Kenttätiedot!$B$3:$Q$5,3,FALSE)&"300"),ROW(INDIRECT(MAX($D26,N$2)&":"&MIN($E26,EOMONTH(N$2,0)))))*(WEEKDAY(ROW(INDIRECT(MAX($D26,N$2)&":"&MIN($E26,EOMONTH(N$2,0)))))=MATCH($F26,{"Su";"Ma";"Ti";"Ke";"To";"Pe";"La"},0))),0)*HLOOKUP($A26,Kenttätiedot!$B$3:$Q$5,2,FALSE)*$B26,0) -> 0 | O26: =IF($D26<>"",IF(AND($D26<=EOMONTH(O$2,0),$E26>=O$2),SUMPRODUCT(--(WEEKDAY(ROW(INDIRECT(MAX($D26,O$2)&":"&MIN($E26,EOMONTH(O$2,0)))))=MATCH($F26,{"Su";"Ma";"Ti";"Ke";"To";"Pe";"La"},0)))-SUMPRODUCT(--COUNTIF(INDIRECT("Kenttätiedot!"&HLOOKUP($A26,Kenttätiedot!$B$3:$Q$5,3,FALSE)&"6:"&HLOOKUP($A26,Kenttätiedot!$B$3:$Q$5,3,FALSE)&"300"),ROW(INDIRECT(MAX($D26,O$2)&":"&MIN($E26,EOMONTH(O$2,0)))))*(WEEKDAY(ROW(INDIRECT(MAX($D26,O$2)&":"&MIN($E26,EOMONTH(O$2,0)))))=MATCH($F26,{"Su";"Ma";"Ti";"Ke";"To";"Pe";"La"},0))),0)*HLOOKUP($A26,Kenttätiedot!$B$3:$Q$5,2,FALSE)*$B26,0) -> 0 | P26: =IF($D26<>"",IF(AND($D26<=EOMONTH(P$2,0),$E26>=P$2),SUMPRODUCT(--(WEEKDAY(ROW(INDIRECT(MAX($D26,P$2)&":"&MIN($E26,EOMONTH(P$2,0)))))=MATCH($F26,{"Su";"Ma";"Ti";"Ke";"To";"Pe";"La"},0)))-SUMPRODUCT(--COUNTIF(INDIRECT("Kenttätiedot!"&HLOOKUP($A26,Kenttätiedot!$B$3:$Q$5,3,FALSE)&"6:"&HLOOKUP($A26,Kenttätiedot!$B$3:$Q$5,3,FALSE)&"300"),ROW(INDIRECT(MAX($D26,P$2)&":"&MIN($E26,EOMONTH(P$2,0)))))*(WEEKDAY(ROW(INDIRECT(MAX($D26,P$2)&":"&MIN($E26,EOMONTH(P$2,0)))))=MATCH($F26,{"Su";"Ma";"Ti";"Ke";"To";"Pe";"La"},0))),0)*HLOOKUP($A26,Kenttätiedot!$B$3:$Q$5,2,FALSE)*$B26,0) -> 0 | Q26: =IF($D26<>"",IF(AND($D26<=EOMONTH(Q$2,0),$E26>=Q$2),SUMPRODUCT(--(WEEKDAY(ROW(INDIRECT(MAX($D26,Q$2)&":"&MIN($E26,EOMONTH(Q$2,0)))))=MATCH($F26,{"Su";"Ma";"Ti";"Ke";"To";"Pe";"La"},0)))-SUMPRODUCT(--COUNTIF(INDIRECT("Kenttätiedot!"&HLOOKUP($A26,Kenttätiedot!$B$3:$Q$5,3,FALSE)&"6:"&HLOOKUP($A26,Kenttätiedot!$B$3:$Q$5,3,FALSE)&"300"),ROW(INDIRECT(MAX($D26,Q$2)&":"&MIN($E26,EOMONTH(Q$2,0)))))*(WEEKDAY(ROW(INDIRECT(MAX($D26,Q$2)&":"&MIN($E26,EOMONTH(Q$2,0)))))=MATCH($F26,{"Su";"Ma";"Ti";"Ke";"To";"Pe";"La"},0))),0)*HLOOKUP($A26,Kenttätiedot!$B$3:$Q$5,2,FALSE)*$B26,0) -> 0 | R26: =IF($D26<>"",IF(AND($D26<=EOMONTH(R$2,0),$E26>=R$2),SUMPRODUCT(--(WEEKDAY(ROW(INDIRECT(MAX($D26,R$2)&":"&MIN($E26,EOMONTH(R$2,0)))))=MATCH($F26,{"Su";"Ma";"Ti";"Ke";"To";"Pe";"La"},0)))-SUMPRODUCT(--COUNTIF(INDIRECT("Kenttätiedot!"&HLOOKUP($A26,Kenttätiedot!$B$3:$Q$5,3,FALSE)&"6:"&HLOOKUP($A26,Kenttätiedot!$B$3:$Q$5,3,FALSE)&"300"),ROW(INDIRECT(MAX($D26,R$2)&":"&MIN($E26,EOMONTH(R$2,0)))))*(WEEKDAY(ROW(INDIRECT(MAX($D26,R$2)&":"&MIN($E26,EOMONTH(R$2,0)))))=MATCH($F26,{"Su";"Ma";"Ti";"Ke";"To";"Pe";"La"},0))),0)*HLOOKUP($A26,Kenttätiedot!$B$3:$Q$5,2,FALSE)*$B26,0) -> 0 | S26: =IF($D26<>"",IF(AND($D26<=EOMONTH(S$2,0),$E26>=S$2),SUMPRODUCT(--(WEEKDAY(ROW(INDIRECT(MAX($D26,S$2)&":"&MIN($E26,EOMONTH(S$2,0)))))=MATCH($F26,{"Su";"Ma";"Ti";"Ke";"To";"Pe";"La"},0)))-SUMPRODUCT(--COUNTIF(INDIRECT("Kenttätiedot!"&HLOOKUP($A26,Kenttätiedot!$B$3:$Q$5,3,FALSE)&"6:"&HLOOKUP($A26,Kenttätiedot!$B$3:$Q$5,3,FALSE)&"300"),ROW(INDIRECT(MAX($D26,S$2)&":"&MIN($E26,EOMONTH(S$2,0)))))*(WEEKDAY(ROW(INDIRECT(MAX($D26,S$2)&":"&MIN($E26,EOMONTH(S$2,0)))))=MATCH($F26,{"Su";"Ma";"Ti";"Ke";"To";"Pe";"La"},0))),0)*HLOOKUP($A26,Kenttätiedot!$B$3:$Q$5,2,FALSE)*$B26,0) -> 0 | T26: =IF($D26<>"",IF(AND($D26<=EOMONTH(H$2,0),$E26>=H$2),SUMPRODUCT(--(WEEKDAY(ROW(INDIRECT(MAX($D26,H$2)&":"&MIN($E26,EOMONTH(H$2,0)))))=MATCH($F26,{"Su";"Ma";"Ti";"Ke";"To";"Pe";"La"},0)))-SUMPRODUCT(--COUNTIF(INDIRECT("Kenttätiedot!"&HLOOKUP($A26,Kenttätiedot!$B$3:$Q$5,3,FALSE)&"6:"&HLOOKUP($A26,Kenttätiedot!$B$3:$Q$5,3,FALSE)&"300"),ROW(INDIRECT(MAX($D26,H$2)&":"&MIN($E26,EOMONTH(H$2,0)))))*(WEEKDAY(ROW(INDIRECT(MAX($D26,H$2)&":"&MIN($E26,EOMONTH(H$2,0)))))=MATCH($F26,{"Su";"Ma";"Ti";"Ke";"To";"Pe";"La"},0))),0)*$G26,0) -> 0 | U26: =IF($D26<>"",IF(AND($D26<=EOMONTH(I$2,0),$E26>=I$2),SUMPRODUCT(--(WEEKDAY(ROW(INDIRECT(MAX($D26,I$2)&":"&MIN($E26,EOMONTH(I$2,0)))))=MATCH($F26,{"Su";"Ma";"Ti";"Ke";"To";"Pe";"La"},0)))-SUMPRODUCT(--COUNTIF(INDIRECT("Kenttätiedot!"&HLOOKUP($A26,Kenttätiedot!$B$3:$Q$5,3,FALSE)&"6:"&HLOOKUP($A26,Kenttätiedot!$B$3:$Q$5,3,FALSE)&"300"),ROW(INDIRECT(MAX($D26,I$2)&":"&MIN($E26,EOMONTH(I$2,0)))))*(WEEKDAY(ROW(INDIRECT(MAX($D26,I$2)&":"&MIN($E26,EOMONTH(I$2,0)))))=MATCH($F26,{"Su";"Ma";"Ti";"Ke";"To";"Pe";"La"},0))),0)*$G26,0) -> 0 | V26: =IF($D26<>"",IF(AND($D26<=EOMONTH(J$2,0),$E26>=J$2),SUMPRODUCT(--(WEEKDAY(ROW(INDIRECT(MAX($D26,J$2)&":"&MIN($E26,EOMONTH(J$2,0)))))=MATCH($F26,{"Su";"Ma";"Ti";"Ke";"To";"Pe";"La"},0)))-SUMPRODUCT(--COUNTIF(INDIRECT("Kenttätiedot!"&HLOOKUP($A26,Kenttätiedot!$B$3:$Q$5,3,FALSE)&"6:"&HLOOKUP($A26,Kenttätiedot!$B$3:$Q$5,3,FALSE)&"300"),ROW(INDIRECT(MAX($D26,J$2)&":"&MIN($E26,EOMONTH(J$2,0)))))*(WEEKDAY(ROW(INDIRECT(MAX($D26,J$2)&":"&MIN($E26,EOMONTH(J$2,0)))))=MATCH($F26,{"Su";"Ma";"Ti";"Ke";"To";"Pe";"La"},0))),0)*$G26,0) -> 0 | W26: =IF($D26<>"",IF(AND($D26<=EOMONTH(K$2,0),$E26>=K$2),SUMPRODUCT(--(WEEKDAY(ROW(INDIRECT(MAX($D26,K$2)&":"&MIN($E26,EOMONTH(K$2,0)))))=MATCH($F26,{"Su";"Ma";"Ti";"Ke";"To";"Pe";"La"},0)))-SUMPRODUCT(--COUNTIF(INDIRECT("Kenttätiedot!"&HLOOKUP($A26,Kenttätiedot!$B$3:$Q$5,3,FALSE)&"6:"&HLOOKUP($A26,Kenttätiedot!$B$3:$Q$5,3,FALSE)&"300"),ROW(INDIRECT(MAX($D26,K$2)&":"&MIN($E26,EOMONTH(K$2,0)))))*(WEEKDAY(ROW(INDIRECT(MAX($D26,K$2)&":"&MIN($E26,EOMONTH(K$2,0)))))=MATCH($F26,{"Su";"Ma";"Ti";"Ke";"To";"Pe";"La"},0))),0)*$G26,0) -> 0 | X26: =IF($D26<>"",IF(AND($D26<=EOMONTH(L$2,0),$E26>=L$2),SUMPRODUCT(--(WEEKDAY(ROW(INDIRECT(MAX($D26,L$2)&":"&MIN($E26,EOMONTH(L$2,0)))))=MATCH($F26,{"Su";"Ma";"Ti";"Ke";"To";"Pe";"La"},0)))-SUMPRODUCT(--COUNTIF(INDIRECT("Kenttätiedot!"&HLOOKUP($A26,Kenttätiedot!$B$3:$Q$5,3,FALSE)&"6:"&HLOOKUP($A26,Kenttätiedot!$B$3:$Q$5,3,FALSE)&"300"),ROW(INDIRECT(MAX($D26,L$2)&":"&MIN($E26,EOMONTH(L$2,0)))))*(WEEKDAY(ROW(INDIRECT(MAX($D26,L$2)&":"&MIN($E26,EOMONTH(L$2,0)))))=MATCH($F26,{"Su";"Ma";"Ti";"Ke";"To";"Pe";"La"},0))),0)*$G26,0) -> 0 | Y26: =IF($D26<>"",IF(AND($D26<=EOMONTH(M$2,0),$E26>=M$2),SUMPRODUCT(--(WEEKDAY(ROW(INDIRECT(MAX($D26,M$2)&":"&MIN($E26,EOMONTH(M$2,0)))))=MATCH($F26,{"Su";"Ma";"Ti";"Ke";"To";"Pe";"La"},0)))-SUMPRODUCT(--COUNTIF(INDIRECT("Kenttätiedot!"&HLOOKUP($A26,Kenttätiedot!$B$3:$Q$5,3,FALSE)&"6:"&HLOOKUP($A26,Kenttätiedot!$B$3:$Q$5,3,FALSE)&"300"),ROW(INDIRECT(MAX($D26,M$2)&":"&MIN($E26,EOMONTH(M$2,0)))))*(WEEKDAY(ROW(INDIRECT(MAX($D26,M$2)&":"&MIN($E26,EOMONTH(M$2,0)))))=MATCH($F26,{"Su";"Ma";"Ti";"Ke";"To";"Pe";"La"},0))),0)*$G26,0) -> 0 | Z26: =IF($D26<>"",IF(AND($D26<=EOMONTH(N$2,0),$E26>=N$2),SUMPRODUCT(--(WEEKDAY(ROW(INDIRECT(MAX($D26,N$2)&":"&MIN($E26,EOMONTH(N$2,0)))))=MATCH($F26,{"Su";"Ma";"Ti";"Ke";"To";"Pe";"La"},0)))-SUMPRODUCT(--COUNTIF(INDIRECT("Kenttätiedot!"&HLOOKUP($A26,Kenttätiedot!$B$3:$Q$5,3,FALSE)&"6:"&HLOOKUP($A26,Kenttätiedot!$B$3:$Q$5,3,FALSE)&"300"),ROW(INDIRECT(MAX($D26,N$2)&":"&MIN($E26,EOMONTH(N$2,0)))))*(WEEKDAY(ROW(INDIRECT(MAX($D26,N$2)&":"&MIN($E26,EOMONTH(N$2,0)))))=MATCH($F26,{"Su";"Ma";"Ti";"Ke";"To";"Pe";"La"},0))),0)*$G26,0) -> 0 | AA26: =IF($D26<>"",IF(AND($D26<=EOMONTH(O$2,0),$E26>=O$2),SUMPRODUCT(--(WEEKDAY(ROW(INDIRECT(MAX($D26,O$2)&":"&MIN($E26,EOMONTH(O$2,0)))))=MATCH($F26,{"Su";"Ma";"Ti";"Ke";"To";"Pe";"La"},0)))-SUMPRODUCT(--COUNTIF(INDIRECT("Kenttätiedot!"&HLOOKUP($A26,Kenttätiedot!$B$3:$Q$5,3,FALSE)&"6:"&HLOOKUP($A26,Kenttätiedot!$B$3:$Q$5,3,FALSE)&"300"),ROW(INDIRECT(MAX($D26,O$2)&":"&MIN($E26,EOMONTH(O$2,0)))))*(WEEKDAY(ROW(INDIRECT(MAX($D26,O$2)&":"&MIN($E26,EOMONTH(O$2,0)))))=MATCH($F26,{"Su";"Ma";"Ti";"Ke";"To";"Pe";"La"},0))),0)*$G26,0) -> 0 | AB26: =IF($D26<>"",IF(AND($D26<=EOMONTH(P$2,0),$E26>=P$2),SUMPRODUCT(--(WEEKDAY(ROW(INDIRECT(MAX($D26,P$2)&":"&MIN($E26,EOMONTH(P$2,0)))))=MATCH($F26,{"Su";"Ma";"Ti";"Ke";"To";"Pe";"La"},0)))-SUMPRODUCT(--COUNTIF(INDIRECT("Kenttätiedot!"&HLOOKUP($A26,Kenttätiedot!$B$3:$Q$5,3,FALSE)&"6:"&HLOOKUP($A26,Kenttätiedot!$B$3:$Q$5,3,FALSE)&"300"),ROW(INDIRECT(MAX($D26,P$2)&":"&MIN($E26,EOMONTH(P$2,0)))))*(WEEKDAY(ROW(INDIRECT(MAX($D26,P$2)&":"&MIN($E26,EOMONTH(P$2,0)))))=MATCH($F26,{"Su";"Ma";"Ti";"Ke";"To";"Pe";"La"},0))),0)*$G26,0) -> 0 | AC26: =IF($D26<>"",IF(AND($D26<=EOMONTH(Q$2,0),$E26>=Q$2),SUMPRODUCT(--(WEEKDAY(ROW(INDIRECT(MAX($D26,Q$2)&":"&MIN($E26,EOMONTH(Q$2,0)))))=MATCH($F26,{"Su";"Ma";"Ti";"Ke";"To";"Pe";"La"},0)))-SUMPRODUCT(--COUNTIF(INDIRECT("Kenttätiedot!"&HLOOKUP($A26,Kenttätiedot!$B$3:$Q$5,3,FALSE)&"6:"&HLOOKUP($A26,Kenttätiedot!$B$3:$Q$5,3,FALSE)&"300"),ROW(INDIRECT(MAX($D26,Q$2)&":"&MIN($E26,EOMONTH(Q$2,0)))))*(WEEKDAY(ROW(INDIRECT(MAX($D26,Q$2)&":"&MIN($E26,EOMONTH(Q$2,0)))))=MATCH($F26,{"Su";"Ma";"Ti";"Ke";"To";"Pe";"La"},0))),0)*$G26,0) -> 0 | AD26: =IF($D26<>"",IF(AND($D26<=EOMONTH(R$2,0),$E26>=R$2),SUMPRODUCT(--(WEEKDAY(ROW(INDIRECT(MAX($D26,R$2)&":"&MIN($E26,EOMONTH(R$2,0)))))=MATCH($F26,{"Su";"Ma";"Ti";"Ke";"To";"Pe";"La"},0)))-SUMPRODUCT(--COUNTIF(INDIRECT("Kenttätiedot!"&HLOOKUP($A26,Kenttätiedot!$B$3:$Q$5,3,FALSE)&"6:"&HLOOKUP($A26,Kenttätiedot!$B$3:$Q$5,3,FALSE)&"300"),ROW(INDIRECT(MAX($D26,R$2)&":"&MIN($E26,EOMONTH(R$2,0)))))*(WEEKDAY(ROW(INDIRECT(MAX($D26,R$2)&":"&MIN($E26,EOMONTH(R$2,0)))))=MATCH($F26,{"Su";"Ma";"Ti";"Ke";"To";"Pe";"La"},0))),0)*$G26,0) -> 0 | AE26: =IF($D26<>"",IF(AND($D26<=EOMONTH(S$2,0),$E26>=S$2),SUMPRODUCT(--(WEEKDAY(ROW(INDIRECT(MAX($D26,S$2)&":"&MIN($E26,EOMONTH(S$2,0)))))=MATCH($F26,{"Su";"Ma";"Ti";"Ke";"To";"Pe";"La"},0)))-SUMPRODUCT(--COUNTIF(INDIRECT("Kenttätiedot!"&HLOOKUP($A26,Kenttätiedot!$B$3:$Q$5,3,FALSE)&"6:"&HLOOKUP($A26,Kenttätiedot!$B$3:$Q$5,3,FALSE)&"300"),ROW(INDIRECT(MAX($D26,S$2)&":"&MIN($E26,EOMONTH(S$2,0)))))*(WEEKDAY(ROW(INDIRECT(MAX($D26,S$2)&":"&MIN($E26,EOMONTH(S$2,0)))))=MATCH($F26,{"Su";"Ma";"Ti";"Ke";"To";"Pe";"La"},0))),0)*$G26,0) -> 0
H27: =IF($D27<>"",IF(AND($D27<=EOMONTH(H$2,0),$E27>=H$2),SUMPRODUCT(--(WEEKDAY(ROW(INDIRECT(MAX($D27,H$2)&":"&MIN($E27,EOMONTH(H$2,0)))))=MATCH($F27,{"Su";"Ma";"Ti";"Ke";"To";"Pe";"La"},0)))-SUMPRODUCT(--COUNTIF(INDIRECT("Kenttätiedot!"&HLOOKUP($A27,Kenttätiedot!$B$3:$Q$5,3,FALSE)&"6:"&HLOOKUP($A27,Kenttätiedot!$B$3:$Q$5,3,FALSE)&"300"),ROW(INDIRECT(MAX($D27,H$2)&":"&MIN($E27,EOMONTH(H$2,0)))))*(WEEKDAY(ROW(INDIRECT(MAX($D27,H$2)&":"&MIN($E27,EOMONTH(H$2,0)))))=MATCH($F27,{"Su";"Ma";"Ti";"Ke";"To";"Pe";"La"},0))),0)*HLOOKUP($A27,Kenttätiedot!$B$3:$Q$5,2,FALSE)*$B27,0) -> 0 | I27: =IF($D27<>"",IF(AND($D27<=EOMONTH(I$2,0),$E27>=I$2),SUMPRODUCT(--(WEEKDAY(ROW(INDIRECT(MAX($D27,I$2)&":"&MIN($E27,EOMONTH(I$2,0)))))=MATCH($F27,{"Su";"Ma";"Ti";"Ke";"To";"Pe";"La"},0)))-SUMPRODUCT(--COUNTIF(INDIRECT("Kenttätiedot!"&HLOOKUP($A27,Kenttätiedot!$B$3:$Q$5,3,FALSE)&"6:"&HLOOKUP($A27,Kenttätiedot!$B$3:$Q$5,3,FALSE)&"300"),ROW(INDIRECT(MAX($D27,I$2)&":"&MIN($E27,EOMONTH(I$2,0)))))*(WEEKDAY(ROW(INDIRECT(MAX($D27,I$2)&":"&MIN($E27,EOMONTH(I$2,0)))))=MATCH($F27,{"Su";"Ma";"Ti";"Ke";"To";"Pe";"La"},0))),0)*HLOOKUP($A27,Kenttätiedot!$B$3:$Q$5,2,FALSE)*$B27,0) -> 0 | J27: =IF($D27<>"",IF(AND($D27<=EOMONTH(J$2,0),$E27>=J$2),SUMPRODUCT(--(WEEKDAY(ROW(INDIRECT(MAX($D27,J$2)&":"&MIN($E27,EOMONTH(J$2,0)))))=MATCH($F27,{"Su";"Ma";"Ti";"Ke";"To";"Pe";"La"},0)))-SUMPRODUCT(--COUNTIF(INDIRECT("Kenttätiedot!"&HLOOKUP($A27,Kenttätiedot!$B$3:$Q$5,3,FALSE)&"6:"&HLOOKUP($A27,Kenttätiedot!$B$3:$Q$5,3,FALSE)&"300"),ROW(INDIRECT(MAX($D27,J$2)&":"&MIN($E27,EOMONTH(J$2,0)))))*(WEEKDAY(ROW(INDIRECT(MAX($D27,J$2)&":"&MIN($E27,EOMONTH(J$2,0)))))=MATCH($F27,{"Su";"Ma";"Ti";"Ke";"To";"Pe";"La"},0))),0)*HLOOKUP($A27,Kenttätiedot!$B$3:$Q$5,2,FALSE)*$B27,0) -> 0 | K27: =IF($D27<>"",IF(AND($D27<=EOMONTH(K$2,0),$E27>=K$2),SUMPRODUCT(--(WEEKDAY(ROW(INDIRECT(MAX($D27,K$2)&":"&MIN($E27,EOMONTH(K$2,0)))))=MATCH($F27,{"Su";"Ma";"Ti";"Ke";"To";"Pe";"La"},0)))-SUMPRODUCT(--COUNTIF(INDIRECT("Kenttätiedot!"&HLOOKUP($A27,Kenttätiedot!$B$3:$Q$5,3,FALSE)&"6:"&HLOOKUP($A27,Kenttätiedot!$B$3:$Q$5,3,FALSE)&"300"),ROW(INDIRECT(MAX($D27,K$2)&":"&MIN($E27,EOMONTH(K$2,0)))))*(WEEKDAY(ROW(INDIRECT(MAX($D27,K$2)&":"&MIN($E27,EOMONTH(K$2,0)))))=MATCH($F27,{"Su";"Ma";"Ti";"Ke";"To";"Pe";"La"},0))),0)*HLOOKUP($A27,Kenttätiedot!$B$3:$Q$5,2,FALSE)*$B27,0) -> 0 | L27: =IF($D27<>"",IF(AND($D27<=EOMONTH(L$2,0),$E27>=L$2),SUMPRODUCT(--(WEEKDAY(ROW(INDIRECT(MAX($D27,L$2)&":"&MIN($E27,EOMONTH(L$2,0)))))=MATCH($F27,{"Su";"Ma";"Ti";"Ke";"To";"Pe";"La"},0)))-SUMPRODUCT(--COUNTIF(INDIRECT("Kenttätiedot!"&HLOOKUP($A27,Kenttätiedot!$B$3:$Q$5,3,FALSE)&"6:"&HLOOKUP($A27,Kenttätiedot!$B$3:$Q$5,3,FALSE)&"300"),ROW(INDIRECT(MAX($D27,L$2)&":"&MIN($E27,EOMONTH(L$2,0)))))*(WEEKDAY(ROW(INDIRECT(MAX($D27,L$2)&":"&MIN($E27,EOMONTH(L$2,0)))))=MATCH($F27,{"Su";"Ma";"Ti";"Ke";"To";"Pe";"La"},0))),0)*HLOOKUP($A27,Kenttätiedot!$B$3:$Q$5,2,FALSE)*$B27,0) -> 0 | M27: =IF($D27<>"",IF(AND($D27<=EOMONTH(M$2,0),$E27>=M$2),SUMPRODUCT(--(WEEKDAY(ROW(INDIRECT(MAX($D27,M$2)&":"&MIN($E27,EOMONTH(M$2,0)))))=MATCH($F27,{"Su";"Ma";"Ti";"Ke";"To";"Pe";"La"},0)))-SUMPRODUCT(--COUNTIF(INDIRECT("Kenttätiedot!"&HLOOKUP($A27,Kenttätiedot!$B$3:$Q$5,3,FALSE)&"6:"&HLOOKUP($A27,Kenttätiedot!$B$3:$Q$5,3,FALSE)&"300"),ROW(INDIRECT(MAX($D27,M$2)&":"&MIN($E27,EOMONTH(M$2,0)))))*(WEEKDAY(ROW(INDIRECT(MAX($D27,M$2)&":"&MIN($E27,EOMONTH(M$2,0)))))=MATCH($F27,{"Su";"Ma";"Ti";"Ke";"To";"Pe";"La"},0))),0)*HLOOKUP($A27,Kenttätiedot!$B$3:$Q$5,2,FALSE)*$B27,0) -> 0 | N27: =IF($D27<>"",IF(AND($D27<=EOMONTH(N$2,0),$E27>=N$2),SUMPRODUCT(--(WEEKDAY(ROW(INDIRECT(MAX($D27,N$2)&":"&MIN($E27,EOMONTH(N$2,0)))))=MATCH($F27,{"Su";"Ma";"Ti";"Ke";"To";"Pe";"La"},0)))-SUMPRODUCT(--COUNTIF(INDIRECT("Kenttätiedot!"&HLOOKUP($A27,Kenttätiedot!$B$3:$Q$5,3,FALSE)&"6:"&HLOOKUP($A27,Kenttätiedot!$B$3:$Q$5,3,FALSE)&"300"),ROW(INDIRECT(MAX($D27,N$2)&":"&MIN($E27,EOMONTH(N$2,0)))))*(WEEKDAY(ROW(INDIRECT(MAX($D27,N$2)&":"&MIN($E27,EOMONTH(N$2,0)))))=MATCH($F27,{"Su";"Ma";"Ti";"Ke";"To";"Pe";"La"},0))),0)*HLOOKUP($A27,Kenttätiedot!$B$3:$Q$5,2,FALSE)*$B27,0) -> 0 | O27: =IF($D27<>"",IF(AND($D27<=EOMONTH(O$2,0),$E27>=O$2),SUMPRODUCT(--(WEEKDAY(ROW(INDIRECT(MAX($D27,O$2)&":"&MIN($E27,EOMONTH(O$2,0)))))=MATCH($F27,{"Su";"Ma";"Ti";"Ke";"To";"Pe";"La"},0)))-SUMPRODUCT(--COUNTIF(INDIRECT("Kenttätiedot!"&HLOOKUP($A27,Kenttätiedot!$B$3:$Q$5,3,FALSE)&"6:"&HLOOKUP($A27,Kenttätiedot!$B$3:$Q$5,3,FALSE)&"300"),ROW(INDIRECT(MAX($D27,O$2)&":"&MIN($E27,EOMONTH(O$2,0)))))*(WEEKDAY(ROW(INDIRECT(MAX($D27,O$2)&":"&MIN($E27,EOMONTH(O$2,0)))))=MATCH($F27,{"Su";"Ma";"Ti";"Ke";"To";"Pe";"La"},0))),0)*HLOOKUP($A27,Kenttätiedot!$B$3:$Q$5,2,FALSE)*$B27,0) -> 0 | P27: =IF($D27<>"",IF(AND($D27<=EOMONTH(P$2,0),$E27>=P$2),SUMPRODUCT(--(WEEKDAY(ROW(INDIRECT(MAX($D27,P$2)&":"&MIN($E27,EOMONTH(P$2,0)))))=MATCH($F27,{"Su";"Ma";"Ti";"Ke";"To";"Pe";"La"},0)))-SUMPRODUCT(--COUNTIF(INDIRECT("Kenttätiedot!"&HLOOKUP($A27,Kenttätiedot!$B$3:$Q$5,3,FALSE)&"6:"&HLOOKUP($A27,Kenttätiedot!$B$3:$Q$5,3,FALSE)&"300"),ROW(INDIRECT(MAX($D27,P$2)&":"&MIN($E27,EOMONTH(P$2,0)))))*(WEEKDAY(ROW(INDIRECT(MAX($D27,P$2)&":"&MIN($E27,EOMONTH(P$2,0)))))=MATCH($F27,{"Su";"Ma";"Ti";"Ke";"To";"Pe";"La"},0))),0)*HLOOKUP($A27,Kenttätiedot!$B$3:$Q$5,2,FALSE)*$B27,0) -> 0 | Q27: =IF($D27<>"",IF(AND($D27<=EOMONTH(Q$2,0),$E27>=Q$2),SUMPRODUCT(--(WEEKDAY(ROW(INDIRECT(MAX($D27,Q$2)&":"&MIN($E27,EOMONTH(Q$2,0)))))=MATCH($F27,{"Su";"Ma";"Ti";"Ke";"To";"Pe";"La"},0)))-SUMPRODUCT(--COUNTIF(INDIRECT("Kenttätiedot!"&HLOOKUP($A27,Kenttätiedot!$B$3:$Q$5,3,FALSE)&"6:"&HLOOKUP($A27,Kenttätiedot!$B$3:$Q$5,3,FALSE)&"300"),ROW(INDIRECT(MAX($D27,Q$2)&":"&MIN($E27,EOMONTH(Q$2,0)))))*(WEEKDAY(ROW(INDIRECT(MAX($D27,Q$2)&":"&MIN($E27,EOMONTH(Q$2,0)))))=MATCH($F27,{"Su";"Ma";"Ti";"Ke";"To";"Pe";"La"},0))),0)*HLOOKUP($A27,Kenttätiedot!$B$3:$Q$5,2,FALSE)*$B27,0) -> 0 | R27: =IF($D27<>"",IF(AND($D27<=EOMONTH(R$2,0),$E27>=R$2),SUMPRODUCT(--(WEEKDAY(ROW(INDIRECT(MAX($D27,R$2)&":"&MIN($E27,EOMONTH(R$2,0)))))=MATCH($F27,{"Su";"Ma";"Ti";"Ke";"To";"Pe";"La"},0)))-SUMPRODUCT(--COUNTIF(INDIRECT("Kenttätiedot!"&HLOOKUP($A27,Kenttätiedot!$B$3:$Q$5,3,FALSE)&"6:"&HLOOKUP($A27,Kenttätiedot!$B$3:$Q$5,3,FALSE)&"300"),ROW(INDIRECT(MAX($D27,R$2)&":"&MIN($E27,EOMONTH(R$2,0)))))*(WEEKDAY(ROW(INDIRECT(MAX($D27,R$2)&":"&MIN($E27,EOMONTH(R$2,0)))))=MATCH($F27,{"Su";"Ma";"Ti";"Ke";"To";"Pe";"La"},0))),0)*HLOOKUP($A27,Kenttätiedot!$B$3:$Q$5,2,FALSE)*$B27,0) -> 0 | S27: =IF($D27<>"",IF(AND($D27<=EOMONTH(S$2,0),$E27>=S$2),SUMPRODUCT(--(WEEKDAY(ROW(INDIRECT(MAX($D27,S$2)&":"&MIN($E27,EOMONTH(S$2,0)))))=MATCH($F27,{"Su";"Ma";"Ti";"Ke";"To";"Pe";"La"},0)))-SUMPRODUCT(--COUNTIF(INDIRECT("Kenttätiedot!"&HLOOKUP($A27,Kenttätiedot!$B$3:$Q$5,3,FALSE)&"6:"&HLOOKUP($A27,Kenttätiedot!$B$3:$Q$5,3,FALSE)&"300"),ROW(INDIRECT(MAX($D27,S$2)&":"&MIN($E27,EOMONTH(S$2,0)))))*(WEEKDAY(ROW(INDIRECT(MAX($D27,S$2)&":"&MIN($E27,EOMONTH(S$2,0)))))=MATCH($F27,{"Su";"Ma";"Ti";"Ke";"To";"Pe";"La"},0))),0)*HLOOKUP($A27,Kenttätiedot!$B$3:$Q$5,2,FALSE)*$B27,0) -> 0 | T27: =IF($D27<>"",IF(AND($D27<=EOMONTH(H$2,0),$E27>=H$2),SUMPRODUCT(--(WEEKDAY(ROW(INDIRECT(MAX($D27,H$2)&":"&MIN($E27,EOMONTH(H$2,0)))))=MATCH($F27,{"Su";"Ma";"Ti";"Ke";"To";"Pe";"La"},0)))-SUMPRODUCT(--COUNTIF(INDIRECT("Kenttätiedot!"&HLOOKUP($A27,Kenttätiedot!$B$3:$Q$5,3,FALSE)&"6:"&HLOOKUP($A27,Kenttätiedot!$B$3:$Q$5,3,FALSE)&"300"),ROW(INDIRECT(MAX($D27,H$2)&":"&MIN($E27,EOMONTH(H$2,0)))))*(WEEKDAY(ROW(INDIRECT(MAX($D27,H$2)&":"&MIN($E27,EOMONTH(H$2,0)))))=MATCH($F27,{"Su";"Ma";"Ti";"Ke";"To";"Pe";"La"},0))),0)*$G27,0) -> 0 | U27: =IF($D27<>"",IF(AND($D27<=EOMONTH(I$2,0),$E27>=I$2),SUMPRODUCT(--(WEEKDAY(ROW(INDIRECT(MAX($D27,I$2)&":"&MIN($E27,EOMONTH(I$2,0)))))=MATCH($F27,{"Su";"Ma";"Ti";"Ke";"To";"Pe";"La"},0)))-SUMPRODUCT(--COUNTIF(INDIRECT("Kenttätiedot!"&HLOOKUP($A27,Kenttätiedot!$B$3:$Q$5,3,FALSE)&"6:"&HLOOKUP($A27,Kenttätiedot!$B$3:$Q$5,3,FALSE)&"300"),ROW(INDIRECT(MAX($D27,I$2)&":"&MIN($E27,EOMONTH(I$2,0)))))*(WEEKDAY(ROW(INDIRECT(MAX($D27,I$2)&":"&MIN($E27,EOMONTH(I$2,0)))))=MATCH($F27,{"Su";"Ma";"Ti";"Ke";"To";"Pe";"La"},0))),0)*$G27,0) -> 0 | V27: =IF($D27<>"",IF(AND($D27<=EOMONTH(J$2,0),$E27>=J$2),SUMPRODUCT(--(WEEKDAY(ROW(INDIRECT(MAX($D27,J$2)&":"&MIN($E27,EOMONTH(J$2,0)))))=MATCH($F27,{"Su";"Ma";"Ti";"Ke";"To";"Pe";"La"},0)))-SUMPRODUCT(--COUNTIF(INDIRECT("Kenttätiedot!"&HLOOKUP($A27,Kenttätiedot!$B$3:$Q$5,3,FALSE)&"6:"&HLOOKUP($A27,Kenttätiedot!$B$3:$Q$5,3,FALSE)&"300"),ROW(INDIRECT(MAX($D27,J$2)&":"&MIN($E27,EOMONTH(J$2,0)))))*(WEEKDAY(ROW(INDIRECT(MAX($D27,J$2)&":"&MIN($E27,EOMONTH(J$2,0)))))=MATCH($F27,{"Su";"Ma";"Ti";"Ke";"To";"Pe";"La"},0))),0)*$G27,0) -> 0 | W27: =IF($D27<>"",IF(AND($D27<=EOMONTH(K$2,0),$E27>=K$2),SUMPRODUCT(--(WEEKDAY(ROW(INDIRECT(MAX($D27,K$2)&":"&MIN($E27,EOMONTH(K$2,0)))))=MATCH($F27,{"Su";"Ma";"Ti";"Ke";"To";"Pe";"La"},0)))-SUMPRODUCT(--COUNTIF(INDIRECT("Kenttätiedot!"&HLOOKUP($A27,Kenttätiedot!$B$3:$Q$5,3,FALSE)&"6:"&HLOOKUP($A27,Kenttätiedot!$B$3:$Q$5,3,FALSE)&"300"),ROW(INDIRECT(MAX($D27,K$2)&":"&MIN($E27,EOMONTH(K$2,0)))))*(WEEKDAY(ROW(INDIRECT(MAX($D27,K$2)&":"&MIN($E27,EOMONTH(K$2,0)))))=MATCH($F27,{"Su";"Ma";"Ti";"Ke";"To";"Pe";"La"},0))),0)*$G27,0) -> 0 | X27: =IF($D27<>"",IF(AND($D27<=EOMONTH(L$2,0),$E27>=L$2),SUMPRODUCT(--(WEEKDAY(ROW(INDIRECT(MAX($D27,L$2)&":"&MIN($E27,EOMONTH(L$2,0)))))=MATCH($F27,{"Su";"Ma";"Ti";"Ke";"To";"Pe";"La"},0)))-SUMPRODUCT(--COUNTIF(INDIRECT("Kenttätiedot!"&HLOOKUP($A27,Kenttätiedot!$B$3:$Q$5,3,FALSE)&"6:"&HLOOKUP($A27,Kenttätiedot!$B$3:$Q$5,3,FALSE)&"300"),ROW(INDIRECT(MAX($D27,L$2)&":"&MIN($E27,EOMONTH(L$2,0)))))*(WEEKDAY(ROW(INDIRECT(MAX($D27,L$2)&":"&MIN($E27,EOMONTH(L$2,0)))))=MATCH($F27,{"Su";"Ma";"Ti";"Ke";"To";"Pe";"La"},0))),0)*$G27,0) -> 0 | Y27: =IF($D27<>"",IF(AND($D27<=EOMONTH(M$2,0),$E27>=M$2),SUMPRODUCT(--(WEEKDAY(ROW(INDIRECT(MAX($D27,M$2)&":"&MIN($E27,EOMONTH(M$2,0)))))=MATCH($F27,{"Su";"Ma";"Ti";"Ke";"To";"Pe";"La"},0)))-SUMPRODUCT(--COUNTIF(INDIRECT("Kenttätiedot!"&HLOOKUP($A27,Kenttätiedot!$B$3:$Q$5,3,FALSE)&"6:"&HLOOKUP($A27,Kenttätiedot!$B$3:$Q$5,3,FALSE)&"300"),ROW(INDIRECT(MAX($D27,M$2)&":"&MIN($E27,EOMONTH(M$2,0)))))*(WEEKDAY(ROW(INDIRECT(MAX($D27,M$2)&":"&MIN($E27,EOMONTH(M$2,0)))))=MATCH($F27,{"Su";"Ma";"Ti";"Ke";"To";"Pe";"La"},0))),0)*$G27,0) -> 0 | Z27: =IF($D27<>"",IF(AND($D27<=EOMONTH(N$2,0),$E27>=N$2),SUMPRODUCT(--(WEEKDAY(ROW(INDIRECT(MAX($D27,N$2)&":"&MIN($E27,EOMONTH(N$2,0)))))=MATCH($F27,{"Su";"Ma";"Ti";"Ke";"To";"Pe";"La"},0)))-SUMPRODUCT(--COUNTIF(INDIRECT("Kenttätiedot!"&HLOOKUP($A27,Kenttätiedot!$B$3:$Q$5,3,FALSE)&"6:"&HLOOKUP($A27,Kenttätiedot!$B$3:$Q$5,3,FALSE)&"300"),ROW(INDIRECT(MAX($D27,N$2)&":"&MIN($E27,EOMONTH(N$2,0)))))*(WEEKDAY(ROW(INDIRECT(MAX($D27,N$2)&":"&MIN($E27,EOMONTH(N$2,0)))))=MATCH($F27,{"Su";"Ma";"Ti";"Ke";"To";"Pe";"La"},0))),0)*$G27,0) -> 0 | AA27: =IF($D27<>"",IF(AND($D27<=EOMONTH(O$2,0),$E27>=O$2),SUMPRODUCT(--(WEEKDAY(ROW(INDIRECT(MAX($D27,O$2)&":"&MIN($E27,EOMONTH(O$2,0)))))=MATCH($F27,{"Su";"Ma";"Ti";"Ke";"To";"Pe";"La"},0)))-SUMPRODUCT(--COUNTIF(INDIRECT("Kenttätiedot!"&HLOOKUP($A27,Kenttätiedot!$B$3:$Q$5,3,FALSE)&"6:"&HLOOKUP($A27,Kenttätiedot!$B$3:$Q$5,3,FALSE)&"300"),ROW(INDIRECT(MAX($D27,O$2)&":"&MIN($E27,EOMONTH(O$2,0)))))*(WEEKDAY(ROW(INDIRECT(MAX($D27,O$2)&":"&MIN($E27,EOMONTH(O$2,0)))))=MATCH($F27,{"Su";"Ma";"Ti";"Ke";"To";"Pe";"La"},0))),0)*$G27,0) -> 0 | AB27: =IF($D27<>"",IF(AND($D27<=EOMONTH(P$2,0),$E27>=P$2),SUMPRODUCT(--(WEEKDAY(ROW(INDIRECT(MAX($D27,P$2)&":"&MIN($E27,EOMONTH(P$2,0)))))=MATCH($F27,{"Su";"Ma";"Ti";"Ke";"To";"Pe";"La"},0)))-SUMPRODUCT(--COUNTIF(INDIRECT("Kenttätiedot!"&HLOOKUP($A27,Kenttätiedot!$B$3:$Q$5,3,FALSE)&"6:"&HLOOKUP($A27,Kenttätiedot!$B$3:$Q$5,3,FALSE)&"300"),ROW(INDIRECT(MAX($D27,P$2)&":"&MIN($E27,EOMONTH(P$2,0)))))*(WEEKDAY(ROW(INDIRECT(MAX($D27,P$2)&":"&MIN($E27,EOMONTH(P$2,0)))))=MATCH($F27,{"Su";"Ma";"Ti";"Ke";"To";"Pe";"La"},0))),0)*$G27,0) -> 0 | AC27: =IF($D27<>"",IF(AND($D27<=EOMONTH(Q$2,0),$E27>=Q$2),SUMPRODUCT(--(WEEKDAY(ROW(INDIRECT(MAX($D27,Q$2)&":"&MIN($E27,EOMONTH(Q$2,0)))))=MATCH($F27,{"Su";"Ma";"Ti";"Ke";"To";"Pe";"La"},0)))-SUMPRODUCT(--COUNTIF(INDIRECT("Kenttätiedot!"&HLOOKUP($A27,Kenttätiedot!$B$3:$Q$5,3,FALSE)&"6:"&HLOOKUP($A27,Kenttätiedot!$B$3:$Q$5,3,FALSE)&"300"),ROW(INDIRECT(MAX($D27,Q$2)&":"&MIN($E27,EOMONTH(Q$2,0)))))*(WEEKDAY(ROW(INDIRECT(MAX($D27,Q$2)&":"&MIN($E27,EOMONTH(Q$2,0)))))=MATCH($F27,{"Su";"Ma";"Ti";"Ke";"To";"Pe";"La"},0))),0)*$G27,0) -> 0 | AD27: =IF($D27<>"",IF(AND($D27<=EOMONTH(R$2,0),$E27>=R$2),SUMPRODUCT(--(WEEKDAY(ROW(INDIRECT(MAX($D27,R$2)&":"&MIN($E27,EOMONTH(R$2,0)))))=MATCH($F27,{"Su";"Ma";"Ti";"Ke";"To";"Pe";"La"},0)))-SUMPRODUCT(--COUNTIF(INDIRECT("Kenttätiedot!"&HLOOKUP($A27,Kenttätiedot!$B$3:$Q$5,3,FALSE)&"6:"&HLOOKUP($A27,Kenttätiedot!$B$3:$Q$5,3,FALSE)&"300"),ROW(INDIRECT(MAX($D27,R$2)&":"&MIN($E27,EOMONTH(R$2,0)))))*(WEEKDAY(ROW(INDIRECT(MAX($D27,R$2)&":"&MIN($E27,EOMONTH(R$2,0)))))=MATCH($F27,{"Su";"Ma";"Ti";"Ke";"To";"Pe";"La"},0))),0)*$G27,0) -> 0 | AE27: =IF($D27<>"",IF(AND($D27<=EOMONTH(S$2,0),$E27>=S$2),SUMPRODUCT(--(WEEKDAY(ROW(INDIRECT(MAX($D27,S$2)&":"&MIN($E27,EOMONTH(S$2,0)))))=MATCH($F27,{"Su";"Ma";"Ti";"Ke";"To";"Pe";"La"},0)))-SUMPRODUCT(--COUNTIF(INDIRECT("Kenttätiedot!"&HLOOKUP($A27,Kenttätiedot!$B$3:$Q$5,3,FALSE)&"6:"&HLOOKUP($A27,Kenttätiedot!$B$3:$Q$5,3,FALSE)&"300"),ROW(INDIRECT(MAX($D27,S$2)&":"&MIN($E27,EOMONTH(S$2,0)))))*(WEEKDAY(ROW(INDIRECT(MAX($D27,S$2)&":"&MIN($E27,EOMONTH(S$2,0)))))=MATCH($F27,{"Su";"Ma";"Ti";"Ke";"To";"Pe";"La"},0))),0)*$G27,0) -> 0
H28: =IF($D28<>"",IF(AND($D28<=EOMONTH(H$2,0),$E28>=H$2),SUMPRODUCT(--(WEEKDAY(ROW(INDIRECT(MAX($D28,H$2)&":"&MIN($E28,EOMONTH(H$2,0)))))=MATCH($F28,{"Su";"Ma";"Ti";"Ke";"To";"Pe";"La"},0)))-SUMPRODUCT(--COUNTIF(INDIRECT("Kenttätiedot!"&HLOOKUP($A28,Kenttätiedot!$B$3:$Q$5,3,FALSE)&"6:"&HLOOKUP($A28,Kenttätiedot!$B$3:$Q$5,3,FALSE)&"300"),ROW(INDIRECT(MAX($D28,H$2)&":"&MIN($E28,EOMONTH(H$2,0)))))*(WEEKDAY(ROW(INDIRECT(MAX($D28,H$2)&":"&MIN($E28,EOMONTH(H$2,0)))))=MATCH($F28,{"Su";"Ma";"Ti";"Ke";"To";"Pe";"La"},0))),0)*HLOOKUP($A28,Kenttätiedot!$B$3:$Q$5,2,FALSE)*$B28,0) -> 0 | I28: =IF($D28<>"",IF(AND($D28<=EOMONTH(I$2,0),$E28>=I$2),SUMPRODUCT(--(WEEKDAY(ROW(INDIRECT(MAX($D28,I$2)&":"&MIN($E28,EOMONTH(I$2,0)))))=MATCH($F28,{"Su";"Ma";"Ti";"Ke";"To";"Pe";"La"},0)))-SUMPRODUCT(--COUNTIF(INDIRECT("Kenttätiedot!"&HLOOKUP($A28,Kenttätiedot!$B$3:$Q$5,3,FALSE)&"6:"&HLOOKUP($A28,Kenttätiedot!$B$3:$Q$5,3,FALSE)&"300"),ROW(INDIRECT(MAX($D28,I$2)&":"&MIN($E28,EOMONTH(I$2,0)))))*(WEEKDAY(ROW(INDIRECT(MAX($D28,I$2)&":"&MIN($E28,EOMONTH(I$2,0)))))=MATCH($F28,{"Su";"Ma";"Ti";"Ke";"To";"Pe";"La"},0))),0)*HLOOKUP($A28,Kenttätiedot!$B$3:$Q$5,2,FALSE)*$B28,0) -> 0 | J28: =IF($D28<>"",IF(AND($D28<=EOMONTH(J$2,0),$E28>=J$2),SUMPRODUCT(--(WEEKDAY(ROW(INDIRECT(MAX($D28,J$2)&":"&MIN($E28,EOMONTH(J$2,0)))))=MATCH($F28,{"Su";"Ma";"Ti";"Ke";"To";"Pe";"La"},0)))-SUMPRODUCT(--COUNTIF(INDIRECT("Kenttätiedot!"&HLOOKUP($A28,Kenttätiedot!$B$3:$Q$5,3,FALSE)&"6:"&HLOOKUP($A28,Kenttätiedot!$B$3:$Q$5,3,FALSE)&"300"),ROW(INDIRECT(MAX($D28,J$2)&":"&MIN($E28,EOMONTH(J$2,0)))))*(WEEKDAY(ROW(INDIRECT(MAX($D28,J$2)&":"&MIN($E28,EOMONTH(J$2,0)))))=MATCH($F28,{"Su";"Ma";"Ti";"Ke";"To";"Pe";"La"},0))),0)*HLOOKUP($A28,Kenttätiedot!$B$3:$Q$5,2,FALSE)*$B28,0) -> 0 | K28: =IF($D28<>"",IF(AND($D28<=EOMONTH(K$2,0),$E28>=K$2),SUMPRODUCT(--(WEEKDAY(ROW(INDIRECT(MAX($D28,K$2)&":"&MIN($E28,EOMONTH(K$2,0)))))=MATCH($F28,{"Su";"Ma";"Ti";"Ke";"To";"Pe";"La"},0)))-SUMPRODUCT(--COUNTIF(INDIRECT("Kenttätiedot!"&HLOOKUP($A28,Kenttätiedot!$B$3:$Q$5,3,FALSE)&"6:"&HLOOKUP($A28,Kenttätiedot!$B$3:$Q$5,3,FALSE)&"300"),ROW(INDIRECT(MAX($D28,K$2)&":"&MIN($E28,EOMONTH(K$2,0)))))*(WEEKDAY(ROW(INDIRECT(MAX($D28,K$2)&":"&MIN($E28,EOMONTH(K$2,0)))))=MATCH($F28,{"Su";"Ma";"Ti";"Ke";"To";"Pe";"La"},0))),0)*HLOOKUP($A28,Kenttätiedot!$B$3:$Q$5,2,FALSE)*$B28,0) -> 0 | L28: =IF($D28<>"",IF(AND($D28<=EOMONTH(L$2,0),$E28>=L$2),SUMPRODUCT(--(WEEKDAY(ROW(INDIRECT(MAX($D28,L$2)&":"&MIN($E28,EOMONTH(L$2,0)))))=MATCH($F28,{"Su";"Ma";"Ti";"Ke";"To";"Pe";"La"},0)))-SUMPRODUCT(--COUNTIF(INDIRECT("Kenttätiedot!"&HLOOKUP($A28,Kenttätiedot!$B$3:$Q$5,3,FALSE)&"6:"&HLOOKUP($A28,Kenttätiedot!$B$3:$Q$5,3,FALSE)&"300"),ROW(INDIRECT(MAX($D28,L$2)&":"&MIN($E28,EOMONTH(L$2,0)))))*(WEEKDAY(ROW(INDIRECT(MAX($D28,L$2)&":"&MIN($E28,EOMONTH(L$2,0)))))=MATCH($F28,{"Su";"Ma";"Ti";"Ke";"To";"Pe";"La"},0))),0)*HLOOKUP($A28,Kenttätiedot!$B$3:$Q$5,2,FALSE)*$B28,0) -> 0 | M28: =IF($D28<>"",IF(AND($D28<=EOMONTH(M$2,0),$E28>=M$2),SUMPRODUCT(--(WEEKDAY(ROW(INDIRECT(MAX($D28,M$2)&":"&MIN($E28,EOMONTH(M$2,0)))))=MATCH($F28,{"Su";"Ma";"Ti";"Ke";"To";"Pe";"La"},0)))-SUMPRODUCT(--COUNTIF(INDIRECT("Kenttätiedot!"&HLOOKUP($A28,Kenttätiedot!$B$3:$Q$5,3,FALSE)&"6:"&HLOOKUP($A28,Kenttätiedot!$B$3:$Q$5,3,FALSE)&"300"),ROW(INDIRECT(MAX($D28,M$2)&":"&MIN($E28,EOMONTH(M$2,0)))))*(WEEKDAY(ROW(INDIRECT(MAX($D28,M$2)&":"&MIN($E28,EOMONTH(M$2,0)))))=MATCH($F28,{"Su";"Ma";"Ti";"Ke";"To";"Pe";"La"},0))),0)*HLOOKUP($A28,Kenttätiedot!$B$3:$Q$5,2,FALSE)*$B28,0) -> 0 | N28: =IF($D28<>"",IF(AND($D28<=EOMONTH(N$2,0),$E28>=N$2),SUMPRODUCT(--(WEEKDAY(ROW(INDIRECT(MAX($D28,N$2)&":"&MIN($E28,EOMONTH(N$2,0)))))=MATCH($F28,{"Su";"Ma";"Ti";"Ke";"To";"Pe";"La"},0)))-SUMPRODUCT(--COUNTIF(INDIRECT("Kenttätiedot!"&HLOOKUP($A28,Kenttätiedot!$B$3:$Q$5,3,FALSE)&"6:"&HLOOKUP($A28,Kenttätiedot!$B$3:$Q$5,3,FALSE)&"300"),ROW(INDIRECT(MAX($D28,N$2)&":"&MIN($E28,EOMONTH(N$2,0)))))*(WEEKDAY(ROW(INDIRECT(MAX($D28,N$2)&":"&MIN($E28,EOMONTH(N$2,0)))))=MATCH($F28,{"Su";"Ma";"Ti";"Ke";"To";"Pe";"La"},0))),0)*HLOOKUP($A28,Kenttätiedot!$B$3:$Q$5,2,FALSE)*$B28,0) -> 0 | O28: =IF($D28<>"",IF(AND($D28<=EOMONTH(O$2,0),$E28>=O$2),SUMPRODUCT(--(WEEKDAY(ROW(INDIRECT(MAX($D28,O$2)&":"&MIN($E28,EOMONTH(O$2,0)))))=MATCH($F28,{"Su";"Ma";"Ti";"Ke";"To";"Pe";"La"},0)))-SUMPRODUCT(--COUNTIF(INDIRECT("Kenttätiedot!"&HLOOKUP($A28,Kenttätiedot!$B$3:$Q$5,3,FALSE)&"6:"&HLOOKUP($A28,Kenttätiedot!$B$3:$Q$5,3,FALSE)&"300"),ROW(INDIRECT(MAX($D28,O$2)&":"&MIN($E28,EOMONTH(O$2,0)))))*(WEEKDAY(ROW(INDIRECT(MAX($D28,O$2)&":"&MIN($E28,EOMONTH(O$2,0)))))=MATCH($F28,{"Su";"Ma";"Ti";"Ke";"To";"Pe";"La"},0))),0)*HLOOKUP($A28,Kenttätiedot!$B$3:$Q$5,2,FALSE)*$B28,0) -> 0 | P28: =IF($D28<>"",IF(AND($D28<=EOMONTH(P$2,0),$E28>=P$2),SUMPRODUCT(--(WEEKDAY(ROW(INDIRECT(MAX($D28,P$2)&":"&MIN($E28,EOMONTH(P$2,0)))))=MATCH($F28,{"Su";"Ma";"Ti";"Ke";"To";"Pe";"La"},0)))-SUMPRODUCT(--COUNTIF(INDIRECT("Kenttätiedot!"&HLOOKUP($A28,Kenttätiedot!$B$3:$Q$5,3,FALSE)&"6:"&HLOOKUP($A28,Kenttätiedot!$B$3:$Q$5,3,FALSE)&"300"),ROW(INDIRECT(MAX($D28,P$2)&":"&MIN($E28,EOMONTH(P$2,0)))))*(WEEKDAY(ROW(INDIRECT(MAX($D28,P$2)&":"&MIN($E28,EOMONTH(P$2,0)))))=MATCH($F28,{"Su";"Ma";"Ti";"Ke";"To";"Pe";"La"},0))),0)*HLOOKUP($A28,Kenttätiedot!$B$3:$Q$5,2,FALSE)*$B28,0) -> 0 | Q28: =IF($D28<>"",IF(AND($D28<=EOMONTH(Q$2,0),$E28>=Q$2),SUMPRODUCT(--(WEEKDAY(ROW(INDIRECT(MAX($D28,Q$2)&":"&MIN($E28,EOMONTH(Q$2,0)))))=MATCH($F28,{"Su";"Ma";"Ti";"Ke";"To";"Pe";"La"},0)))-SUMPRODUCT(--COUNTIF(INDIRECT("Kenttätiedot!"&HLOOKUP($A28,Kenttätiedot!$B$3:$Q$5,3,FALSE)&"6:"&HLOOKUP($A28,Kenttätiedot!$B$3:$Q$5,3,FALSE)&"300"),ROW(INDIRECT(MAX($D28,Q$2)&":"&MIN($E28,EOMONTH(Q$2,0)))))*(WEEKDAY(ROW(INDIRECT(MAX($D28,Q$2)&":"&MIN($E28,EOMONTH(Q$2,0)))))=MATCH($F28,{"Su";"Ma";"Ti";"Ke";"To";"Pe";"La"},0))),0)*HLOOKUP($A28,Kenttätiedot!$B$3:$Q$5,2,FALSE)*$B28,0) -> 0 | R28: =IF($D28<>"",IF(AND($D28<=EOMONTH(R$2,0),$E28>=R$2),SUMPRODUCT(--(WEEKDAY(ROW(INDIRECT(MAX($D28,R$2)&":"&MIN($E28,EOMONTH(R$2,0)))))=MATCH($F28,{"Su";"Ma";"Ti";"Ke";"To";"Pe";"La"},0)))-SUMPRODUCT(--COUNTIF(INDIRECT("Kenttätiedot!"&HLOOKUP($A28,Kenttätiedot!$B$3:$Q$5,3,FALSE)&"6:"&HLOOKUP($A28,Kenttätiedot!$B$3:$Q$5,3,FALSE)&"300"),ROW(INDIRECT(MAX($D28,R$2)&":"&MIN($E28,EOMONTH(R$2,0)))))*(WEEKDAY(ROW(INDIRECT(MAX($D28,R$2)&":"&MIN($E28,EOMONTH(R$2,0)))))=MATCH($F28,{"Su";"Ma";"Ti";"Ke";"To";"Pe";"La"},0))),0)*HLOOKUP($A28,Kenttätiedot!$B$3:$Q$5,2,FALSE)*$B28,0) -> 0 | S28: =IF($D28<>"",IF(AND($D28<=EOMONTH(S$2,0),$E28>=S$2),SUMPRODUCT(--(WEEKDAY(ROW(INDIRECT(MAX($D28,S$2)&":"&MIN($E28,EOMONTH(S$2,0)))))=MATCH($F28,{"Su";"Ma";"Ti";"Ke";"To";"Pe";"La"},0)))-SUMPRODUCT(--COUNTIF(INDIRECT("Kenttätiedot!"&HLOOKUP($A28,Kenttätiedot!$B$3:$Q$5,3,FALSE)&"6:"&HLOOKUP($A28,Kenttätiedot!$B$3:$Q$5,3,FALSE)&"300"),ROW(INDIRECT(MAX($D28,S$2)&":"&MIN($E28,EOMONTH(S$2,0)))))*(WEEKDAY(ROW(INDIRECT(MAX($D28,S$2)&":"&MIN($E28,EOMONTH(S$2,0)))))=MATCH($F28,{"Su";"Ma";"Ti";"Ke";"To";"Pe";"La"},0))),0)*HLOOKUP($A28,Kenttätiedot!$B$3:$Q$5,2,FALSE)*$B28,0) -> 0 | T28: =IF($D28<>"",IF(AND($D28<=EOMONTH(H$2,0),$E28>=H$2),SUMPRODUCT(--(WEEKDAY(ROW(INDIRECT(MAX($D28,H$2)&":"&MIN($E28,EOMONTH(H$2,0)))))=MATCH($F28,{"Su";"Ma";"Ti";"Ke";"To";"Pe";"La"},0)))-SUMPRODUCT(--COUNTIF(INDIRECT("Kenttätiedot!"&HLOOKUP($A28,Kenttätiedot!$B$3:$Q$5,3,FALSE)&"6:"&HLOOKUP($A28,Kenttätiedot!$B$3:$Q$5,3,FALSE)&"300"),ROW(INDIRECT(MAX($D28,H$2)&":"&MIN($E28,EOMONTH(H$2,0)))))*(WEEKDAY(ROW(INDIRECT(MAX($D28,H$2)&":"&MIN($E28,EOMONTH(H$2,0)))))=MATCH($F28,{"Su";"Ma";"Ti";"Ke";"To";"Pe";"La"},0))),0)*$G28,0) -> 0 | U28: =IF($D28<>"",IF(AND($D28<=EOMONTH(I$2,0),$E28>=I$2),SUMPRODUCT(--(WEEKDAY(ROW(INDIRECT(MAX($D28,I$2)&":"&MIN($E28,EOMONTH(I$2,0)))))=MATCH($F28,{"Su";"Ma";"Ti";"Ke";"To";"Pe";"La"},0)))-SUMPRODUCT(--COUNTIF(INDIRECT("Kenttätiedot!"&HLOOKUP($A28,Kenttätiedot!$B$3:$Q$5,3,FALSE)&"6:"&HLOOKUP($A28,Kenttätiedot!$B$3:$Q$5,3,FALSE)&"300"),ROW(INDIRECT(MAX($D28,I$2)&":"&MIN($E28,EOMONTH(I$2,0)))))*(WEEKDAY(ROW(INDIRECT(MAX($D28,I$2)&":"&MIN($E28,EOMONTH(I$2,0)))))=MATCH($F28,{"Su";"Ma";"Ti";"Ke";"To";"Pe";"La"},0))),0)*$G28,0) -> 0 | V28: =IF($D28<>"",IF(AND($D28<=EOMONTH(J$2,0),$E28>=J$2),SUMPRODUCT(--(WEEKDAY(ROW(INDIRECT(MAX($D28,J$2)&":"&MIN($E28,EOMONTH(J$2,0)))))=MATCH($F28,{"Su";"Ma";"Ti";"Ke";"To";"Pe";"La"},0)))-SUMPRODUCT(--COUNTIF(INDIRECT("Kenttätiedot!"&HLOOKUP($A28,Kenttätiedot!$B$3:$Q$5,3,FALSE)&"6:"&HLOOKUP($A28,Kenttätiedot!$B$3:$Q$5,3,FALSE)&"300"),ROW(INDIRECT(MAX($D28,J$2)&":"&MIN($E28,EOMONTH(J$2,0)))))*(WEEKDAY(ROW(INDIRECT(MAX($D28,J$2)&":"&MIN($E28,EOMONTH(J$2,0)))))=MATCH($F28,{"Su";"Ma";"Ti";"Ke";"To";"Pe";"La"},0))),0)*$G28,0) -> 0 | W28: =IF($D28<>"",IF(AND($D28<=EOMONTH(K$2,0),$E28>=K$2),SUMPRODUCT(--(WEEKDAY(ROW(INDIRECT(MAX($D28,K$2)&":"&MIN($E28,EOMONTH(K$2,0)))))=MATCH($F28,{"Su";"Ma";"Ti";"Ke";"To";"Pe";"La"},0)))-SUMPRODUCT(--COUNTIF(INDIRECT("Kenttätiedot!"&HLOOKUP($A28,Kenttätiedot!$B$3:$Q$5,3,FALSE)&"6:"&HLOOKUP($A28,Kenttätiedot!$B$3:$Q$5,3,FALSE)&"300"),ROW(INDIRECT(MAX($D28,K$2)&":"&MIN($E28,EOMONTH(K$2,0)))))*(WEEKDAY(ROW(INDIRECT(MAX($D28,K$2)&":"&MIN($E28,EOMONTH(K$2,0)))))=MATCH($F28,{"Su";"Ma";"Ti";"Ke";"To";"Pe";"La"},0))),0)*$G28,0) -> 0 | X28: =IF($D28<>"",IF(AND($D28<=EOMONTH(L$2,0),$E28>=L$2),SUMPRODUCT(--(WEEKDAY(ROW(INDIRECT(MAX($D28,L$2)&":"&MIN($E28,EOMONTH(L$2,0)))))=MATCH($F28,{"Su";"Ma";"Ti";"Ke";"To";"Pe";"La"},0)))-SUMPRODUCT(--COUNTIF(INDIRECT("Kenttätiedot!"&HLOOKUP($A28,Kenttätiedot!$B$3:$Q$5,3,FALSE)&"6:"&HLOOKUP($A28,Kenttätiedot!$B$3:$Q$5,3,FALSE)&"300"),ROW(INDIRECT(MAX($D28,L$2)&":"&MIN($E28,EOMONTH(L$2,0)))))*(WEEKDAY(ROW(INDIRECT(MAX($D28,L$2)&":"&MIN($E28,EOMONTH(L$2,0)))))=MATCH($F28,{"Su";"Ma";"Ti";"Ke";"To";"Pe";"La"},0))),0)*$G28,0) -> 0 | Y28: =IF($D28<>"",IF(AND($D28<=EOMONTH(M$2,0),$E28>=M$2),SUMPRODUCT(--(WEEKDAY(ROW(INDIRECT(MAX($D28,M$2)&":"&MIN($E28,EOMONTH(M$2,0)))))=MATCH($F28,{"Su";"Ma";"Ti";"Ke";"To";"Pe";"La"},0)))-SUMPRODUCT(--COUNTIF(INDIRECT("Kenttätiedot!"&HLOOKUP($A28,Kenttätiedot!$B$3:$Q$5,3,FALSE)&"6:"&HLOOKUP($A28,Kenttätiedot!$B$3:$Q$5,3,FALSE)&"300"),ROW(INDIRECT(MAX($D28,M$2)&":"&MIN($E28,EOMONTH(M$2,0)))))*(WEEKDAY(ROW(INDIRECT(MAX($D28,M$2)&":"&MIN($E28,EOMONTH(M$2,0)))))=MATCH($F28,{"Su";"Ma";"Ti";"Ke";"To";"Pe";"La"},0))),0)*$G28,0) -> 0 | Z28: =IF($D28<>"",IF(AND($D28<=EOMONTH(N$2,0),$E28>=N$2),SUMPRODUCT(--(WEEKDAY(ROW(INDIRECT(MAX($D28,N$2)&":"&MIN($E28,EOMONTH(N$2,0)))))=MATCH($F28,{"Su";"Ma";"Ti";"Ke";"To";"Pe";"La"},0)))-SUMPRODUCT(--COUNTIF(INDIRECT("Kenttätiedot!"&HLOOKUP($A28,Kenttätiedot!$B$3:$Q$5,3,FALSE)&"6:"&HLOOKUP($A28,Kenttätiedot!$B$3:$Q$5,3,FALSE)&"300"),ROW(INDIRECT(MAX($D28,N$2)&":"&MIN($E28,EOMONTH(N$2,0)))))*(WEEKDAY(ROW(INDIRECT(MAX($D28,N$2)&":"&MIN($E28,EOMONTH(N$2,0)))))=MATCH($F28,{"Su";"Ma";"Ti";"Ke";"To";"Pe";"La"},0))),0)*$G28,0) -> 0 | AA28: =IF($D28<>"",IF(AND($D28<=EOMONTH(O$2,0),$E28>=O$2),SUMPRODUCT(--(WEEKDAY(ROW(INDIRECT(MAX($D28,O$2)&":"&MIN($E28,EOMONTH(O$2,0)))))=MATCH($F28,{"Su";"Ma";"Ti";"Ke";"To";"Pe";"La"},0)))-SUMPRODUCT(--COUNTIF(INDIRECT("Kenttätiedot!"&HLOOKUP($A28,Kenttätiedot!$B$3:$Q$5,3,FALSE)&"6:"&HLOOKUP($A28,Kenttätiedot!$B$3:$Q$5,3,FALSE)&"300"),ROW(INDIRECT(MAX($D28,O$2)&":"&MIN($E28,EOMONTH(O$2,0)))))*(WEEKDAY(ROW(INDIRECT(MAX($D28,O$2)&":"&MIN($E28,EOMONTH(O$2,0)))))=MATCH($F28,{"Su";"Ma";"Ti";"Ke";"To";"Pe";"La"},0))),0)*$G28,0) -> 0 | AB28: =IF($D28<>"",IF(AND($D28<=EOMONTH(P$2,0),$E28>=P$2),SUMPRODUCT(--(WEEKDAY(ROW(INDIRECT(MAX($D28,P$2)&":"&MIN($E28,EOMONTH(P$2,0)))))=MATCH($F28,{"Su";"Ma";"Ti";"Ke";"To";"Pe";"La"},0)))-SUMPRODUCT(--COUNTIF(INDIRECT("Kenttätiedot!"&HLOOKUP($A28,Kenttätiedot!$B$3:$Q$5,3,FALSE)&"6:"&HLOOKUP($A28,Kenttätiedot!$B$3:$Q$5,3,FALSE)&"300"),ROW(INDIRECT(MAX($D28,P$2)&":"&MIN($E28,EOMONTH(P$2,0)))))*(WEEKDAY(ROW(INDIRECT(MAX($D28,P$2)&":"&MIN($E28,EOMONTH(P$2,0)))))=MATCH($F28,{"Su";"Ma";"Ti";"Ke";"To";"Pe";"La"},0))),0)*$G28,0) -> 0 | AC28: =IF($D28<>"",IF(AND($D28<=EOMONTH(Q$2,0),$E28>=Q$2),SUMPRODUCT(--(WEEKDAY(ROW(INDIRECT(MAX($D28,Q$2)&":"&MIN($E28,EOMONTH(Q$2,0)))))=MATCH($F28,{"Su";"Ma";"Ti";"Ke";"To";"Pe";"La"},0)))-SUMPRODUCT(--COUNTIF(INDIRECT("Kenttätiedot!"&HLOOKUP($A28,Kenttätiedot!$B$3:$Q$5,3,FALSE)&"6:"&HLOOKUP($A28,Kenttätiedot!$B$3:$Q$5,3,FALSE)&"300"),ROW(INDIRECT(MAX($D28,Q$2)&":"&MIN($E28,EOMONTH(Q$2,0)))))*(WEEKDAY(ROW(INDIRECT(MAX($D28,Q$2)&":"&MIN($E28,EOMONTH(Q$2,0)))))=MATCH($F28,{"Su";"Ma";"Ti";"Ke";"To";"Pe";"La"},0))),0)*$G28,0) -> 0 | AD28: =IF($D28<>"",IF(AND($D28<=EOMONTH(R$2,0),$E28>=R$2),SUMPRODUCT(--(WEEKDAY(ROW(INDIRECT(MAX($D28,R$2)&":"&MIN($E28,EOMONTH(R$2,0)))))=MATCH($F28,{"Su";"Ma";"Ti";"Ke";"To";"Pe";"La"},0)))-SUMPRODUCT(--COUNTIF(INDIRECT("Kenttätiedot!"&HLOOKUP($A28,Kenttätiedot!$B$3:$Q$5,3,FALSE)&"6:"&HLOOKUP($A28,Kenttätiedot!$B$3:$Q$5,3,FALSE)&"300"),ROW(INDIRECT(MAX($D28,R$2)&":"&MIN($E28,EOMONTH(R$2,0)))))*(WEEKDAY(ROW(INDIRECT(MAX($D28,R$2)&":"&MIN($E28,EOMONTH(R$2,0)))))=MATCH($F28,{"Su";"Ma";"Ti";"Ke";"To";"Pe";"La"},0))),0)*$G28,0) -> 0 | AE28: =IF($D28<>"",IF(AND($D28<=EOMONTH(S$2,0),$E28>=S$2),SUMPRODUCT(--(WEEKDAY(ROW(INDIRECT(MAX($D28,S$2)&":"&MIN($E28,EOMONTH(S$2,0)))))=MATCH($F28,{"Su";"Ma";"Ti";"Ke";"To";"Pe";"La"},0)))-SUMPRODUCT(--COUNTIF(INDIRECT("Kenttätiedot!"&HLOOKUP($A28,Kenttätiedot!$B$3:$Q$5,3,FALSE)&"6:"&HLOOKUP($A28,Kenttätiedot!$B$3:$Q$5,3,FALSE)&"300"),ROW(INDIRECT(MAX($D28,S$2)&":"&MIN($E28,EOMONTH(S$2,0)))))*(WEEKDAY(ROW(INDIRECT(MAX($D28,S$2)&":"&MIN($E28,EOMONTH(S$2,0)))))=MATCH($F28,{"Su";"Ma";"Ti";"Ke";"To";"Pe";"La"},0))),0)*$G28,0) -> 0
H29: =IF($D29<>"",IF(AND($D29<=EOMONTH(H$2,0),$E29>=H$2),SUMPRODUCT(--(WEEKDAY(ROW(INDIRECT(MAX($D29,H$2)&":"&MIN($E29,EOMONTH(H$2,0)))))=MATCH($F29,{"Su";"Ma";"Ti";"Ke";"To";"Pe";"La"},0)))-SUMPRODUCT(--COUNTIF(INDIRECT("Kenttätiedot!"&HLOOKUP($A29,Kenttätiedot!$B$3:$Q$5,3,FALSE)&"6:"&HLOOKUP($A29,Kenttätiedot!$B$3:$Q$5,3,FALSE)&"300"),ROW(INDIRECT(MAX($D29,H$2)&":"&MIN($E29,EOMONTH(H$2,0)))))*(WEEKDAY(ROW(INDIRECT(MAX($D29,H$2)&":"&MIN($E29,EOMONTH(H$2,0)))))=MATCH($F29,{"Su";"Ma";"Ti";"Ke";"To";"Pe";"La"},0))),0)*HLOOKUP($A29,Kenttätiedot!$B$3:$Q$5,2,FALSE)*$B29,0) -> 0 | I29: =IF($D29<>"",IF(AND($D29<=EOMONTH(I$2,0),$E29>=I$2),SUMPRODUCT(--(WEEKDAY(ROW(INDIRECT(MAX($D29,I$2)&":"&MIN($E29,EOMONTH(I$2,0)))))=MATCH($F29,{"Su";"Ma";"Ti";"Ke";"To";"Pe";"La"},0)))-SUMPRODUCT(--COUNTIF(INDIRECT("Kenttätiedot!"&HLOOKUP($A29,Kenttätiedot!$B$3:$Q$5,3,FALSE)&"6:"&HLOOKUP($A29,Kenttätiedot!$B$3:$Q$5,3,FALSE)&"300"),ROW(INDIRECT(MAX($D29,I$2)&":"&MIN($E29,EOMONTH(I$2,0)))))*(WEEKDAY(ROW(INDIRECT(MAX($D29,I$2)&":"&MIN($E29,EOMONTH(I$2,0)))))=MATCH($F29,{"Su";"Ma";"Ti";"Ke";"To";"Pe";"La"},0))),0)*HLOOKUP($A29,Kenttätiedot!$B$3:$Q$5,2,FALSE)*$B29,0) -> 0 | J29: =IF($D29<>"",IF(AND($D29<=EOMONTH(J$2,0),$E29>=J$2),SUMPRODUCT(--(WEEKDAY(ROW(INDIRECT(MAX($D29,J$2)&":"&MIN($E29,EOMONTH(J$2,0)))))=MATCH($F29,{"Su";"Ma";"Ti";"Ke";"To";"Pe";"La"},0)))-SUMPRODUCT(--COUNTIF(INDIRECT("Kenttätiedot!"&HLOOKUP($A29,Kenttätiedot!$B$3:$Q$5,3,FALSE)&"6:"&HLOOKUP($A29,Kenttätiedot!$B$3:$Q$5,3,FALSE)&"300"),ROW(INDIRECT(MAX($D29,J$2)&":"&MIN($E29,EOMONTH(J$2,0)))))*(WEEKDAY(ROW(INDIRECT(MAX($D29,J$2)&":"&MIN($E29,EOMONTH(J$2,0)))))=MATCH($F29,{"Su";"Ma";"Ti";"Ke";"To";"Pe";"La"},0))),0)*HLOOKUP($A29,Kenttätiedot!$B$3:$Q$5,2,FALSE)*$B29,0) -> 0 | K29: =IF($D29<>"",IF(AND($D29<=EOMONTH(K$2,0),$E29>=K$2),SUMPRODUCT(--(WEEKDAY(ROW(INDIRECT(MAX($D29,K$2)&":"&MIN($E29,EOMONTH(K$2,0)))))=MATCH($F29,{"Su";"Ma";"Ti";"Ke";"To";"Pe";"La"},0)))-SUMPRODUCT(--COUNTIF(INDIRECT("Kenttätiedot!"&HLOOKUP($A29,Kenttätiedot!$B$3:$Q$5,3,FALSE)&"6:"&HLOOKUP($A29,Kenttätiedot!$B$3:$Q$5,3,FALSE)&"300"),ROW(INDIRECT(MAX($D29,K$2)&":"&MIN($E29,EOMONTH(K$2,0)))))*(WEEKDAY(ROW(INDIRECT(MAX($D29,K$2)&":"&MIN($E29,EOMONTH(K$2,0)))))=MATCH($F29,{"Su";"Ma";"Ti";"Ke";"To";"Pe";"La"},0))),0)*HLOOKUP($A29,Kenttätiedot!$B$3:$Q$5,2,FALSE)*$B29,0) -> 0 | L29: =IF($D29<>"",IF(AND($D29<=EOMONTH(L$2,0),$E29>=L$2),SUMPRODUCT(--(WEEKDAY(ROW(INDIRECT(MAX($D29,L$2)&":"&MIN($E29,EOMONTH(L$2,0)))))=MATCH($F29,{"Su";"Ma";"Ti";"Ke";"To";"Pe";"La"},0)))-SUMPRODUCT(--COUNTIF(INDIRECT("Kenttätiedot!"&HLOOKUP($A29,Kenttätiedot!$B$3:$Q$5,3,FALSE)&"6:"&HLOOKUP($A29,Kenttätiedot!$B$3:$Q$5,3,FALSE)&"300"),ROW(INDIRECT(MAX($D29,L$2)&":"&MIN($E29,EOMONTH(L$2,0)))))*(WEEKDAY(ROW(INDIRECT(MAX($D29,L$2)&":"&MIN($E29,EOMONTH(L$2,0)))))=MATCH($F29,{"Su";"Ma";"Ti";"Ke";"To";"Pe";"La"},0))),0)*HLOOKUP($A29,Kenttätiedot!$B$3:$Q$5,2,FALSE)*$B29,0) -> 0 | M29: =IF($D29<>"",IF(AND($D29<=EOMONTH(M$2,0),$E29>=M$2),SUMPRODUCT(--(WEEKDAY(ROW(INDIRECT(MAX($D29,M$2)&":"&MIN($E29,EOMONTH(M$2,0)))))=MATCH($F29,{"Su";"Ma";"Ti";"Ke";"To";"Pe";"La"},0)))-SUMPRODUCT(--COUNTIF(INDIRECT("Kenttätiedot!"&HLOOKUP($A29,Kenttätiedot!$B$3:$Q$5,3,FALSE)&"6:"&HLOOKUP($A29,Kenttätiedot!$B$3:$Q$5,3,FALSE)&"300"),ROW(INDIRECT(MAX($D29,M$2)&":"&MIN($E29,EOMONTH(M$2,0)))))*(WEEKDAY(ROW(INDIRECT(MAX($D29,M$2)&":"&MIN($E29,EOMONTH(M$2,0)))))=MATCH($F29,{"Su";"Ma";"Ti";"Ke";"To";"Pe";"La"},0))),0)*HLOOKUP($A29,Kenttätiedot!$B$3:$Q$5,2,FALSE)*$B29,0) -> 0 | N29: =IF($D29<>"",IF(AND($D29<=EOMONTH(N$2,0),$E29>=N$2),SUMPRODUCT(--(WEEKDAY(ROW(INDIRECT(MAX($D29,N$2)&":"&MIN($E29,EOMONTH(N$2,0)))))=MATCH($F29,{"Su";"Ma";"Ti";"Ke";"To";"Pe";"La"},0)))-SUMPRODUCT(--COUNTIF(INDIRECT("Kenttätiedot!"&HLOOKUP($A29,Kenttätiedot!$B$3:$Q$5,3,FALSE)&"6:"&HLOOKUP($A29,Kenttätiedot!$B$3:$Q$5,3,FALSE)&"300"),ROW(INDIRECT(MAX($D29,N$2)&":"&MIN($E29,EOMONTH(N$2,0)))))*(WEEKDAY(ROW(INDIRECT(MAX($D29,N$2)&":"&MIN($E29,EOMONTH(N$2,0)))))=MATCH($F29,{"Su";"Ma";"Ti";"Ke";"To";"Pe";"La"},0))),0)*HLOOKUP($A29,Kenttätiedot!$B$3:$Q$5,2,FALSE)*$B29,0) -> 0 | O29: =IF($D29<>"",IF(AND($D29<=EOMONTH(O$2,0),$E29>=O$2),SUMPRODUCT(--(WEEKDAY(ROW(INDIRECT(MAX($D29,O$2)&":"&MIN($E29,EOMONTH(O$2,0)))))=MATCH($F29,{"Su";"Ma";"Ti";"Ke";"To";"Pe";"La"},0)))-SUMPRODUCT(--COUNTIF(INDIRECT("Kenttätiedot!"&HLOOKUP($A29,Kenttätiedot!$B$3:$Q$5,3,FALSE)&"6:"&HLOOKUP($A29,Kenttätiedot!$B$3:$Q$5,3,FALSE)&"300"),ROW(INDIRECT(MAX($D29,O$2)&":"&MIN($E29,EOMONTH(O$2,0)))))*(WEEKDAY(ROW(INDIRECT(MAX($D29,O$2)&":"&MIN($E29,EOMONTH(O$2,0)))))=MATCH($F29,{"Su";"Ma";"Ti";"Ke";"To";"Pe";"La"},0))),0)*HLOOKUP($A29,Kenttätiedot!$B$3:$Q$5,2,FALSE)*$B29,0) -> 0 | P29: =IF($D29<>"",IF(AND($D29<=EOMONTH(P$2,0),$E29>=P$2),SUMPRODUCT(--(WEEKDAY(ROW(INDIRECT(MAX($D29,P$2)&":"&MIN($E29,EOMONTH(P$2,0)))))=MATCH($F29,{"Su";"Ma";"Ti";"Ke";"To";"Pe";"La"},0)))-SUMPRODUCT(--COUNTIF(INDIRECT("Kenttätiedot!"&HLOOKUP($A29,Kenttätiedot!$B$3:$Q$5,3,FALSE)&"6:"&HLOOKUP($A29,Kenttätiedot!$B$3:$Q$5,3,FALSE)&"300"),ROW(INDIRECT(MAX($D29,P$2)&":"&MIN($E29,EOMONTH(P$2,0)))))*(WEEKDAY(ROW(INDIRECT(MAX($D29,P$2)&":"&MIN($E29,EOMONTH(P$2,0)))))=MATCH($F29,{"Su";"Ma";"Ti";"Ke";"To";"Pe";"La"},0))),0)*HLOOKUP($A29,Kenttätiedot!$B$3:$Q$5,2,FALSE)*$B29,0) -> 0 | Q29: =IF($D29<>"",IF(AND($D29<=EOMONTH(Q$2,0),$E29>=Q$2),SUMPRODUCT(--(WEEKDAY(ROW(INDIRECT(MAX($D29,Q$2)&":"&MIN($E29,EOMONTH(Q$2,0)))))=MATCH($F29,{"Su";"Ma";"Ti";"Ke";"To";"Pe";"La"},0)))-SUMPRODUCT(--COUNTIF(INDIRECT("Kenttätiedot!"&HLOOKUP($A29,Kenttätiedot!$B$3:$Q$5,3,FALSE)&"6:"&HLOOKUP($A29,Kenttätiedot!$B$3:$Q$5,3,FALSE)&"300"),ROW(INDIRECT(MAX($D29,Q$2)&":"&MIN($E29,EOMONTH(Q$2,0)))))*(WEEKDAY(ROW(INDIRECT(MAX($D29,Q$2)&":"&MIN($E29,EOMONTH(Q$2,0)))))=MATCH($F29,{"Su";"Ma";"Ti";"Ke";"To";"Pe";"La"},0))),0)*HLOOKUP($A29,Kenttätiedot!$B$3:$Q$5,2,FALSE)*$B29,0) -> 0 | R29: =IF($D29<>"",IF(AND($D29<=EOMONTH(R$2,0),$E29>=R$2),SUMPRODUCT(--(WEEKDAY(ROW(INDIRECT(MAX($D29,R$2)&":"&MIN($E29,EOMONTH(R$2,0)))))=MATCH($F29,{"Su";"Ma";"Ti";"Ke";"To";"Pe";"La"},0)))-SUMPRODUCT(--COUNTIF(INDIRECT("Kenttätiedot!"&HLOOKUP($A29,Kenttätiedot!$B$3:$Q$5,3,FALSE)&"6:"&HLOOKUP($A29,Kenttätiedot!$B$3:$Q$5,3,FALSE)&"300"),ROW(INDIRECT(MAX($D29,R$2)&":"&MIN($E29,EOMONTH(R$2,0)))))*(WEEKDAY(ROW(INDIRECT(MAX($D29,R$2)&":"&MIN($E29,EOMONTH(R$2,0)))))=MATCH($F29,{"Su";"Ma";"Ti";"Ke";"To";"Pe";"La"},0))),0)*HLOOKUP($A29,Kenttätiedot!$B$3:$Q$5,2,FALSE)*$B29,0) -> 0 | S29: =IF($D29<>"",IF(AND($D29<=EOMONTH(S$2,0),$E29>=S$2),SUMPRODUCT(--(WEEKDAY(ROW(INDIRECT(MAX($D29,S$2)&":"&MIN($E29,EOMONTH(S$2,0)))))=MATCH($F29,{"Su";"Ma";"Ti";"Ke";"To";"Pe";"La"},0)))-SUMPRODUCT(--COUNTIF(INDIRECT("Kenttätiedot!"&HLOOKUP($A29,Kenttätiedot!$B$3:$Q$5,3,FALSE)&"6:"&HLOOKUP($A29,Kenttätiedot!$B$3:$Q$5,3,FALSE)&"300"),ROW(INDIRECT(MAX($D29,S$2)&":"&MIN($E29,EOMONTH(S$2,0)))))*(WEEKDAY(ROW(INDIRECT(MAX($D29,S$2)&":"&MIN($E29,EOMONTH(S$2,0)))))=MATCH($F29,{"Su";"Ma";"Ti";"Ke";"To";"Pe";"La"},0))),0)*HLOOKUP($A29,Kenttätiedot!$B$3:$Q$5,2,FALSE)*$B29,0) -> 0 | T29: =IF($D29<>"",IF(AND($D29<=EOMONTH(H$2,0),$E29>=H$2),SUMPRODUCT(--(WEEKDAY(ROW(INDIRECT(MAX($D29,H$2)&":"&MIN($E29,EOMONTH(H$2,0)))))=MATCH($F29,{"Su";"Ma";"Ti";"Ke";"To";"Pe";"La"},0)))-SUMPRODUCT(--COUNTIF(INDIRECT("Kenttätiedot!"&HLOOKUP($A29,Kenttätiedot!$B$3:$Q$5,3,FALSE)&"6:"&HLOOKUP($A29,Kenttätiedot!$B$3:$Q$5,3,FALSE)&"300"),ROW(INDIRECT(MAX($D29,H$2)&":"&MIN($E29,EOMONTH(H$2,0)))))*(WEEKDAY(ROW(INDIRECT(MAX($D29,H$2)&":"&MIN($E29,EOMONTH(H$2,0)))))=MATCH($F29,{"Su";"Ma";"Ti";"Ke";"To";"Pe";"La"},0))),0)*$G29,0) -> 0 | U29: =IF($D29<>"",IF(AND($D29<=EOMONTH(I$2,0),$E29>=I$2),SUMPRODUCT(--(WEEKDAY(ROW(INDIRECT(MAX($D29,I$2)&":"&MIN($E29,EOMONTH(I$2,0)))))=MATCH($F29,{"Su";"Ma";"Ti";"Ke";"To";"Pe";"La"},0)))-SUMPRODUCT(--COUNTIF(INDIRECT("Kenttätiedot!"&HLOOKUP($A29,Kenttätiedot!$B$3:$Q$5,3,FALSE)&"6:"&HLOOKUP($A29,Kenttätiedot!$B$3:$Q$5,3,FALSE)&"300"),ROW(INDIRECT(MAX($D29,I$2)&":"&MIN($E29,EOMONTH(I$2,0)))))*(WEEKDAY(ROW(INDIRECT(MAX($D29,I$2)&":"&MIN($E29,EOMONTH(I$2,0)))))=MATCH($F29,{"Su";"Ma";"Ti";"Ke";"To";"Pe";"La"},0))),0)*$G29,0) -> 0 | V29: =IF($D29<>"",IF(AND($D29<=EOMONTH(J$2,0),$E29>=J$2),SUMPRODUCT(--(WEEKDAY(ROW(INDIRECT(MAX($D29,J$2)&":"&MIN($E29,EOMONTH(J$2,0)))))=MATCH($F29,{"Su";"Ma";"Ti";"Ke";"To";"Pe";"La"},0)))-SUMPRODUCT(--COUNTIF(INDIRECT("Kenttätiedot!"&HLOOKUP($A29,Kenttätiedot!$B$3:$Q$5,3,FALSE)&"6:"&HLOOKUP($A29,Kenttätiedot!$B$3:$Q$5,3,FALSE)&"300"),ROW(INDIRECT(MAX($D29,J$2)&":"&MIN($E29,EOMONTH(J$2,0)))))*(WEEKDAY(ROW(INDIRECT(MAX($D29,J$2)&":"&MIN($E29,EOMONTH(J$2,0)))))=MATCH($F29,{"Su";"Ma";"Ti";"Ke";"To";"Pe";"La"},0))),0)*$G29,0) -> 0 | W29: =IF($D29<>"",IF(AND($D29<=EOMONTH(K$2,0),$E29>=K$2),SUMPRODUCT(--(WEEKDAY(ROW(INDIRECT(MAX($D29,K$2)&":"&MIN($E29,EOMONTH(K$2,0)))))=MATCH($F29,{"Su";"Ma";"Ti";"Ke";"To";"Pe";"La"},0)))-SUMPRODUCT(--COUNTIF(INDIRECT("Kenttätiedot!"&HLOOKUP($A29,Kenttätiedot!$B$3:$Q$5,3,FALSE)&"6:"&HLOOKUP($A29,Kenttätiedot!$B$3:$Q$5,3,FALSE)&"300"),ROW(INDIRECT(MAX($D29,K$2)&":"&MIN($E29,EOMONTH(K$2,0)))))*(WEEKDAY(ROW(INDIRECT(MAX($D29,K$2)&":"&MIN($E29,EOMONTH(K$2,0)))))=MATCH($F29,{"Su";"Ma";"Ti";"Ke";"To";"Pe";"La"},0))),0)*$G29,0) -> 0 | X29: =IF($D29<>"",IF(AND($D29<=EOMONTH(L$2,0),$E29>=L$2),SUMPRODUCT(--(WEEKDAY(ROW(INDIRECT(MAX($D29,L$2)&":"&MIN($E29,EOMONTH(L$2,0)))))=MATCH($F29,{"Su";"Ma";"Ti";"Ke";"To";"Pe";"La"},0)))-SUMPRODUCT(--COUNTIF(INDIRECT("Kenttätiedot!"&HLOOKUP($A29,Kenttätiedot!$B$3:$Q$5,3,FALSE)&"6:"&HLOOKUP($A29,Kenttätiedot!$B$3:$Q$5,3,FALSE)&"300"),ROW(INDIRECT(MAX($D29,L$2)&":"&MIN($E29,EOMONTH(L$2,0)))))*(WEEKDAY(ROW(INDIRECT(MAX($D29,L$2)&":"&MIN($E29,EOMONTH(L$2,0)))))=MATCH($F29,{"Su";"Ma";"Ti";"Ke";"To";"Pe";"La"},0))),0)*$G29,0) -> 0 | Y29: =IF($D29<>"",IF(AND($D29<=EOMONTH(M$2,0),$E29>=M$2),SUMPRODUCT(--(WEEKDAY(ROW(INDIRECT(MAX($D29,M$2)&":"&MIN($E29,EOMONTH(M$2,0)))))=MATCH($F29,{"Su";"Ma";"Ti";"Ke";"To";"Pe";"La"},0)))-SUMPRODUCT(--COUNTIF(INDIRECT("Kenttätiedot!"&HLOOKUP($A29,Kenttätiedot!$B$3:$Q$5,3,FALSE)&"6:"&HLOOKUP($A29,Kenttätiedot!$B$3:$Q$5,3,FALSE)&"300"),ROW(INDIRECT(MAX($D29,M$2)&":"&MIN($E29,EOMONTH(M$2,0)))))*(WEEKDAY(ROW(INDIRECT(MAX($D29,M$2)&":"&MIN($E29,EOMONTH(M$2,0)))))=MATCH($F29,{"Su";"Ma";"Ti";"Ke";"To";"Pe";"La"},0))),0)*$G29,0) -> 0 | Z29: =IF($D29<>"",IF(AND($D29<=EOMONTH(N$2,0),$E29>=N$2),SUMPRODUCT(--(WEEKDAY(ROW(INDIRECT(MAX($D29,N$2)&":"&MIN($E29,EOMONTH(N$2,0)))))=MATCH($F29,{"Su";"Ma";"Ti";"Ke";"To";"Pe";"La"},0)))-SUMPRODUCT(--COUNTIF(INDIRECT("Kenttätiedot!"&HLOOKUP($A29,Kenttätiedot!$B$3:$Q$5,3,FALSE)&"6:"&HLOOKUP($A29,Kenttätiedot!$B$3:$Q$5,3,FALSE)&"300"),ROW(INDIRECT(MAX($D29,N$2)&":"&MIN($E29,EOMONTH(N$2,0)))))*(WEEKDAY(ROW(INDIRECT(MAX($D29,N$2)&":"&MIN($E29,EOMONTH(N$2,0)))))=MATCH($F29,{"Su";"Ma";"Ti";"Ke";"To";"Pe";"La"},0))),0)*$G29,0) -> 0 | AA29: =IF($D29<>"",IF(AND($D29<=EOMONTH(O$2,0),$E29>=O$2),SUMPRODUCT(--(WEEKDAY(ROW(INDIRECT(MAX($D29,O$2)&":"&MIN($E29,EOMONTH(O$2,0)))))=MATCH($F29,{"Su";"Ma";"Ti";"Ke";"To";"Pe";"La"},0)))-SUMPRODUCT(--COUNTIF(INDIRECT("Kenttätiedot!"&HLOOKUP($A29,Kenttätiedot!$B$3:$Q$5,3,FALSE)&"6:"&HLOOKUP($A29,Kenttätiedot!$B$3:$Q$5,3,FALSE)&"300"),ROW(INDIRECT(MAX($D29,O$2)&":"&MIN($E29,EOMONTH(O$2,0)))))*(WEEKDAY(ROW(INDIRECT(MAX($D29,O$2)&":"&MIN($E29,EOMONTH(O$2,0)))))=MATCH($F29,{"Su";"Ma";"Ti";"Ke";"To";"Pe";"La"},0))),0)*$G29,0) -> 0 | AB29: =IF($D29<>"",IF(AND($D29<=EOMONTH(P$2,0),$E29>=P$2),SUMPRODUCT(--(WEEKDAY(ROW(INDIRECT(MAX($D29,P$2)&":"&MIN($E29,EOMONTH(P$2,0)))))=MATCH($F29,{"Su";"Ma";"Ti";"Ke";"To";"Pe";"La"},0)))-SUMPRODUCT(--COUNTIF(INDIRECT("Kenttätiedot!"&HLOOKUP($A29,Kenttätiedot!$B$3:$Q$5,3,FALSE)&"6:"&HLOOKUP($A29,Kenttätiedot!$B$3:$Q$5,3,FALSE)&"300"),ROW(INDIRECT(MAX($D29,P$2)&":"&MIN($E29,EOMONTH(P$2,0)))))*(WEEKDAY(ROW(INDIRECT(MAX($D29,P$2)&":"&MIN($E29,EOMONTH(P$2,0)))))=MATCH($F29,{"Su";"Ma";"Ti";"Ke";"To";"Pe";"La"},0))),0)*$G29,0) -> 0 | AC29: =IF($D29<>"",IF(AND($D29<=EOMONTH(Q$2,0),$E29>=Q$2),SUMPRODUCT(--(WEEKDAY(ROW(INDIRECT(MAX($D29,Q$2)&":"&MIN($E29,EOMONTH(Q$2,0)))))=MATCH($F29,{"Su";"Ma";"Ti";"Ke";"To";"Pe";"La"},0)))-SUMPRODUCT(--COUNTIF(INDIRECT("Kenttätiedot!"&HLOOKUP($A29,Kenttätiedot!$B$3:$Q$5,3,FALSE)&"6:"&HLOOKUP($A29,Kenttätiedot!$B$3:$Q$5,3,FALSE)&"300"),ROW(INDIRECT(MAX($D29,Q$2)&":"&MIN($E29,EOMONTH(Q$2,0)))))*(WEEKDAY(ROW(INDIRECT(MAX($D29,Q$2)&":"&MIN($E29,EOMONTH(Q$2,0)))))=MATCH($F29,{"Su";"Ma";"Ti";"Ke";"To";"Pe";"La"},0))),0)*$G29,0) -> 0 | AD29: =IF($D29<>"",IF(AND($D29<=EOMONTH(R$2,0),$E29>=R$2),SUMPRODUCT(--(WEEKDAY(ROW(INDIRECT(MAX($D29,R$2)&":"&MIN($E29,EOMONTH(R$2,0)))))=MATCH($F29,{"Su";"Ma";"Ti";"Ke";"To";"Pe";"La"},0)))-SUMPRODUCT(--COUNTIF(INDIRECT("Kenttätiedot!"&HLOOKUP($A29,Kenttätiedot!$B$3:$Q$5,3,FALSE)&"6:"&HLOOKUP($A29,Kenttätiedot!$B$3:$Q$5,3,FALSE)&"300"),ROW(INDIRECT(MAX($D29,R$2)&":"&MIN($E29,EOMONTH(R$2,0)))))*(WEEKDAY(ROW(INDIRECT(MAX($D29,R$2)&":"&MIN($E29,EOMONTH(R$2,0)))))=MATCH($F29,{"Su";"Ma";"Ti";"Ke";"To";"Pe";"La"},0))),0)*$G29,0) -> 0 | AE29: =IF($D29<>"",IF(AND($D29<=EOMONTH(S$2,0),$E29>=S$2),SUMPRODUCT(--(WEEKDAY(ROW(INDIRECT(MAX($D29,S$2)&":"&MIN($E29,EOMONTH(S$2,0)))))=MATCH($F29,{"Su";"Ma";"Ti";"Ke";"To";"Pe";"La"},0)))-SUMPRODUCT(--COUNTIF(INDIRECT("Kenttätiedot!"&HLOOKUP($A29,Kenttätiedot!$B$3:$Q$5,3,FALSE)&"6:"&HLOOKUP($A29,Kenttätiedot!$B$3:$Q$5,3,FALSE)&"300"),ROW(INDIRECT(MAX($D29,S$2)&":"&MIN($E29,EOMONTH(S$2,0)))))*(WEEKDAY(ROW(INDIRECT(MAX($D29,S$2)&":"&MIN($E29,EOMONTH(S$2,0)))))=MATCH($F29,{"Su";"Ma";"Ti";"Ke";"To";"Pe";"La"},0))),0)*$G29,0) -> 0
H30: =IF($D30<>"",IF(AND($D30<=EOMONTH(H$2,0),$E30>=H$2),SUMPRODUCT(--(WEEKDAY(ROW(INDIRECT(MAX($D30,H$2)&":"&MIN($E30,EOMONTH(H$2,0)))))=MATCH($F30,{"Su";"Ma";"Ti";"Ke";"To";"Pe";"La"},0)))-SUMPRODUCT(--COUNTIF(INDIRECT("Kenttätiedot!"&HLOOKUP($A30,Kenttätiedot!$B$3:$Q$5,3,FALSE)&"6:"&HLOOKUP($A30,Kenttätiedot!$B$3:$Q$5,3,FALSE)&"300"),ROW(INDIRECT(MAX($D30,H$2)&":"&MIN($E30,EOMONTH(H$2,0)))))*(WEEKDAY(ROW(INDIRECT(MAX($D30,H$2)&":"&MIN($E30,EOMONTH(H$2,0)))))=MATCH($F30,{"Su";"Ma";"Ti";"Ke";"To";"Pe";"La"},0))),0)*HLOOKUP($A30,Kenttätiedot!$B$3:$Q$5,2,FALSE)*$B30,0) -> 0 | I30: =IF($D30<>"",IF(AND($D30<=EOMONTH(I$2,0),$E30>=I$2),SUMPRODUCT(--(WEEKDAY(ROW(INDIRECT(MAX($D30,I$2)&":"&MIN($E30,EOMONTH(I$2,0)))))=MATCH($F30,{"Su";"Ma";"Ti";"Ke";"To";"Pe";"La"},0)))-SUMPRODUCT(--COUNTIF(INDIRECT("Kenttätiedot!"&HLOOKUP($A30,Kenttätiedot!$B$3:$Q$5,3,FALSE)&"6:"&HLOOKUP($A30,Kenttätiedot!$B$3:$Q$5,3,FALSE)&"300"),ROW(INDIRECT(MAX($D30,I$2)&":"&MIN($E30,EOMONTH(I$2,0)))))*(WEEKDAY(ROW(INDIRECT(MAX($D30,I$2)&":"&MIN($E30,EOMONTH(I$2,0)))))=MATCH($F30,{"Su";"Ma";"Ti";"Ke";"To";"Pe";"La"},0))),0)*HLOOKUP($A30,Kenttätiedot!$B$3:$Q$5,2,FALSE)*$B30,0) -> 0 | J30: =IF($D30<>"",IF(AND($D30<=EOMONTH(J$2,0),$E30>=J$2),SUMPRODUCT(--(WEEKDAY(ROW(INDIRECT(MAX($D30,J$2)&":"&MIN($E30,EOMONTH(J$2,0)))))=MATCH($F30,{"Su";"Ma";"Ti";"Ke";"To";"Pe";"La"},0)))-SUMPRODUCT(--COUNTIF(INDIRECT("Kenttätiedot!"&HLOOKUP($A30,Kenttätiedot!$B$3:$Q$5,3,FALSE)&"6:"&HLOOKUP($A30,Kenttätiedot!$B$3:$Q$5,3,FALSE)&"300"),ROW(INDIRECT(MAX($D30,J$2)&":"&MIN($E30,EOMONTH(J$2,0)))))*(WEEKDAY(ROW(INDIRECT(MAX($D30,J$2)&":"&MIN($E30,EOMONTH(J$2,0)))))=MATCH($F30,{"Su";"Ma";"Ti";"Ke";"To";"Pe";"La"},0))),0)*HLOOKUP($A30,Kenttätiedot!$B$3:$Q$5,2,FALSE)*$B30,0) -> 0 | K30: =IF($D30<>"",IF(AND($D30<=EOMONTH(K$2,0),$E30>=K$2),SUMPRODUCT(--(WEEKDAY(ROW(INDIRECT(MAX($D30,K$2)&":"&MIN($E30,EOMONTH(K$2,0)))))=MATCH($F30,{"Su";"Ma";"Ti";"Ke";"To";"Pe";"La"},0)))-SUMPRODUCT(--COUNTIF(INDIRECT("Kenttätiedot!"&HLOOKUP($A30,Kenttätiedot!$B$3:$Q$5,3,FALSE)&"6:"&HLOOKUP($A30,Kenttätiedot!$B$3:$Q$5,3,FALSE)&"300"),ROW(INDIRECT(MAX($D30,K$2)&":"&MIN($E30,EOMONTH(K$2,0)))))*(WEEKDAY(ROW(INDIRECT(MAX($D30,K$2)&":"&MIN($E30,EOMONTH(K$2,0)))))=MATCH($F30,{"Su";"Ma";"Ti";"Ke";"To";"Pe";"La"},0))),0)*HLOOKUP($A30,Kenttätiedot!$B$3:$Q$5,2,FALSE)*$B30,0) -> 0 | L30: =IF($D30<>"",IF(AND($D30<=EOMONTH(L$2,0),$E30>=L$2),SUMPRODUCT(--(WEEKDAY(ROW(INDIRECT(MAX($D30,L$2)&":"&MIN($E30,EOMONTH(L$2,0)))))=MATCH($F30,{"Su";"Ma";"Ti";"Ke";"To";"Pe";"La"},0)))-SUMPRODUCT(--COUNTIF(INDIRECT("Kenttätiedot!"&HLOOKUP($A30,Kenttätiedot!$B$3:$Q$5,3,FALSE)&"6:"&HLOOKUP($A30,Kenttätiedot!$B$3:$Q$5,3,FALSE)&"300"),ROW(INDIRECT(MAX($D30,L$2)&":"&MIN($E30,EOMONTH(L$2,0)))))*(WEEKDAY(ROW(INDIRECT(MAX($D30,L$2)&":"&MIN($E30,EOMONTH(L$2,0)))))=MATCH($F30,{"Su";"Ma";"Ti";"Ke";"To";"Pe";"La"},0))),0)*HLOOKUP($A30,Kenttätiedot!$B$3:$Q$5,2,FALSE)*$B30,0) -> 0 | M30: =IF($D30<>"",IF(AND($D30<=EOMONTH(M$2,0),$E30>=M$2),SUMPRODUCT(--(WEEKDAY(ROW(INDIRECT(MAX($D30,M$2)&":"&MIN($E30,EOMONTH(M$2,0)))))=MATCH($F30,{"Su";"Ma";"Ti";"Ke";"To";"Pe";"La"},0)))-SUMPRODUCT(--COUNTIF(INDIRECT("Kenttätiedot!"&HLOOKUP($A30,Kenttätiedot!$B$3:$Q$5,3,FALSE)&"6:"&HLOOKUP($A30,Kenttätiedot!$B$3:$Q$5,3,FALSE)&"300"),ROW(INDIRECT(MAX($D30,M$2)&":"&MIN($E30,EOMONTH(M$2,0)))))*(WEEKDAY(ROW(INDIRECT(MAX($D30,M$2)&":"&MIN($E30,EOMONTH(M$2,0)))))=MATCH($F30,{"Su";"Ma";"Ti";"Ke";"To";"Pe";"La"},0))),0)*HLOOKUP($A30,Kenttätiedot!$B$3:$Q$5,2,FALSE)*$B30,0) -> 0 | N30: =IF($D30<>"",IF(AND($D30<=EOMONTH(N$2,0),$E30>=N$2),SUMPRODUCT(--(WEEKDAY(ROW(INDIRECT(MAX($D30,N$2)&":"&MIN($E30,EOMONTH(N$2,0)))))=MATCH($F30,{"Su";"Ma";"Ti";"Ke";"To";"Pe";"La"},0)))-SUMPRODUCT(--COUNTIF(INDIRECT("Kenttätiedot!"&HLOOKUP($A30,Kenttätiedot!$B$3:$Q$5,3,FALSE)&"6:"&HLOOKUP($A30,Kenttätiedot!$B$3:$Q$5,3,FALSE)&"300"),ROW(INDIRECT(MAX($D30,N$2)&":"&MIN($E30,EOMONTH(N$2,0)))))*(WEEKDAY(ROW(INDIRECT(MAX($D30,N$2)&":"&MIN($E30,EOMONTH(N$2,0)))))=MATCH($F30,{"Su";"Ma";"Ti";"Ke";"To";"Pe";"La"},0))),0)*HLOOKUP($A30,Kenttätiedot!$B$3:$Q$5,2,FALSE)*$B30,0) -> 0 | O30: =IF($D30<>"",IF(AND($D30<=EOMONTH(O$2,0),$E30>=O$2),SUMPRODUCT(--(WEEKDAY(ROW(INDIRECT(MAX($D30,O$2)&":"&MIN($E30,EOMONTH(O$2,0)))))=MATCH($F30,{"Su";"Ma";"Ti";"Ke";"To";"Pe";"La"},0)))-SUMPRODUCT(--COUNTIF(INDIRECT("Kenttätiedot!"&HLOOKUP($A30,Kenttätiedot!$B$3:$Q$5,3,FALSE)&"6:"&HLOOKUP($A30,Kenttätiedot!$B$3:$Q$5,3,FALSE)&"300"),ROW(INDIRECT(MAX($D30,O$2)&":"&MIN($E30,EOMONTH(O$2,0)))))*(WEEKDAY(ROW(INDIRECT(MAX($D30,O$2)&":"&MIN($E30,EOMONTH(O$2,0)))))=MATCH($F30,{"Su";"Ma";"Ti";"Ke";"To";"Pe";"La"},0))),0)*HLOOKUP($A30,Kenttätiedot!$B$3:$Q$5,2,FALSE)*$B30,0) -> 0 | P30: =IF($D30<>"",IF(AND($D30<=EOMONTH(P$2,0),$E30>=P$2),SUMPRODUCT(--(WEEKDAY(ROW(INDIRECT(MAX($D30,P$2)&":"&MIN($E30,EOMONTH(P$2,0)))))=MATCH($F30,{"Su";"Ma";"Ti";"Ke";"To";"Pe";"La"},0)))-SUMPRODUCT(--COUNTIF(INDIRECT("Kenttätiedot!"&HLOOKUP($A30,Kenttätiedot!$B$3:$Q$5,3,FALSE)&"6:"&HLOOKUP($A30,Kenttätiedot!$B$3:$Q$5,3,FALSE)&"300"),ROW(INDIRECT(MAX($D30,P$2)&":"&MIN($E30,EOMONTH(P$2,0)))))*(WEEKDAY(ROW(INDIRECT(MAX($D30,P$2)&":"&MIN($E30,EOMONTH(P$2,0)))))=MATCH($F30,{"Su";"Ma";"Ti";"Ke";"To";"Pe";"La"},0))),0)*HLOOKUP($A30,Kenttätiedot!$B$3:$Q$5,2,FALSE)*$B30,0) -> 0 | Q30: =IF($D30<>"",IF(AND($D30<=EOMONTH(Q$2,0),$E30>=Q$2),SUMPRODUCT(--(WEEKDAY(ROW(INDIRECT(MAX($D30,Q$2)&":"&MIN($E30,EOMONTH(Q$2,0)))))=MATCH($F30,{"Su";"Ma";"Ti";"Ke";"To";"Pe";"La"},0)))-SUMPRODUCT(--COUNTIF(INDIRECT("Kenttätiedot!"&HLOOKUP($A30,Kenttätiedot!$B$3:$Q$5,3,FALSE)&"6:"&HLOOKUP($A30,Kenttätiedot!$B$3:$Q$5,3,FALSE)&"300"),ROW(INDIRECT(MAX($D30,Q$2)&":"&MIN($E30,EOMONTH(Q$2,0)))))*(WEEKDAY(ROW(INDIRECT(MAX($D30,Q$2)&":"&MIN($E30,EOMONTH(Q$2,0)))))=MATCH($F30,{"Su";"Ma";"Ti";"Ke";"To";"Pe";"La"},0))),0)*HLOOKUP($A30,Kenttätiedot!$B$3:$Q$5,2,FALSE)*$B30,0) -> 0 | R30: =IF($D30<>"",IF(AND($D30<=EOMONTH(R$2,0),$E30>=R$2),SUMPRODUCT(--(WEEKDAY(ROW(INDIRECT(MAX($D30,R$2)&":"&MIN($E30,EOMONTH(R$2,0)))))=MATCH($F30,{"Su";"Ma";"Ti";"Ke";"To";"Pe";"La"},0)))-SUMPRODUCT(--COUNTIF(INDIRECT("Kenttätiedot!"&HLOOKUP($A30,Kenttätiedot!$B$3:$Q$5,3,FALSE)&"6:"&HLOOKUP($A30,Kenttätiedot!$B$3:$Q$5,3,FALSE)&"300"),ROW(INDIRECT(MAX($D30,R$2)&":"&MIN($E30,EOMONTH(R$2,0)))))*(WEEKDAY(ROW(INDIRECT(MAX($D30,R$2)&":"&MIN($E30,EOMONTH(R$2,0)))))=MATCH($F30,{"Su";"Ma";"Ti";"Ke";"To";"Pe";"La"},0))),0)*HLOOKUP($A30,Kenttätiedot!$B$3:$Q$5,2,FALSE)*$B30,0) -> 0 | S30: =IF($D30<>"",IF(AND($D30<=EOMONTH(S$2,0),$E30>=S$2),SUMPRODUCT(--(WEEKDAY(ROW(INDIRECT(MAX($D30,S$2)&":"&MIN($E30,EOMONTH(S$2,0)))))=MATCH($F30,{"Su";"Ma";"Ti";"Ke";"To";"Pe";"La"},0)))-SUMPRODUCT(--COUNTIF(INDIRECT("Kenttätiedot!"&HLOOKUP($A30,Kenttätiedot!$B$3:$Q$5,3,FALSE)&"6:"&HLOOKUP($A30,Kenttätiedot!$B$3:$Q$5,3,FALSE)&"300"),ROW(INDIRECT(MAX($D30,S$2)&":"&MIN($E30,EOMONTH(S$2,0)))))*(WEEKDAY(ROW(INDIRECT(MAX($D30,S$2)&":"&MIN($E30,EOMONTH(S$2,0)))))=MATCH($F30,{"Su";"Ma";"Ti";"Ke";"To";"Pe";"La"},0))),0)*HLOOKUP($A30,Kenttätiedot!$B$3:$Q$5,2,FALSE)*$B30,0) -> 0 | T30: =IF($D30<>"",IF(AND($D30<=EOMONTH(H$2,0),$E30>=H$2),SUMPRODUCT(--(WEEKDAY(ROW(INDIRECT(MAX($D30,H$2)&":"&MIN($E30,EOMONTH(H$2,0)))))=MATCH($F30,{"Su";"Ma";"Ti";"Ke";"To";"Pe";"La"},0)))-SUMPRODUCT(--COUNTIF(INDIRECT("Kenttätiedot!"&HLOOKUP($A30,Kenttätiedot!$B$3:$Q$5,3,FALSE)&"6:"&HLOOKUP($A30,Kenttätiedot!$B$3:$Q$5,3,FALSE)&"300"),ROW(INDIRECT(MAX($D30,H$2)&":"&MIN($E30,EOMONTH(H$2,0)))))*(WEEKDAY(ROW(INDIRECT(MAX($D30,H$2)&":"&MIN($E30,EOMONTH(H$2,0)))))=MATCH($F30,{"Su";"Ma";"Ti";"Ke";"To";"Pe";"La"},0))),0)*$G30,0) -> 0 | U30: =IF($D30<>"",IF(AND($D30<=EOMONTH(I$2,0),$E30>=I$2),SUMPRODUCT(--(WEEKDAY(ROW(INDIRECT(MAX($D30,I$2)&":"&MIN($E30,EOMONTH(I$2,0)))))=MATCH($F30,{"Su";"Ma";"Ti";"Ke";"To";"Pe";"La"},0)))-SUMPRODUCT(--COUNTIF(INDIRECT("Kenttätiedot!"&HLOOKUP($A30,Kenttätiedot!$B$3:$Q$5,3,FALSE)&"6:"&HLOOKUP($A30,Kenttätiedot!$B$3:$Q$5,3,FALSE)&"300"),ROW(INDIRECT(MAX($D30,I$2)&":"&MIN($E30,EOMONTH(I$2,0)))))*(WEEKDAY(ROW(INDIRECT(MAX($D30,I$2)&":"&MIN($E30,EOMONTH(I$2,0)))))=MATCH($F30,{"Su";"Ma";"Ti";"Ke";"To";"Pe";"La"},0))),0)*$G30,0) -> 0 | V30: =IF($D30<>"",IF(AND($D30<=EOMONTH(J$2,0),$E30>=J$2),SUMPRODUCT(--(WEEKDAY(ROW(INDIRECT(MAX($D30,J$2)&":"&MIN($E30,EOMONTH(J$2,0)))))=MATCH($F30,{"Su";"Ma";"Ti";"Ke";"To";"Pe";"La"},0)))-SUMPRODUCT(--COUNTIF(INDIRECT("Kenttätiedot!"&HLOOKUP($A30,Kenttätiedot!$B$3:$Q$5,3,FALSE)&"6:"&HLOOKUP($A30,Kenttätiedot!$B$3:$Q$5,3,FALSE)&"300"),ROW(INDIRECT(MAX($D30,J$2)&":"&MIN($E30,EOMONTH(J$2,0)))))*(WEEKDAY(ROW(INDIRECT(MAX($D30,J$2)&":"&MIN($E30,EOMONTH(J$2,0)))))=MATCH($F30,{"Su";"Ma";"Ti";"Ke";"To";"Pe";"La"},0))),0)*$G30,0) -> 0 | W30: =IF($D30<>"",IF(AND($D30<=EOMONTH(K$2,0),$E30>=K$2),SUMPRODUCT(--(WEEKDAY(ROW(INDIRECT(MAX($D30,K$2)&":"&MIN($E30,EOMONTH(K$2,0)))))=MATCH($F30,{"Su";"Ma";"Ti";"Ke";"To";"Pe";"La"},0)))-SUMPRODUCT(--COUNTIF(INDIRECT("Kenttätiedot!"&HLOOKUP($A30,Kenttätiedot!$B$3:$Q$5,3,FALSE)&"6:"&HLOOKUP($A30,Kenttätiedot!$B$3:$Q$5,3,FALSE)&"300"),ROW(INDIRECT(MAX($D30,K$2)&":"&MIN($E30,EOMONTH(K$2,0)))))*(WEEKDAY(ROW(INDIRECT(MAX($D30,K$2)&":"&MIN($E30,EOMONTH(K$2,0)))))=MATCH($F30,{"Su";"Ma";"Ti";"Ke";"To";"Pe";"La"},0))),0)*$G30,0) -> 0 | X30: =IF($D30<>"",IF(AND($D30<=EOMONTH(L$2,0),$E30>=L$2),SUMPRODUCT(--(WEEKDAY(ROW(INDIRECT(MAX($D30,L$2)&":"&MIN($E30,EOMONTH(L$2,0)))))=MATCH($F30,{"Su";"Ma";"Ti";"Ke";"To";"Pe";"La"},0)))-SUMPRODUCT(--COUNTIF(INDIRECT("Kenttätiedot!"&HLOOKUP($A30,Kenttätiedot!$B$3:$Q$5,3,FALSE)&"6:"&HLOOKUP($A30,Kenttätiedot!$B$3:$Q$5,3,FALSE)&"300"),ROW(INDIRECT(MAX($D30,L$2)&":"&MIN($E30,EOMONTH(L$2,0)))))*(WEEKDAY(ROW(INDIRECT(MAX($D30,L$2)&":"&MIN($E30,EOMONTH(L$2,0)))))=MATCH($F30,{"Su";"Ma";"Ti";"Ke";"To";"Pe";"La"},0))),0)*$G30,0) -> 0 | Y30: =IF($D30<>"",IF(AND($D30<=EOMONTH(M$2,0),$E30>=M$2),SUMPRODUCT(--(WEEKDAY(ROW(INDIRECT(MAX($D30,M$2)&":"&MIN($E30,EOMONTH(M$2,0)))))=MATCH($F30,{"Su";"Ma";"Ti";"Ke";"To";"Pe";"La"},0)))-SUMPRODUCT(--COUNTIF(INDIRECT("Kenttätiedot!"&HLOOKUP($A30,Kenttätiedot!$B$3:$Q$5,3,FALSE)&"6:"&HLOOKUP($A30,Kenttätiedot!$B$3:$Q$5,3,FALSE)&"300"),ROW(INDIRECT(MAX($D30,M$2)&":"&MIN($E30,EOMONTH(M$2,0)))))*(WEEKDAY(ROW(INDIRECT(MAX($D30,M$2)&":"&MIN($E30,EOMONTH(M$2,0)))))=MATCH($F30,{"Su";"Ma";"Ti";"Ke";"To";"Pe";"La"},0))),0)*$G30,0) -> 0 | Z30: =IF($D30<>"",IF(AND($D30<=EOMONTH(N$2,0),$E30>=N$2),SUMPRODUCT(--(WEEKDAY(ROW(INDIRECT(MAX($D30,N$2)&":"&MIN($E30,EOMONTH(N$2,0)))))=MATCH($F30,{"Su";"Ma";"Ti";"Ke";"To";"Pe";"La"},0)))-SUMPRODUCT(--COUNTIF(INDIRECT("Kenttätiedot!"&HLOOKUP($A30,Kenttätiedot!$B$3:$Q$5,3,FALSE)&"6:"&HLOOKUP($A30,Kenttätiedot!$B$3:$Q$5,3,FALSE)&"300"),ROW(INDIRECT(MAX($D30,N$2)&":"&MIN($E30,EOMONTH(N$2,0)))))*(WEEKDAY(ROW(INDIRECT(MAX($D30,N$2)&":"&MIN($E30,EOMONTH(N$2,0)))))=MATCH($F30,{"Su";"Ma";"Ti";"Ke";"To";"Pe";"La"},0))),0)*$G30,0) -> 0 | AA30: =IF($D30<>"",IF(AND($D30<=EOMONTH(O$2,0),$E30>=O$2),SUMPRODUCT(--(WEEKDAY(ROW(INDIRECT(MAX($D30,O$2)&":"&MIN($E30,EOMONTH(O$2,0)))))=MATCH($F30,{"Su";"Ma";"Ti";"Ke";"To";"Pe";"La"},0)))-SUMPRODUCT(--COUNTIF(INDIRECT("Kenttätiedot!"&HLOOKUP($A30,Kenttätiedot!$B$3:$Q$5,3,FALSE)&"6:"&HLOOKUP($A30,Kenttätiedot!$B$3:$Q$5,3,FALSE)&"300"),ROW(INDIRECT(MAX($D30,O$2)&":"&MIN($E30,EOMONTH(O$2,0)))))*(WEEKDAY(ROW(INDIRECT(MAX($D30,O$2)&":"&MIN($E30,EOMONTH(O$2,0)))))=MATCH($F30,{"Su";"Ma";"Ti";"Ke";"To";"Pe";"La"},0))),0)*$G30,0) -> 0 | AB30: =IF($D30<>"",IF(AND($D30<=EOMONTH(P$2,0),$E30>=P$2),SUMPRODUCT(--(WEEKDAY(ROW(INDIRECT(MAX($D30,P$2)&":"&MIN($E30,EOMONTH(P$2,0)))))=MATCH($F30,{"Su";"Ma";"Ti";"Ke";"To";"Pe";"La"},0)))-SUMPRODUCT(--COUNTIF(INDIRECT("Kenttätiedot!"&HLOOKUP($A30,Kenttätiedot!$B$3:$Q$5,3,FALSE)&"6:"&HLOOKUP($A30,Kenttätiedot!$B$3:$Q$5,3,FALSE)&"300"),ROW(INDIRECT(MAX($D30,P$2)&":"&MIN($E30,EOMONTH(P$2,0)))))*(WEEKDAY(ROW(INDIRECT(MAX($D30,P$2)&":"&MIN($E30,EOMONTH(P$2,0)))))=MATCH($F30,{"Su";"Ma";"Ti";"Ke";"To";"Pe";"La"},0))),0)*$G30,0) -> 0 | AC30: =IF($D30<>"",IF(AND($D30<=EOMONTH(Q$2,0),$E30>=Q$2),SUMPRODUCT(--(WEEKDAY(ROW(INDIRECT(MAX($D30,Q$2)&":"&MIN($E30,EOMONTH(Q$2,0)))))=MATCH($F30,{"Su";"Ma";"Ti";"Ke";"To";"Pe";"La"},0)))-SUMPRODUCT(--COUNTIF(INDIRECT("Kenttätiedot!"&HLOOKUP($A30,Kenttätiedot!$B$3:$Q$5,3,FALSE)&"6:"&HLOOKUP($A30,Kenttätiedot!$B$3:$Q$5,3,FALSE)&"300"),ROW(INDIRECT(MAX($D30,Q$2)&":"&MIN($E30,EOMONTH(Q$2,0)))))*(WEEKDAY(ROW(INDIRECT(MAX($D30,Q$2)&":"&MIN($E30,EOMONTH(Q$2,0)))))=MATCH($F30,{"Su";"Ma";"Ti";"Ke";"To";"Pe";"La"},0))),0)*$G30,0) -> 0 | AD30: =IF($D30<>"",IF(AND($D30<=EOMONTH(R$2,0),$E30>=R$2),SUMPRODUCT(--(WEEKDAY(ROW(INDIRECT(MAX($D30,R$2)&":"&MIN($E30,EOMONTH(R$2,0)))))=MATCH($F30,{"Su";"Ma";"Ti";"Ke";"To";"Pe";"La"},0)))-SUMPRODUCT(--COUNTIF(INDIRECT("Kenttätiedot!"&HLOOKUP($A30,Kenttätiedot!$B$3:$Q$5,3,FALSE)&"6:"&HLOOKUP($A30,Kenttätiedot!$B$3:$Q$5,3,FALSE)&"300"),ROW(INDIRECT(MAX($D30,R$2)&":"&MIN($E30,EOMONTH(R$2,0)))))*(WEEKDAY(ROW(INDIRECT(MAX($D30,R$2)&":"&MIN($E30,EOMONTH(R$2,0)))))=MATCH($F30,{"Su";"Ma";"Ti";"Ke";"To";"Pe";"La"},0))),0)*$G30,0) -> 0 | AE30: =IF($D30<>"",IF(AND($D30<=EOMONTH(S$2,0),$E30>=S$2),SUMPRODUCT(--(WEEKDAY(ROW(INDIRECT(MAX($D30,S$2)&":"&MIN($E30,EOMONTH(S$2,0)))))=MATCH($F30,{"Su";"Ma";"Ti";"Ke";"To";"Pe";"La"},0)))-SUMPRODUCT(--COUNTIF(INDIRECT("Kenttätiedot!"&HLOOKUP($A30,Kenttätiedot!$B$3:$Q$5,3,FALSE)&"6:"&HLOOKUP($A30,Kenttätiedot!$B$3:$Q$5,3,FALSE)&"300"),ROW(INDIRECT(MAX($D30,S$2)&":"&MIN($E30,EOMONTH(S$2,0)))))*(WEEKDAY(ROW(INDIRECT(MAX($D30,S$2)&":"&MIN($E30,EOMONTH(S$2,0)))))=MATCH($F30,{"Su";"Ma";"Ti";"Ke";"To";"Pe";"La"},0))),0)*$G30,0) -> 0
H31: =IF($D31<>"",IF(AND($D31<=EOMONTH(H$2,0),$E31>=H$2),SUMPRODUCT(--(WEEKDAY(ROW(INDIRECT(MAX($D31,H$2)&":"&MIN($E31,EOMONTH(H$2,0)))))=MATCH($F31,{"Su";"Ma";"Ti";"Ke";"To";"Pe";"La"},0)))-SUMPRODUCT(--COUNTIF(INDIRECT("Kenttätiedot!"&HLOOKUP($A31,Kenttätiedot!$B$3:$Q$5,3,FALSE)&"6:"&HLOOKUP($A31,Kenttätiedot!$B$3:$Q$5,3,FALSE)&"300"),ROW(INDIRECT(MAX($D31,H$2)&":"&MIN($E31,EOMONTH(H$2,0)))))*(WEEKDAY(ROW(INDIRECT(MAX($D31,H$2)&":"&MIN($E31,EOMONTH(H$2,0)))))=MATCH($F31,{"Su";"Ma";"Ti";"Ke";"To";"Pe";"La"},0))),0)*HLOOKUP($A31,Kenttätiedot!$B$3:$Q$5,2,FALSE)*$B31,0) -> 0 | I31: =IF($D31<>"",IF(AND($D31<=EOMONTH(I$2,0),$E31>=I$2),SUMPRODUCT(--(WEEKDAY(ROW(INDIRECT(MAX($D31,I$2)&":"&MIN($E31,EOMONTH(I$2,0)))))=MATCH($F31,{"Su";"Ma";"Ti";"Ke";"To";"Pe";"La"},0)))-SUMPRODUCT(--COUNTIF(INDIRECT("Kenttätiedot!"&HLOOKUP($A31,Kenttätiedot!$B$3:$Q$5,3,FALSE)&"6:"&HLOOKUP($A31,Kenttätiedot!$B$3:$Q$5,3,FALSE)&"300"),ROW(INDIRECT(MAX($D31,I$2)&":"&MIN($E31,EOMONTH(I$2,0)))))*(WEEKDAY(ROW(INDIRECT(MAX($D31,I$2)&":"&MIN($E31,EOMONTH(I$2,0)))))=MATCH($F31,{"Su";"Ma";"Ti";"Ke";"To";"Pe";"La"},0))),0)*HLOOKUP($A31,Kenttätiedot!$B$3:$Q$5,2,FALSE)*$B31,0) -> 0 | J31: =IF($D31<>"",IF(AND($D31<=EOMONTH(J$2,0),$E31>=J$2),SUMPRODUCT(--(WEEKDAY(ROW(INDIRECT(MAX($D31,J$2)&":"&MIN($E31,EOMONTH(J$2,0)))))=MATCH($F31,{"Su";"Ma";"Ti";"Ke";"To";"Pe";"La"},0)))-SUMPRODUCT(--COUNTIF(INDIRECT("Kenttätiedot!"&HLOOKUP($A31,Kenttätiedot!$B$3:$Q$5,3,FALSE)&"6:"&HLOOKUP($A31,Kenttätiedot!$B$3:$Q$5,3,FALSE)&"300"),ROW(INDIRECT(MAX($D31,J$2)&":"&MIN($E31,EOMONTH(J$2,0)))))*(WEEKDAY(ROW(INDIRECT(MAX($D31,J$2)&":"&MIN($E31,EOMONTH(J$2,0)))))=MATCH($F31,{"Su";"Ma";"Ti";"Ke";"To";"Pe";"La"},0))),0)*HLOOKUP($A31,Kenttätiedot!$B$3:$Q$5,2,FALSE)*$B31,0) -> 0 | K31: =IF($D31<>"",IF(AND($D31<=EOMONTH(K$2,0),$E31>=K$2),SUMPRODUCT(--(WEEKDAY(ROW(INDIRECT(MAX($D31,K$2)&":"&MIN($E31,EOMONTH(K$2,0)))))=MATCH($F31,{"Su";"Ma";"Ti";"Ke";"To";"Pe";"La"},0)))-SUMPRODUCT(--COUNTIF(INDIRECT("Kenttätiedot!"&HLOOKUP($A31,Kenttätiedot!$B$3:$Q$5,3,FALSE)&"6:"&HLOOKUP($A31,Kenttätiedot!$B$3:$Q$5,3,FALSE)&"300"),ROW(INDIRECT(MAX($D31,K$2)&":"&MIN($E31,EOMONTH(K$2,0)))))*(WEEKDAY(ROW(INDIRECT(MAX($D31,K$2)&":"&MIN($E31,EOMONTH(K$2,0)))))=MATCH($F31,{"Su";"Ma";"Ti";"Ke";"To";"Pe";"La"},0))),0)*HLOOKUP($A31,Kenttätiedot!$B$3:$Q$5,2,FALSE)*$B31,0) -> 0 | L31: =IF($D31<>"",IF(AND($D31<=EOMONTH(L$2,0),$E31>=L$2),SUMPRODUCT(--(WEEKDAY(ROW(INDIRECT(MAX($D31,L$2)&":"&MIN($E31,EOMONTH(L$2,0)))))=MATCH($F31,{"Su";"Ma";"Ti";"Ke";"To";"Pe";"La"},0)))-SUMPRODUCT(--COUNTIF(INDIRECT("Kenttätiedot!"&HLOOKUP($A31,Kenttätiedot!$B$3:$Q$5,3,FALSE)&"6:"&HLOOKUP($A31,Kenttätiedot!$B$3:$Q$5,3,FALSE)&"300"),ROW(INDIRECT(MAX($D31,L$2)&":"&MIN($E31,EOMONTH(L$2,0)))))*(WEEKDAY(ROW(INDIRECT(MAX($D31,L$2)&":"&MIN($E31,EOMONTH(L$2,0)))))=MATCH($F31,{"Su";"Ma";"Ti";"Ke";"To";"Pe";"La"},0))),0)*HLOOKUP($A31,Kenttätiedot!$B$3:$Q$5,2,FALSE)*$B31,0) -> 0 | M31: =IF($D31<>"",IF(AND($D31<=EOMONTH(M$2,0),$E31>=M$2),SUMPRODUCT(--(WEEKDAY(ROW(INDIRECT(MAX($D31,M$2)&":"&MIN($E31,EOMONTH(M$2,0)))))=MATCH($F31,{"Su";"Ma";"Ti";"Ke";"To";"Pe";"La"},0)))-SUMPRODUCT(--COUNTIF(INDIRECT("Kenttätiedot!"&HLOOKUP($A31,Kenttätiedot!$B$3:$Q$5,3,FALSE)&"6:"&HLOOKUP($A31,Kenttätiedot!$B$3:$Q$5,3,FALSE)&"300"),ROW(INDIRECT(MAX($D31,M$2)&":"&MIN($E31,EOMONTH(M$2,0)))))*(WEEKDAY(ROW(INDIRECT(MAX($D31,M$2)&":"&MIN($E31,EOMONTH(M$2,0)))))=MATCH($F31,{"Su";"Ma";"Ti";"Ke";"To";"Pe";"La"},0))),0)*HLOOKUP($A31,Kenttätiedot!$B$3:$Q$5,2,FALSE)*$B31,0) -> 0 | N31: =IF($D31<>"",IF(AND($D31<=EOMONTH(N$2,0),$E31>=N$2),SUMPRODUCT(--(WEEKDAY(ROW(INDIRECT(MAX($D31,N$2)&":"&MIN($E31,EOMONTH(N$2,0)))))=MATCH($F31,{"Su";"Ma";"Ti";"Ke";"To";"Pe";"La"},0)))-SUMPRODUCT(--COUNTIF(INDIRECT("Kenttätiedot!"&HLOOKUP($A31,Kenttätiedot!$B$3:$Q$5,3,FALSE)&"6:"&HLOOKUP($A31,Kenttätiedot!$B$3:$Q$5,3,FALSE)&"300"),ROW(INDIRECT(MAX($D31,N$2)&":"&MIN($E31,EOMONTH(N$2,0)))))*(WEEKDAY(ROW(INDIRECT(MAX($D31,N$2)&":"&MIN($E31,EOMONTH(N$2,0)))))=MATCH($F31,{"Su";"Ma";"Ti";"Ke";"To";"Pe";"La"},0))),0)*HLOOKUP($A31,Kenttätiedot!$B$3:$Q$5,2,FALSE)*$B31,0) -> 0 | O31: =IF($D31<>"",IF(AND($D31<=EOMONTH(O$2,0),$E31>=O$2),SUMPRODUCT(--(WEEKDAY(ROW(INDIRECT(MAX($D31,O$2)&":"&MIN($E31,EOMONTH(O$2,0)))))=MATCH($F31,{"Su";"Ma";"Ti";"Ke";"To";"Pe";"La"},0)))-SUMPRODUCT(--COUNTIF(INDIRECT("Kenttätiedot!"&HLOOKUP($A31,Kenttätiedot!$B$3:$Q$5,3,FALSE)&"6:"&HLOOKUP($A31,Kenttätiedot!$B$3:$Q$5,3,FALSE)&"300"),ROW(INDIRECT(MAX($D31,O$2)&":"&MIN($E31,EOMONTH(O$2,0)))))*(WEEKDAY(ROW(INDIRECT(MAX($D31,O$2)&":"&MIN($E31,EOMONTH(O$2,0)))))=MATCH($F31,{"Su";"Ma";"Ti";"Ke";"To";"Pe";"La"},0))),0)*HLOOKUP($A31,Kenttätiedot!$B$3:$Q$5,2,FALSE)*$B31,0) -> 0 | P31: =IF($D31<>"",IF(AND($D31<=EOMONTH(P$2,0),$E31>=P$2),SUMPRODUCT(--(WEEKDAY(ROW(INDIRECT(MAX($D31,P$2)&":"&MIN($E31,EOMONTH(P$2,0)))))=MATCH($F31,{"Su";"Ma";"Ti";"Ke";"To";"Pe";"La"},0)))-SUMPRODUCT(--COUNTIF(INDIRECT("Kenttätiedot!"&HLOOKUP($A31,Kenttätiedot!$B$3:$Q$5,3,FALSE)&"6:"&HLOOKUP($A31,Kenttätiedot!$B$3:$Q$5,3,FALSE)&"300"),ROW(INDIRECT(MAX($D31,P$2)&":"&MIN($E31,EOMONTH(P$2,0)))))*(WEEKDAY(ROW(INDIRECT(MAX($D31,P$2)&":"&MIN($E31,EOMONTH(P$2,0)))))=MATCH($F31,{"Su";"Ma";"Ti";"Ke";"To";"Pe";"La"},0))),0)*HLOOKUP($A31,Kenttätiedot!$B$3:$Q$5,2,FALSE)*$B31,0) -> 0 | Q31: =IF($D31<>"",IF(AND($D31<=EOMONTH(Q$2,0),$E31>=Q$2),SUMPRODUCT(--(WEEKDAY(ROW(INDIRECT(MAX($D31,Q$2)&":"&MIN($E31,EOMONTH(Q$2,0)))))=MATCH($F31,{"Su";"Ma";"Ti";"Ke";"To";"Pe";"La"},0)))-SUMPRODUCT(--COUNTIF(INDIRECT("Kenttätiedot!"&HLOOKUP($A31,Kenttätiedot!$B$3:$Q$5,3,FALSE)&"6:"&HLOOKUP($A31,Kenttätiedot!$B$3:$Q$5,3,FALSE)&"300"),ROW(INDIRECT(MAX($D31,Q$2)&":"&MIN($E31,EOMONTH(Q$2,0)))))*(WEEKDAY(ROW(INDIRECT(MAX($D31,Q$2)&":"&MIN($E31,EOMONTH(Q$2,0)))))=MATCH($F31,{"Su";"Ma";"Ti";"Ke";"To";"Pe";"La"},0))),0)*HLOOKUP($A31,Kenttätiedot!$B$3:$Q$5,2,FALSE)*$B31,0) -> 0 | R31: =IF($D31<>"",IF(AND($D31<=EOMONTH(R$2,0),$E31>=R$2),SUMPRODUCT(--(WEEKDAY(ROW(INDIRECT(MAX($D31,R$2)&":"&MIN($E31,EOMONTH(R$2,0)))))=MATCH($F31,{"Su";"Ma";"Ti";"Ke";"To";"Pe";"La"},0)))-SUMPRODUCT(--COUNTIF(INDIRECT("Kenttätiedot!"&HLOOKUP($A31,Kenttätiedot!$B$3:$Q$5,3,FALSE)&"6:"&HLOOKUP($A31,Kenttätiedot!$B$3:$Q$5,3,FALSE)&"300"),ROW(INDIRECT(MAX($D31,R$2)&":"&MIN($E31,EOMONTH(R$2,0)))))*(WEEKDAY(ROW(INDIRECT(MAX($D31,R$2)&":"&MIN($E31,EOMONTH(R$2,0)))))=MATCH($F31,{"Su";"Ma";"Ti";"Ke";"To";"Pe";"La"},0))),0)*HLOOKUP($A31,Kenttätiedot!$B$3:$Q$5,2,FALSE)*$B31,0) -> 0 | S31: =IF($D31<>"",IF(AND($D31<=EOMONTH(S$2,0),$E31>=S$2),SUMPRODUCT(--(WEEKDAY(ROW(INDIRECT(MAX($D31,S$2)&":"&MIN($E31,EOMONTH(S$2,0)))))=MATCH($F31,{"Su";"Ma";"Ti";"Ke";"To";"Pe";"La"},0)))-SUMPRODUCT(--COUNTIF(INDIRECT("Kenttätiedot!"&HLOOKUP($A31,Kenttätiedot!$B$3:$Q$5,3,FALSE)&"6:"&HLOOKUP($A31,Kenttätiedot!$B$3:$Q$5,3,FALSE)&"300"),ROW(INDIRECT(MAX($D31,S$2)&":"&MIN($E31,EOMONTH(S$2,0)))))*(WEEKDAY(ROW(INDIRECT(MAX($D31,S$2)&":"&MIN($E31,EOMONTH(S$2,0)))))=MATCH($F31,{"Su";"Ma";"Ti";"Ke";"To";"Pe";"La"},0))),0)*HLOOKUP($A31,Kenttätiedot!$B$3:$Q$5,2,FALSE)*$B31,0) -> 0 | T31: =IF($D31<>"",IF(AND($D31<=EOMONTH(H$2,0),$E31>=H$2),SUMPRODUCT(--(WEEKDAY(ROW(INDIRECT(MAX($D31,H$2)&":"&MIN($E31,EOMONTH(H$2,0)))))=MATCH($F31,{"Su";"Ma";"Ti";"Ke";"To";"Pe";"La"},0)))-SUMPRODUCT(--COUNTIF(INDIRECT("Kenttätiedot!"&HLOOKUP($A31,Kenttätiedot!$B$3:$Q$5,3,FALSE)&"6:"&HLOOKUP($A31,Kenttätiedot!$B$3:$Q$5,3,FALSE)&"300"),ROW(INDIRECT(MAX($D31,H$2)&":"&MIN($E31,EOMONTH(H$2,0)))))*(WEEKDAY(ROW(INDIRECT(MAX($D31,H$2)&":"&MIN($E31,EOMONTH(H$2,0)))))=MATCH($F31,{"Su";"Ma";"Ti";"Ke";"To";"Pe";"La"},0))),0)*$G31,0) -> 0 | U31: =IF($D31<>"",IF(AND($D31<=EOMONTH(I$2,0),$E31>=I$2),SUMPRODUCT(--(WEEKDAY(ROW(INDIRECT(MAX($D31,I$2)&":"&MIN($E31,EOMONTH(I$2,0)))))=MATCH($F31,{"Su";"Ma";"Ti";"Ke";"To";"Pe";"La"},0)))-SUMPRODUCT(--COUNTIF(INDIRECT("Kenttätiedot!"&HLOOKUP($A31,Kenttätiedot!$B$3:$Q$5,3,FALSE)&"6:"&HLOOKUP($A31,Kenttätiedot!$B$3:$Q$5,3,FALSE)&"300"),ROW(INDIRECT(MAX($D31,I$2)&":"&MIN($E31,EOMONTH(I$2,0)))))*(WEEKDAY(ROW(INDIRECT(MAX($D31,I$2)&":"&MIN($E31,EOMONTH(I$2,0)))))=MATCH($F31,{"Su";"Ma";"Ti";"Ke";"To";"Pe";"La"},0))),0)*$G31,0) -> 0 | V31: =IF($D31<>"",IF(AND($D31<=EOMONTH(J$2,0),$E31>=J$2),SUMPRODUCT(--(WEEKDAY(ROW(INDIRECT(MAX($D31,J$2)&":"&MIN($E31,EOMONTH(J$2,0)))))=MATCH($F31,{"Su";"Ma";"Ti";"Ke";"To";"Pe";"La"},0)))-SUMPRODUCT(--COUNTIF(INDIRECT("Kenttätiedot!"&HLOOKUP($A31,Kenttätiedot!$B$3:$Q$5,3,FALSE)&"6:"&HLOOKUP($A31,Kenttätiedot!$B$3:$Q$5,3,FALSE)&"300"),ROW(INDIRECT(MAX($D31,J$2)&":"&MIN($E31,EOMONTH(J$2,0)))))*(WEEKDAY(ROW(INDIRECT(MAX($D31,J$2)&":"&MIN($E31,EOMONTH(J$2,0)))))=MATCH($F31,{"Su";"Ma";"Ti";"Ke";"To";"Pe";"La"},0))),0)*$G31,0) -> 0 | W31: =IF($D31<>"",IF(AND($D31<=EOMONTH(K$2,0),$E31>=K$2),SUMPRODUCT(--(WEEKDAY(ROW(INDIRECT(MAX($D31,K$2)&":"&MIN($E31,EOMONTH(K$2,0)))))=MATCH($F31,{"Su";"Ma";"Ti";"Ke";"To";"Pe";"La"},0)))-SUMPRODUCT(--COUNTIF(INDIRECT("Kenttätiedot!"&HLOOKUP($A31,Kenttätiedot!$B$3:$Q$5,3,FALSE)&"6:"&HLOOKUP($A31,Kenttätiedot!$B$3:$Q$5,3,FALSE)&"300"),ROW(INDIRECT(MAX($D31,K$2)&":"&MIN($E31,EOMONTH(K$2,0)))))*(WEEKDAY(ROW(INDIRECT(MAX($D31,K$2)&":"&MIN($E31,EOMONTH(K$2,0)))))=MATCH($F31,{"Su";"Ma";"Ti";"Ke";"To";"Pe";"La"},0))),0)*$G31,0) -> 0 | X31: =IF($D31<>"",IF(AND($D31<=EOMONTH(L$2,0),$E31>=L$2),SUMPRODUCT(--(WEEKDAY(ROW(INDIRECT(MAX($D31,L$2)&":"&MIN($E31,EOMONTH(L$2,0)))))=MATCH($F31,{"Su";"Ma";"Ti";"Ke";"To";"Pe";"La"},0)))-SUMPRODUCT(--COUNTIF(INDIRECT("Kenttätiedot!"&HLOOKUP($A31,Kenttätiedot!$B$3:$Q$5,3,FALSE)&"6:"&HLOOKUP($A31,Kenttätiedot!$B$3:$Q$5,3,FALSE)&"300"),ROW(INDIRECT(MAX($D31,L$2)&":"&MIN($E31,EOMONTH(L$2,0)))))*(WEEKDAY(ROW(INDIRECT(MAX($D31,L$2)&":"&MIN($E31,EOMONTH(L$2,0)))))=MATCH($F31,{"Su";"Ma";"Ti";"Ke";"To";"Pe";"La"},0))),0)*$G31,0) -> 0 | Y31: =IF($D31<>"",IF(AND($D31<=EOMONTH(M$2,0),$E31>=M$2),SUMPRODUCT(--(WEEKDAY(ROW(INDIRECT(MAX($D31,M$2)&":"&MIN($E31,EOMONTH(M$2,0)))))=MATCH($F31,{"Su";"Ma";"Ti";"Ke";"To";"Pe";"La"},0)))-SUMPRODUCT(--COUNTIF(INDIRECT("Kenttätiedot!"&HLOOKUP($A31,Kenttätiedot!$B$3:$Q$5,3,FALSE)&"6:"&HLOOKUP($A31,Kenttätiedot!$B$3:$Q$5,3,FALSE)&"300"),ROW(INDIRECT(MAX($D31,M$2)&":"&MIN($E31,EOMONTH(M$2,0)))))*(WEEKDAY(ROW(INDIRECT(MAX($D31,M$2)&":"&MIN($E31,EOMONTH(M$2,0)))))=MATCH($F31,{"Su";"Ma";"Ti";"Ke";"To";"Pe";"La"},0))),0)*$G31,0) -> 0 | Z31: =IF($D31<>"",IF(AND($D31<=EOMONTH(N$2,0),$E31>=N$2),SUMPRODUCT(--(WEEKDAY(ROW(INDIRECT(MAX($D31,N$2)&":"&MIN($E31,EOMONTH(N$2,0)))))=MATCH($F31,{"Su";"Ma";"Ti";"Ke";"To";"Pe";"La"},0)))-SUMPRODUCT(--COUNTIF(INDIRECT("Kenttätiedot!"&HLOOKUP($A31,Kenttätiedot!$B$3:$Q$5,3,FALSE)&"6:"&HLOOKUP($A31,Kenttätiedot!$B$3:$Q$5,3,FALSE)&"300"),ROW(INDIRECT(MAX($D31,N$2)&":"&MIN($E31,EOMONTH(N$2,0)))))*(WEEKDAY(ROW(INDIRECT(MAX($D31,N$2)&":"&MIN($E31,EOMONTH(N$2,0)))))=MATCH($F31,{"Su";"Ma";"Ti";"Ke";"To";"Pe";"La"},0))),0)*$G31,0) -> 0 | AA31: =IF($D31<>"",IF(AND($D31<=EOMONTH(O$2,0),$E31>=O$2),SUMPRODUCT(--(WEEKDAY(ROW(INDIRECT(MAX($D31,O$2)&":"&MIN($E31,EOMONTH(O$2,0)))))=MATCH($F31,{"Su";"Ma";"Ti";"Ke";"To";"Pe";"La"},0)))-SUMPRODUCT(--COUNTIF(INDIRECT("Kenttätiedot!"&HLOOKUP($A31,Kenttätiedot!$B$3:$Q$5,3,FALSE)&"6:"&HLOOKUP($A31,Kenttätiedot!$B$3:$Q$5,3,FALSE)&"300"),ROW(INDIRECT(MAX($D31,O$2)&":"&MIN($E31,EOMONTH(O$2,0)))))*(WEEKDAY(ROW(INDIRECT(MAX($D31,O$2)&":"&MIN($E31,EOMONTH(O$2,0)))))=MATCH($F31,{"Su";"Ma";"Ti";"Ke";"To";"Pe";"La"},0))),0)*$G31,0) -> 0 | AB31: =IF($D31<>"",IF(AND($D31<=EOMONTH(P$2,0),$E31>=P$2),SUMPRODUCT(--(WEEKDAY(ROW(INDIRECT(MAX($D31,P$2)&":"&MIN($E31,EOMONTH(P$2,0)))))=MATCH($F31,{"Su";"Ma";"Ti";"Ke";"To";"Pe";"La"},0)))-SUMPRODUCT(--COUNTIF(INDIRECT("Kenttätiedot!"&HLOOKUP($A31,Kenttätiedot!$B$3:$Q$5,3,FALSE)&"6:"&HLOOKUP($A31,Kenttätiedot!$B$3:$Q$5,3,FALSE)&"300"),ROW(INDIRECT(MAX($D31,P$2)&":"&MIN($E31,EOMONTH(P$2,0)))))*(WEEKDAY(ROW(INDIRECT(MAX($D31,P$2)&":"&MIN($E31,EOMONTH(P$2,0)))))=MATCH($F31,{"Su";"Ma";"Ti";"Ke";"To";"Pe";"La"},0))),0)*$G31,0) -> 0 | AC31: =IF($D31<>"",IF(AND($D31<=EOMONTH(Q$2,0),$E31>=Q$2),SUMPRODUCT(--(WEEKDAY(ROW(INDIRECT(MAX($D31,Q$2)&":"&MIN($E31,EOMONTH(Q$2,0)))))=MATCH($F31,{"Su";"Ma";"Ti";"Ke";"To";"Pe";"La"},0)))-SUMPRODUCT(--COUNTIF(INDIRECT("Kenttätiedot!"&HLOOKUP($A31,Kenttätiedot!$B$3:$Q$5,3,FALSE)&"6:"&HLOOKUP($A31,Kenttätiedot!$B$3:$Q$5,3,FALSE)&"300"),ROW(INDIRECT(MAX($D31,Q$2)&":"&MIN($E31,EOMONTH(Q$2,0)))))*(WEEKDAY(ROW(INDIRECT(MAX($D31,Q$2)&":"&MIN($E31,EOMONTH(Q$2,0)))))=MATCH($F31,{"Su";"Ma";"Ti";"Ke";"To";"Pe";"La"},0))),0)*$G31,0) -> 0 | AD31: =IF($D31<>"",IF(AND($D31<=EOMONTH(R$2,0),$E31>=R$2),SUMPRODUCT(--(WEEKDAY(ROW(INDIRECT(MAX($D31,R$2)&":"&MIN($E31,EOMONTH(R$2,0)))))=MATCH($F31,{"Su";"Ma";"Ti";"Ke";"To";"Pe";"La"},0)))-SUMPRODUCT(--COUNTIF(INDIRECT("Kenttätiedot!"&HLOOKUP($A31,Kenttätiedot!$B$3:$Q$5,3,FALSE)&"6:"&HLOOKUP($A31,Kenttätiedot!$B$3:$Q$5,3,FALSE)&"300"),ROW(INDIRECT(MAX($D31,R$2)&":"&MIN($E31,EOMONTH(R$2,0)))))*(WEEKDAY(ROW(INDIRECT(MAX($D31,R$2)&":"&MIN($E31,EOMONTH(R$2,0)))))=MATCH($F31,{"Su";"Ma";"Ti";"Ke";"To";"Pe";"La"},0))),0)*$G31,0) -> 0 | AE31: =IF($D31<>"",IF(AND($D31<=EOMONTH(S$2,0),$E31>=S$2),SUMPRODUCT(--(WEEKDAY(ROW(INDIRECT(MAX($D31,S$2)&":"&MIN($E31,EOMONTH(S$2,0)))))=MATCH($F31,{"Su";"Ma";"Ti";"Ke";"To";"Pe";"La"},0)))-SUMPRODUCT(--COUNTIF(INDIRECT("Kenttätiedot!"&HLOOKUP($A31,Kenttätiedot!$B$3:$Q$5,3,FALSE)&"6:"&HLOOKUP($A31,Kenttätiedot!$B$3:$Q$5,3,FALSE)&"300"),ROW(INDIRECT(MAX($D31,S$2)&":"&MIN($E31,EOMONTH(S$2,0)))))*(WEEKDAY(ROW(INDIRECT(MAX($D31,S$2)&":"&MIN($E31,EOMONTH(S$2,0)))))=MATCH($F31,{"Su";"Ma";"Ti";"Ke";"To";"Pe";"La"},0))),0)*$G31,0) -> 0
